Workbook

Sheet Definitions
C3: Intersection and Element Definitions
C4: General Site Features | D4: Definition | E4: Notes
C5: Control Types
C6: All-Way STOP | D6: STOP on all approaches
C7: Minor STOP | D7: Two-way STOP on minor approach(es)
C8: Signalized | D8: Signal controlled
C9: Roundabout | D9: Roundabout is a circular intersection in which traffic travels around it in anticlockwise direction.
C10: Restricted Crossing U-turn (RCUT) Signalized | D10: RCUT is a type of intersection that prohibits left-turn and through movements from side street approaches, and accommodates these movements by requiring drivers to turn right onto the main road and then make a U-turn maneuver at a one-way median. Also known as superstreet intersection or J-turn intersection. Can be controlled by either signal or STOP (i.e., signalized or unsignalized, respectively). | E10: Refer to "Alternative_Intersections" for example photo, and FAQ for visual representations.
C11: Restricted Crossing U-turn (RCUT) Unsignalized
C12: Diverging Diamond Interchange (DDI) | D12: DDI is an interchange form that allows two directions of traffic on crossroad to temporarily divide and cross to the opposite side to gain access to and from freeway. | E12: Refer to "Alternative_Intersections" for example photo, and FAQ for visual representations.
C13: Displaced left-turn (DLT) | D13: DLT is a type of intersection which removes left-turn movements from the main intersection to an upstream signalized location. Also known as continuous flow intersection (CFI) or the crossover displaced left-turn (XDL) intersection. | E13: Refer to "Alternative_Intersections" for example photo, and FAQ for visual representations.
C14: Median U-turn (MUT) | D14: MUT is an intersection design where left-turn vehicles from one or both roads make U-turns at dedicated median openings to complete the desired movement. Also known as Michigan left-turn intersection, median U-turn crossover, boulevard turnaround, Michigan loon, or thrU-turn intersection. | E14: Refer to "Alternative_Intersections" for example photo, and FAQ for visual representations.
C15: Peak-Hour Ped. Flow (crossing the roadway) | D15: Pedestrian flow crossing the roadways in both directions during peak hour.
C16: Peak-Hour Bike Flow (along the roadway) | D16: Bicyclist flow along the roadways in both directions during pear hour.
B24: No.* | C24: Geometric Design Elements | D24: Definition | E24: Notes
B25: 1 | C25: Num of Approaches with Exclusive Left-Turn Lanes | D25: Number of approaches with exclusive left-turn lanes | E25: Not the number of exclusive left-turn lanes
B26: 2 | C26: Positive Offset Left-Turn Lanes | D26: A design that shifts the left-turn lanes to the left to create a positive offset | E26: Refer to FAQ for visual representations.
B27: 3 | C27: Num of Approaches with Exclusive Right-Turn Lanes | D27: Number of approaches with exclusive right-turn lanes
B28: 4 | C28: Num of Major-Streets with Right-Turn Channelization | D28: Number of approaches on major roads having right-turn channelization; channelized right-turn lanes provide free-flow or nearly free-flow right-turn movements
B29: 5 | C29: Sight Distance | D29: Calculated sight distance for the worst case leg of the intersection
B30: 6 | C30: RCUT Median Width | D30: The total median width of the major approaches (e.g. if one approach has 40 ft. median and the other one has 25 ft., then total median width is 65 ft.) [source: FDOT SPICE Tool] | E30: Median width is measured from edge of pavement to edge of pavement.
B31: 7 | C31: Median on Min Approach | D31: Presence of median on minor approach(es)
B32: 8 | C32: Replace Direct Left-Turn with Right Turn/U-Turn | D32: Whether or not the left-turn(s) has been replaced with right-turn(s) and/or U-turn(s)
B33: 9 | C33: RCUT Offset Distance | D33: The total distance between the center of the intersection and the U-turn locations (e.g. if one approach has 800 ft. offset and the other one has 600 ft., then the total offset distance is 1400 ft.) [source: FDOT SPICE Tool] | E33: Refer to FAQ for visual representations.
B34: 10 | C34: RCUT Number of Driveways | D34: The number of driveways within the whole footprint (including intersection center, U-turns, and segment between intersection center and U-turns) of the RCUT intersection. [source: FDOT SPICE Tool] | E34: All publicly maintained roads that connect with the RCUT, including driveways and side streets.
B35: 11 | C35: RCUT Acceleration Lane Length | D35: The total length of the acceleration lanes before U-turn locations (e.g. if one approach has 400 ft. deceleration lane and the other one has 250 ft., then 400 ft. is chosen as maximum deceleration lane length). [source: FDOT SPICE Tool]
B36: 12 | C36: RCUT Deceleration Lane Length | D36: The total length of the deceleration lanes before U-turn locations (e.g. if one approach has 400 ft. deceleration lane and the other one has 250 ft., then total deceleration lane length is 650 ft.) [source: FDOT SPICE Tool]
B37: 13 | C37: RCUT Number of U-Turns | D37: Number of U-turns of the RCUT intersection.
B38: 15 | C38: RA Number Outbound-only Legs | D38: Number of outbound-only legs (i.e., one-way serving out-bound traffic only)
B39: 16 | C39: RA Number of Legs with Right-Turn Bypass Lane | D39: Number of legs with right-turn bypass lane at the roundabout | E39: Refer to FAQ for visual representations.
B40: 17 | C40: RA Total Number of Driveways/Access Points of the Roundabout | D40: Total number of driveways and/or access points within 250 ft of the roundabout yield line in both directions on all legs
B41: 19A | C41: RA Number of Circulating Lane Conflicting with the Leg | D41: Maximum number of circulating lanes conflicting with approach
B42: 19B | C42: RA Number of Entering Lanes on the Roundabout | D42: Maximum number of lanes entering into the roundabout
B44: Note: * The number is not continuous.
B47: No.* | C47: Traffic Control Elements | D47: Definition | E47: Notes
B48: 20 | C48: Lighting | D48: Presence of traffic lighting
B49: 21 | C49: Left-Turn Signal Phasing | D49: Left-turn signal phasing type: permissive, protected-permissive, or protected
B50: 22 | C50: Increase total change interval | D50: Increase the total change interval (combination of yellow and all red intervals) to be greater than or equal to the ITE recommended practice | E50: Needs discussion
B52: 23 | C52: Number of Approaches for which RTOR is Prohibited | D52: Number of approaches that right-turn-on-red is prohibited
B53: 24 | C53: Retroreflective Sheeting to Backplates | D53: Presence of retroreflective sheeting to backplates of signal housing
B54: 25 | C54: Actuated Advance Warning | D54: Presence of actuated advance warning sign(s), an electronic sign which only activates when a vehicle is detected
B55: 26 | C55: Prohibit Left-Turns | D55: Prohibit left-turns on any approach | E55: If any approach prohibits left-turn movements, users need to select "Yes" for this feature.
B56: 27 | C56: Number of Approaches with U-Turn Prohibition | D56: Number of approaches prohibiting U-turns
B57: 29 | C57: Right-In Right-Out | D57: Install right-in-right-out (RIRO) operations on minor approach(es) at a stop-controlled intersection
B59: Note: * The number is not continuous.
B64: No. | C64: Pedestrian Elements | D64: Definition | E64: Notes
B65: 30 | C65: Median type | D65: Median type: None or flush median; or Curbed median >= 3ft wide
B66: 31 | C66: School zone warning | D66: Presence of school zone and control device(s)
B67: 32 | C67: Location of pedestrian crossing | D67: Location type: locations other than schools (i.e., not in school zones); school locations with a crossing guard; or school locations without a crossing guard
B69: 33 | C69: Pedestrian crossing facility type | D69: Pedestrian crossing facility type, e.g., presence and combinations of pedestrian hybrid beacon (PHB, a traffic control device designed to help pedestrians safely cross the roadway/intersection), refuge, etc.
B70: 34 | C70: Vehicle parking | D70: Presence of vehicle parking on any approach
B71: 35 | C71: Number of auxiliary lanes | D71: The total number of lanes (excluding general purpose through lanes) that pedestrians must cross
B76: No.* | C76: Bicycle Elements | D76: Definition | E76: Notes
B77: 42 | C77: Bicycle facilities and paved shoulder provision (entering) | D77: Bicycle facility and paved shoulder type entering the intersection
B78: 43 | C78: Bicycle facilities and paved shoulder provision (exiting) | D78: Bicycle facility and paved shoulder type exiting the intersection
B79: 44 | C79: Bicycle path presence and pedestrian crossing facility type | D79: Bicycle path and crossing facility type, e.g., separation, refuge, marking, etc.
B80: 45 | C80: Intersection channelization | D80: Presence of intersection channelization that separates motor vehicle movements by direction of travel and/or turning maneuver
B82: Note: * The number is not continous.

Sheet StartHere
E2: Intersection -- Safety Score Input
E3: INPUT INSTRUCTIONS
E4: Blue Boxes -- Select from pulldown options | H4: Select from Pulldown
E5: Yellow Boxes -- Type input information into box | H5: Type Input Value
E6: General Information
F7: Analyst: | H7: Your Name
F8: Agency / Company / District: | H8: Your Agency
F9: Date: | H9: 2022-02-18
E10: Segment Limits (Limit up to 15 miles in length):
F11: Road Name: | H11: Road Name
F12: Category (4R, 3R) -- Future Enhancement | H12: 3R
F13: Segment Beginning Mile Point (BMP): | H13: 9
F14: Segment Ending Mile Point (EMP): | H14: 13
E16: Number of Intersections | H16: 2
E17: Note: A diamond intersection on frontage roadways needs to be analyzed as two separate intersections.
F19: Questions for Developing Worksheets
F21: Are controlling elements for Segment X the same as for Segment Y?
F22: X | G22: Y | H22: Yes or No
F23: 2 | G23: 1 | H23: Yes
F25: 3 | G25: 1 | H25: Yes
F26: 3 | G26: 2 | H26: Yes
F28: 4 | G28: 1 | H28: Yes
F29: 4 | G29: 2 | H29: Yes
F30: 4 | G30: 3 | H30: Yes
F32: 5 | G32: 1
F33: 5 | G33: 2
F34: 5 | G34: 3
F35: 5 | G35: 4
F37: 6 | G37: 1
F38: 6 | G38: 2
F39: 6 | G39: 3
F40: 6 | G40: 4
F41: 6 | G41: 5
F43: 7 | G43: 1
F44: 7 | G44: 2
F45: 7 | G45: 3
F46: 7 | G46: 4
F47: 7 | G47: 5
F48: 7 | G48: 6
F50: 8 | G50: 1
F51: 8 | G51: 2
F52: 8 | G52: 3
F53: 8 | G53: 4
F54: 8 | G54: 5
F55: 8 | G55: 6
F56: 8 | G56: 7
F58: 9 | G58: 1
F59: 9 | G59: 2
F60: 9 | G60: 3
F61: 9 | G61: 4
F62: 9 | G62: 5
F63: 9 | G63: 6
F64: 9 | G64: 7
F65: 9 | G65: 8
F67: 10 | G67: 1
F68: 10 | G68: 2
F69: 10 | G69: 3
F70: 10 | G70: 4
F71: 10 | G71: 5
F72: 10 | G72: 6
F73: 10 | G73: 7
F74: 10 | G74: 8
F75: 10 | G75: 9
D79: =""& CELL("filename") -> https://txdot-my.sharepoint.com/personal/mark_middleton_txdot_gov/Documents/Desktop/Webpage temp/files for ext webpage/[intersection-tool-v0228-1.0.xlsm]Definitions | F79: Weighted Total Score: | G79: =IF(AND(ISNUMBER(G82),AB79>0), SUMPRODUCT(G82:G131,AB82:AB131)/AB79,"") ->  | H79: =IF(AND(ISNUMBER(H82),AC79>0), SUMPRODUCT(H82:H131,AC82:AC131)/AC79,"") ->  | O79: =SUM(O82:O131) -> 0 | P79: =SUM(P82:P131) -> 0 | Q79: =SUM(Q82:Q131) -> 0 | R79: =SUM(R82:R131) -> 0 | S79: =SUM(S82:S131) -> 0 | AB79: =SUM(AB82:AB131) -> 0 | AC79: =SUM(AC82:AC131) -> 0 | AD79: =SUM(AD82:AD131) -> 0 | AE79: =SUM(AE82:AE131) -> 0 | AF79: =SUM(AF82:AF131) -> 0
C80: Intersection Number | D80: Crossing Roadway | G80: Intersection Safety Score
G81: Existing | H81: Standard | I81: Design 1 | J81: Design 2 | K81: Optimal | O81: Obs | U81: Pre | AB81: Obs/Pre
C82: 1 | D82: =IF(IF(OR(NOT(M82),C82=" ")," ",INDIRECT(N82&"!G11"))="","",IF(OR(NOT(M82),C82=" ")," ",INDIRECT(N82&"!G11"))) ->  | G82: =IF(OR(NOT($M82),$C82=" ")," ",INDIRECT($N82&"!D31")) ->  | H82: =IF(OR(NOT($M82),$C82=" ")," ",INDIRECT($N82&"!E31")) ->  | I82: =IF(OR(NOT($M82),$C82=" ")," ",INDIRECT($N82&"!F31")) ->  | J82: =IF(OR(NOT($M82),$C82=" ")," ",INDIRECT($N82&"!G31")) ->  | K82: =IF(OR(NOT($M82),$C82=" ")," ",INDIRECT($N82&"!I31")) ->  | L82: =C82 -> 1 | M82: =ISREF(INDIRECT("Int_"&C82&"!A1")) -> FALSE | N82: ="Int_"&C82 -> Int_1 | O82: =IF(OR(NOT($M82),$C82=" ")," ",INDIRECT($N82&"!G26")) ->  | U82: =IF(OR(NOT($M82),$C82=" ")," ",INDIRECT($N82&"!D32")) ->  | V82: =IF(OR(NOT($M82),$C82=" ")," ",INDIRECT($N82&"!E32")) ->  | W82: =IF(OR(NOT($M82),$C82=" ")," ",INDIRECT($N82&"!F32")) ->  | X82: =IF(OR(NOT($M82),$C82=" ")," ",INDIRECT($N82&"!G32")) ->  | Y82: =IF(OR(NOT($M82),$C82=" ")," ",INDIRECT($N82&"!I32")) ->  | AB82: =IF(O82=0,U82,O82) ->  | AC82: =IF(P82=0,V82,P82) -> 
C83: =IF($L83=" "," ", 2) -> 2 | D83: =IF(IF(OR(NOT(M83),C83=" ")," ",INDIRECT(N83&"!G11"))="","",IF(OR(NOT(M83),C83=" ")," ",INDIRECT(N83&"!G11"))) ->  | L83: =IF(L82<=$H$16-1,L82+1," ") -> 2 | M83: =ISREF(INDIRECT("Int_"&C83&"!A1")) -> FALSE | N83: ="Int_"&C83 -> Int_2 | U83: =IF(OR(NOT($M83),$C83=" ")," ",INDIRECT($N83&"!D32")) ->  | V83: =IF(OR(NOT($M83),$C83=" ")," ",INDIRECT($N83&"!E32")) ->  | W83: =IF(OR(NOT($M83),$C83=" ")," ",INDIRECT($N83&"!F32")) ->  | X83: =IF(OR(NOT($M83),$C83=" ")," ",INDIRECT($N83&"!G32")) ->  | Y83: =IF(OR(NOT($M83),$C83=" ")," ",INDIRECT($N83&"!I32")) ->  | AB83: =IF(O83=0,U83,O83) -> 
C84: =IF($L84=" "," ", 3) ->  | L84: =IF(L83<=$H$16-1,L83+1," ") ->  | M84: FALSE | N84: Int_
C85: =IF($L85=" "," ", 4) ->  | M85: FALSE | N85: Int_
C86: =IF($L86=" "," ", L86) ->  | M86: FALSE | N86: Int_
M87: FALSE | N87: Int_
G88: =IF(OR(NOT($M88),$C88=" ")," ",INDIRECT($N88&"!D31")) ->  | H88: =IF(OR(NOT($M88),$C88=" ")," ",INDIRECT($N88&"!E31")) ->  | I88: =IF(OR(NOT($M88),$C88=" ")," ",INDIRECT($N88&"!F31")) ->  | J88: =IF(OR(NOT($M88),$C88=" ")," ",INDIRECT($N88&"!G31")) ->  | M88: FALSE | N88: Int_
G89: =IF(OR(NOT($M89),$C89=" ")," ",INDIRECT($N89&"!D31")) ->  | H89: =IF(OR(NOT($M89),$C89=" ")," ",INDIRECT($N89&"!E31")) ->  | I89: =IF(OR(NOT($M89),$C89=" ")," ",INDIRECT($N89&"!F31")) ->  | J89: =IF(OR(NOT($M89),$C89=" ")," ",INDIRECT($N89&"!G31")) ->  | M89: FALSE | N89: Int_
C90: =IF($L90=" "," ", L90) ->  | G90: =IF(OR(NOT($M90),$C90=" ")," ",INDIRECT($N90&"!D31")) ->  | H90: =IF(OR(NOT($M90),$C90=" ")," ",INDIRECT($N90&"!E31")) ->  | I90: =IF(OR(NOT($M90),$C90=" ")," ",INDIRECT($N90&"!F31")) ->  | J90: =IF(OR(NOT($M90),$C90=" ")," ",INDIRECT($N90&"!G31")) ->  | K90: =IF(OR(NOT($M90),$C90=" ")," ",INDIRECT($N90&"!I31")) ->  | M90: FALSE | N90: Int_
G91: =IF(OR(NOT($M91),$C91=" ")," ",INDIRECT($N91&"!D31")) ->  | H91: =IF(OR(NOT($M91),$C91=" ")," ",INDIRECT($N91&"!E31")) ->  | I91: =IF(OR(NOT($M91),$C91=" ")," ",INDIRECT($N91&"!F31")) ->  | J91: =IF(OR(NOT($M91),$C91=" ")," ",INDIRECT($N91&"!G31")) ->  | K91: =IF(OR(NOT($M91),$C91=" ")," ",INDIRECT($N91&"!I31")) ->  | M91: =ISREF(INDIRECT("Int_"&C91&"!A1")) -> FALSE | N91: ="Int_"&C91 -> Int_ | AB91: =IF(O91=0,U91,O91) ->  | AC91: =IF(P91=0,V91,P91) ->  | AD91: =IF(Q91=0,W91,Q91) ->  | AE91: =IF(R91=0,X91,R91) ->  | AF91: =IF(S91=0,Y91,S91) -> 
M92: FALSE | N92: Int_
M93: FALSE | N93: Int_
M94: FALSE | N94: Int_
M95: FALSE | N95: Int_
M96: FALSE | N96: Int_
M97: FALSE | N97: Int_
M98: FALSE | N98: Int_ | O98: =IF(OR(NOT($M98),$C98=" ")," ",INDIRECT($N98&"!G26")) -> 
M99: FALSE | N99: Int_
M100: FALSE | N100: Int_
M101: FALSE | N101: Int_
M102: FALSE | N102: Int_
M103: FALSE | N103: Int_
M104: FALSE | N104: Int_
M105: FALSE | N105: Int_
M106: FALSE | N106: Int_
M107: FALSE | N107: Int_
M108: FALSE | N108: Int_
M109: FALSE | N109: Int_
M110: FALSE | N110: Int_
M111: FALSE | N111: Int_
M112: FALSE | N112: Int_
M113: FALSE | N113: Int_
M114: FALSE | N114: Int_
M115: FALSE | N115: Int_
M116: FALSE | N116: Int_
M117: FALSE | N117: Int_
M118: FALSE | N118: Int_
M119: FALSE | N119: Int_
M120: FALSE | N120: Int_
M121: FALSE | N121: Int_
M122: FALSE | N122: Int_
M123: FALSE | N123: Int_
M124: FALSE | N124: Int_ | O124: =IF(OR(NOT($M124),$C124=" ")," ",INDIRECT($N124&"!G26")) -> 
M125: =ISREF(INDIRECT("Int_"&C125&"!A1")) -> FALSE | N125: ="Int_"&C125 -> Int_ | AB125: =IF(O125=0,U125,O125) ->  | AC125: =IF(P125=0,V125,P125) ->  | AD125: =IF(Q125=0,W125,Q125) ->  | AE125: =IF(R125=0,X125,R125) ->  | AF125: =IF(S125=0,Y125,S125) -> 
M126: FALSE | N126: Int_
M127: FALSE | N127: Int_
M128: FALSE | N128: Int_
M129: FALSE | N129: Int_
M130: FALSE | N130: Int_
M131: FALSE | N131: Int_

Sheet Reporting
B2: =StartHere!E6 -> General Information | I2: =IF(ISBLANK(StartHere!C79),"",StartHere!C79) ->  | J2: =IF(ISBLANK(StartHere!D79),"",StartHere!D79) -> https://txdot-my.sharepoint.com/personal/mark_middleton_txdot_gov/Documents/Desktop/Webpage temp/files for ext webpage/[intersection-tool-v0228-1.0.xlsm]Definitions | K2: =IF(ISBLANK(StartHere!F79),"",StartHere!F79) -> Weighted Total Score: | L2: =IF(ISBLANK(StartHere!G79),"",StartHere!G79) ->  | M2: =IF(ISBLANK(StartHere!H79),"",StartHere!H79) ->  | N2: =IF(ISBLANK(StartHere!I79),"",StartHere!I79) ->  | O2: =IF(ISBLANK(StartHere!J79),"",StartHere!J79) ->  | P2: =IF(ISBLANK(StartHere!K79),"",StartHere!K79) -> 
C3: =StartHere!F7 -> Analyst: | E3: =StartHere!H7 -> Your Name
C4: =StartHere!F8 -> Agency / Company / District: | E4: =StartHere!H8 -> Your Agency | I4: =StartHere!C80 -> Intersection Number | J4: =StartHere!D80 -> Crossing Roadway | K4: =IF(StartHere!F80="","",StartHere!F80) ->  | L4: =StartHere!G80 -> Intersection Safety Score
C5: =StartHere!F9 -> Date: | E5: =StartHere!H9 -> 2022-02-18 | L5: =StartHere!G81 -> Existing | M5: =StartHere!H81 -> Standard | N5: =StartHere!I81 -> Design 1 | O5: =StartHere!J81 -> Design 2 | P5: =StartHere!K81 -> Optimal
B6: =StartHere!E10 -> Segment Limits (Limit up to 15 miles in length): | I6: =IF(ISBLANK(StartHere!C82),"",StartHere!C82) -> 1 | J6: =IF(ISBLANK(StartHere!D82),"",StartHere!D82) ->  | K6: =IF(ISBLANK(StartHere!F82),"",StartHere!F82) ->  | L6: =IF(ISBLANK(StartHere!G82),"",StartHere!G82) ->  | M6: =IF(ISBLANK(StartHere!H82),"",StartHere!H82) ->  | N6: =IF(ISBLANK(StartHere!I82),"",StartHere!I82) ->  | O6: =IF(ISBLANK(StartHere!J82),"",StartHere!J82) ->  | P6: =IF(ISBLANK(StartHere!K82),"",StartHere!K82) -> 
C7: =StartHere!F11 -> Road Name: | E7: =StartHere!H11 -> Road Name | I7: =IF(ISBLANK(StartHere!C83),"",StartHere!C83) -> 2 | J7: =IF(ISBLANK(StartHere!D83),"",StartHere!D83) ->  | K7: =IF(ISBLANK(StartHere!F83),"",StartHere!F83) ->  | L7: =IF(ISBLANK(StartHere!G83),"",StartHere!G83) ->  | M7: =IF(ISBLANK(StartHere!H83),"",StartHere!H83) ->  | N7: =IF(ISBLANK(StartHere!I83),"",StartHere!I83) ->  | O7: =IF(ISBLANK(StartHere!J83),"",StartHere!J83) ->  | P7: =IF(ISBLANK(StartHere!K83),"",StartHere!K83) -> 
C8: =StartHere!F12 -> Category (4R, 3R) -- Future Enhancement | E8: =StartHere!H12 -> 3R | I8: =IF(ISBLANK(StartHere!C84),"",StartHere!C84) ->  | J8: =IF(ISBLANK(StartHere!D84),"",StartHere!D84) ->  | K8: =IF(ISBLANK(StartHere!F84),"",StartHere!F84) ->  | L8: =IF(ISBLANK(StartHere!G84),"",StartHere!G84) ->  | M8: =IF(ISBLANK(StartHere!H84),"",StartHere!H84) ->  | N8: =IF(ISBLANK(StartHere!I84),"",StartHere!I84) ->  | O8: =IF(ISBLANK(StartHere!J84),"",StartHere!J84) ->  | P8: =IF(ISBLANK(StartHere!K84),"",StartHere!K84) -> 
I9: =IF(ISBLANK(StartHere!C85),"",StartHere!C85) ->  | J9: =IF(ISBLANK(StartHere!D85),"",StartHere!D85) ->  | K9: =IF(ISBLANK(StartHere!F85),"",StartHere!F85) ->  | L9: =IF(ISBLANK(StartHere!G85),"",StartHere!G85) ->  | M9: =IF(ISBLANK(StartHere!H85),"",StartHere!H85) ->  | N9: =IF(ISBLANK(StartHere!I85),"",StartHere!I85) ->  | O9: =IF(ISBLANK(StartHere!J85),"",StartHere!J85) ->  | P9: =IF(ISBLANK(StartHere!K85),"",StartHere!K85) -> 
C10: =StartHere!F13 -> Segment Beginning Mile Point (BMP): | E10: =StartHere!H13 -> 9 | I10: =IF(ISBLANK(StartHere!C86),"",StartHere!C86) ->  | J10: =IF(ISBLANK(StartHere!D86),"",StartHere!D86) ->  | K10: =IF(ISBLANK(StartHere!F86),"",StartHere!F86) ->  | L10: =IF(ISBLANK(StartHere!G86),"",StartHere!G86) ->  | M10: =IF(ISBLANK(StartHere!H86),"",StartHere!H86) ->  | N10: =IF(ISBLANK(StartHere!I86),"",StartHere!I86) ->  | O10: =IF(ISBLANK(StartHere!J86),"",StartHere!J86) ->  | P10: =IF(ISBLANK(StartHere!K86),"",StartHere!K86) -> 
C11: =StartHere!F14 -> Segment Ending Mile Point (EMP): | E11: =StartHere!H14 -> 13 | I11: =IF(ISBLANK(StartHere!C87),"",StartHere!C87) ->  | J11: =IF(ISBLANK(StartHere!D87),"",StartHere!D87) ->  | K11: =IF(ISBLANK(StartHere!F87),"",StartHere!F87) ->  | L11: =IF(ISBLANK(StartHere!G87),"",StartHere!G87) ->  | M11: =IF(ISBLANK(StartHere!H87),"",StartHere!H87) ->  | N11: =IF(ISBLANK(StartHere!I87),"",StartHere!I87) ->  | O11: =IF(ISBLANK(StartHere!J87),"",StartHere!J87) ->  | P11: =IF(ISBLANK(StartHere!K87),"",StartHere!K87) -> 
E12: =StartHere!H16 -> 2 | I12: =IF(ISBLANK(StartHere!C88),"",StartHere!C88) ->  | J12: =IF(ISBLANK(StartHere!D88),"",StartHere!D88) ->  | K12: =IF(ISBLANK(StartHere!F88),"",StartHere!F88) ->  | L12: =IF(ISBLANK(StartHere!G88),"",StartHere!G88) ->  | M12: =IF(ISBLANK(StartHere!H88),"",StartHere!H88) ->  | N12: =IF(ISBLANK(StartHere!I88),"",StartHere!I88) ->  | O12: =IF(ISBLANK(StartHere!J88),"",StartHere!J88) ->  | P12: =IF(ISBLANK(StartHere!K88),"",StartHere!K88) -> 
B13: =StartHere!E16 -> Number of Intersections | I13: =IF(ISBLANK(StartHere!C89),"",StartHere!C89) ->  | J13: =IF(ISBLANK(StartHere!D89),"",StartHere!D89) ->  | K13: =IF(ISBLANK(StartHere!F89),"",StartHere!F89) ->  | L13: =IF(ISBLANK(StartHere!G89),"",StartHere!G89) ->  | M13: =IF(ISBLANK(StartHere!H89),"",StartHere!H89) ->  | N13: =IF(ISBLANK(StartHere!I89),"",StartHere!I89) ->  | O13: =IF(ISBLANK(StartHere!J89),"",StartHere!J89) ->  | P13: =IF(ISBLANK(StartHere!K89),"",StartHere!K89) -> 
I14: =IF(ISBLANK(StartHere!C90),"",StartHere!C90) ->  | J14: =IF(ISBLANK(StartHere!D90),"",StartHere!D90) ->  | K14: =IF(ISBLANK(StartHere!F90),"",StartHere!F90) ->  | L14: =IF(ISBLANK(StartHere!G90),"",StartHere!G90) ->  | M14: =IF(ISBLANK(StartHere!H90),"",StartHere!H90) ->  | N14: =IF(ISBLANK(StartHere!I90),"",StartHere!I90) ->  | O14: =IF(ISBLANK(StartHere!J90),"",StartHere!J90) ->  | P14: =IF(ISBLANK(StartHere!K90),"",StartHere!K90) -> 
I15: =IF(ISBLANK(StartHere!C91),"",StartHere!C91) ->  | J15: =IF(ISBLANK(StartHere!D91),"",StartHere!D91) ->  | K15: =IF(ISBLANK(StartHere!F91),"",StartHere!F91) ->  | L15: =IF(ISBLANK(StartHere!G91),"",StartHere!G91) ->  | M15: =IF(ISBLANK(StartHere!H91),"",StartHere!H91) ->  | N15: =IF(ISBLANK(StartHere!I91),"",StartHere!I91) ->  | O15: =IF(ISBLANK(StartHere!J91),"",StartHere!J91) ->  | P15: =IF(ISBLANK(StartHere!K91),"",StartHere!K91) -> 
C16: FUTURE FUNDED PROJECT | D16: =IF(V81,"Yes","No") -> No | F16: Check the boxes for Yes | I16: =IF(ISBLANK(StartHere!C92),"",StartHere!C92) ->  | J16: =IF(ISBLANK(StartHere!D92),"",StartHere!D92) ->  | K16: =IF(ISBLANK(StartHere!F92),"",StartHere!F92) ->  | L16: =IF(ISBLANK(StartHere!G92),"",StartHere!G92) ->  | M16: =IF(ISBLANK(StartHere!H92),"",StartHere!H92) ->  | N16: =IF(ISBLANK(StartHere!I92),"",StartHere!I92) ->  | O16: =IF(ISBLANK(StartHere!J92),"",StartHere!J92) ->  | P16: =IF(ISBLANK(StartHere!K92),"",StartHere!K92) -> 
I17: =IF(ISBLANK(StartHere!C93),"",StartHere!C93) ->  | J17: =IF(ISBLANK(StartHere!D93),"",StartHere!D93) ->  | K17: =IF(ISBLANK(StartHere!F93),"",StartHere!F93) ->  | L17: =IF(ISBLANK(StartHere!G93),"",StartHere!G93) ->  | M17: =IF(ISBLANK(StartHere!H93),"",StartHere!H93) ->  | N17: =IF(ISBLANK(StartHere!I93),"",StartHere!I93) ->  | O17: =IF(ISBLANK(StartHere!J93),"",StartHere!J93) ->  | P17: =IF(ISBLANK(StartHere!K93),"",StartHere!K93) -> 
C18: FUTURE UNFUNDED PROJECT IDENTIFIED | D18: =IF(V82,"Yes","No") -> No | I18: =IF(ISBLANK(StartHere!C94),"",StartHere!C94) ->  | J18: =IF(ISBLANK(StartHere!D94),"",StartHere!D94) ->  | K18: =IF(ISBLANK(StartHere!F94),"",StartHere!F94) ->  | L18: =IF(ISBLANK(StartHere!G94),"",StartHere!G94) ->  | M18: =IF(ISBLANK(StartHere!H94),"",StartHere!H94) ->  | N18: =IF(ISBLANK(StartHere!I94),"",StartHere!I94) ->  | O18: =IF(ISBLANK(StartHere!J94),"",StartHere!J94) ->  | P18: =IF(ISBLANK(StartHere!K94),"",StartHere!K94) -> 
I19: =IF(ISBLANK(StartHere!C95),"",StartHere!C95) ->  | J19: =IF(ISBLANK(StartHere!D95),"",StartHere!D95) ->  | K19: =IF(ISBLANK(StartHere!F95),"",StartHere!F95) ->  | L19: =IF(ISBLANK(StartHere!G95),"",StartHere!G95) ->  | M19: =IF(ISBLANK(StartHere!H95),"",StartHere!H95) ->  | N19: =IF(ISBLANK(StartHere!I95),"",StartHere!I95) ->  | O19: =IF(ISBLANK(StartHere!J95),"",StartHere!J95) ->  | P19: =IF(ISBLANK(StartHere!K95),"",StartHere!K95) -> 
I20: =IF(ISBLANK(StartHere!C96),"",StartHere!C96) ->  | J20: =IF(ISBLANK(StartHere!D96),"",StartHere!D96) ->  | K20: =IF(ISBLANK(StartHere!F96),"",StartHere!F96) ->  | L20: =IF(ISBLANK(StartHere!G96),"",StartHere!G96) ->  | M20: =IF(ISBLANK(StartHere!H96),"",StartHere!H96) ->  | N20: =IF(ISBLANK(StartHere!I96),"",StartHere!I96) ->  | O20: =IF(ISBLANK(StartHere!J96),"",StartHere!J96) ->  | P20: =IF(ISBLANK(StartHere!K96),"",StartHere!K96) -> 
I21: =IF(ISBLANK(StartHere!C97),"",StartHere!C97) ->  | J21: =IF(ISBLANK(StartHere!D97),"",StartHere!D97) ->  | K21: =IF(ISBLANK(StartHere!F97),"",StartHere!F97) ->  | L21: =IF(ISBLANK(StartHere!G97),"",StartHere!G97) ->  | M21: =IF(ISBLANK(StartHere!H97),"",StartHere!H97) ->  | N21: =IF(ISBLANK(StartHere!I97),"",StartHere!I97) ->  | O21: =IF(ISBLANK(StartHere!J97),"",StartHere!J97) ->  | P21: =IF(ISBLANK(StartHere!K97),"",StartHere!K97) -> 
I22: =IF(ISBLANK(StartHere!C98),"",StartHere!C98) ->  | J22: =IF(ISBLANK(StartHere!D98),"",StartHere!D98) ->  | K22: =IF(ISBLANK(StartHere!F98),"",StartHere!F98) ->  | L22: =IF(ISBLANK(StartHere!G98),"",StartHere!G98) ->  | M22: =IF(ISBLANK(StartHere!H98),"",StartHere!H98) ->  | N22: =IF(ISBLANK(StartHere!I98),"",StartHere!I98) ->  | O22: =IF(ISBLANK(StartHere!J98),"",StartHere!J98) ->  | P22: =IF(ISBLANK(StartHere!K98),"",StartHere!K98) -> 
A23: ELEMENTS INCREASING SAFETY | I23: =IF(ISBLANK(StartHere!C99),"",StartHere!C99) ->  | J23: =IF(ISBLANK(StartHere!D99),"",StartHere!D99) ->  | K23: =IF(ISBLANK(StartHere!F99),"",StartHere!F99) ->  | L23: =IF(ISBLANK(StartHere!G99),"",StartHere!G99) ->  | M23: =IF(ISBLANK(StartHere!H99),"",StartHere!H99) ->  | N23: =IF(ISBLANK(StartHere!I99),"",StartHere!I99) ->  | O23: =IF(ISBLANK(StartHere!J99),"",StartHere!J99) ->  | P23: =IF(ISBLANK(StartHere!K99),"",StartHere!K99) -> 
I24: =IF(ISBLANK(StartHere!C100),"",StartHere!C100) ->  | J24: =IF(ISBLANK(StartHere!D100),"",StartHere!D100) ->  | K24: =IF(ISBLANK(StartHere!F100),"",StartHere!F100) ->  | L24: =IF(ISBLANK(StartHere!G100),"",StartHere!G100) ->  | M24: =IF(ISBLANK(StartHere!H100),"",StartHere!H100) ->  | N24: =IF(ISBLANK(StartHere!I100),"",StartHere!I100) ->  | O24: =IF(ISBLANK(StartHere!J100),"",StartHere!J100) ->  | P24: =IF(ISBLANK(StartHere!K100),"",StartHere!K100) -> 
I25: =IF(ISBLANK(StartHere!C101),"",StartHere!C101) ->  | J25: =IF(ISBLANK(StartHere!D101),"",StartHere!D101) ->  | K25: =IF(ISBLANK(StartHere!F101),"",StartHere!F101) ->  | L25: =IF(ISBLANK(StartHere!G101),"",StartHere!G101) ->  | M25: =IF(ISBLANK(StartHere!H101),"",StartHere!H101) ->  | N25: =IF(ISBLANK(StartHere!I101),"",StartHere!I101) ->  | O25: =IF(ISBLANK(StartHere!J101),"",StartHere!J101) ->  | P25: =IF(ISBLANK(StartHere!K101),"",StartHere!K101) -> 
I26: =IF(ISBLANK(StartHere!C102),"",StartHere!C102) ->  | J26: =IF(ISBLANK(StartHere!D102),"",StartHere!D102) ->  | K26: =IF(ISBLANK(StartHere!F102),"",StartHere!F102) ->  | L26: =IF(ISBLANK(StartHere!G102),"",StartHere!G102) ->  | M26: =IF(ISBLANK(StartHere!H102),"",StartHere!H102) ->  | N26: =IF(ISBLANK(StartHere!I102),"",StartHere!I102) ->  | O26: =IF(ISBLANK(StartHere!J102),"",StartHere!J102) ->  | P26: =IF(ISBLANK(StartHere!K102),"",StartHere!K102) -> 
I27: =IF(ISBLANK(StartHere!C103),"",StartHere!C103) ->  | J27: =IF(ISBLANK(StartHere!D103),"",StartHere!D103) ->  | K27: =IF(ISBLANK(StartHere!F103),"",StartHere!F103) ->  | L27: =IF(ISBLANK(StartHere!G103),"",StartHere!G103) ->  | M27: =IF(ISBLANK(StartHere!H103),"",StartHere!H103) ->  | N27: =IF(ISBLANK(StartHere!I103),"",StartHere!I103) ->  | O27: =IF(ISBLANK(StartHere!J103),"",StartHere!J103) ->  | P27: =IF(ISBLANK(StartHere!K103),"",StartHere!K103) -> 
I28: =IF(ISBLANK(StartHere!C104),"",StartHere!C104) ->  | J28: =IF(ISBLANK(StartHere!D104),"",StartHere!D104) ->  | K28: =IF(ISBLANK(StartHere!F104),"",StartHere!F104) ->  | L28: =IF(ISBLANK(StartHere!G104),"",StartHere!G104) ->  | M28: =IF(ISBLANK(StartHere!H104),"",StartHere!H104) ->  | N28: =IF(ISBLANK(StartHere!I104),"",StartHere!I104) ->  | O28: =IF(ISBLANK(StartHere!J104),"",StartHere!J104) ->  | P28: =IF(ISBLANK(StartHere!K104),"",StartHere!K104) -> 
I29: =IF(ISBLANK(StartHere!C105),"",StartHere!C105) ->  | J29: =IF(ISBLANK(StartHere!D105),"",StartHere!D105) ->  | K29: =IF(ISBLANK(StartHere!F105),"",StartHere!F105) ->  | L29: =IF(ISBLANK(StartHere!G105),"",StartHere!G105) ->  | M29: =IF(ISBLANK(StartHere!H105),"",StartHere!H105) ->  | N29: =IF(ISBLANK(StartHere!I105),"",StartHere!I105) ->  | O29: =IF(ISBLANK(StartHere!J105),"",StartHere!J105) ->  | P29: =IF(ISBLANK(StartHere!K105),"",StartHere!K105) -> 
I30: =IF(ISBLANK(StartHere!C106),"",StartHere!C106) ->  | J30: =IF(ISBLANK(StartHere!D106),"",StartHere!D106) ->  | K30: =IF(ISBLANK(StartHere!F106),"",StartHere!F106) ->  | L30: =IF(ISBLANK(StartHere!G106),"",StartHere!G106) ->  | M30: =IF(ISBLANK(StartHere!H106),"",StartHere!H106) ->  | N30: =IF(ISBLANK(StartHere!I106),"",StartHere!I106) ->  | O30: =IF(ISBLANK(StartHere!J106),"",StartHere!J106) ->  | P30: =IF(ISBLANK(StartHere!K106),"",StartHere!K106) -> 
I31: =IF(ISBLANK(StartHere!C107),"",StartHere!C107) ->  | J31: =IF(ISBLANK(StartHere!D107),"",StartHere!D107) ->  | K31: =IF(ISBLANK(StartHere!F107),"",StartHere!F107) ->  | L31: =IF(ISBLANK(StartHere!G107),"",StartHere!G107) ->  | M31: =IF(ISBLANK(StartHere!H107),"",StartHere!H107) ->  | N31: =IF(ISBLANK(StartHere!I107),"",StartHere!I107) ->  | O31: =IF(ISBLANK(StartHere!J107),"",StartHere!J107) ->  | P31: =IF(ISBLANK(StartHere!K107),"",StartHere!K107) -> 
I32: =IF(ISBLANK(StartHere!C108),"",StartHere!C108) ->  | J32: =IF(ISBLANK(StartHere!D108),"",StartHere!D108) ->  | K32: =IF(ISBLANK(StartHere!F108),"",StartHere!F108) ->  | L32: =IF(ISBLANK(StartHere!G108),"",StartHere!G108) ->  | M32: =IF(ISBLANK(StartHere!H108),"",StartHere!H108) ->  | N32: =IF(ISBLANK(StartHere!I108),"",StartHere!I108) ->  | O32: =IF(ISBLANK(StartHere!J108),"",StartHere!J108) ->  | P32: =IF(ISBLANK(StartHere!K108),"",StartHere!K108) -> 
I33: =IF(ISBLANK(StartHere!C109),"",StartHere!C109) ->  | J33: =IF(ISBLANK(StartHere!D109),"",StartHere!D109) ->  | K33: =IF(ISBLANK(StartHere!F109),"",StartHere!F109) ->  | L33: =IF(ISBLANK(StartHere!G109),"",StartHere!G109) ->  | M33: =IF(ISBLANK(StartHere!H109),"",StartHere!H109) ->  | N33: =IF(ISBLANK(StartHere!I109),"",StartHere!I109) ->  | O33: =IF(ISBLANK(StartHere!J109),"",StartHere!J109) ->  | P33: =IF(ISBLANK(StartHere!K109),"",StartHere!K109) -> 
I34: =IF(ISBLANK(StartHere!C110),"",StartHere!C110) ->  | J34: =IF(ISBLANK(StartHere!D110),"",StartHere!D110) ->  | K34: =IF(ISBLANK(StartHere!F110),"",StartHere!F110) ->  | L34: =IF(ISBLANK(StartHere!G110),"",StartHere!G110) ->  | M34: =IF(ISBLANK(StartHere!H110),"",StartHere!H110) ->  | N34: =IF(ISBLANK(StartHere!I110),"",StartHere!I110) ->  | O34: =IF(ISBLANK(StartHere!J110),"",StartHere!J110) ->  | P34: =IF(ISBLANK(StartHere!K110),"",StartHere!K110) -> 
I35: =IF(ISBLANK(StartHere!C111),"",StartHere!C111) ->  | J35: =IF(ISBLANK(StartHere!D111),"",StartHere!D111) ->  | K35: =IF(ISBLANK(StartHere!F111),"",StartHere!F111) ->  | L35: =IF(ISBLANK(StartHere!G111),"",StartHere!G111) ->  | M35: =IF(ISBLANK(StartHere!H111),"",StartHere!H111) ->  | N35: =IF(ISBLANK(StartHere!I111),"",StartHere!I111) ->  | O35: =IF(ISBLANK(StartHere!J111),"",StartHere!J111) ->  | P35: =IF(ISBLANK(StartHere!K111),"",StartHere!K111) -> 
I36: =IF(ISBLANK(StartHere!C112),"",StartHere!C112) ->  | J36: =IF(ISBLANK(StartHere!D112),"",StartHere!D112) ->  | K36: =IF(ISBLANK(StartHere!F112),"",StartHere!F112) ->  | L36: =IF(ISBLANK(StartHere!G112),"",StartHere!G112) ->  | M36: =IF(ISBLANK(StartHere!H112),"",StartHere!H112) ->  | N36: =IF(ISBLANK(StartHere!I112),"",StartHere!I112) ->  | O36: =IF(ISBLANK(StartHere!J112),"",StartHere!J112) ->  | P36: =IF(ISBLANK(StartHere!K112),"",StartHere!K112) -> 
I37: =IF(ISBLANK(StartHere!C113),"",StartHere!C113) ->  | J37: =IF(ISBLANK(StartHere!D113),"",StartHere!D113) ->  | K37: =IF(ISBLANK(StartHere!F113),"",StartHere!F113) ->  | L37: =IF(ISBLANK(StartHere!G113),"",StartHere!G113) ->  | M37: =IF(ISBLANK(StartHere!H113),"",StartHere!H113) ->  | N37: =IF(ISBLANK(StartHere!I113),"",StartHere!I113) ->  | O37: =IF(ISBLANK(StartHere!J113),"",StartHere!J113) ->  | P37: =IF(ISBLANK(StartHere!K113),"",StartHere!K113) -> 
I38: =IF(ISBLANK(StartHere!C114),"",StartHere!C114) ->  | J38: =IF(ISBLANK(StartHere!D114),"",StartHere!D114) ->  | K38: =IF(ISBLANK(StartHere!F114),"",StartHere!F114) ->  | L38: =IF(ISBLANK(StartHere!G114),"",StartHere!G114) ->  | M38: =IF(ISBLANK(StartHere!H114),"",StartHere!H114) ->  | N38: =IF(ISBLANK(StartHere!I114),"",StartHere!I114) ->  | O38: =IF(ISBLANK(StartHere!J114),"",StartHere!J114) ->  | P38: =IF(ISBLANK(StartHere!K114),"",StartHere!K114) -> 
I39: =IF(ISBLANK(StartHere!C115),"",StartHere!C115) ->  | J39: =IF(ISBLANK(StartHere!D115),"",StartHere!D115) ->  | K39: =IF(ISBLANK(StartHere!F115),"",StartHere!F115) ->  | L39: =IF(ISBLANK(StartHere!G115),"",StartHere!G115) ->  | M39: =IF(ISBLANK(StartHere!H115),"",StartHere!H115) ->  | N39: =IF(ISBLANK(StartHere!I115),"",StartHere!I115) ->  | O39: =IF(ISBLANK(StartHere!J115),"",StartHere!J115) ->  | P39: =IF(ISBLANK(StartHere!K115),"",StartHere!K115) -> 
I40: =IF(ISBLANK(StartHere!C116),"",StartHere!C116) ->  | J40: =IF(ISBLANK(StartHere!D116),"",StartHere!D116) ->  | K40: =IF(ISBLANK(StartHere!F116),"",StartHere!F116) ->  | L40: =IF(ISBLANK(StartHere!G116),"",StartHere!G116) ->  | M40: =IF(ISBLANK(StartHere!H116),"",StartHere!H116) ->  | N40: =IF(ISBLANK(StartHere!I116),"",StartHere!I116) ->  | O40: =IF(ISBLANK(StartHere!J116),"",StartHere!J116) ->  | P40: =IF(ISBLANK(StartHere!K116),"",StartHere!K116) -> 
I41: =IF(ISBLANK(StartHere!C117),"",StartHere!C117) ->  | J41: =IF(ISBLANK(StartHere!D117),"",StartHere!D117) ->  | K41: =IF(ISBLANK(StartHere!F117),"",StartHere!F117) ->  | L41: =IF(ISBLANK(StartHere!G117),"",StartHere!G117) ->  | M41: =IF(ISBLANK(StartHere!H117),"",StartHere!H117) ->  | N41: =IF(ISBLANK(StartHere!I117),"",StartHere!I117) ->  | O41: =IF(ISBLANK(StartHere!J117),"",StartHere!J117) ->  | P41: =IF(ISBLANK(StartHere!K117),"",StartHere!K117) -> 
I42: =IF(ISBLANK(StartHere!C118),"",StartHere!C118) ->  | J42: =IF(ISBLANK(StartHere!D118),"",StartHere!D118) ->  | K42: =IF(ISBLANK(StartHere!F118),"",StartHere!F118) ->  | L42: =IF(ISBLANK(StartHere!G118),"",StartHere!G118) ->  | M42: =IF(ISBLANK(StartHere!H118),"",StartHere!H118) ->  | N42: =IF(ISBLANK(StartHere!I118),"",StartHere!I118) ->  | O42: =IF(ISBLANK(StartHere!J118),"",StartHere!J118) ->  | P42: =IF(ISBLANK(StartHere!K118),"",StartHere!K118) -> 
I43: =IF(ISBLANK(StartHere!C119),"",StartHere!C119) ->  | J43: =IF(ISBLANK(StartHere!D119),"",StartHere!D119) ->  | K43: =IF(ISBLANK(StartHere!F119),"",StartHere!F119) ->  | L43: =IF(ISBLANK(StartHere!G119),"",StartHere!G119) ->  | M43: =IF(ISBLANK(StartHere!H119),"",StartHere!H119) ->  | N43: =IF(ISBLANK(StartHere!I119),"",StartHere!I119) ->  | O43: =IF(ISBLANK(StartHere!J119),"",StartHere!J119) ->  | P43: =IF(ISBLANK(StartHere!K119),"",StartHere!K119) -> 
I44: =IF(ISBLANK(StartHere!C120),"",StartHere!C120) ->  | J44: =IF(ISBLANK(StartHere!D120),"",StartHere!D120) ->  | K44: =IF(ISBLANK(StartHere!F120),"",StartHere!F120) ->  | L44: =IF(ISBLANK(StartHere!G120),"",StartHere!G120) ->  | M44: =IF(ISBLANK(StartHere!H120),"",StartHere!H120) ->  | N44: =IF(ISBLANK(StartHere!I120),"",StartHere!I120) ->  | O44: =IF(ISBLANK(StartHere!J120),"",StartHere!J120) ->  | P44: =IF(ISBLANK(StartHere!K120),"",StartHere!K120) -> 
I45: =IF(ISBLANK(StartHere!C121),"",StartHere!C121) ->  | J45: =IF(ISBLANK(StartHere!D121),"",StartHere!D121) ->  | K45: =IF(ISBLANK(StartHere!F121),"",StartHere!F121) ->  | L45: =IF(ISBLANK(StartHere!G121),"",StartHere!G121) ->  | M45: =IF(ISBLANK(StartHere!H121),"",StartHere!H121) ->  | N45: =IF(ISBLANK(StartHere!I121),"",StartHere!I121) ->  | O45: =IF(ISBLANK(StartHere!J121),"",StartHere!J121) ->  | P45: =IF(ISBLANK(StartHere!K121),"",StartHere!K121) -> 
I46: =IF(ISBLANK(StartHere!C122),"",StartHere!C122) ->  | J46: =IF(ISBLANK(StartHere!D122),"",StartHere!D122) ->  | K46: =IF(ISBLANK(StartHere!F122),"",StartHere!F122) ->  | L46: =IF(ISBLANK(StartHere!G122),"",StartHere!G122) ->  | M46: =IF(ISBLANK(StartHere!H122),"",StartHere!H122) ->  | N46: =IF(ISBLANK(StartHere!I122),"",StartHere!I122) ->  | O46: =IF(ISBLANK(StartHere!J122),"",StartHere!J122) ->  | P46: =IF(ISBLANK(StartHere!K122),"",StartHere!K122) -> 
I47: =IF(ISBLANK(StartHere!C123),"",StartHere!C123) ->  | J47: =IF(ISBLANK(StartHere!D123),"",StartHere!D123) ->  | K47: =IF(ISBLANK(StartHere!F123),"",StartHere!F123) ->  | L47: =IF(ISBLANK(StartHere!G123),"",StartHere!G123) ->  | M47: =IF(ISBLANK(StartHere!H123),"",StartHere!H123) ->  | N47: =IF(ISBLANK(StartHere!I123),"",StartHere!I123) ->  | O47: =IF(ISBLANK(StartHere!J123),"",StartHere!J123) ->  | P47: =IF(ISBLANK(StartHere!K123),"",StartHere!K123) -> 
I48: =IF(ISBLANK(StartHere!C124),"",StartHere!C124) ->  | J48: =IF(ISBLANK(StartHere!D124),"",StartHere!D124) ->  | K48: =IF(ISBLANK(StartHere!F124),"",StartHere!F124) ->  | L48: =IF(ISBLANK(StartHere!G124),"",StartHere!G124) ->  | M48: =IF(ISBLANK(StartHere!H124),"",StartHere!H124) ->  | N48: =IF(ISBLANK(StartHere!I124),"",StartHere!I124) ->  | O48: =IF(ISBLANK(StartHere!J124),"",StartHere!J124) ->  | P48: =IF(ISBLANK(StartHere!K124),"",StartHere!K124) -> 
I49: =IF(ISBLANK(StartHere!C125),"",StartHere!C125) ->  | J49: =IF(ISBLANK(StartHere!D125),"",StartHere!D125) ->  | K49: =IF(ISBLANK(StartHere!F125),"",StartHere!F125) ->  | L49: =IF(ISBLANK(StartHere!G125),"",StartHere!G125) ->  | M49: =IF(ISBLANK(StartHere!H125),"",StartHere!H125) ->  | N49: =IF(ISBLANK(StartHere!I125),"",StartHere!I125) ->  | O49: =IF(ISBLANK(StartHere!J125),"",StartHere!J125) ->  | P49: =IF(ISBLANK(StartHere!K125),"",StartHere!K125) -> 
I50: =IF(ISBLANK(StartHere!C126),"",StartHere!C126) ->  | J50: =IF(ISBLANK(StartHere!D126),"",StartHere!D126) ->  | K50: =IF(ISBLANK(StartHere!F126),"",StartHere!F126) ->  | L50: =IF(ISBLANK(StartHere!G126),"",StartHere!G126) ->  | M50: =IF(ISBLANK(StartHere!H126),"",StartHere!H126) ->  | N50: =IF(ISBLANK(StartHere!I126),"",StartHere!I126) ->  | O50: =IF(ISBLANK(StartHere!J126),"",StartHere!J126) ->  | P50: =IF(ISBLANK(StartHere!K126),"",StartHere!K126) -> 
I51: =IF(ISBLANK(StartHere!C127),"",StartHere!C127) ->  | J51: =IF(ISBLANK(StartHere!D127),"",StartHere!D127) ->  | K51: =IF(ISBLANK(StartHere!F127),"",StartHere!F127) ->  | L51: =IF(ISBLANK(StartHere!G127),"",StartHere!G127) ->  | M51: =IF(ISBLANK(StartHere!H127),"",StartHere!H127) ->  | N51: =IF(ISBLANK(StartHere!I127),"",StartHere!I127) ->  | O51: =IF(ISBLANK(StartHere!J127),"",StartHere!J127) ->  | P51: =IF(ISBLANK(StartHere!K127),"",StartHere!K127) -> 
I52: =IF(ISBLANK(StartHere!C128),"",StartHere!C128) ->  | J52: =IF(ISBLANK(StartHere!D128),"",StartHere!D128) ->  | K52: =IF(ISBLANK(StartHere!F128),"",StartHere!F128) ->  | L52: =IF(ISBLANK(StartHere!G128),"",StartHere!G128) ->  | M52: =IF(ISBLANK(StartHere!H128),"",StartHere!H128) ->  | N52: =IF(ISBLANK(StartHere!I128),"",StartHere!I128) ->  | O52: =IF(ISBLANK(StartHere!J128),"",StartHere!J128) ->  | P52: =IF(ISBLANK(StartHere!K128),"",StartHere!K128) -> 
I53: =IF(ISBLANK(StartHere!C129),"",StartHere!C129) ->  | J53: =IF(ISBLANK(StartHere!D129),"",StartHere!D129) ->  | K53: =IF(ISBLANK(StartHere!F129),"",StartHere!F129) ->  | L53: =IF(ISBLANK(StartHere!G129),"",StartHere!G129) ->  | M53: =IF(ISBLANK(StartHere!H129),"",StartHere!H129) ->  | N53: =IF(ISBLANK(StartHere!I129),"",StartHere!I129) ->  | O53: =IF(ISBLANK(StartHere!J129),"",StartHere!J129) ->  | P53: =IF(ISBLANK(StartHere!K129),"",StartHere!K129) -> 
I54: =IF(ISBLANK(StartHere!C130),"",StartHere!C130) ->  | J54: =IF(ISBLANK(StartHere!D130),"",StartHere!D130) ->  | K54: =IF(ISBLANK(StartHere!F130),"",StartHere!F130) ->  | L54: =IF(ISBLANK(StartHere!G130),"",StartHere!G130) ->  | M54: =IF(ISBLANK(StartHere!H130),"",StartHere!H130) ->  | N54: =IF(ISBLANK(StartHere!I130),"",StartHere!I130) ->  | O54: =IF(ISBLANK(StartHere!J130),"",StartHere!J130) ->  | P54: =IF(ISBLANK(StartHere!K130),"",StartHere!K130) -> 
I55: =IF(ISBLANK(StartHere!C131),"",StartHere!C131) ->  | J55: =IF(ISBLANK(StartHere!D131),"",StartHere!D131) ->  | K55: =IF(ISBLANK(StartHere!F131),"",StartHere!F131) ->  | L55: =IF(ISBLANK(StartHere!G131),"",StartHere!G131) ->  | M55: =IF(ISBLANK(StartHere!H131),"",StartHere!H131) ->  | N55: =IF(ISBLANK(StartHere!I131),"",StartHere!I131) ->  | O55: =IF(ISBLANK(StartHere!J131),"",StartHere!J131) ->  | P55: =IF(ISBLANK(StartHere!K131),"",StartHere!K131) -> 
I56: =IF(ISBLANK(StartHere!C132),"",StartHere!C132) ->  | J56: =IF(ISBLANK(StartHere!D132),"",StartHere!D132) ->  | K56: =IF(ISBLANK(StartHere!F132),"",StartHere!F132) ->  | L56: =IF(ISBLANK(StartHere!G132),"",StartHere!G132) ->  | M56: =IF(ISBLANK(StartHere!H132),"",StartHere!H132) ->  | N56: =IF(ISBLANK(StartHere!I132),"",StartHere!I132) ->  | O56: =IF(ISBLANK(StartHere!J132),"",StartHere!J132) ->  | P56: =IF(ISBLANK(StartHere!K132),"",StartHere!K132) -> 
I57: =IF(ISBLANK(StartHere!C133),"",StartHere!C133) ->  | J57: =IF(ISBLANK(StartHere!D133),"",StartHere!D133) ->  | K57: =IF(ISBLANK(StartHere!F133),"",StartHere!F133) ->  | L57: =IF(ISBLANK(StartHere!G133),"",StartHere!G133) ->  | M57: =IF(ISBLANK(StartHere!H133),"",StartHere!H133) ->  | N57: =IF(ISBLANK(StartHere!I133),"",StartHere!I133) ->  | O57: =IF(ISBLANK(StartHere!J133),"",StartHere!J133) ->  | P57: =IF(ISBLANK(StartHere!K133),"",StartHere!K133) -> 
I58: =IF(ISBLANK(StartHere!C134),"",StartHere!C134) ->  | J58: =IF(ISBLANK(StartHere!D134),"",StartHere!D134) ->  | K58: =IF(ISBLANK(StartHere!F134),"",StartHere!F134) ->  | L58: =IF(ISBLANK(StartHere!G134),"",StartHere!G134) ->  | M58: =IF(ISBLANK(StartHere!H134),"",StartHere!H134) ->  | N58: =IF(ISBLANK(StartHere!I134),"",StartHere!I134) ->  | O58: =IF(ISBLANK(StartHere!J134),"",StartHere!J134) ->  | P58: =IF(ISBLANK(StartHere!K134),"",StartHere!K134) -> 
I59: =IF(ISBLANK(StartHere!C135),"",StartHere!C135) ->  | J59: =IF(ISBLANK(StartHere!D135),"",StartHere!D135) ->  | K59: =IF(ISBLANK(StartHere!F135),"",StartHere!F135) ->  | L59: =IF(ISBLANK(StartHere!G135),"",StartHere!G135) ->  | M59: =IF(ISBLANK(StartHere!H135),"",StartHere!H135) ->  | N59: =IF(ISBLANK(StartHere!I135),"",StartHere!I135) ->  | O59: =IF(ISBLANK(StartHere!J135),"",StartHere!J135) ->  | P59: =IF(ISBLANK(StartHere!K135),"",StartHere!K135) -> 
A60: COMMENTS ON PRIMARY CONSTRAINTS | I60: =IF(ISBLANK(StartHere!C136),"",StartHere!C136) ->  | J60: =IF(ISBLANK(StartHere!D136),"",StartHere!D136) ->  | K60: =IF(ISBLANK(StartHere!F136),"",StartHere!F136) ->  | L60: =IF(ISBLANK(StartHere!G136),"",StartHere!G136) ->  | M60: =IF(ISBLANK(StartHere!H136),"",StartHere!H136) ->  | N60: =IF(ISBLANK(StartHere!I136),"",StartHere!I136) ->  | O60: =IF(ISBLANK(StartHere!J136),"",StartHere!J136) ->  | P60: =IF(ISBLANK(StartHere!K136),"",StartHere!K136) -> 
I61: =IF(ISBLANK(StartHere!C137),"",StartHere!C137) ->  | J61: =IF(ISBLANK(StartHere!D137),"",StartHere!D137) ->  | K61: =IF(ISBLANK(StartHere!F137),"",StartHere!F137) ->  | L61: =IF(ISBLANK(StartHere!G137),"",StartHere!G137) ->  | M61: =IF(ISBLANK(StartHere!H137),"",StartHere!H137) ->  | N61: =IF(ISBLANK(StartHere!I137),"",StartHere!I137) ->  | O61: =IF(ISBLANK(StartHere!J137),"",StartHere!J137) ->  | P61: =IF(ISBLANK(StartHere!K137),"",StartHere!K137) -> 
I62: =IF(ISBLANK(StartHere!C138),"",StartHere!C138) ->  | J62: =IF(ISBLANK(StartHere!D138),"",StartHere!D138) ->  | K62: =IF(ISBLANK(StartHere!F138),"",StartHere!F138) ->  | L62: =IF(ISBLANK(StartHere!G138),"",StartHere!G138) ->  | M62: =IF(ISBLANK(StartHere!H138),"",StartHere!H138) ->  | N62: =IF(ISBLANK(StartHere!I138),"",StartHere!I138) ->  | O62: =IF(ISBLANK(StartHere!J138),"",StartHere!J138) ->  | P62: =IF(ISBLANK(StartHere!K138),"",StartHere!K138) -> 
I63: =IF(ISBLANK(StartHere!C139),"",StartHere!C139) ->  | J63: =IF(ISBLANK(StartHere!D139),"",StartHere!D139) ->  | K63: =IF(ISBLANK(StartHere!F139),"",StartHere!F139) ->  | L63: =IF(ISBLANK(StartHere!G139),"",StartHere!G139) ->  | M63: =IF(ISBLANK(StartHere!H139),"",StartHere!H139) ->  | N63: =IF(ISBLANK(StartHere!I139),"",StartHere!I139) ->  | O63: =IF(ISBLANK(StartHere!J139),"",StartHere!J139) ->  | P63: =IF(ISBLANK(StartHere!K139),"",StartHere!K139) -> 
I64: =IF(ISBLANK(StartHere!C140),"",StartHere!C140) ->  | J64: =IF(ISBLANK(StartHere!D140),"",StartHere!D140) ->  | K64: =IF(ISBLANK(StartHere!F140),"",StartHere!F140) ->  | L64: =IF(ISBLANK(StartHere!G140),"",StartHere!G140) ->  | M64: =IF(ISBLANK(StartHere!H140),"",StartHere!H140) ->  | N64: =IF(ISBLANK(StartHere!I140),"",StartHere!I140) ->  | O64: =IF(ISBLANK(StartHere!J140),"",StartHere!J140) ->  | P64: =IF(ISBLANK(StartHere!K140),"",StartHere!K140) -> 
I65: =IF(ISBLANK(StartHere!C141),"",StartHere!C141) ->  | J65: =IF(ISBLANK(StartHere!D141),"",StartHere!D141) ->  | K65: =IF(ISBLANK(StartHere!F141),"",StartHere!F141) ->  | L65: =IF(ISBLANK(StartHere!G141),"",StartHere!G141) ->  | M65: =IF(ISBLANK(StartHere!H141),"",StartHere!H141) ->  | N65: =IF(ISBLANK(StartHere!I141),"",StartHere!I141) ->  | O65: =IF(ISBLANK(StartHere!J141),"",StartHere!J141) ->  | P65: =IF(ISBLANK(StartHere!K141),"",StartHere!K141) -> 
I66: =IF(ISBLANK(StartHere!C142),"",StartHere!C142) ->  | J66: =IF(ISBLANK(StartHere!D142),"",StartHere!D142) ->  | K66: =IF(ISBLANK(StartHere!F142),"",StartHere!F142) ->  | L66: =IF(ISBLANK(StartHere!G142),"",StartHere!G142) ->  | M66: =IF(ISBLANK(StartHere!H142),"",StartHere!H142) ->  | N66: =IF(ISBLANK(StartHere!I142),"",StartHere!I142) ->  | O66: =IF(ISBLANK(StartHere!J142),"",StartHere!J142) ->  | P66: =IF(ISBLANK(StartHere!K142),"",StartHere!K142) -> 
I67: =IF(ISBLANK(StartHere!C143),"",StartHere!C143) ->  | J67: =IF(ISBLANK(StartHere!D143),"",StartHere!D143) ->  | K67: =IF(ISBLANK(StartHere!F143),"",StartHere!F143) ->  | L67: =IF(ISBLANK(StartHere!G143),"",StartHere!G143) ->  | M67: =IF(ISBLANK(StartHere!H143),"",StartHere!H143) ->  | N67: =IF(ISBLANK(StartHere!I143),"",StartHere!I143) ->  | O67: =IF(ISBLANK(StartHere!J143),"",StartHere!J143) ->  | P67: =IF(ISBLANK(StartHere!K143),"",StartHere!K143) -> 
I68: =IF(ISBLANK(StartHere!C144),"",StartHere!C144) ->  | J68: =IF(ISBLANK(StartHere!D144),"",StartHere!D144) ->  | K68: =IF(ISBLANK(StartHere!F144),"",StartHere!F144) ->  | L68: =IF(ISBLANK(StartHere!G144),"",StartHere!G144) ->  | M68: =IF(ISBLANK(StartHere!H144),"",StartHere!H144) ->  | N68: =IF(ISBLANK(StartHere!I144),"",StartHere!I144) ->  | O68: =IF(ISBLANK(StartHere!J144),"",StartHere!J144) ->  | P68: =IF(ISBLANK(StartHere!K144),"",StartHere!K144) -> 
I69: =IF(ISBLANK(StartHere!C145),"",StartHere!C145) ->  | J69: =IF(ISBLANK(StartHere!D145),"",StartHere!D145) ->  | K69: =IF(ISBLANK(StartHere!F145),"",StartHere!F145) ->  | L69: =IF(ISBLANK(StartHere!G145),"",StartHere!G145) ->  | M69: =IF(ISBLANK(StartHere!H145),"",StartHere!H145) ->  | N69: =IF(ISBLANK(StartHere!I145),"",StartHere!I145) ->  | O69: =IF(ISBLANK(StartHere!J145),"",StartHere!J145) ->  | P69: =IF(ISBLANK(StartHere!K145),"",StartHere!K145) -> 
I70: =IF(ISBLANK(StartHere!C146),"",StartHere!C146) ->  | J70: =IF(ISBLANK(StartHere!D146),"",StartHere!D146) ->  | K70: =IF(ISBLANK(StartHere!F146),"",StartHere!F146) ->  | L70: =IF(ISBLANK(StartHere!G146),"",StartHere!G146) ->  | M70: =IF(ISBLANK(StartHere!H146),"",StartHere!H146) ->  | N70: =IF(ISBLANK(StartHere!I146),"",StartHere!I146) ->  | O70: =IF(ISBLANK(StartHere!J146),"",StartHere!J146) ->  | P70: =IF(ISBLANK(StartHere!K146),"",StartHere!K146) -> 
I71: =IF(ISBLANK(StartHere!C147),"",StartHere!C147) ->  | J71: =IF(ISBLANK(StartHere!D147),"",StartHere!D147) ->  | K71: =IF(ISBLANK(StartHere!F147),"",StartHere!F147) ->  | L71: =IF(ISBLANK(StartHere!G147),"",StartHere!G147) ->  | M71: =IF(ISBLANK(StartHere!H147),"",StartHere!H147) ->  | N71: =IF(ISBLANK(StartHere!I147),"",StartHere!I147) ->  | O71: =IF(ISBLANK(StartHere!J147),"",StartHere!J147) ->  | P71: =IF(ISBLANK(StartHere!K147),"",StartHere!K147) -> 
I72: =IF(ISBLANK(StartHere!C148),"",StartHere!C148) ->  | J72: =IF(ISBLANK(StartHere!D148),"",StartHere!D148) ->  | K72: =IF(ISBLANK(StartHere!F148),"",StartHere!F148) ->  | L72: =IF(ISBLANK(StartHere!G148),"",StartHere!G148) ->  | M72: =IF(ISBLANK(StartHere!H148),"",StartHere!H148) ->  | N72: =IF(ISBLANK(StartHere!I148),"",StartHere!I148) ->  | O72: =IF(ISBLANK(StartHere!J148),"",StartHere!J148) ->  | P72: =IF(ISBLANK(StartHere!K148),"",StartHere!K148) -> 
I73: =IF(ISBLANK(StartHere!C149),"",StartHere!C149) ->  | J73: =IF(ISBLANK(StartHere!D149),"",StartHere!D149) ->  | K73: =IF(ISBLANK(StartHere!F149),"",StartHere!F149) ->  | L73: =IF(ISBLANK(StartHere!G149),"",StartHere!G149) ->  | M73: =IF(ISBLANK(StartHere!H149),"",StartHere!H149) ->  | N73: =IF(ISBLANK(StartHere!I149),"",StartHere!I149) ->  | O73: =IF(ISBLANK(StartHere!J149),"",StartHere!J149) ->  | P73: =IF(ISBLANK(StartHere!K149),"",StartHere!K149) -> 
I74: =IF(ISBLANK(StartHere!C150),"",StartHere!C150) ->  | J74: =IF(ISBLANK(StartHere!D150),"",StartHere!D150) ->  | K74: =IF(ISBLANK(StartHere!F150),"",StartHere!F150) ->  | L74: =IF(ISBLANK(StartHere!G150),"",StartHere!G150) ->  | M74: =IF(ISBLANK(StartHere!H150),"",StartHere!H150) ->  | N74: =IF(ISBLANK(StartHere!I150),"",StartHere!I150) ->  | O74: =IF(ISBLANK(StartHere!J150),"",StartHere!J150) ->  | P74: =IF(ISBLANK(StartHere!K150),"",StartHere!K150) -> 
I75: =IF(ISBLANK(StartHere!C151),"",StartHere!C151) ->  | J75: =IF(ISBLANK(StartHere!D151),"",StartHere!D151) ->  | K75: =IF(ISBLANK(StartHere!F151),"",StartHere!F151) ->  | L75: =IF(ISBLANK(StartHere!G151),"",StartHere!G151) ->  | M75: =IF(ISBLANK(StartHere!H151),"",StartHere!H151) ->  | N75: =IF(ISBLANK(StartHere!I151),"",StartHere!I151) ->  | O75: =IF(ISBLANK(StartHere!J151),"",StartHere!J151) ->  | P75: =IF(ISBLANK(StartHere!K151),"",StartHere!K151) -> 
I76: =IF(ISBLANK(StartHere!C152),"",StartHere!C152) ->  | J76: =IF(ISBLANK(StartHere!D152),"",StartHere!D152) ->  | K76: =IF(ISBLANK(StartHere!F152),"",StartHere!F152) ->  | L76: =IF(ISBLANK(StartHere!G152),"",StartHere!G152) ->  | M76: =IF(ISBLANK(StartHere!H152),"",StartHere!H152) ->  | N76: =IF(ISBLANK(StartHere!I152),"",StartHere!I152) ->  | O76: =IF(ISBLANK(StartHere!J152),"",StartHere!J152) ->  | P76: =IF(ISBLANK(StartHere!K152),"",StartHere!K152) -> 
I77: =IF(ISBLANK(StartHere!C153),"",StartHere!C153) ->  | J77: =IF(ISBLANK(StartHere!D153),"",StartHere!D153) ->  | K77: =IF(ISBLANK(StartHere!F153),"",StartHere!F153) ->  | L77: =IF(ISBLANK(StartHere!G153),"",StartHere!G153) ->  | M77: =IF(ISBLANK(StartHere!H153),"",StartHere!H153) ->  | N77: =IF(ISBLANK(StartHere!I153),"",StartHere!I153) ->  | O77: =IF(ISBLANK(StartHere!J153),"",StartHere!J153) ->  | P77: =IF(ISBLANK(StartHere!K153),"",StartHere!K153) -> 
I78: =IF(ISBLANK(StartHere!C154),"",StartHere!C154) ->  | J78: =IF(ISBLANK(StartHere!D154),"",StartHere!D154) ->  | K78: =IF(ISBLANK(StartHere!F154),"",StartHere!F154) ->  | L78: =IF(ISBLANK(StartHere!G154),"",StartHere!G154) ->  | M78: =IF(ISBLANK(StartHere!H154),"",StartHere!H154) ->  | N78: =IF(ISBLANK(StartHere!I154),"",StartHere!I154) ->  | O78: =IF(ISBLANK(StartHere!J154),"",StartHere!J154) ->  | P78: =IF(ISBLANK(StartHere!K154),"",StartHere!K154) -> 
I79: =IF(ISBLANK(StartHere!C155),"",StartHere!C155) ->  | J79: =IF(ISBLANK(StartHere!D155),"",StartHere!D155) ->  | K79: =IF(ISBLANK(StartHere!F155),"",StartHere!F155) ->  | L79: =IF(ISBLANK(StartHere!G155),"",StartHere!G155) ->  | M79: =IF(ISBLANK(StartHere!H155),"",StartHere!H155) ->  | N79: =IF(ISBLANK(StartHere!I155),"",StartHere!I155) ->  | O79: =IF(ISBLANK(StartHere!J155),"",StartHere!J155) ->  | P79: =IF(ISBLANK(StartHere!K155),"",StartHere!K155) -> 
I80: =IF(ISBLANK(StartHere!C156),"",StartHere!C156) ->  | J80: =IF(ISBLANK(StartHere!D156),"",StartHere!D156) ->  | K80: =IF(ISBLANK(StartHere!F156),"",StartHere!F156) ->  | L80: =IF(ISBLANK(StartHere!G156),"",StartHere!G156) ->  | M80: =IF(ISBLANK(StartHere!H156),"",StartHere!H156) ->  | N80: =IF(ISBLANK(StartHere!I156),"",StartHere!I156) ->  | O80: =IF(ISBLANK(StartHere!J156),"",StartHere!J156) ->  | P80: =IF(ISBLANK(StartHere!K156),"",StartHere!K156) -> 
I81: =IF(ISBLANK(StartHere!C157),"",StartHere!C157) ->  | J81: =IF(ISBLANK(StartHere!D157),"",StartHere!D157) ->  | K81: =IF(ISBLANK(StartHere!F157),"",StartHere!F157) ->  | L81: =IF(ISBLANK(StartHere!G157),"",StartHere!G157) ->  | M81: =IF(ISBLANK(StartHere!H157),"",StartHere!H157) ->  | N81: =IF(ISBLANK(StartHere!I157),"",StartHere!I157) ->  | O81: =IF(ISBLANK(StartHere!J157),"",StartHere!J157) ->  | P81: =IF(ISBLANK(StartHere!K157),"",StartHere!K157) ->  | V81: FALSE
I82: =IF(ISBLANK(StartHere!C158),"",StartHere!C158) ->  | J82: =IF(ISBLANK(StartHere!D158),"",StartHere!D158) ->  | K82: =IF(ISBLANK(StartHere!F158),"",StartHere!F158) ->  | L82: =IF(ISBLANK(StartHere!G158),"",StartHere!G158) ->  | M82: =IF(ISBLANK(StartHere!H158),"",StartHere!H158) ->  | N82: =IF(ISBLANK(StartHere!I158),"",StartHere!I158) ->  | O82: =IF(ISBLANK(StartHere!J158),"",StartHere!J158) ->  | P82: =IF(ISBLANK(StartHere!K158),"",StartHere!K158) ->  | V82: FALSE
I83: =IF(ISBLANK(StartHere!C159),"",StartHere!C159) ->  | J83: =IF(ISBLANK(StartHere!D159),"",StartHere!D159) ->  | K83: =IF(ISBLANK(StartHere!F159),"",StartHere!F159) ->  | L83: =IF(ISBLANK(StartHere!G159),"",StartHere!G159) ->  | M83: =IF(ISBLANK(StartHere!H159),"",StartHere!H159) ->  | N83: =IF(ISBLANK(StartHere!I159),"",StartHere!I159) ->  | O83: =IF(ISBLANK(StartHere!J159),"",StartHere!J159) ->  | P83: =IF(ISBLANK(StartHere!K159),"",StartHere!K159) -> 
I84: =IF(ISBLANK(StartHere!C160),"",StartHere!C160) ->  | J84: =IF(ISBLANK(StartHere!D160),"",StartHere!D160) ->  | K84: =IF(ISBLANK(StartHere!F160),"",StartHere!F160) ->  | L84: =IF(ISBLANK(StartHere!G160),"",StartHere!G160) ->  | M84: =IF(ISBLANK(StartHere!H160),"",StartHere!H160) ->  | N84: =IF(ISBLANK(StartHere!I160),"",StartHere!I160) ->  | O84: =IF(ISBLANK(StartHere!J160),"",StartHere!J160) ->  | P84: =IF(ISBLANK(StartHere!K160),"",StartHere!K160) -> 
I85: =IF(ISBLANK(StartHere!C161),"",StartHere!C161) ->  | J85: =IF(ISBLANK(StartHere!D161),"",StartHere!D161) ->  | K85: =IF(ISBLANK(StartHere!F161),"",StartHere!F161) ->  | L85: =IF(ISBLANK(StartHere!G161),"",StartHere!G161) ->  | M85: =IF(ISBLANK(StartHere!H161),"",StartHere!H161) ->  | N85: =IF(ISBLANK(StartHere!I161),"",StartHere!I161) ->  | O85: =IF(ISBLANK(StartHere!J161),"",StartHere!J161) ->  | P85: =IF(ISBLANK(StartHere!K161),"",StartHere!K161) ->  | V85: FALSE
I86: =IF(ISBLANK(StartHere!C162),"",StartHere!C162) ->  | J86: =IF(ISBLANK(StartHere!D162),"",StartHere!D162) ->  | K86: =IF(ISBLANK(StartHere!F162),"",StartHere!F162) ->  | L86: =IF(ISBLANK(StartHere!G162),"",StartHere!G162) ->  | M86: =IF(ISBLANK(StartHere!H162),"",StartHere!H162) ->  | N86: =IF(ISBLANK(StartHere!I162),"",StartHere!I162) ->  | O86: =IF(ISBLANK(StartHere!J162),"",StartHere!J162) ->  | P86: =IF(ISBLANK(StartHere!K162),"",StartHere!K162) ->  | V86: FALSE
I87: =IF(ISBLANK(StartHere!C163),"",StartHere!C163) ->  | J87: =IF(ISBLANK(StartHere!D163),"",StartHere!D163) ->  | K87: =IF(ISBLANK(StartHere!F163),"",StartHere!F163) ->  | L87: =IF(ISBLANK(StartHere!G163),"",StartHere!G163) ->  | M87: =IF(ISBLANK(StartHere!H163),"",StartHere!H163) ->  | N87: =IF(ISBLANK(StartHere!I163),"",StartHere!I163) ->  | O87: =IF(ISBLANK(StartHere!J163),"",StartHere!J163) ->  | P87: =IF(ISBLANK(StartHere!K163),"",StartHere!K163) ->  | V87: FALSE
I88: =IF(ISBLANK(StartHere!C164),"",StartHere!C164) ->  | J88: =IF(ISBLANK(StartHere!D164),"",StartHere!D164) ->  | K88: =IF(ISBLANK(StartHere!F164),"",StartHere!F164) ->  | L88: =IF(ISBLANK(StartHere!G164),"",StartHere!G164) ->  | M88: =IF(ISBLANK(StartHere!H164),"",StartHere!H164) ->  | N88: =IF(ISBLANK(StartHere!I164),"",StartHere!I164) ->  | O88: =IF(ISBLANK(StartHere!J164),"",StartHere!J164) ->  | P88: =IF(ISBLANK(StartHere!K164),"",StartHere!K164) ->  | V88: FALSE
I89: =IF(ISBLANK(StartHere!C165),"",StartHere!C165) ->  | J89: =IF(ISBLANK(StartHere!D165),"",StartHere!D165) ->  | K89: =IF(ISBLANK(StartHere!F165),"",StartHere!F165) ->  | L89: =IF(ISBLANK(StartHere!G165),"",StartHere!G165) ->  | M89: =IF(ISBLANK(StartHere!H165),"",StartHere!H165) ->  | N89: =IF(ISBLANK(StartHere!I165),"",StartHere!I165) ->  | O89: =IF(ISBLANK(StartHere!J165),"",StartHere!J165) ->  | P89: =IF(ISBLANK(StartHere!K165),"",StartHere!K165) ->  | V89: FALSE
I90: =IF(ISBLANK(StartHere!C166),"",StartHere!C166) ->  | J90: =IF(ISBLANK(StartHere!D166),"",StartHere!D166) ->  | K90: =IF(ISBLANK(StartHere!F166),"",StartHere!F166) ->  | L90: =IF(ISBLANK(StartHere!G166),"",StartHere!G166) ->  | M90: =IF(ISBLANK(StartHere!H166),"",StartHere!H166) ->  | N90: =IF(ISBLANK(StartHere!I166),"",StartHere!I166) ->  | O90: =IF(ISBLANK(StartHere!J166),"",StartHere!J166) ->  | P90: =IF(ISBLANK(StartHere!K166),"",StartHere!K166) -> 
I91: =IF(ISBLANK(StartHere!C167),"",StartHere!C167) ->  | J91: =IF(ISBLANK(StartHere!D167),"",StartHere!D167) ->  | K91: =IF(ISBLANK(StartHere!F167),"",StartHere!F167) ->  | L91: =IF(ISBLANK(StartHere!G167),"",StartHere!G167) ->  | M91: =IF(ISBLANK(StartHere!H167),"",StartHere!H167) ->  | N91: =IF(ISBLANK(StartHere!I167),"",StartHere!I167) ->  | O91: =IF(ISBLANK(StartHere!J167),"",StartHere!J167) ->  | P91: =IF(ISBLANK(StartHere!K167),"",StartHere!K167) ->  | V91: FALSE
I92: =IF(ISBLANK(StartHere!C168),"",StartHere!C168) ->  | J92: =IF(ISBLANK(StartHere!D168),"",StartHere!D168) ->  | K92: =IF(ISBLANK(StartHere!F168),"",StartHere!F168) ->  | L92: =IF(ISBLANK(StartHere!G168),"",StartHere!G168) ->  | M92: =IF(ISBLANK(StartHere!H168),"",StartHere!H168) ->  | N92: =IF(ISBLANK(StartHere!I168),"",StartHere!I168) ->  | O92: =IF(ISBLANK(StartHere!J168),"",StartHere!J168) ->  | P92: =IF(ISBLANK(StartHere!K168),"",StartHere!K168) -> 
I93: =IF(ISBLANK(StartHere!C169),"",StartHere!C169) ->  | J93: =IF(ISBLANK(StartHere!D169),"",StartHere!D169) ->  | K93: =IF(ISBLANK(StartHere!F169),"",StartHere!F169) ->  | L93: =IF(ISBLANK(StartHere!G169),"",StartHere!G169) ->  | M93: =IF(ISBLANK(StartHere!H169),"",StartHere!H169) ->  | N93: =IF(ISBLANK(StartHere!I169),"",StartHere!I169) ->  | O93: =IF(ISBLANK(StartHere!J169),"",StartHere!J169) ->  | P93: =IF(ISBLANK(StartHere!K169),"",StartHere!K169) -> 
I94: =IF(ISBLANK(StartHere!C170),"",StartHere!C170) ->  | J94: =IF(ISBLANK(StartHere!D170),"",StartHere!D170) ->  | K94: =IF(ISBLANK(StartHere!F170),"",StartHere!F170) ->  | L94: =IF(ISBLANK(StartHere!G170),"",StartHere!G170) ->  | M94: =IF(ISBLANK(StartHere!H170),"",StartHere!H170) ->  | N94: =IF(ISBLANK(StartHere!I170),"",StartHere!I170) ->  | O94: =IF(ISBLANK(StartHere!J170),"",StartHere!J170) ->  | P94: =IF(ISBLANK(StartHere!K170),"",StartHere!K170) -> 
I95: =IF(ISBLANK(StartHere!C171),"",StartHere!C171) ->  | J95: =IF(ISBLANK(StartHere!D171),"",StartHere!D171) ->  | K95: =IF(ISBLANK(StartHere!F171),"",StartHere!F171) ->  | L95: =IF(ISBLANK(StartHere!G171),"",StartHere!G171) ->  | M95: =IF(ISBLANK(StartHere!H171),"",StartHere!H171) ->  | N95: =IF(ISBLANK(StartHere!I171),"",StartHere!I171) ->  | O95: =IF(ISBLANK(StartHere!J171),"",StartHere!J171) ->  | P95: =IF(ISBLANK(StartHere!K171),"",StartHere!K171) -> 
I96: =IF(ISBLANK(StartHere!C172),"",StartHere!C172) ->  | J96: =IF(ISBLANK(StartHere!D172),"",StartHere!D172) ->  | K96: =IF(ISBLANK(StartHere!F172),"",StartHere!F172) ->  | L96: =IF(ISBLANK(StartHere!G172),"",StartHere!G172) ->  | M96: =IF(ISBLANK(StartHere!H172),"",StartHere!H172) ->  | N96: =IF(ISBLANK(StartHere!I172),"",StartHere!I172) ->  | O96: =IF(ISBLANK(StartHere!J172),"",StartHere!J172) ->  | P96: =IF(ISBLANK(StartHere!K172),"",StartHere!K172) -> 
A97: ESTIMATED ADDITIONAL COST TO ACHIEVE OPTIMAL | I97: =IF(ISBLANK(StartHere!C173),"",StartHere!C173) ->  | J97: =IF(ISBLANK(StartHere!D173),"",StartHere!D173) ->  | K97: =IF(ISBLANK(StartHere!F173),"",StartHere!F173) ->  | L97: =IF(ISBLANK(StartHere!G173),"",StartHere!G173) ->  | M97: =IF(ISBLANK(StartHere!H173),"",StartHere!H173) ->  | N97: =IF(ISBLANK(StartHere!I173),"",StartHere!I173) ->  | O97: =IF(ISBLANK(StartHere!J173),"",StartHere!J173) ->  | P97: =IF(ISBLANK(StartHere!K173),"",StartHere!K173) -> 
I98: =IF(ISBLANK(StartHere!C174),"",StartHere!C174) ->  | J98: =IF(ISBLANK(StartHere!D174),"",StartHere!D174) ->  | K98: =IF(ISBLANK(StartHere!F174),"",StartHere!F174) ->  | L98: =IF(ISBLANK(StartHere!G174),"",StartHere!G174) ->  | M98: =IF(ISBLANK(StartHere!H174),"",StartHere!H174) ->  | N98: =IF(ISBLANK(StartHere!I174),"",StartHere!I174) ->  | O98: =IF(ISBLANK(StartHere!J174),"",StartHere!J174) ->  | P98: =IF(ISBLANK(StartHere!K174),"",StartHere!K174) -> 
A99: test | I99: =IF(ISBLANK(StartHere!C175),"",StartHere!C175) ->  | J99: =IF(ISBLANK(StartHere!D175),"",StartHere!D175) ->  | K99: =IF(ISBLANK(StartHere!F175),"",StartHere!F175) ->  | L99: =IF(ISBLANK(StartHere!G175),"",StartHere!G175) ->  | M99: =IF(ISBLANK(StartHere!H175),"",StartHere!H175) ->  | N99: =IF(ISBLANK(StartHere!I175),"",StartHere!I175) ->  | O99: =IF(ISBLANK(StartHere!J175),"",StartHere!J175) ->  | P99: =IF(ISBLANK(StartHere!K175),"",StartHere!K175) -> 
I100: =IF(ISBLANK(StartHere!C176),"",StartHere!C176) ->  | J100: =IF(ISBLANK(StartHere!D176),"",StartHere!D176) ->  | K100: =IF(ISBLANK(StartHere!F176),"",StartHere!F176) ->  | L100: =IF(ISBLANK(StartHere!G176),"",StartHere!G176) ->  | M100: =IF(ISBLANK(StartHere!H176),"",StartHere!H176) ->  | N100: =IF(ISBLANK(StartHere!I176),"",StartHere!I176) ->  | O100: =IF(ISBLANK(StartHere!J176),"",StartHere!J176) ->  | P100: =IF(ISBLANK(StartHere!K176),"",StartHere!K176) -> 
I101: =IF(ISBLANK(StartHere!C177),"",StartHere!C177) ->  | J101: =IF(ISBLANK(StartHere!D177),"",StartHere!D177) ->  | K101: =IF(ISBLANK(StartHere!F177),"",StartHere!F177) ->  | L101: =IF(ISBLANK(StartHere!G177),"",StartHere!G177) ->  | M101: =IF(ISBLANK(StartHere!H177),"",StartHere!H177) ->  | N101: =IF(ISBLANK(StartHere!I177),"",StartHere!I177) ->  | O101: =IF(ISBLANK(StartHere!J177),"",StartHere!J177) ->  | P101: =IF(ISBLANK(StartHere!K177),"",StartHere!K177) -> 
I102: =IF(ISBLANK(StartHere!C178),"",StartHere!C178) ->  | J102: =IF(ISBLANK(StartHere!D178),"",StartHere!D178) ->  | K102: =IF(ISBLANK(StartHere!F178),"",StartHere!F178) ->  | L102: =IF(ISBLANK(StartHere!G178),"",StartHere!G178) ->  | M102: =IF(ISBLANK(StartHere!H178),"",StartHere!H178) ->  | N102: =IF(ISBLANK(StartHere!I178),"",StartHere!I178) ->  | O102: =IF(ISBLANK(StartHere!J178),"",StartHere!J178) ->  | P102: =IF(ISBLANK(StartHere!K178),"",StartHere!K178) -> 
I103: =IF(ISBLANK(StartHere!C179),"",StartHere!C179) ->  | J103: =IF(ISBLANK(StartHere!D179),"",StartHere!D179) ->  | K103: =IF(ISBLANK(StartHere!F179),"",StartHere!F179) ->  | L103: =IF(ISBLANK(StartHere!G179),"",StartHere!G179) ->  | M103: =IF(ISBLANK(StartHere!H179),"",StartHere!H179) ->  | N103: =IF(ISBLANK(StartHere!I179),"",StartHere!I179) ->  | O103: =IF(ISBLANK(StartHere!J179),"",StartHere!J179) ->  | P103: =IF(ISBLANK(StartHere!K179),"",StartHere!K179) -> 
I104: =IF(ISBLANK(StartHere!C180),"",StartHere!C180) ->  | J104: =IF(ISBLANK(StartHere!D180),"",StartHere!D180) ->  | K104: =IF(ISBLANK(StartHere!F180),"",StartHere!F180) ->  | L104: =IF(ISBLANK(StartHere!G180),"",StartHere!G180) ->  | M104: =IF(ISBLANK(StartHere!H180),"",StartHere!H180) ->  | N104: =IF(ISBLANK(StartHere!I180),"",StartHere!I180) ->  | O104: =IF(ISBLANK(StartHere!J180),"",StartHere!J180) ->  | P104: =IF(ISBLANK(StartHere!K180),"",StartHere!K180) -> 
I105: =IF(ISBLANK(StartHere!C181),"",StartHere!C181) ->  | J105: =IF(ISBLANK(StartHere!D181),"",StartHere!D181) ->  | K105: =IF(ISBLANK(StartHere!F181),"",StartHere!F181) ->  | L105: =IF(ISBLANK(StartHere!G181),"",StartHere!G181) ->  | M105: =IF(ISBLANK(StartHere!H181),"",StartHere!H181) ->  | N105: =IF(ISBLANK(StartHere!I181),"",StartHere!I181) ->  | O105: =IF(ISBLANK(StartHere!J181),"",StartHere!J181) ->  | P105: =IF(ISBLANK(StartHere!K181),"",StartHere!K181) -> 
I106: =IF(ISBLANK(StartHere!C182),"",StartHere!C182) ->  | J106: =IF(ISBLANK(StartHere!D182),"",StartHere!D182) ->  | K106: =IF(ISBLANK(StartHere!F182),"",StartHere!F182) ->  | L106: =IF(ISBLANK(StartHere!G182),"",StartHere!G182) ->  | M106: =IF(ISBLANK(StartHere!H182),"",StartHere!H182) ->  | N106: =IF(ISBLANK(StartHere!I182),"",StartHere!I182) ->  | O106: =IF(ISBLANK(StartHere!J182),"",StartHere!J182) ->  | P106: =IF(ISBLANK(StartHere!K182),"",StartHere!K182) -> 
I107: =IF(ISBLANK(StartHere!C183),"",StartHere!C183) ->  | J107: =IF(ISBLANK(StartHere!D183),"",StartHere!D183) ->  | K107: =IF(ISBLANK(StartHere!F183),"",StartHere!F183) ->  | L107: =IF(ISBLANK(StartHere!G183),"",StartHere!G183) ->  | M107: =IF(ISBLANK(StartHere!H183),"",StartHere!H183) ->  | N107: =IF(ISBLANK(StartHere!I183),"",StartHere!I183) ->  | O107: =IF(ISBLANK(StartHere!J183),"",StartHere!J183) ->  | P107: =IF(ISBLANK(StartHere!K183),"",StartHere!K183) -> 
I108: =IF(ISBLANK(StartHere!C184),"",StartHere!C184) ->  | J108: =IF(ISBLANK(StartHere!D184),"",StartHere!D184) ->  | K108: =IF(ISBLANK(StartHere!F184),"",StartHere!F184) ->  | L108: =IF(ISBLANK(StartHere!G184),"",StartHere!G184) ->  | M108: =IF(ISBLANK(StartHere!H184),"",StartHere!H184) ->  | N108: =IF(ISBLANK(StartHere!I184),"",StartHere!I184) ->  | O108: =IF(ISBLANK(StartHere!J184),"",StartHere!J184) ->  | P108: =IF(ISBLANK(StartHere!K184),"",StartHere!K184) -> 
I109: =IF(ISBLANK(StartHere!C185),"",StartHere!C185) ->  | J109: =IF(ISBLANK(StartHere!D185),"",StartHere!D185) ->  | K109: =IF(ISBLANK(StartHere!F185),"",StartHere!F185) ->  | L109: =IF(ISBLANK(StartHere!G185),"",StartHere!G185) ->  | M109: =IF(ISBLANK(StartHere!H185),"",StartHere!H185) ->  | N109: =IF(ISBLANK(StartHere!I185),"",StartHere!I185) ->  | O109: =IF(ISBLANK(StartHere!J185),"",StartHere!J185) ->  | P109: =IF(ISBLANK(StartHere!K185),"",StartHere!K185) -> 
A110: ESTIMATED ADDITIONAL TIME (mo). TO ACHIEVE OPTIMAL | I110: =IF(ISBLANK(StartHere!C186),"",StartHere!C186) ->  | J110: =IF(ISBLANK(StartHere!D186),"",StartHere!D186) ->  | K110: =IF(ISBLANK(StartHere!F186),"",StartHere!F186) ->  | L110: =IF(ISBLANK(StartHere!G186),"",StartHere!G186) ->  | M110: =IF(ISBLANK(StartHere!H186),"",StartHere!H186) ->  | N110: =IF(ISBLANK(StartHere!I186),"",StartHere!I186) ->  | O110: =IF(ISBLANK(StartHere!J186),"",StartHere!J186) ->  | P110: =IF(ISBLANK(StartHere!K186),"",StartHere!K186) -> 
I111: =IF(ISBLANK(StartHere!C187),"",StartHere!C187) ->  | J111: =IF(ISBLANK(StartHere!D187),"",StartHere!D187) ->  | K111: =IF(ISBLANK(StartHere!F187),"",StartHere!F187) ->  | L111: =IF(ISBLANK(StartHere!G187),"",StartHere!G187) ->  | M111: =IF(ISBLANK(StartHere!H187),"",StartHere!H187) ->  | N111: =IF(ISBLANK(StartHere!I187),"",StartHere!I187) ->  | O111: =IF(ISBLANK(StartHere!J187),"",StartHere!J187) ->  | P111: =IF(ISBLANK(StartHere!K187),"",StartHere!K187) -> 
A112: test | I112: =IF(ISBLANK(StartHere!C188),"",StartHere!C188) ->  | J112: =IF(ISBLANK(StartHere!D188),"",StartHere!D188) ->  | K112: =IF(ISBLANK(StartHere!F188),"",StartHere!F188) ->  | L112: =IF(ISBLANK(StartHere!G188),"",StartHere!G188) ->  | M112: =IF(ISBLANK(StartHere!H188),"",StartHere!H188) ->  | N112: =IF(ISBLANK(StartHere!I188),"",StartHere!I188) ->  | O112: =IF(ISBLANK(StartHere!J188),"",StartHere!J188) ->  | P112: =IF(ISBLANK(StartHere!K188),"",StartHere!K188) -> 
I113: =IF(ISBLANK(StartHere!C189),"",StartHere!C189) ->  | J113: =IF(ISBLANK(StartHere!D189),"",StartHere!D189) ->  | K113: =IF(ISBLANK(StartHere!F189),"",StartHere!F189) ->  | L113: =IF(ISBLANK(StartHere!G189),"",StartHere!G189) ->  | M113: =IF(ISBLANK(StartHere!H189),"",StartHere!H189) ->  | N113: =IF(ISBLANK(StartHere!I189),"",StartHere!I189) ->  | O113: =IF(ISBLANK(StartHere!J189),"",StartHere!J189) ->  | P113: =IF(ISBLANK(StartHere!K189),"",StartHere!K189) -> 
I114: =IF(ISBLANK(StartHere!C190),"",StartHere!C190) ->  | J114: =IF(ISBLANK(StartHere!D190),"",StartHere!D190) ->  | K114: =IF(ISBLANK(StartHere!F190),"",StartHere!F190) ->  | L114: =IF(ISBLANK(StartHere!G190),"",StartHere!G190) ->  | M114: =IF(ISBLANK(StartHere!H190),"",StartHere!H190) ->  | N114: =IF(ISBLANK(StartHere!I190),"",StartHere!I190) ->  | O114: =IF(ISBLANK(StartHere!J190),"",StartHere!J190) ->  | P114: =IF(ISBLANK(StartHere!K190),"",StartHere!K190) -> 
I115: =IF(ISBLANK(StartHere!C191),"",StartHere!C191) ->  | J115: =IF(ISBLANK(StartHere!D191),"",StartHere!D191) ->  | K115: =IF(ISBLANK(StartHere!F191),"",StartHere!F191) ->  | L115: =IF(ISBLANK(StartHere!G191),"",StartHere!G191) ->  | M115: =IF(ISBLANK(StartHere!H191),"",StartHere!H191) ->  | N115: =IF(ISBLANK(StartHere!I191),"",StartHere!I191) ->  | O115: =IF(ISBLANK(StartHere!J191),"",StartHere!J191) ->  | P115: =IF(ISBLANK(StartHere!K191),"",StartHere!K191) -> 
I116: =IF(ISBLANK(StartHere!C192),"",StartHere!C192) ->  | J116: =IF(ISBLANK(StartHere!D192),"",StartHere!D192) ->  | K116: =IF(ISBLANK(StartHere!F192),"",StartHere!F192) ->  | L116: =IF(ISBLANK(StartHere!G192),"",StartHere!G192) ->  | M116: =IF(ISBLANK(StartHere!H192),"",StartHere!H192) ->  | N116: =IF(ISBLANK(StartHere!I192),"",StartHere!I192) ->  | O116: =IF(ISBLANK(StartHere!J192),"",StartHere!J192) ->  | P116: =IF(ISBLANK(StartHere!K192),"",StartHere!K192) -> 
I117: =IF(ISBLANK(StartHere!C193),"",StartHere!C193) ->  | J117: =IF(ISBLANK(StartHere!D193),"",StartHere!D193) ->  | K117: =IF(ISBLANK(StartHere!F193),"",StartHere!F193) ->  | L117: =IF(ISBLANK(StartHere!G193),"",StartHere!G193) ->  | M117: =IF(ISBLANK(StartHere!H193),"",StartHere!H193) ->  | N117: =IF(ISBLANK(StartHere!I193),"",StartHere!I193) ->  | O117: =IF(ISBLANK(StartHere!J193),"",StartHere!J193) ->  | P117: =IF(ISBLANK(StartHere!K193),"",StartHere!K193) -> 
I118: =IF(ISBLANK(StartHere!C194),"",StartHere!C194) ->  | J118: =IF(ISBLANK(StartHere!D194),"",StartHere!D194) ->  | K118: =IF(ISBLANK(StartHere!F194),"",StartHere!F194) ->  | L118: =IF(ISBLANK(StartHere!G194),"",StartHere!G194) ->  | M118: =IF(ISBLANK(StartHere!H194),"",StartHere!H194) ->  | N118: =IF(ISBLANK(StartHere!I194),"",StartHere!I194) ->  | O118: =IF(ISBLANK(StartHere!J194),"",StartHere!J194) ->  | P118: =IF(ISBLANK(StartHere!K194),"",StartHere!K194) -> 
I119: =IF(ISBLANK(StartHere!C195),"",StartHere!C195) ->  | J119: =IF(ISBLANK(StartHere!D195),"",StartHere!D195) ->  | K119: =IF(ISBLANK(StartHere!F195),"",StartHere!F195) ->  | L119: =IF(ISBLANK(StartHere!G195),"",StartHere!G195) ->  | M119: =IF(ISBLANK(StartHere!H195),"",StartHere!H195) ->  | N119: =IF(ISBLANK(StartHere!I195),"",StartHere!I195) ->  | O119: =IF(ISBLANK(StartHere!J195),"",StartHere!J195) ->  | P119: =IF(ISBLANK(StartHere!K195),"",StartHere!K195) -> 
I120: =IF(ISBLANK(StartHere!C196),"",StartHere!C196) ->  | J120: =IF(ISBLANK(StartHere!D196),"",StartHere!D196) ->  | K120: =IF(ISBLANK(StartHere!F196),"",StartHere!F196) ->  | L120: =IF(ISBLANK(StartHere!G196),"",StartHere!G196) ->  | M120: =IF(ISBLANK(StartHere!H196),"",StartHere!H196) ->  | N120: =IF(ISBLANK(StartHere!I196),"",StartHere!I196) ->  | O120: =IF(ISBLANK(StartHere!J196),"",StartHere!J196) ->  | P120: =IF(ISBLANK(StartHere!K196),"",StartHere!K196) -> 
I121: =IF(ISBLANK(StartHere!C197),"",StartHere!C197) ->  | J121: =IF(ISBLANK(StartHere!D197),"",StartHere!D197) ->  | K121: =IF(ISBLANK(StartHere!F197),"",StartHere!F197) ->  | L121: =IF(ISBLANK(StartHere!G197),"",StartHere!G197) ->  | M121: =IF(ISBLANK(StartHere!H197),"",StartHere!H197) ->  | N121: =IF(ISBLANK(StartHere!I197),"",StartHere!I197) ->  | O121: =IF(ISBLANK(StartHere!J197),"",StartHere!J197) ->  | P121: =IF(ISBLANK(StartHere!K197),"",StartHere!K197) -> 
I122: =IF(ISBLANK(StartHere!C198),"",StartHere!C198) ->  | J122: =IF(ISBLANK(StartHere!D198),"",StartHere!D198) ->  | K122: =IF(ISBLANK(StartHere!F198),"",StartHere!F198) ->  | L122: =IF(ISBLANK(StartHere!G198),"",StartHere!G198) ->  | M122: =IF(ISBLANK(StartHere!H198),"",StartHere!H198) ->  | N122: =IF(ISBLANK(StartHere!I198),"",StartHere!I198) ->  | O122: =IF(ISBLANK(StartHere!J198),"",StartHere!J198) ->  | P122: =IF(ISBLANK(StartHere!K198),"",StartHere!K198) -> 
A123: PRIMARY CONSTRAINTS TOWARD OPTIMAL SAFETY SCORE | I123: =IF(ISBLANK(StartHere!C199),"",StartHere!C199) ->  | J123: =IF(ISBLANK(StartHere!D199),"",StartHere!D199) ->  | K123: =IF(ISBLANK(StartHere!F199),"",StartHere!F199) ->  | L123: =IF(ISBLANK(StartHere!G199),"",StartHere!G199) ->  | M123: =IF(ISBLANK(StartHere!H199),"",StartHere!H199) ->  | N123: =IF(ISBLANK(StartHere!I199),"",StartHere!I199) ->  | O123: =IF(ISBLANK(StartHere!J199),"",StartHere!J199) ->  | P123: =IF(ISBLANK(StartHere!K199),"",StartHere!K199) -> 
I124: =IF(ISBLANK(StartHere!C200),"",StartHere!C200) ->  | J124: =IF(ISBLANK(StartHere!D200),"",StartHere!D200) ->  | K124: =IF(ISBLANK(StartHere!F200),"",StartHere!F200) ->  | L124: =IF(ISBLANK(StartHere!G200),"",StartHere!G200) ->  | M124: =IF(ISBLANK(StartHere!H200),"",StartHere!H200) ->  | N124: =IF(ISBLANK(StartHere!I200),"",StartHere!I200) ->  | O124: =IF(ISBLANK(StartHere!J200),"",StartHere!J200) ->  | P124: =IF(ISBLANK(StartHere!K200),"",StartHere!K200) -> 
B125: A. FUNDING ELEGIBILITY / SCOPE | E125: =IF(V85,"Yes","No") -> No | I125: =IF(ISBLANK(StartHere!C201),"",StartHere!C201) ->  | J125: =IF(ISBLANK(StartHere!D201),"",StartHere!D201) ->  | K125: =IF(ISBLANK(StartHere!F201),"",StartHere!F201) ->  | L125: =IF(ISBLANK(StartHere!G201),"",StartHere!G201) ->  | M125: =IF(ISBLANK(StartHere!H201),"",StartHere!H201) ->  | N125: =IF(ISBLANK(StartHere!I201),"",StartHere!I201) ->  | O125: =IF(ISBLANK(StartHere!J201),"",StartHere!J201) ->  | P125: =IF(ISBLANK(StartHere!K201),"",StartHere!K201) -> 
B126: B. SCHEDULE / DELIVERY TIMEFRAME | E126: =IF(V86,"Yes","No") -> No | I126: =IF(ISBLANK(StartHere!C202),"",StartHere!C202) ->  | J126: =IF(ISBLANK(StartHere!D202),"",StartHere!D202) ->  | K126: =IF(ISBLANK(StartHere!F202),"",StartHere!F202) ->  | L126: =IF(ISBLANK(StartHere!G202),"",StartHere!G202) ->  | M126: =IF(ISBLANK(StartHere!H202),"",StartHere!H202) ->  | N126: =IF(ISBLANK(StartHere!I202),"",StartHere!I202) ->  | O126: =IF(ISBLANK(StartHere!J202),"",StartHere!J202) ->  | P126: =IF(ISBLANK(StartHere!K202),"",StartHere!K202) -> 
B127: C. LOCAL ROW / UTILITIES | E127: =IF(V87,"Yes","No") -> No | I127: =IF(ISBLANK(StartHere!C203),"",StartHere!C203) ->  | J127: =IF(ISBLANK(StartHere!D203),"",StartHere!D203) ->  | K127: =IF(ISBLANK(StartHere!F203),"",StartHere!F203) ->  | L127: =IF(ISBLANK(StartHere!G203),"",StartHere!G203) ->  | M127: =IF(ISBLANK(StartHere!H203),"",StartHere!H203) ->  | N127: =IF(ISBLANK(StartHere!I203),"",StartHere!I203) ->  | O127: =IF(ISBLANK(StartHere!J203),"",StartHere!J203) ->  | P127: =IF(ISBLANK(StartHere!K203),"",StartHere!K203) -> 
B128: D. ROW / UTILITIES | E128: =IF(V88,"Yes","No") -> No | I128: =IF(ISBLANK(StartHere!C204),"",StartHere!C204) ->  | J128: =IF(ISBLANK(StartHere!D204),"",StartHere!D204) ->  | K128: =IF(ISBLANK(StartHere!F204),"",StartHere!F204) ->  | L128: =IF(ISBLANK(StartHere!G204),"",StartHere!G204) ->  | M128: =IF(ISBLANK(StartHere!H204),"",StartHere!H204) ->  | N128: =IF(ISBLANK(StartHere!I204),"",StartHere!I204) ->  | O128: =IF(ISBLANK(StartHere!J204),"",StartHere!J204) ->  | P128: =IF(ISBLANK(StartHere!K204),"",StartHere!K204) -> 
B129: E. ENVIRONMENTAL ISSUES | E129: =IF(V89,"Yes","No") -> No | I129: =IF(ISBLANK(StartHere!C205),"",StartHere!C205) ->  | J129: =IF(ISBLANK(StartHere!D205),"",StartHere!D205) ->  | K129: =IF(ISBLANK(StartHere!F205),"",StartHere!F205) ->  | L129: =IF(ISBLANK(StartHere!G205),"",StartHere!G205) ->  | M129: =IF(ISBLANK(StartHere!H205),"",StartHere!H205) ->  | N129: =IF(ISBLANK(StartHere!I205),"",StartHere!I205) ->  | O129: =IF(ISBLANK(StartHere!J205),"",StartHere!J205) ->  | P129: =IF(ISBLANK(StartHere!K205),"",StartHere!K205) -> 
B130: F. RAILROAD IMPACT | E130: =IF(V91,"Yes","No") -> No | I130: =IF(ISBLANK(StartHere!C206),"",StartHere!C206) ->  | J130: =IF(ISBLANK(StartHere!D206),"",StartHere!D206) ->  | K130: =IF(ISBLANK(StartHere!F206),"",StartHere!F206) ->  | L130: =IF(ISBLANK(StartHere!G206),"",StartHere!G206) ->  | M130: =IF(ISBLANK(StartHere!H206),"",StartHere!H206) ->  | N130: =IF(ISBLANK(StartHere!I206),"",StartHere!I206) ->  | O130: =IF(ISBLANK(StartHere!J206),"",StartHere!J206) ->  | P130: =IF(ISBLANK(StartHere!K206),"",StartHere!K206) -> 
I131: =IF(ISBLANK(StartHere!C207),"",StartHere!C207) ->  | J131: =IF(ISBLANK(StartHere!D207),"",StartHere!D207) ->  | K131: =IF(ISBLANK(StartHere!F207),"",StartHere!F207) ->  | L131: =IF(ISBLANK(StartHere!G207),"",StartHere!G207) ->  | M131: =IF(ISBLANK(StartHere!H207),"",StartHere!H207) ->  | N131: =IF(ISBLANK(StartHere!I207),"",StartHere!I207) ->  | O131: =IF(ISBLANK(StartHere!J207),"",StartHere!J207) ->  | P131: =IF(ISBLANK(StartHere!K207),"",StartHere!K207) -> 

Sheet Alternative_Intersections
F19: DDI | Q19: DLT
T32: MUT
F40: RCUT

Sheet Int_Temp
BS1: =MATCH(M4,Opt2Plot,0) -> 5
B2: CHARACTERISTICS TO CONSIDER FOR ANALYSIS
B3: INPUT INSTRUCTIONS | BR3: =MATCH(M5,Opt2Plot,0) -> 2 | BS3: =MATCH(M4,Opt2Plot,0) -> 5 | CE3: ="Unadjusted Marginal Safety in "&M4&" relative to " & M5&" (Vehicle)" -> Unadjusted Marginal Safety in Optimal relative to Standard (Vehicle)
B4: Yellow Boxes -- Type input information into box | D4: Type Input Value | K4: Preferred Schematic View to Display | M4: Optimal | BR4: Relative to | BS4: Selected | CE4: ="Unadjusted Marginal Safety in "&M4&" relative to "&M5&" (Ped&Bike)" -> Unadjusted Marginal Safety in Optimal relative to Standard (Ped&Bike)
B5: Blue Boxes -- Select from pulldown options | D5: Select from Pulldown | K5: Relative to | L5: Relative to | M5: Standard | BM5: Dxisting | BN5: Standard | BO5: D1 | BP5: D2 | BQ5: Opt | BU5: ABS | BV5: Re-Rank | BW5: Rank | BX5: RankedCRF | BZ5: Element | CA5: Rank2 | CB5: Selected | CE5: Elements | CF5: CRF
B6: Brown Boxes -- CMF is not available | D6: Indicating CMF not Available (No Input Needed) | BC6: =getcmf_LTL(R$36,R43) -> 1 | BD6: 0.53 | BE6: 1 | BF6: 0.66 | BG6: 0.66 | BH6: 0.66 | BI6: 0.66 | BL6: =C43 -> Num of Approaches with Exclusive Left-Turn Lanes | BM6: =D231 -> 1 | BN6: 0.66 | BO6: =F231 -> 1 | BP6: 1 | BQ6: =I231 -> 0.66 | BR6: =INDEX(BM6:BQ6,1,$BR$3) -> 0.66 | BS6: =INDEX(BM6:BQ6,1,$BS$3) -> 0.66 | BT6: =1-BS6/BR6 -> 0 | BU6: =ABS(BT6) -> 0 | BV6: =RANK(BW6,$BW$6:$BW$41,1) -> 6 | BW6: =_xlfn.RANK.EQ(BU6,$BU$6:$BU$41)+CA6/100 -> 6.01 | BX6: =BT6 -> 0 | BZ6: =IF(BU6=0,"",BL6) ->  | CA6: 1 | CB6: =INDEX($BZ$6:$BZ$41,MATCH(CA6,$BV$6:$BV$41,0)) -> Offset Left-Turn Lanes | CC6: =IFERROR(INDEX($BX$6:$BX$49,MATCH(CA6,$BV$6:$BV$49,0)),"") -> 0.338 | CE6: =IFERROR(CB6,"") -> Offset Left-Turn Lanes | CF6: =IF(OR(ISERROR(CC6), ISERR(CC6),CC6=0),"",CC6) -> 0.338
B7: Intersection | BC7: =getcmf_OLTL(R$36,IF(R44="Yes",1,0)) -> 1 | BD7: 1 | BE7: 1 | BF7: 0.662 | BG7: 0.662 | BH7: 0.662 | BI7: 0.662 | BL7: Offset Left-Turn Lanes | BM7: 1 | BN7: 1 | BO7: 1 | BP7: 1 | BQ7: 0.662 | BR7: =INDEX(BM7:BQ7,1,$BR$3) -> 1 | BS7: =INDEX(BM7:BQ7,1,$BS$3) -> 0.662 | BT7: 0.338 | BU7: =ABS(BT7) -> 0.338 | BV7: 1 | BW7: 1.02 | BX7: =BT7 -> 0.338 | BZ7: =IF(BU7=0,"",BL7) -> Offset Left-Turn Lanes | CA7: =CA6+1 -> 2 | CB7: Num of Approaches with Exclusive Right-Turn Lanes | CC7: 0.15 | CE7: Num of Approaches with Exclusive Right-Turn Lanes | CF7: =IF(OR(ISERROR(CC7), ISERR(CC7),CC7=0),"",CC7) -> 0.15
B8: General Information: | F8: General Site Features | BC8: =getcmf_RTL(R$36,R45) -> 1 | BD8: 0.74 | BE8: 1 | BF8: 0.85 | BG8: 0.85 | BH8: 0.85 | BI8: 0.85 | BL8: Num of Approaches with Exclusive Right-Turn Lanes | BM8: 1 | BN8: 1 | BO8: 1 | BP8: 1 | BQ8: 0.85 | BR8: =INDEX(BM8:BQ8,1,$BR$3) -> 1 | BS8: =INDEX(BM8:BQ8,1,$BS$3) -> 0.85 | BT8: 0.15 | BU8: 0.15 | BV8: 2 | BW8: 2.03 | BX8: 0.15 | BZ8: Num of Approaches with Exclusive Right-Turn Lanes | CA8: =CA7+1 -> 3 | CB8: Actuated Advance Warning | CC8: 0.082 | CE8: Actuated Advance Warning | CF8: 0.082
C9: Analyst: | D9: =StartHere!H7 -> Your Name | G9: Name | H9: AADT | I9: No. of Through Lanes (both dir.) | J9: Speed Limit (mph) | K9: One-Way Road/Street | L9: Peak-Hour Ped. Flow (crossing the roadway) | M9: Peak-Hour Bike Flow (along the roadway) | BC9: =getcmf_RTC(R$36,R46,R$202) -> 1 | BD9: 1 | BE9: 1 | BF9: 1 | BG9: 1 | BH9: 1 | BI9: 1 | BL9: Num of Approaches on Major St. with Right-Turn Channelization | BM9: 1 | BN9: 1 | BO9: 1 | BP9: 1 | BQ9: 1 | BR9: =INDEX(BM9:BQ9,1,$BR$3) -> 1 | BS9: =INDEX(BM9:BQ9,1,$BS$3) -> 1 | BT9: 0 | BU9: 0 | BV9: 7 | BW9: 6.04 | BX9: 0 | CA9: 4 | CB9: Number of Approaches for which RTOR is Prohibited | CC9: 0.07763184 | CE9: Number of Approaches for which RTOR is Prohibited | CF9: 0.07763184
C10: Agency or Company: | D10: =StartHere!H8 -> Your Agency | F10: Major Road | G10: =StartHere!$H$11 -> Road Name | H10: 8000 | I10: 4 | J10: 45 | BC10: =getcmf_SD(R$36,R47,$H$10,$J$10) -> 1 | BD10: 1 | BE10: 1 | BF10: 1 | BG10: 1 | BH10: 1 | BI10: 1 | BL10: Sight Distance (ft) | BM10: 1 | BN10: 1 | BO10: 1 | BP10: 1 | BQ10: 1 | BR10: =INDEX(BM10:BQ10,1,$BR$3) -> 1 | BS10: =INDEX(BM10:BQ10,1,$BS$3) -> 1 | BT10: 0 | BU10: 0 | BV10: 8 | BW10: 6.05 | BX10: 0 | CA10: 5 | CB10: Left-Turn Signal Phasing | CC10: 0.05050505051 | CE10: Left-Turn Signal Phasing | CF10: 0.05050505051
C11: Date: | D11: =StartHere!H9 -> 2022-02-18 | F11: Minor Road | H11: 1000 | I11: 4 | J11: 45 | BC11: =getcmf_MW(R$36,R48) -> 1 | BD11: 1 | BE11: 1 | BF11: 1 | BG11: 1 | BH11: 1 | BI11: 1 | BL11: RCUT Median Width (ft) | BM11: 1 | BN11: 1 | BO11: 1 | BP11: 1 | BQ11: 1 | BR11: =INDEX(BM11:BQ11,1,$BR$3) -> 1 | BS11: =INDEX(BM11:BQ11,1,$BS$3) -> 1 | BT11: 0 | BU11: 0 | BV11: 9 | BW11: 6.06 | BX11: 0 | CA11: 6 | CC11: 0
C12: Description: | F12: Number of Legs | G12: 4 | BC12: =getcmf_MOMA(R$36,IF(R49="Yes",10)) -> 1 | BD12: 1 | BE12: 1 | BF12: 1 | BG12: 1 | BH12: 1 | BI12: 1 | BL12: Median on Min Approach | BM12: 1 | BN12: 1 | BO12: 1 | BP12: 1 | BQ12: 1 | BR12: =INDEX(BM12:BQ12,1,$BR$3) -> 1 | BS12: =INDEX(BM12:BQ12,1,$BS$3) -> 1 | BT12: 0 | BU12: 0 | BV12: 10 | BW12: 6.07 | BX12: 0 | CA12: 7 | CC12: 0
C13: Input additional site information here | BC13: =GetCMF_RDLTWRT(R$36,IF(R50="Yes",1,0)) -> 1 | BD13: 1 | BE13: 1 | BF13: 1 | BG13: 1 | BH13: 1 | BI13: 1 | BL13: Replace Direct Left-Turn with Right Turn/U-Turn | BM13: 1 | BN13: 1 | BO13: 1 | BP13: 1 | BQ13: 1 | BR13: =INDEX(BM13:BQ13,1,$BR$3) -> 1 | BS13: =INDEX(BM13:BQ13,1,$BS$3) -> 1 | BT13: 0 | BU13: 0 | BV13: 11 | BW13: 6.08 | BX13: 0 | CA13: 8 | CC13: 0
F14: Intersection Control Type | G14: Signalized | H14: =IF(G12="4", "See abbrieviations below","") -> See abbrieviations below | BC14: =GetCMF_NOL(R$36,$H$10,$H$11,$I$10,$I$11,$D$202) -> 1 | BD14: 1 | BE14: 1 | BF14: 1 | BG14: 1 | BH14: 1 | BI14: 1
BC15: 1 | BD15: 1 | BE15: 1 | BF15: 1 | BG15: 1 | BH15: 1 | BI15: 1
F16: -- | G16: No | H16: =IF(F20="Turning Intersection?", "Turning Intersection example shown right","") ->  | I16: For AADT info, visit TxDOT Roadway Inventory Dataset webpage | BC16: =getcmf_OD(R$36,R53) -> 1 | BD16: 1 | BE16: 1 | BF16: 1 | BG16: 1 | BH16: 1 | BI16: 1 | BL16: =C53 -> RCUT Offset Distance (ft) | BM16: =D241 -> 1 | BN16: 1 | BO16: 1 | BP16: 1 | BQ16: =I241 -> 1 | BR16: =INDEX(BM16:BQ16,1,$BR$3) -> 1 | BS16: =INDEX(BM16:BQ16,1,$BS$3) -> 1 | BT16: =1-BS16/BR16 -> 0 | BU16: 0 | BV16: =RANK(BW16,$BW$6:$BW$41,1) -> 12 | BW16: =_xlfn.RANK.EQ(BU16,$BU$6:$BU$41)+CA16/100 -> 6.09 | BX16: 0 | CA16: =CA13+1 -> 9 | CB16: =INDEX($BZ$6:$BZ$41,MATCH(CA16,$BV$6:$BV$41,0)) ->  | CC16: 0 | CE16: =IFERROR(CB16,"") -> 
F17: =IF(AND(F16="Turning Intersection?",G16="Yes"),"AADT on the Turning Leg","") ->  | H17: 300 | I17: https://bit.ly/txdotmap | BC17: =getcmf_NOD(R$36,R54) -> 1 | BD17: 1 | BE17: 1 | BF17: 1 | BG17: 1 | BH17: 1 | BI17: 1 | BL17: =C54 -> RCUT Number of Driveways | BM17: 1 | BN17: 1 | BO17: 1 | BP17: 1 | BQ17: =I242 -> 1 | BR17: =INDEX(BM17:BQ17,1,$BR$3) -> 1 | BS17: =INDEX(BM17:BQ17,1,$BS$3) -> 1 | BT17: =1-BS17/BR17 -> 0 | BU17: 0 | BV17: =RANK(BW17,$BW$6:$BW$41,1) -> 13 | BW17: =_xlfn.RANK.EQ(BU17,$BU$6:$BU$41)+CA17/100 -> 6.1 | BX17: 0 | CA17: 10 | CB17: =INDEX($BZ$6:$BZ$41,MATCH(CA17,$BV$6:$BV$41,0)) ->  | CC17: 0 | CE17: =IFERROR(CB17,"") -> 
F18: =IF(G14="Roundabout","Number of Circulating Lanes","--") -> -- | G18: 2 | H18: =IF(F22="Turning Intersection?", "Turning Intersection example shown right","") ->  | BC18: =getcmf_SL(R$36,$J$10) -> 1 | BD18: 1 | BE18: 1 | BF18: 1 | BG18: 1 | BH18: 1 | BI18: 1
H19: 100 | BC19: =getcmf_ALL(R$36,R56) -> 1 | BD19: 1 | BE19: 1 | BF19: 1 | BG19: 1 | BH19: 1 | BI19: 1 | BL19: =C56 -> RCUT Acceleration Lane Length (ft) | BM19: =D244 -> 1 | BN19: =E244 -> 1 | BO19: =F244 -> 1 | BP19: =G244 -> 1 | BQ19: =I244 -> 1 | BR19: =INDEX(BM19:BQ19,1,$BR$3) -> 1 | BS19: =INDEX(BM19:BQ19,1,$BS$3) -> 1 | BT19: =1-BS19/BR19 -> 0 | BU19: 0 | BV19: =RANK(BW19,$BW$6:$BW$41,1) -> 14 | BW19: =_xlfn.RANK.EQ(BU19,$BU$6:$BU$41)+CA19/100 -> 6.11 | BX19: 0 | CA19: =CA17+1 -> 11 | CB19: =INDEX($BZ$6:$BZ$41,MATCH(CA19,$BV$6:$BV$41,0)) ->  | CC19: 0 | CE19: =IFERROR(CB19,"") -> 
F20: =IF(AND($G$12="4",$G$14="RCUT-Sig"),"Number of U-Turns","--") -> -- | G20: 1 | I20: For crash info, visit TxDOT CRIS | K20: Abbrieviation | L20: Definition | BC20: =getcmf_DLL(R$36,R57) -> 1 | BD20: 1 | BE20: 1 | BF20: 1 | BG20: 1 | BH20: 1 | BI20: 1 | BL20: RCUT Deceleration Lane Length (ft) | BM20: 1 | BN20: 1 | BO20: 1 | BP20: 1 | BQ20: 1 | BR20: =INDEX(BM20:BQ20,1,$BR$3) -> 1 | BS20: =INDEX(BM20:BQ20,1,$BS$3) -> 1 | BT20: 0 | BU20: 0 | BV20: 15 | BW20: 6.12 | BX20: 0 | CA20: =CA19+1 -> 12 | CC20: 0
F21: =IF(G12="5", "AADT on the Fifth Leg","--") -> -- | H21: 1000 | I21: https://bit.ly/txdotcris | K21: DDI | L21: Diverging Diamond Interchange | BC21: =getcmf_NOUT(R$36,R58) -> 1 | BD21: 1 | BE21: 1 | BF21: 1 | BG21: 1 | BH21: 1 | BI21: 1 | BL21: RCUT Number of U-Turns | BM21: 1 | BN21: 1 | BO21: 1 | BP21: 1 | BQ21: 1 | BR21: =INDEX(BM21:BQ21,1,$BR$3) -> 1 | BS21: =INDEX(BM21:BQ21,1,$BS$3) -> 1 | BT21: 0 | BU21: 0 | BV21: 16 | BW21: 6.13 | BX21: 0 | CA21: 13 | CC21: 0
F22: =IF(D132=1,"","Please check intersection inputs; this type of intersection does not exist, or the SPF is not available.") ->  | K22: DLT | L22: Displaced Left-Turn | BC22: =getcmf_ICD(R$36,R59, R$202) -> 1 | BD22: 1 | BE22: 1 | BF22: 1 | BG22: 1 | BH22: 1 | BI22: 1 | BL22: Roundabout (RA) Inscribed Circle Diameter (ft) | BM22: 1 | BN22: 1 | BO22: 1 | BP22: 1 | BQ22: 1 | BR22: =INDEX(BM22:BQ22,1,$BR$3) -> 1 | BS22: =INDEX(BM22:BQ22,1,$BS$3) -> 1 | BT22: 0 | BU22: 0 | BV22: 17 | BW22: 6.14 | BX22: 0 | CA22: 14 | CC22: 0
F23: Annual Vehicle Crash Rate | H23: All crashes within 250 ft of the intersection should be included. 4 year average preferred. | K23: MUT | L23: Median U-Turn | BC23: =getcmf_OOL(R$36,R60, R$202) -> 1 | BD23: 1 | BE23: 1 | BF23: 1 | BG23: 1 | BH23: 1 | BI23: 1 | BL23: RA Number of Outbound-only Leg(s) | BM23: 1 | BN23: 1 | BO23: 1 | BP23: 1 | BQ23: 1 | BR23: =INDEX(BM23:BQ23,1,$BR$3) -> 1 | BS23: =INDEX(BM23:BQ23,1,$BS$3) -> 1 | BT23: 0 | BU23: 0 | BV23: 18 | BW23: 6.15 | BX23: 0 | CA23: 15 | CC23: 0
F24: Annual Ped. Crash Rate | K24: RCUT | L24: Restricted Crossing U-Turn | BC24: =getcmf_RTBL(R$36,R61, R$202) -> 1 | BD24: 1 | BE24: 0.6920366019 | BF24: 1 | BG24: 1 | BH24: 1 | BI24: 1 | BL24: RA Number of Legs with Right-Turn Bypass Lane | BM24: 1 | BN24: 1 | BO24: 1 | BP24: 1 | BQ24: 1 | BR24: =INDEX(BM24:BQ24,1,$BR$3) -> 1 | BS24: =INDEX(BM24:BQ24,1,$BS$3) -> 1 | BT24: 0 | BU24: 0 | BV24: 19 | BW24: 6.16 | BX24: 0 | CA24: 16 | CC24: 0
F25: Annual Bicyclist Crash Rate | K25: Sig | L25: Signalized | BC25: =getcmf_APF(R$36,R62, R$202) -> 1 | BD25: 1 | BE25: 1 | BF25: 1 | BG25: 1 | BH25: 1 | BI25: 1 | BL25: RA Total Number of Driveways/Access Points of the Roundabout (within 250 ft of yield line) | BM25: 1 | BN25: 1 | BO25: 1 | BP25: 1 | BQ25: 1 | BR25: =INDEX(BM25:BQ25,1,$BR$3) -> 1 | BS25: =INDEX(BM25:BQ25,1,$BS$3) -> 1 | BT25: 0 | BU25: 0 | BV25: 20 | BW25: 6.17 | BX25: 0 | CA25: 17 | CC25: 0
F26: Observed Annual Crash Rate | G26: =SUM(G23:G25) -> 0 | K26: Unsig | L26: Unsignalized | BC26: =getcmf_EW(R$36,R63, 1,R$202) -> 1 | BD26: 1 | BE26: 1 | BF26: 1 | BG26: 1 | BH26: 1 | BI26: 1 | BL26: RA Entry Width (ft) | BM26: 1 | BN26: 1 | BO26: 1 | BP26: 1 | BQ26: 1 | BR26: =INDEX(BM26:BQ26,1,$BR$3) -> 1 | BS26: =INDEX(BM26:BQ26,1,$BS$3) -> 1 | BT26: 0 | BU26: 0 | BV26: 21 | BW26: 6.18 | BX26: 0 | CA26: 18 | CC26: 0
B27: Warning: | BC27: =getcmf_EL(R$36,R64,R65, R$202) -> 1 | BD27: 1 | BE27: 1 | BF27: 1 | BG27: 1 | BH27: 1 | BI27: 1 | BL27: RA Number of Circulating Lane Conflicting with the Leg | BM27: 1 | BN27: 1 | BO27: 1 | BP27: 1 | BQ27: 1 | BR27: =INDEX(BM27:BQ27,1,$BR$3) -> 1 | BS27: =INDEX(BM27:BQ27,1,$BS$3) -> 1 | BT27: 0 | BU27: 0 | BV27: 22 | BW27: 6.19 | BX27: 0 | CA27: 19 | CC27: 0
C30: =IF(AND($G$12="3",$G$14="Minor STOP",$G$16="Yes"),$G$16,IF($G$14="Roundabout",$G$18,IF(AND($G$12="4",$G$14="RCUT-Sig"),$G$20,"--"))) -> -- | D30: =IF(AND($G$12="3",$G$14="Minor STOP",$G$16="Yes"),$H$17,IF($G$12="5",$H$21,"--")) -> -- | E30: =DetStdInt(G14,G12,J10,G26,D36,H10,H11,I10,I11) -> 2 | I30: =X40 -> 0 | K30: =V40+W40+X40 -> 0 | P30: isTurning? | Q30: =IF(D36="3250ST1",1,0) -> 0 | W30: =GetIntCode($G$12,$K$10,$I$10,$J$10,X38,1) -> 4250SGX | BC30: =getcmf_LT(R$36,IF(R67="Yes",1,0), R$202) -> 0.8947400685 | BD30: 0.9129800566 | BE30: 1 | BF30: 0.9107000581 | BG30: 0.9107000581 | BH30: 0.9107000581 | BI30: 0.9107000581 | BL30: =C67 -> Lighting | BM30: =D255 -> 1 | BN30: 0.9107000581 | BO30: 1 | BP30: 1 | BQ30: =I255 -> 0.9107000581 | BR30: =INDEX(BM30:BQ30,1,$BR$3) -> 0.9107000581 | BS30: =INDEX(BM30:BQ30,1,$BS$3) -> 0.9107000581 | BT30: =1-BS30/BR30 -> 0 | BU30: 0 | BV30: =RANK(BW30,$BW$6:$BW$41,1) -> 23 | BW30: =_xlfn.RANK.EQ(BU30,$BU$6:$BU$41)+CA30/100 -> 6.2 | BX30: 0 | CA30: =CA27+1 -> 20 | CB30: =INDEX($BZ$6:$BZ$41,MATCH(CA30,$BV$6:$BV$41,0)) ->  | CC30: 0 | CE30: =IFERROR(CB30,"") -> 
C31: Score | D31: =D105 -> 58 | E31: =E105 -> 70 | F31: 58 | G31: 58 | I31: 100 | R31: 1 | S31: 2 | T31: 3 | U31: 4 | V31: 5 | W31: 6 | X31: 7 | BC31: =getcmf_LTSP(R$36,R68) -> 1 | BD31: 1 | BE31: 1 | BF31: 0.94 | BG31: 0.94 | BH31: 0.94 | BI31: 0.94 | BL31: =C68 -> Left-Turn Signal Phasing | BM31: 1 | BN31: 0.99 | BO31: 1 | BP31: 1 | BQ31: =I256 -> 0.94 | BR31: =INDEX(BM31:BQ31,1,$BR$3) -> 0.99 | BS31: =INDEX(BM31:BQ31,1,$BS$3) -> 0.94 | BT31: =1-BS31/BR31 -> 0.05050505051 | BU31: 0.05050505051 | BV31: =RANK(BW31,$BW$6:$BW$41,1) -> 5 | BW31: =_xlfn.RANK.EQ(BU31,$BU$6:$BU$41)+CA31/100 -> 5.21 | BX31: 0.05050505051 | BZ31: Left-Turn Signal Phasing | CA31: 21 | CB31: =INDEX($BZ$6:$BZ$41,MATCH(CA31,$BV$6:$BV$41,0)) ->  | CC31: 0
C32: Total Crashes | D32: =D33 -> 1.34710715 | E32: =E33 -> 0.6813583166 | F32: =F33 -> 1.34710715 | G32: =G33 -> 1.34710715 | I32: =I33 -> 0.3082422168
C33: Predicted Annual Crash (Total) | D33: =D34+D35 -> 1.34710715 | E33: =E34+E35 -> 0.6813583166 | F33: =F34+F35 -> 1.34710715 | G33: =G34+G35 -> 1.34710715 | I33: =I34+I35 -> 0.3082422168 | Q33: For Optimal | R33: =R201*R310 -> 0.9217410284 | S33: =S201*S310 -> 0.5129202124 | T33: =T201*T310 -> 0.8958964557 | U33: =U201*U310 -> 0.3082422168 | V33: =IF(V40=1,V201*V310,999) -> 999 | W33: =IF(W40=1,W201*W310,999) -> 999 | X33: =IF(X40=1,X201*X310,999) -> 999 | AC33: Best Conv | AD33: min | BC33: =getcmf_ITCI(R$36,IF(R69="Yes",1,0)) -> 1 | BD33: 1 | BE33: 1 | BF33: 1 | BG33: 1 | BH33: 1 | BI33: 1 | BL33: =C69 -> 0 | BM33: =D257 -> 1 | BN33: 1 | BO33: =F257 -> 1 | BP33: =G257 -> 1 | BQ33: =I257 -> 1 | BR33: =INDEX(BM33:BQ33,1,$BR$3) -> 1 | BS33: =INDEX(BM33:BQ33,1,$BS$3) -> 1 | BT33: =1-BS33/BR33 -> 0 | BU33: 0 | BV33: =RANK(BW33,$BW$6:$BW$41,1) -> 24 | BW33: =_xlfn.RANK.EQ(BU33,$BU$6:$BU$41)+CA33/100 -> 6.22 | BX33: 0 | CA33: =CA31+1 -> 22 | CB33: =INDEX($BZ$6:$BZ$41,MATCH(CA33,$BV$6:$BV$41,0)) ->  | CC33: 0
C34: Predicted Annual Vehicular Crash (Total) | D34: =D201*D310 -> 1.34710715 | E34: =E201*E310 -> 0.6813583166 | F34: =F201*F310 -> 1.34710715 | G34: =G201*G310 -> 1.34710715 | I34: =I201*I310 -> 0.3082422168 | AD34: =MIN(R33:U33) -> 0.3082422168 | BC34: =getcmf_PRTOR(R$36,R70) -> 1 | BD34: 1 | BE34: 1 | BF34: 0.92236816 | BG34: 0.92236816 | BH34: 0.92236816 | BI34: 0.92236816 | BL34: Number of Approaches for which RTOR is Prohibited | BM34: 1 | BN34: 1 | BO34: 1 | BP34: 1 | BQ34: 0.92236816 | BR34: =INDEX(BM34:BQ34,1,$BR$3) -> 1 | BS34: =INDEX(BM34:BQ34,1,$BS$3) -> 0.92236816 | BT34: 0.07763184 | BU34: 0.07763184 | BV34: 4 | BW34: 4.23 | BX34: 0.07763184 | BZ34: Number of Approaches for which RTOR is Prohibited | CA34: 23 | CC34: 0
C35: Predicted Annual Pedestrian + Bicycle Crash (Total) | D35: =D224 -> 0 | E35: =E224 -> 0 | F35: =F224 -> 0 | G35: =G224 -> 0 | I35: =I224 -> 0 | BC35: =getcmf_RSTB(R$36,IF(R71="Yes",1,0)) -> 1 | BD35: 1 | BE35: 1 | BF35: 0.85 | BG35: 0.85 | BH35: 0.85 | BI35: 0.85 | BL35: Retroreflective Sheeting to Backplates | BM35: 1 | BN35: 0.85 | BO35: 1 | BP35: 1 | BQ35: 0.85 | BR35: =INDEX(BM35:BQ35,1,$BR$3) -> 0.85 | BS35: =INDEX(BM35:BQ35,1,$BS$3) -> 0.85 | BT35: 0 | BU35: 0 | BV35: 25 | BW35: 6.24 | BX35: 0 | CA35: 24 | CC35: 0
D36: =GetIntCode(G12,K10,I10,J10,G14,C30) -> 4250SGX | E36: =GetIntCode(G12,K10,I10,J10,E38,E40) -> 4250SGX | F36: =IF(Q30=1,D36,GetIntCode(G12,K10,I10,J10,F38,F40)) -> 4250SGX | G36: =IF(Q30=1,D36,GetIntCode(G12,K10,I10,J10,G38,G40)) -> 4250SGX | I36: =AB36 -> 4250SGX | R36: =GetIntCode($G$12,$K$10,$I$10,$J$10,R38,1) -> 425XASX | S36: =GetIntCode($G$12,$K$10,$I$10,$J$10,S38,1) -> 4250STX | T36: =GetIntCode($G$12,$K$10,$I$10,$J$10,T38,1) -> 4XXXRA1 | U36: =GetIntCode($G$12,$K$10,$I$10,$J$10,U38,1) -> 4250SGX | V36: =GetIntCode($G$12,$K$10,$I$10,$J$10,V38,1) -> 4250SGX | W36: 4250SGX | X36: 4250SGX | AB36: =INDEX(R36:X36,1,$AD$47) -> 4250SGX | BC36: =getcmf_AAW(R$36,IF(R72="Yes",1,0)) -> 1 | BD36: 1 | BE36: 1 | BF36: 0.918 | BG36: 0.918 | BH36: 0.918 | BI36: 0.918 | BL36: Actuated Advance Warning | BM36: 1 | BN36: 1 | BO36: 1 | BP36: 1 | BQ36: 0.918 | BR36: =INDEX(BM36:BQ36,1,$BR$3) -> 1 | BS36: =INDEX(BM36:BQ36,1,$BS$3) -> 0.918 | BT36: 0.082 | BU36: 0.082 | BV36: 3 | BW36: 3.25 | BX36: 0.082 | BZ36: Actuated Advance Warning | CA36: 25 | CC36: 0
D37: Existing | E37: Standard | F37: Design 1 | G37: Design 2 | I37: =IF(Y40=0, "Optimal (Conventional)", "Optimal (Considering Alternatives)") -> Optimal (Conventional) | R37: BAWaySTOP | S37: B2WaySTOP | T37: BRound | U37: BestSig | V37: Design1 | W37: Design2 | X37: BestExisting | Y37: meetWarrant | BC37: =getcmf_PMOMA(R$36,IF(R73="Yes",1,0)) -> 1 | BD37: 1 | BE37: 1 | BF37: 1 | BG37: 1 | BH37: 1 | BI37: 1 | BL37: Painted Median on Minor Approach | BM37: 1 | BN37: 1 | BO37: 1 | BP37: 1 | BQ37: 1 | BR37: =INDEX(BM37:BQ37,1,$BR$3) -> 1 | BS37: =INDEX(BM37:BQ37,1,$BS$3) -> 1 | BT37: 0 | BU37: 0 | BV37: 26 | BW37: 6.26 | BX37: 0 | CA37: 26 | CC37: 0
D38: =G14 -> Signalized | E38: =IF(E30=1,"Signalized",D38) -> Signalized | F38: Signalized | G38: Signalized | H38: Roundabout | I38: =AB38 -> Signalized | R38: All-Way STOP | S38: Minor STOP | T38: Roundabout | U38: Signalized | V38: =F38 -> Signalized | W38: =G38 -> Signalized | X38: =G14 -> Signalized | Y38: =IF(E30=1,1,0) -> 0 | AB38: =INDEX(R38:X38,1,$AD$47) -> Signalized | BC38: =getcmf_PLT(R$36,IF(R74="Yes",1,0)) -> 1 | BD38: 1 | BE38: 1 | BF38: 1 | BG38: 1 | BH38: 1 | BI38: 1 | BL38: Prohibit Left-Turns | BM38: 1 | BN38: 1 | BO38: 1 | BP38: 1 | BQ38: 1 | BR38: =INDEX(BM38:BQ38,1,$BR$3) -> 1 | BS38: =INDEX(BM38:BQ38,1,$BS$3) -> 1 | BT38: 0 | BU38: 0 | BV38: 27 | BW38: 6.27 | BX38: 0 | CA38: 27 | CC38: 0
E39: =IF(E38="Roundabout","Number of Circulating Lanes",IF(E38="RCUT-Sig","Number of U-Turns", IF($D$36="3250ST1", "Turning Intersection", "--") )) -> -- | F39: =IF(F38="Roundabout","Number of Circulating Lanes",IF(F38="RCUT-Sig","Number of U-Turns","--")) -> -- | G39: =IF(G38="Roundabout","Number of Circulating Lanes",IF(G38="RCUT-Sig","Number of U-Turns","--")) -> -- | H39: =IF(H38="Roundabout","Number of Circulating Lanes",IF(H38="RCUT-Sig","Number of U-Turns","--")) -> Number of Circulating Lanes | I39: =IF(I38="Roundabout","Number of Circulating Lanes",IF(I38="RCUT-Sig","Number of U-Turns","--")) -> -- | V39: Alt1 | W39: Alt2 | X39: AltExisting | Y39: AnyAlt? | AD39: Best_Sig_RA | BC39: =getcmf_PUT(R$36,R75, R$202) -> 1 | BD39: 1 | BE39: 1 | BF39: 1 | BG39: 1 | BH39: 1 | BI39: 1 | BL39: Number of Approaches with U-Turn Prohibition | BM39: 1 | BN39: 1 | BO39: 1 | BP39: 1 | BQ39: 1 | BR39: =INDEX(BM39:BQ39,1,$BR$3) -> 1 | BS39: =INDEX(BM39:BQ39,1,$BS$3) -> 1 | BT39: 0 | BU39: 0 | BV39: 28 | BW39: 6.28 | BX39: 0 | CA39: 28 | CC39: 0
E40: 1 | F40: 2 | G40: 1 | H40: 1 | I40: 1 | V40: =IF(ISNUMBER(MATCH(F38,AltSig,0)),1,0) -> 0 | W40: =IF(ISNUMBER(MATCH(G38,AltSig,0)),1,0) -> 0 | X40: =IF(ISNUMBER(MATCH(G14,AltSig,0)),1,0) -> 0 | Y40: =IF(SUM(V40:X40)>0,1,0) -> 0 | AD40: =MATCH(MIN(T33:U33),T33:U33,0)+2 -> 4 | BL40: Prohibit Left-Turns/U-Turns | BM40: =D264 -> 1 | BN40: =E264 -> 1 | BO40: =F264 -> 1 | BP40: =G264 -> 1 | BQ40: =I264 -> 1 | BR40: =INDEX(BM40:BQ40,1,$BR$3) -> 1 | BS40: =INDEX(BM40:BQ40,1,$BS$3) -> 1 | BT40: =1-BS40/BR40 -> 0 | BU40: =ABS(BT40) -> 0 | BV40: =RANK(BW40,$BW$6:$BW$41,1) -> 29 | BW40: =_xlfn.RANK.EQ(BU40,$BU$6:$BU$41)+CA40/100 -> 6.29 | BX40: =BT40 -> 0 | BZ40: =IF(BU40=0,"",BL40) ->  | CA40: 29 | CB40: =INDEX($BZ$6:$BZ$41,MATCH(CA40,$BV$6:$BV$41,0)) ->  | CC40: 0
E41: =IF(E132=1,"","Please check intersection inputs; this type of intersection does not exist, or the SPF is not available.") ->  | F41: =IF(F132=1,"","Please check intersection inputs; this type of intersection does not exist, or the SPF is not available.") ->  | G41: =IF(G132=1,"","Please check intersection inputs; this type of intersection does not exist, or the SPF is not available.") ->  | I41: =IF(I132=1,"","Please check intersection inputs; this type of intersection does not exist, or the SPF is not available.") ->  | AD41: Best Conv | BC41: =getcmf_RIRO(R$36,IF(R77="Yes",1,0)) -> 1 | BD41: 1 | BE41: 1 | BF41: 1 | BG41: 1 | BH41: 1 | BI41: 1 | BL41: Right-In Right-Out | BM41: =D265 -> 1 | BN41: =E265 -> 1 | BO41: 1 | BP41: 1 | BQ41: 1 | BR41: =INDEX(BM41:BQ41,1,$BR$3) -> 1 | BS41: =INDEX(BM41:BQ41,1,$BS$3) -> 1 | BT41: =1-BS41/BR41 -> 0 | BU41: 0 | BV41: =RANK(BW41,$BW$6:$BW$41,1) -> 29 | BW41: =_xlfn.RANK.EQ(BU41,$BU$6:$BU$41)+CA41/100 -> 6.29 | BX41: 0 | CA41: =CA39+1 -> 29 | CB41: =INDEX($BZ$6:$BZ$41,MATCH(CA41,$BV$6:$BV$41,0)) ->  | CC41: 0
B42: No | C42: Geometric Design Elements | D42: Existing | E42: Standard | F42: Design 1 | G42: Design 2 | I42: =$I$37 -> Optimal (Conventional) | AD42: =IF(AND(G14="All-Way STOP",OR(G12="3",G12="4"),Y38=0),1, IF(AND(G14="Minor STOP",OR(G12="3",G12="4"),Y38=0),2, IF(AND(OR(G14="All-Way STOP",G14="Minor STOP"),OR(G12="3",G12="4"),Y38=1),AD40, IF(AND(G14="Signalized",OR(G12="3",G12="4")),AD40, IF(AND(G14="Roundabout",OR(G12="3",G12="4")),3, IF(AND(G14="Signalized",OR(G12="5")),4, 0)))))) -> 4
B43: 1 | C43: =CMF_Tab2!D3 -> Num of Approaches with Exclusive Left-Turn Lanes | E43: =INDEX(CMF_0_Std,MATCH(E$36,Int_Code,0),MATCH($C231,CMF_0_Abb,0)) -> 4 | H43: 0 | I43: =AB43 -> 4 | R43: =INDEX(CMF_0_Optimal,MATCH(R$36,Int_Code,0),MATCH($C231,CMF_0_Abb,0)) -> 0 | S43: 2 | T43: -1 | U43: 4 | V43: 4 | W43: 4 | X43: 4 | AB43: =INDEX(R43:X43,1,$AD$47) -> 4 | AD43: Best Alt
B44: 2 | C44: =CMF_Tab2!E3 -> Offset Left-Turn Lanes | E44: No | H44: No | I44: =AB44 -> Yes | R44: 0 | S44: 0 | T44: -1 | U44: Yes | V44: Yes | W44: Yes | X44: Yes | AB44: Yes | AD44: =MATCH(MIN(V33:X33),V33:X33,0)+4 -> 5 | BL44: ="Maj. " & C80 -> Maj. Median type | BM44: =D268 -> 1 | BN44: 2.76 | BO44: =F268 -> 1 | BP44: 1 | BQ44: =I268 -> 1 | BR44: =INDEX(BM44:BQ44,1,$BR$3) -> 2.76 | BS44: =INDEX(BM44:BQ44,1,$BS$3) -> 1 | BT44: =1-BS44/BR44 -> 0.6376811594 | BU44: 0.6376811594 | BV44: =RANK(BW44,$BW$44:$BW$67,1) -> 1 | BW44: =_xlfn.RANK.EQ(BU44,$BU$44:$BU$67)+CA44/100 -> 1.01 | BX44: 0.6376811594 | BZ44: Maj. Median type | CA44: 1 | CB44: =INDEX($BZ$44:$BZ$67,MATCH(CA44,$BV$44:$BV$67,0)) -> Maj. Median type | CC44: =IFERROR(INDEX($BX$44:$BX$67,MATCH(CA44,$BV$44:$BV$67,0)),"") -> 0.6376811594 | CE44: =IFERROR(CB44,"") -> Maj. Median type | CF44: 0.6376811594
B45: 3 | C45: =CMF_Tab2!F3 -> Num of Approaches with Exclusive Right-Turn Lanes | E45: 0 | H45: 1 | I45: 4 | R45: 0 | S45: 2 | T45: -1 | U45: 4 | V45: 4 | W45: 4 | X45: 4 | AB45: 4 | BL45: Maj. School zone warning | BM45: 1 | BN45: 1 | BO45: 1 | BP45: 1 | BQ45: 1 | BR45: =INDEX(BM45:BQ45,1,$BR$3) -> 1 | BS45: =INDEX(BM45:BQ45,1,$BS$3) -> 1 | BT45: 0 | BU45: 0 | BV45: =RANK(BW45,$BW$44:$BW$67,1) -> 12 | BW45: =_xlfn.RANK.EQ(BU45,$BU$44:$BU$67)+CA45/100 -> 12.02 | BX45: 0 | CA45: =CA44+1 -> 2 | CB45: =INDEX($BZ$44:$BZ$67,MATCH(CA45,$BV$44:$BV$67,0)) -> Min. Median type | CC45: 0.6376811594 | CE45: Min. Median type | CF45: 0.6376811594
B46: 4 | C46: =CMF_Tab2!G3 -> Num of Approaches on Major St. with Right-Turn Channelization | E46: 0 | H46: 0 | I46: 0 | R46: 0 | S46: 0 | T46: -1 | U46: 0 | V46: 0 | W46: 0 | X46: 0 | AB46: 0 | AD46: Best Conv | BL46: Maj. Location of pedestrian crossing | BM46: 1 | BN46: 1 | BO46: 1 | BP46: 1 | BQ46: 1 | BR46: =INDEX(BM46:BQ46,1,$BR$3) -> 1 | BS46: =INDEX(BM46:BQ46,1,$BS$3) -> 1 | BT46: 0 | BU46: 0 | BV46: 13 | BW46: 12.03 | BX46: 0 | CA46: 3 | CB46: Maj. Bicycle path presence and pedestrian crossing facility type | CC46: 0.43 | CE46: Maj. Bicycle path presence and pedestrian crossing facility type | CF46: 0.43
B47: 5 | C47: =CMF_Tab2!H3 -> Sight Distance (ft) | E47: -1 | H47: 1234 | I47: -1 | R47: 0 | S47: 1320 | T47: -1 | U47: -1 | V47: -1 | W47: -1 | X47: -1 | AB47: -1 | AD47: =IF(Y40=0,AD42,AD44) -> 4 | BL47: Maj. Pedestrian crossing facility type | BM47: 1 | BN47: 1.25 | BO47: 1 | BP47: 1 | BQ47: 1 | BR47: =INDEX(BM47:BQ47,1,$BR$3) -> 1.25 | BS47: =INDEX(BM47:BQ47,1,$BS$3) -> 1 | BT47: 0.2 | BU47: 0.2 | BV47: 6 | BW47: 6.04 | BX47: 0.2 | BZ47: Maj. Pedestrian crossing facility type | CA47: 4 | CB47: Min. Bicycle path presence and pedestrian crossing facility type | CC47: 0.43 | CE47: Min. Bicycle path presence and pedestrian crossing facility type | CF47: 0.43
B48: 6 | C48: =CMF_Tab2!I3 -> RCUT Median Width (ft) | E48: -1 | I48: -1 | R48: -1 | S48: -1 | T48: -1 | U48: -1 | V48: -1 | W48: -1 | X48: -1 | AB48: -1 | BL48: Maj. Vehicle parking | BM48: 1 | BN48: 1 | BO48: 1 | BP48: 1 | BQ48: 1 | BR48: =INDEX(BM48:BQ48,1,$BR$3) -> 1 | BS48: =INDEX(BM48:BQ48,1,$BS$3) -> 1 | BT48: 0 | BU48: 0 | BV48: 14 | BW48: 12.05 | BX48: 0 | CA48: 5 | CB48: Min. Number of auxiliary lanes | CC48: 0.3 | CE48: Min. Number of auxiliary lanes | CF48: 0.3
B49: 7 | C49: =CMF_Tab2!J3 -> Median on Min Approach | E49: 0 | H49: No | I49: 0 | R49: 0 | S49: 0 | T49: 0 | U49: 0 | V49: 0 | W49: 0 | X49: 0 | AB49: 0 | BL49: Maj. Number of auxiliary lanes | BM49: 2.8 | BN49: 4 | BO49: 2.8 | BP49: 2.8 | BQ49: 4 | BR49: =INDEX(BM49:BQ49,1,$BR$3) -> 4 | BS49: =INDEX(BM49:BQ49,1,$BS$3) -> 4 | BT49: 0 | BU49: 0 | BV49: 15 | BW49: 12.06 | BX49: 0 | CA49: 6 | CB49: Maj. Pedestrian crossing facility type | CC49: 0.2 | CE49: Maj. Pedestrian crossing facility type | CF49: 0.2
B50: 8 | C50: =CMF_Tab2!K3 -> Replace Direct Left-Turn with Right Turn/U-Turn | E50: 0 | H50: No | I50: 0 | R50: 0 | S50: 0 | T50: 0 | U50: 0 | V50: 0 | W50: 0 | X50: 0 | AB50: 0
AB51: 0 | BL51: ="Min. " & C87 -> Min. Median type | BM51: =D275 -> 1 | BN51: 2.76 | BO51: =F275 -> 1 | BP51: 1 | BQ51: =I275 -> 1 | BR51: =INDEX(BM51:BQ51,1,$BR$3) -> 2.76 | BS51: =INDEX(BM51:BQ51,1,$BS$3) -> 1 | BT51: =1-BS51/BR51 -> 0.6376811594 | BU51: =ABS(BT51) -> 0.6376811594 | BV51: 2 | BW51: 1.07 | BX51: =BT51 -> 0.6376811594 | BZ51: =IF(BU51=0,"",BL51) -> Min. Median type | CA51: =CA49+1 -> 7 | CB51: Min. Pedestrian crossing facility type | CC51: =IFERROR(INDEX($BX$44:$BX$67,MATCH(CA51,$BV$44:$BV$67,0)),"") -> 0.2 | CE51: Min. Pedestrian crossing facility type | CF51: 0.2
AB52: 0 | BL52: Min. School zone warning | BM52: 1 | BN52: 1 | BO52: 1 | BP52: 1 | BQ52: 1 | BR52: =INDEX(BM52:BQ52,1,$BR$3) -> 1 | BS52: =INDEX(BM52:BQ52,1,$BS$3) -> 1 | BT52: 0 | BU52: 0 | BV52: 16 | BW52: 12.08 | BX52: 0 | CA52: =CA51+1 -> 8 | CB52: Maj. Bicycle facilities and paved shoulder provision (exiting) | CC52: 0.1666666667 | CE52: Maj. Bicycle facilities and paved shoulder provision (exiting) | CF52: 0.1666666667
B53: 9 | C53: =CMF_Tab2!N3 -> RCUT Offset Distance (ft) | E53: -1 | I53: =AB53 -> -1 | R53: =INDEX(CMF_0_Optimal,MATCH(R$36,Int_Code,0),MATCH($C241,CMF_0_Abb,0)) -> -1 | S53: -1 | T53: -1 | U53: -1 | V53: -1 | W53: -1 | X53: -1 | AB53: -1 | BL53: Min. Location of pedestrian crossing | BM53: 1 | BN53: 1 | BO53: 1 | BP53: 1 | BQ53: 1 | BR53: =INDEX(BM53:BQ53,1,$BR$3) -> 1 | BS53: =INDEX(BM53:BQ53,1,$BS$3) -> 1 | BT53: 0 | BU53: 0 | BV53: 17 | BW53: 12.09 | BX53: 0 | CA53: 9 | CB53: Maj. Intersection channelization | CC53: 0.1666666667 | CE53: Maj. Intersection channelization | CF53: 0.1666666667
B54: 10 | C54: =CMF_Tab2!O3 -> RCUT Number of Driveways | E54: -1 | I54: =AB54 -> -1 | R54: -1 | S54: -1 | T54: -1 | U54: -1 | V54: -1 | W54: -1 | X54: -1 | AB54: -1 | BL54: Min. Pedestrian crossing facility type | BM54: 1 | BN54: 1.25 | BO54: 1 | BP54: 1 | BQ54: 1 | BR54: =INDEX(BM54:BQ54,1,$BR$3) -> 1.25 | BS54: =INDEX(BM54:BQ54,1,$BS$3) -> 1 | BT54: 0.2 | BU54: 0.2 | BV54: 7 | BW54: 6.1 | BX54: 0.2 | BZ54: Min. Pedestrian crossing facility type | CA54: 10 | CB54: Min. Bicycle facilities and paved shoulder provision (exiting) | CC54: 0.1666666667 | CE54: Min. Bicycle facilities and paved shoulder provision (exiting) | CF54: 0.1666666667
R55: -1 | S55: -1 | T55: -1 | U55: -1 | V55: -1 | W55: -1 | X55: -1 | AB55: -1 | BL55: Min. Vehicle parking | BM55: 1 | BN55: 1 | BO55: 1 | BP55: 1 | BQ55: 1 | BR55: =INDEX(BM55:BQ55,1,$BR$3) -> 1 | BS55: =INDEX(BM55:BQ55,1,$BS$3) -> 1 | BT55: 0 | BU55: 0 | BV55: 18 | BW55: 12.11 | BX55: 0 | CA55: 11 | CB55: Min. Intersection channelization | CC55: 0.1666666667 | CE55: Min. Intersection channelization | CF55: 0.1666666667
B56: 11 | C56: =CMF_Tab2!Q3 -> RCUT Acceleration Lane Length (ft) | E56: =INDEX(CMF_0_Std,MATCH(E$36,Int_Code,0),MATCH($C244,CMF_0_Abb,0)) -> -1 | I56: =AB56 -> -1 | R56: -1 | S56: -1 | T56: -1 | U56: -1 | V56: -1 | W56: -1 | X56: -1 | AB56: -1 | BL56: Min. Number of auxiliary lanes | BM56: 2.8 | BN56: 4 | BO56: 2.8 | BP56: 2.8 | BQ56: 2.8 | BR56: =INDEX(BM56:BQ56,1,$BR$3) -> 4 | BS56: =INDEX(BM56:BQ56,1,$BS$3) -> 2.8 | BT56: 0.3 | BU56: 0.3 | BV56: 5 | BW56: 5.12 | BX56: 0.3 | BZ56: Min. Number of auxiliary lanes | CA56: 12 | CC56: 0
B57: 12 | C57: =CMF_Tab2!R3 -> RCUT Deceleration Lane Length (ft) | E57: -1 | I57: -1 | R57: -1 | S57: -1 | T57: -1 | U57: -1 | V57: -1 | W57: -1 | X57: -1 | AB57: -1
B58: 13 | C58: =CMF_Tab2!S3 -> RCUT Number of U-Turns | E58: -1 | H58: 2 | I58: -1 | R58: -1 | S58: -1 | T58: -1 | U58: -1 | V58: -1 | W58: -1 | X58: -1 | AB58: -1
B59: 14 | C59: =CMF_Tab2!T3 -> Roundabout (RA) Inscribed Circle Diameter (ft) | E59: -1 | I59: -1 | R59: -1 | S59: -1 | T59: -1 | U59: -1 | V59: -1 | W59: -1 | X59: -1 | AB59: -1 | BL59: ="Maj. " & C95 -> Maj. Bicycle facilities and paved shoulder provision (entering) | BM59: =D283 -> 1 | BN59: 1 | BO59: =F283 -> 1 | BP59: 1 | BQ59: =I283 -> 1 | BR59: =INDEX(BM59:BQ59,1,$BR$3) -> 1 | BS59: =INDEX(BM59:BQ59,1,$BS$3) -> 1 | BT59: =1-BS59/BR59 -> 0 | BU59: 0 | BV59: 19 | BW59: 12.13 | BX59: 0 | CA59: =CA56+1 -> 13 | CC59: =IFERROR(INDEX($BX$44:$BX$67,MATCH(CA59,$BV$44:$BV$67,0)),"") -> 0
B60: 15 | C60: =CMF_Tab2!U3 -> RA Number of Outbound-only Leg(s) | E60: -1 | F60: 0 | I60: =IF(K10="Yes",2,IF(K11="Yes",1,AB60)) -> -1 | R60: -1 | S60: -1 | T60: 0 | U60: -1 | V60: -1 | W60: -1 | X60: -1 | AB60: -1 | BL60: ="Maj. " & C96 -> Maj. Bicycle facilities and paved shoulder provision (exiting) | BM60: 1 | BN60: 1.2 | BO60: 1 | BP60: 1 | BQ60: =I284 -> 1 | BR60: =INDEX(BM60:BQ60,1,$BR$3) -> 1.2 | BS60: =INDEX(BM60:BQ60,1,$BS$3) -> 1 | BT60: =1-BS60/BR60 -> 0.1666666667 | BU60: 0.1666666667 | BV60: 8 | BW60: 8.14 | BX60: 0.1666666667 | BZ60: Maj. Bicycle facilities and paved shoulder provision (exiting) | CA60: =CA59+1 -> 14 | CC60: =IFERROR(INDEX($BX$44:$BX$67,MATCH(CA60,$BV$44:$BV$67,0)),"") -> 0
B61: 16 | C61: =CMF_Tab2!V3 -> RA Number of Legs with Right-Turn Bypass Lane | E61: -1 | I61: -1 | R61: -1 | S61: -1 | T61: 4 | U61: -1 | V61: -1 | W61: -1 | X61: -1 | AB61: -1 | BL61: ="Maj. " & C97 -> Maj. Bicycle path presence and pedestrian crossing facility type | BM61: 1 | BN61: 1 | BO61: 1 | BP61: 1 | BQ61: =I285 -> 0.57 | BR61: =INDEX(BM61:BQ61,1,$BR$3) -> 1 | BS61: =INDEX(BM61:BQ61,1,$BS$3) -> 0.57 | BT61: =1-BS61/BR61 -> 0.43 | BU61: 0.43 | BV61: 3 | BW61: 3.15 | BX61: 0.43 | BZ61: Maj. Bicycle path presence and pedestrian crossing facility type | CA61: 15 | CC61: =IFERROR(INDEX($BX$44:$BX$67,MATCH(CA61,$BV$44:$BV$67,0)),"") -> 0
B62: 17 | C62: =CMF_Tab2!W3 -> RA Total Number of Driveways/Access Points of the Roundabout (within 250 ft of yield line) | E62: -1 | I62: -1 | R62: -1 | S62: -1 | T62: 0 | U62: -1 | V62: -1 | W62: -1 | X62: -1 | AB62: -1 | BL62: ="Maj. " & C98 -> Maj. Intersection channelization | BM62: 1 | BN62: 1.2 | BO62: 1 | BP62: 1 | BQ62: =I286 -> 1 | BR62: =INDEX(BM62:BQ62,1,$BR$3) -> 1.2 | BS62: =INDEX(BM62:BQ62,1,$BS$3) -> 1 | BT62: =1-BS62/BR62 -> 0.1666666667 | BU62: 0.1666666667 | BV62: 9 | BW62: 8.16 | BX62: 0.1666666667 | BZ62: Maj. Intersection channelization | CA62: 16 | CC62: =IFERROR(INDEX($BX$44:$BX$67,MATCH(CA62,$BV$44:$BV$67,0)),"") -> 0
B63: 18 | C63: =CMF_Tab2!X3 -> RA Entry Width (ft) | E63: -1 | H63: 12 | I63: -1 | R63: -1 | S63: -1 | T63: -1 | U63: -1 | V63: -1 | W63: -1 | X63: -1 | AB63: -1
B64: 19 | C64: =CMF_Tab2!Y3 -> RA Number of Circulating Lane Conflicting with the Leg | E64: =INDEX(CMF_0_Std,MATCH(E$36,Int_Code,0),MATCH($C252,CMF_0_Abb,0)) -> -1 | F64: 2 | I64: -1 | R64: -1 | S64: -1 | T64: -1 | U64: -1 | V64: -1 | W64: -1 | X64: -1 | AB64: -1 | BL64: ="Min. " & C100 -> Min. Bicycle facilities and paved shoulder provision (entering) | BM64: =D288 -> 1 | BN64: 1 | BO64: =F288 -> 1 | BP64: 1 | BQ64: =I288 -> 1 | BR64: =INDEX(BM64:BQ64,1,$BR$3) -> 1 | BS64: =INDEX(BM64:BQ64,1,$BS$3) -> 1 | BT64: =1-BS64/BR64 -> 0 | BU64: =ABS(BT64) -> 0 | BV64: 20 | BW64: 12.17 | BX64: =BT64 -> 0 | BZ64: =IF(BU64=0,"",BL64) ->  | CA64: =CA62+1 -> 17 | CC64: =IFERROR(INDEX($BX$44:$BX$67,MATCH(CA64,$BV$44:$BV$67,0)),"") -> 0
E65: 1 | H65: 1 | I65: 1 | R65: 1 | S65: 1 | T65: 1 | U65: 1 | AB65: 1 | BL65: ="Min. " & C101 -> Min. Bicycle facilities and paved shoulder provision (exiting) | BM65: 1 | BN65: 1.2 | BO65: 1 | BP65: 1 | BQ65: =I289 -> 1 | BR65: =INDEX(BM65:BQ65,1,$BR$3) -> 1.2 | BS65: =INDEX(BM65:BQ65,1,$BS$3) -> 1 | BT65: =1-BS65/BR65 -> 0.1666666667 | BU65: 0.1666666667 | BV65: 10 | BW65: 8.18 | BX65: 0.1666666667 | BZ65: Min. Bicycle facilities and paved shoulder provision (exiting) | CA65: =CA64+1 -> 18 | CC65: =IFERROR(INDEX($BX$44:$BX$67,MATCH(CA65,$BV$44:$BV$67,0)),"") -> 0
C66: Traffic Control Elements | D66: Existing | E66: Standard | F66: Design 1 | G66: Design 2 | I66: =$I$37 -> Optimal (Conventional) | AB66: 0 | BL66: ="Min. " & C102 -> Min. Bicycle path presence and pedestrian crossing facility type | BM66: 1 | BN66: 1 | BO66: 1 | BP66: 1 | BQ66: =I290 -> 0.57 | BR66: =INDEX(BM66:BQ66,1,$BR$3) -> 1 | BS66: =INDEX(BM66:BQ66,1,$BS$3) -> 0.57 | BT66: =1-BS66/BR66 -> 0.43 | BU66: 0.43 | BV66: 4 | BW66: 3.19 | BX66: 0.43 | BZ66: Min. Bicycle path presence and pedestrian crossing facility type | CA66: =CA65+1 -> 19 | CC66: =IFERROR(INDEX($BX$44:$BX$67,MATCH(CA66,$BV$44:$BV$67,0)),"") -> 0
B67: 20 | C67: =CMF_Tab2!Z3 -> Lighting | E67: =INDEX(CMF_0_Std,MATCH(E$36,Int_Code,0),MATCH($C255,CMF_0_Abb,0)) -> Yes | I67: =AB67 -> Yes | R67: =INDEX(CMF_0_Optimal,MATCH(R$36,Int_Code,0),MATCH($C255,CMF_0_Abb,0)) -> Yes | S67: Yes | T67: 0 | U67: Yes | V67: Yes | W67: Yes | X67: Yes | AB67: Yes | BL67: ="Min. " & C103 -> Min. Intersection channelization | BM67: 1 | BN67: 1.2 | BO67: 1 | BP67: 1 | BQ67: =I291 -> 1 | BR67: =INDEX(BM67:BQ67,1,$BR$3) -> 1.2 | BS67: =INDEX(BM67:BQ67,1,$BS$3) -> 1 | BT67: =1-BS67/BR67 -> 0.1666666667 | BU67: 0.1666666667 | BV67: 11 | BW67: 8.2 | BX67: 0.1666666667 | BZ67: Min. Intersection channelization | CA67: 20 | CC67: =IFERROR(INDEX($BX$44:$BX$67,MATCH(CA67,$BV$44:$BV$67,0)),"") -> 0
B68: 21 | C68: =CMF_Tab2!AA3 -> Left-Turn Signal Phasing | E68: Protected-Permissive | I68: Protected | R68: -1 | S68: -1 | T68: -1 | U68: Protected | V68: Protected | W68: Protected | X68: Protected | AB68: Protected
R69: -1 | S69: -1 | T69: -1 | U69: Yes | V69: Yes | W69: Yes | X69: Yes | AB69: Yes
B70: 23 | C70: =CMF_Tab2!AC3 -> Number of Approaches for which RTOR is Prohibited | E70: 0 | I70: 4 | R70: -1 | S70: -1 | T70: -1 | U70: 4 | V70: 4 | W70: 4 | X70: 4 | AB70: 4
B71: 24 | C71: =CMF_Tab2!AD3 -> Retroreflective Sheeting to Backplates | E71: Yes | I71: Yes | R71: -1 | S71: -1 | T71: -1 | U71: Yes | V71: Yes | W71: Yes | X71: Yes | AB71: Yes
B72: 25 | C72: =CMF_Tab2!AF3 -> Actuated Advance Warning | E72: No | I72: Yes | R72: -1 | S72: -1 | T72: -1 | U72: Yes | V72: Yes | W72: Yes | X72: Yes | AB72: Yes
B73: 25 | C73: =CMF_Tab2!AG3 -> Painted Median on Minor Approach | E73: -1 | H73: No | I73: -1 | R73: -1 | S73: -1 | T73: -1 | U73: -1 | V73: -1 | W73: -1 | X73: -1 | AB73: -1
B74: 26 | C74: =CMF_Tab2!AH3 -> Prohibit Left-Turns | E74: No | H74: No | I74: No | R74: 0 | S74: 0 | T74: -1 | U74: No | V74: No | W74: No | X74: No | AB74: No
B75: 27 | C75: =CMF_Tab2!AI3 -> Number of Approaches with U-Turn Prohibition | E75: 0 | H75: 4 | I75: 0 | R75: 0 | S75: 0 | T75: -1 | U75: 0 | V75: 0 | W75: 0 | X75: 0 | AB75: =INDEX(R75:X75,1,$AD$47) -> 0
B76: 28 | C76: =CMF_Tab2!AJ3 -> Prohibit Left-Turns and U-Turns | E76: -1 | H76: No | I76: -1 | R76: -1 | S76: -1 | T76: -1 | U76: -1 | V76: -1 | W76: -1 | X76: -1 | AB76: -1
B77: 29 | C77: =CMF_Tab2!AK3 -> Right-In Right-Out | E77: -1 | H77: No | I77: -1 | R77: -1 | S77: -1 | T77: -1 | U77: -1 | V77: -1 | W77: -1 | X77: -1 | AB77: -1
C78: Pedestrian Elements | D78: Existing | E78: Standard | F78: Design 1 | G78: Design 2 | I78: =$I$37 -> Optimal (Conventional) | AB78: 0
C79: Major Road | D79: Major Road | E79: Major Road | F79: Major Road | G79: Major Road | I79: Major Road | AB79: 0
B80: 30 | C80: =Ped_Tabs!O2 -> Median type | E80: =INDEX(Ped_maj_std,MATCH(E$36,Int_Code,0),1) -> None or flush median | I80: =AB80 -> Curbed median >= 3ft wide | Q80: 1 | R80: =INDEX(Ped_maj_opt,MATCH(R$36,Int_Code,0),$Q80) -> Curbed median >= 3ft wide | S80: =INDEX(Ped_maj_opt,MATCH(S$36,Int_Code,0),$Q80) -> Curbed median >= 3ft wide | T80: =INDEX(Ped_maj_opt,MATCH(T$36,Int_Code,0),$Q80) -> Curbed median >= 3ft wide | U80: =INDEX(Ped_maj_opt,MATCH(U$36,Int_Code,0),$Q80) -> Curbed median >= 3ft wide | V80: =INDEX(Ped_maj_opt,MATCH(V$36,Int_Code,0),$Q80) -> Curbed median >= 3ft wide | W80: =INDEX(Ped_maj_opt,MATCH(W$36,Int_Code,0),$Q80) -> Curbed median >= 3ft wide | X80: =INDEX(Ped_maj_opt,MATCH(X$36,Int_Code,0),$Q80) -> Curbed median >= 3ft wide | AB80: Curbed median >= 3ft wide
B81: 31 | C81: =Ped_Tabs!O3 -> School zone warning | E81: =INDEX(Ped_maj_std,MATCH(E$36,Int_Code,0),2) -> No school zone | I81: No school zone | Q81: 2 | R81: =INDEX(Ped_maj_opt,MATCH(R$36,Int_Code,0),$Q81) -> No school zone | S81: =INDEX(Ped_maj_opt,MATCH(S$36,Int_Code,0),$Q81) -> No school zone | T81: =INDEX(Ped_maj_opt,MATCH(T$36,Int_Code,0),$Q81) -> No school zone | U81: =INDEX(Ped_maj_opt,MATCH(U$36,Int_Code,0),$Q81) -> No school zone | V81: =INDEX(Ped_maj_opt,MATCH(V$36,Int_Code,0),$Q81) -> No school zone | W81: =INDEX(Ped_maj_opt,MATCH(W$36,Int_Code,0),$Q81) -> No school zone | X81: =INDEX(Ped_maj_opt,MATCH(X$36,Int_Code,0),$Q81) -> No school zone | AB81: No school zone
B82: 32 | C82: =Ped_Tabs!O4 -> Location of pedestrian crossing | E82: =INDEX(Ped_maj_std,MATCH(E$36,Int_Code,0),3) -> Locations other than schools | I82: Locations other than schools | Q82: 3 | R82: =INDEX(Ped_maj_opt,MATCH(R$36,Int_Code,0),$Q82) -> Locations other than schools | S82: =INDEX(Ped_maj_opt,MATCH(S$36,Int_Code,0),$Q82) -> Locations other than schools | T82: =INDEX(Ped_maj_opt,MATCH(T$36,Int_Code,0),$Q82) -> Locations other than schools | U82: =INDEX(Ped_maj_opt,MATCH(U$36,Int_Code,0),$Q82) -> Locations other than schools | V82: =INDEX(Ped_maj_opt,MATCH(V$36,Int_Code,0),$Q82) -> Locations other than schools | W82: =INDEX(Ped_maj_opt,MATCH(W$36,Int_Code,0),$Q82) -> Locations other than schools | X82: =INDEX(Ped_maj_opt,MATCH(X$36,Int_Code,0),$Q82) -> Locations other than schools | AB82: Locations other than schools
B83: 33 | C83: =Ped_Tabs!O5 -> Pedestrian crossing facility type | E83: =INDEX(Ped_maj_std,MATCH(E$36,Int_Code,0),4) -> Signalized w/out refuge | I83: Signalized with refuge | Q83: 4 | R83: =INDEX(Ped_maj_opt,MATCH(R$36,Int_Code,0),$Q83) -> Marked crossing w/out refuge, unsignalized | S83: =INDEX(Ped_maj_opt,MATCH(S$36,Int_Code,0),$Q83) -> Marked crossing w/out refuge, unsignalized | T83: =INDEX(Ped_maj_opt,MATCH(T$36,Int_Code,0),$Q83) -> Marked crossing w/out refuge, unsignalized | U83: =INDEX(Ped_maj_opt,MATCH(U$36,Int_Code,0),$Q83) -> Signalized with refuge | V83: =INDEX(Ped_maj_opt,MATCH(V$36,Int_Code,0),$Q83) -> Signalized with refuge | W83: =INDEX(Ped_maj_opt,MATCH(W$36,Int_Code,0),$Q83) -> Signalized with refuge | X83: =INDEX(Ped_maj_opt,MATCH(X$36,Int_Code,0),$Q83) -> Signalized with refuge | AB83: Signalized with refuge
B84: 34 | C84: =Ped_Tabs!O8 -> Vehicle parking | E84: =INDEX(Ped_maj_std,MATCH(E$36,Int_Code,0),5) -> None | I84: None | Q84: 5 | R84: =INDEX(Ped_maj_opt,MATCH(R$36,Int_Code,0),$Q84) -> None | S84: =INDEX(Ped_maj_opt,MATCH(S$36,Int_Code,0),$Q84) -> None | T84: =INDEX(Ped_maj_opt,MATCH(T$36,Int_Code,0),$Q84) -> None | U84: =INDEX(Ped_maj_opt,MATCH(U$36,Int_Code,0),$Q84) -> None | V84: =INDEX(Ped_maj_opt,MATCH(V$36,Int_Code,0),$Q84) -> None | W84: =INDEX(Ped_maj_opt,MATCH(W$36,Int_Code,0),$Q84) -> None | X84: =INDEX(Ped_maj_opt,MATCH(X$36,Int_Code,0),$Q84) -> None | AB84: None
B85: 35 | C85: =Ped_Tabs!O9 -> Number of auxiliary lanes | E85: =INDEX(Ped_maj_std,MATCH(E$36,Int_Code,0),6) -> 1 | I85: 1 | Q85: 6 | R85: =INDEX(Ped_maj_opt,MATCH(R$36,Int_Code,0),$Q85) -> 1 | S85: =INDEX(Ped_maj_opt,MATCH(S$36,Int_Code,0),$Q85) -> 1 | T85: =INDEX(Ped_maj_opt,MATCH(T$36,Int_Code,0),$Q85) -> 1 | U85: =INDEX(Ped_maj_opt,MATCH(U$36,Int_Code,0),$Q85) -> 1 | V85: =INDEX(Ped_maj_opt,MATCH(V$36,Int_Code,0),$Q85) -> 1 | W85: =INDEX(Ped_maj_opt,MATCH(W$36,Int_Code,0),$Q85) -> 1 | X85: =INDEX(Ped_maj_opt,MATCH(X$36,Int_Code,0),$Q85) -> 1 | AB85: 1
C86: Minor Road | D86: Minor Road | E86: Minor Road | F86: Minor Road | G86: Minor Road | I86: Minor Road | AB86: 0
B87: 36 | C87: =Ped_Tabs!O2 -> Median type | E87: =INDEX(Ped_min_std,MATCH(E$36,Int_Code,0),1) -> None or flush median | I87: Curbed median >= 3ft wide | Q87: 1 | R87: =INDEX(Ped_min_opt,MATCH(R$36,Int_Code,0),$Q87) -> Curbed median >= 3ft wide | S87: =INDEX(Ped_min_opt,MATCH(S$36,Int_Code,0),$Q87) -> Curbed median >= 3ft wide | T87: =INDEX(Ped_min_opt,MATCH(T$36,Int_Code,0),$Q87) -> Curbed median >= 3ft wide | U87: =INDEX(Ped_min_opt,MATCH(U$36,Int_Code,0),$Q87) -> Curbed median >= 3ft wide | V87: =INDEX(Ped_min_opt,MATCH(V$36,Int_Code,0),$Q87) -> Curbed median >= 3ft wide | W87: =INDEX(Ped_min_opt,MATCH(W$36,Int_Code,0),$Q87) -> Curbed median >= 3ft wide | X87: =INDEX(Ped_min_opt,MATCH(X$36,Int_Code,0),$Q87) -> Curbed median >= 3ft wide | AB87: Curbed median >= 3ft wide
B88: 37 | C88: =Ped_Tabs!O3 -> School zone warning | E88: =INDEX(Ped_min_std,MATCH(E$36,Int_Code,0),2) -> No school zone | I88: No school zone | Q88: 2 | R88: =INDEX(Ped_min_opt,MATCH(R$36,Int_Code,0),$Q88) -> No school zone | S88: =INDEX(Ped_min_opt,MATCH(S$36,Int_Code,0),$Q88) -> No school zone | T88: =INDEX(Ped_min_opt,MATCH(T$36,Int_Code,0),$Q88) -> No school zone | U88: =INDEX(Ped_min_opt,MATCH(U$36,Int_Code,0),$Q88) -> No school zone | V88: =INDEX(Ped_min_opt,MATCH(V$36,Int_Code,0),$Q88) -> No school zone | W88: =INDEX(Ped_min_opt,MATCH(W$36,Int_Code,0),$Q88) -> No school zone | X88: =INDEX(Ped_min_opt,MATCH(X$36,Int_Code,0),$Q88) -> No school zone | AB88: No school zone
B89: 38 | C89: =Ped_Tabs!O4 -> Location of pedestrian crossing | E89: =INDEX(Ped_min_std,MATCH(E$36,Int_Code,0),3) -> Locations other than schools | I89: Locations other than schools | Q89: 3 | R89: =INDEX(Ped_min_opt,MATCH(R$36,Int_Code,0),$Q89) -> Locations other than schools | S89: =INDEX(Ped_min_opt,MATCH(S$36,Int_Code,0),$Q89) -> Locations other than schools | T89: =INDEX(Ped_min_opt,MATCH(T$36,Int_Code,0),$Q89) -> Locations other than schools | U89: =INDEX(Ped_min_opt,MATCH(U$36,Int_Code,0),$Q89) -> Locations other than schools | V89: =INDEX(Ped_min_opt,MATCH(V$36,Int_Code,0),$Q89) -> Locations other than schools | W89: =INDEX(Ped_min_opt,MATCH(W$36,Int_Code,0),$Q89) -> Locations other than schools | X89: =INDEX(Ped_min_opt,MATCH(X$36,Int_Code,0),$Q89) -> Locations other than schools | AB89: Locations other than schools
B90: 39 | C90: =Ped_Tabs!O5 -> Pedestrian crossing facility type | E90: =INDEX(Ped_min_std,MATCH(E$36,Int_Code,0),4) -> Signalized w/out refuge | I90: Signalized with refuge | Q90: 4 | R90: =INDEX(Ped_min_opt,MATCH(R$36,Int_Code,0),$Q90) -> PHB, marked crosswalk w/out refuge | S90: =INDEX(Ped_min_opt,MATCH(S$36,Int_Code,0),$Q90) -> PHB, marked crosswalk w/out refuge | T90: =INDEX(Ped_min_opt,MATCH(T$36,Int_Code,0),$Q90) -> PHB, marked crosswalk w/out refuge | U90: =INDEX(Ped_min_opt,MATCH(U$36,Int_Code,0),$Q90) -> Signalized with refuge | V90: =INDEX(Ped_min_opt,MATCH(V$36,Int_Code,0),$Q90) -> Signalized with refuge | W90: =INDEX(Ped_min_opt,MATCH(W$36,Int_Code,0),$Q90) -> Signalized with refuge | X90: =INDEX(Ped_min_opt,MATCH(X$36,Int_Code,0),$Q90) -> Signalized with refuge | AB90: Signalized with refuge
B91: 40 | C91: =Ped_Tabs!O8 -> Vehicle parking | E91: =INDEX(Ped_min_std,MATCH(E$36,Int_Code,0),5) -> None | I91: None | Q91: 5 | R91: =INDEX(Ped_min_opt,MATCH(R$36,Int_Code,0),$Q91) -> None | S91: =INDEX(Ped_min_opt,MATCH(S$36,Int_Code,0),$Q91) -> None | T91: =INDEX(Ped_min_opt,MATCH(T$36,Int_Code,0),$Q91) -> None | U91: =INDEX(Ped_min_opt,MATCH(U$36,Int_Code,0),$Q91) -> None | V91: =INDEX(Ped_min_opt,MATCH(V$36,Int_Code,0),$Q91) -> None | W91: =INDEX(Ped_min_opt,MATCH(W$36,Int_Code,0),$Q91) -> None | X91: =INDEX(Ped_min_opt,MATCH(X$36,Int_Code,0),$Q91) -> None | AB91: None
B92: 41 | C92: =Ped_Tabs!O9 -> Number of auxiliary lanes | E92: =INDEX(Ped_min_std,MATCH(E$36,Int_Code,0),6) -> 1 | I92: 0 | Q92: 6 | R92: =INDEX(Ped_min_opt,MATCH(R$36,Int_Code,0),$Q92) -> 1 | S92: =INDEX(Ped_min_opt,MATCH(S$36,Int_Code,0),$Q92) -> 1 | T92: =INDEX(Ped_min_opt,MATCH(T$36,Int_Code,0),$Q92) -> 1 | U92: =INDEX(Ped_min_opt,MATCH(U$36,Int_Code,0),$Q92) -> 1 | V92: =INDEX(Ped_min_opt,MATCH(V$36,Int_Code,0),$Q92) -> 1 | W92: =INDEX(Ped_min_opt,MATCH(W$36,Int_Code,0),$Q92) -> 1 | X92: =INDEX(Ped_min_opt,MATCH(X$36,Int_Code,0),$Q92) -> 1 | AB92: 1
C93: Bicycle Elements | D93: Existing | E93: Standard | F93: Design 1 | G93: Design 2 | I93: =$I$37 -> Optimal (Conventional) | AB93: 0
C94: Major Road | D94: Major Road | E94: Major Road | F94: Major Road | G94: Major Road | I94: Major Road | AB94: 0
B95: 42 | C95: =Bik_Tabs!O2 -> Bicycle facilities and paved shoulder provision (entering) | E95: =INDEX(Bik_maj_std,MATCH(E$36,Int_Code,0),1) -> None | I95: =AB95 -> Dedicated bike lane on road | Q95: 1 | R95: =INDEX(Bik_maj_opt,MATCH(R$36,Int_Code,0),$Q95) -> Dedicated bike lane on road | S95: =INDEX(Bik_maj_opt,MATCH(S$36,Int_Code,0),$Q95) -> Dedicated bike lane on road | T95: =INDEX(Bik_maj_opt,MATCH(T$36,Int_Code,0),$Q95) -> Dedicated bike lane on road | U95: =INDEX(Bik_maj_opt,MATCH(U$36,Int_Code,0),$Q95) -> Dedicated bike lane on road | V95: =INDEX(Bik_maj_opt,MATCH(V$36,Int_Code,0),$Q95) -> Dedicated bike lane on road | W95: =INDEX(Bik_maj_opt,MATCH(W$36,Int_Code,0),$Q95) -> Dedicated bike lane on road | X95: =INDEX(Bik_maj_opt,MATCH(X$36,Int_Code,0),$Q95) -> Dedicated bike lane on road | AB95: Dedicated bike lane on road
B96: 43 | C96: =Bik_Tabs!O3 -> Bicycle facilities and paved shoulder provision (exiting) | E96: =INDEX(Bik_maj_std,MATCH(E$36,Int_Code,0),2) -> None | I96: Dedicated bike lane on road | Q96: 2 | R96: =INDEX(Bik_maj_opt,MATCH(R$36,Int_Code,0),$Q96) -> Dedicated bike lane on road | S96: =INDEX(Bik_maj_opt,MATCH(S$36,Int_Code,0),$Q96) -> Dedicated bike lane on road | T96: =INDEX(Bik_maj_opt,MATCH(T$36,Int_Code,0),$Q96) -> Dedicated bike lane on road | U96: =INDEX(Bik_maj_opt,MATCH(U$36,Int_Code,0),$Q96) -> Dedicated bike lane on road | V96: =INDEX(Bik_maj_opt,MATCH(V$36,Int_Code,0),$Q96) -> Dedicated bike lane on road | W96: =INDEX(Bik_maj_opt,MATCH(W$36,Int_Code,0),$Q96) -> Dedicated bike lane on road | X96: =INDEX(Bik_maj_opt,MATCH(X$36,Int_Code,0),$Q96) -> Dedicated bike lane on road | AB96: Dedicated bike lane on road
B97: 44 | C97: =Bik_Tabs!O4 -> Bicycle path presence and pedestrian crossing facility type | E97: =INDEX(Bik_maj_std,MATCH(E$36,Int_Code,0),3) -> No bike path or crossing facility | I97: bike path & marked crossing w/ refuge | Q97: 3 | R97: =INDEX(Bik_maj_opt,MATCH(R$36,Int_Code,0),$Q97) -> bike path & marked crossing w/ refuge | S97: =INDEX(Bik_maj_opt,MATCH(S$36,Int_Code,0),$Q97) -> bike path & marked crossing w/ refuge | T97: =INDEX(Bik_maj_opt,MATCH(T$36,Int_Code,0),$Q97) -> bike path & marked crossing w/ refuge | U97: =INDEX(Bik_maj_opt,MATCH(U$36,Int_Code,0),$Q97) -> bike path & marked crossing w/ refuge | V97: =INDEX(Bik_maj_opt,MATCH(V$36,Int_Code,0),$Q97) -> bike path & marked crossing w/ refuge | W97: =INDEX(Bik_maj_opt,MATCH(W$36,Int_Code,0),$Q97) -> bike path & marked crossing w/ refuge | X97: =INDEX(Bik_maj_opt,MATCH(X$36,Int_Code,0),$Q97) -> bike path & marked crossing w/ refuge | AB97: bike path & marked crossing w/ refuge
B98: 45 | C98: =Bik_Tabs!O6 -> Intersection channelization | E98: =INDEX(Bik_maj_std,MATCH(E$36,Int_Code,0),4) -> Not present | I98: Present | Q98: 4 | R98: =INDEX(Bik_maj_opt,MATCH(R$36,Int_Code,0),$Q98) -> Present | S98: =INDEX(Bik_maj_opt,MATCH(S$36,Int_Code,0),$Q98) -> Present | T98: =INDEX(Bik_maj_opt,MATCH(T$36,Int_Code,0),$Q98) -> Present | U98: =INDEX(Bik_maj_opt,MATCH(U$36,Int_Code,0),$Q98) -> Present | V98: =INDEX(Bik_maj_opt,MATCH(V$36,Int_Code,0),$Q98) -> Present | W98: =INDEX(Bik_maj_opt,MATCH(W$36,Int_Code,0),$Q98) -> Present | X98: =INDEX(Bik_maj_opt,MATCH(X$36,Int_Code,0),$Q98) -> Present | AB98: Present
C99: Minor Road | D99: Minor Road | E99: Minor Road | F99: Minor Road | G99: Minor Road | I99: Minor Road | AB99: 0
B100: 46 | C100: =Bik_Tabs!O2 -> Bicycle facilities and paved shoulder provision (entering) | E100: =INDEX(Bik_min_std,MATCH(E$36,Int_Code,0),1) -> None | I100: Dedicated bike lane on road | Q100: 1 | R100: =INDEX(Bik_min_opt,MATCH(R$36,Int_Code,0),$Q100) -> Dedicated bike lane on road | S100: =INDEX(Bik_min_opt,MATCH(S$36,Int_Code,0),$Q100) -> Dedicated bike lane on road | T100: =INDEX(Bik_min_opt,MATCH(T$36,Int_Code,0),$Q100) -> Dedicated bike lane on road | U100: =INDEX(Bik_min_opt,MATCH(U$36,Int_Code,0),$Q100) -> Dedicated bike lane on road | V100: =INDEX(Bik_min_opt,MATCH(V$36,Int_Code,0),$Q100) -> Dedicated bike lane on road | W100: =INDEX(Bik_min_opt,MATCH(W$36,Int_Code,0),$Q100) -> Dedicated bike lane on road | X100: =INDEX(Bik_min_opt,MATCH(X$36,Int_Code,0),$Q100) -> Dedicated bike lane on road | AB100: Dedicated bike lane on road
B101: 47 | C101: =Bik_Tabs!O3 -> Bicycle facilities and paved shoulder provision (exiting) | E101: =INDEX(Bik_min_std,MATCH(E$36,Int_Code,0),2) -> None | I101: Dedicated bike lane on road | Q101: 2 | R101: =INDEX(Bik_min_opt,MATCH(R$36,Int_Code,0),$Q101) -> Dedicated bike lane on road | S101: =INDEX(Bik_min_opt,MATCH(S$36,Int_Code,0),$Q101) -> Dedicated bike lane on road | T101: =INDEX(Bik_min_opt,MATCH(T$36,Int_Code,0),$Q101) -> Dedicated bike lane on road | U101: =INDEX(Bik_min_opt,MATCH(U$36,Int_Code,0),$Q101) -> Dedicated bike lane on road | V101: =INDEX(Bik_min_opt,MATCH(V$36,Int_Code,0),$Q101) -> Dedicated bike lane on road | W101: =INDEX(Bik_min_opt,MATCH(W$36,Int_Code,0),$Q101) -> Dedicated bike lane on road | X101: =INDEX(Bik_min_opt,MATCH(X$36,Int_Code,0),$Q101) -> Dedicated bike lane on road | AB101: Dedicated bike lane on road
B102: 48 | C102: =Bik_Tabs!O4 -> Bicycle path presence and pedestrian crossing facility type | E102: =INDEX(Bik_min_std,MATCH(E$36,Int_Code,0),3) -> No bike path or crossing facility | I102: bike path & marked crossing w/ refuge | Q102: 3 | R102: =INDEX(Bik_min_opt,MATCH(R$36,Int_Code,0),$Q102) -> bike path & marked crossing w/ refuge | S102: =INDEX(Bik_min_opt,MATCH(S$36,Int_Code,0),$Q102) -> bike path & marked crossing w/ refuge | T102: =INDEX(Bik_min_opt,MATCH(T$36,Int_Code,0),$Q102) -> bike path & marked crossing w/ refuge | U102: =INDEX(Bik_min_opt,MATCH(U$36,Int_Code,0),$Q102) -> bike path & marked crossing w/ refuge | V102: =INDEX(Bik_min_opt,MATCH(V$36,Int_Code,0),$Q102) -> bike path & marked crossing w/ refuge | W102: =INDEX(Bik_min_opt,MATCH(W$36,Int_Code,0),$Q102) -> bike path & marked crossing w/ refuge | X102: =INDEX(Bik_min_opt,MATCH(X$36,Int_Code,0),$Q102) -> bike path & marked crossing w/ refuge | AB102: bike path & marked crossing w/ refuge
B103: 49 | C103: =Bik_Tabs!O6 -> Intersection channelization | E103: =INDEX(Bik_min_std,MATCH(E$36,Int_Code,0),4) -> Not present | I103: Present | Q103: 4 | R103: =INDEX(Bik_min_opt,MATCH(R$36,Int_Code,0),$Q103) -> Present | S103: =INDEX(Bik_min_opt,MATCH(S$36,Int_Code,0),$Q103) -> Present | T103: =INDEX(Bik_min_opt,MATCH(T$36,Int_Code,0),$Q103) -> Present | U103: =INDEX(Bik_min_opt,MATCH(U$36,Int_Code,0),$Q103) -> Present | V103: =INDEX(Bik_min_opt,MATCH(V$36,Int_Code,0),$Q103) -> Present | W103: =INDEX(Bik_min_opt,MATCH(W$36,Int_Code,0),$Q103) -> Present | X103: =INDEX(Bik_min_opt,MATCH(X$36,Int_Code,0),$Q103) -> Present | AB103: Present
AB104: 0
C105: Total Safety Score | D105: =D327 -> 58 | E105: =E327 -> 70 | F105: =F327 -> 58 | G105: =G327 -> 58 | I105: =I327 -> 100 | AB105: 0
C106: Total Safety Score (Log) | D106: =D332 -> 52 | E106: =E332 -> 70 | F106: 52 | G106: 52 | I106: 100
C107: Total Safety Score (Linear) | D107: =D337 -> 62 | E107: =E337 -> 70 | F107: 62 | G107: 62 | I107: 100
B132: Help for Conditional | D132: =SUM(ISNUMBER(MATCH(D36,IntCode,0))) -> 1 | E132: =SUM(ISNUMBER(MATCH(E36,IntCode,0))) -> 1 | F132: =SUM(ISNUMBER(MATCH(F36,IntCode,0))) -> 1 | G132: =SUM(ISNUMBER(MATCH(G36,IntCode,0))) -> 1 | I132: =SUM(ISNUMBER(MATCH(I36,IntCode,0))) -> 1
D133: Existing | E133: Standard | F133: Design 1 | G133: Design 2 | I133: Optimal
B135: No | C135: Geometric Design Elements
B136: 1 | C136: =CMF_Tab2!D3 -> Num of Approaches with Exclusive Left-Turn Lanes | D136: =INDEX(CMF_Tab2!$D$4:$AK$32,MATCH(D$36,CMF_Tab2!$B$4:$B$32,0),MATCH($C43,CMF_Tab2!$D$3:$AK$3,0)) -> {0,1,2,3,4} | E136: =INDEX(CMF_Tab2!$D$4:$AK$32,MATCH(E$36,CMF_Tab2!$B$4:$B$32,0),MATCH($C43,CMF_Tab2!$D$3:$AK$3,0)) -> {0,1,2,3,4} | F136: =INDEX(CMF_Tab2!$D$4:$AK$32,MATCH(F$36,CMF_Tab2!$B$4:$B$32,0),MATCH($C43,CMF_Tab2!$D$3:$AK$3,0)) -> {0,1,2,3,4} | G136: =INDEX(CMF_Tab2!$D$4:$AK$32,MATCH(G$36,CMF_Tab2!$B$4:$B$32,0),MATCH($C43,CMF_Tab2!$D$3:$AK$3,0)) -> {0,1,2,3,4} | I136: =INDEX(CMF_Tab2!$D$4:$AK$32,MATCH(I$36,CMF_Tab2!$B$4:$B$32,0),MATCH($C43,CMF_Tab2!$D$3:$AK$3,0)) -> {0,1,2,3,4}
B137: 2 | C137: =CMF_Tab2!E3 -> Offset Left-Turn Lanes | D137: =INDEX(CMF_Tab2!$D$4:$AK$32,MATCH(D$36,CMF_Tab2!$B$4:$B$32,0),MATCH($C44,CMF_Tab2!$D$3:$AK$3,0)) -> {No,Yes} | E137: =INDEX(CMF_Tab2!$D$4:$AK$32,MATCH(E$36,CMF_Tab2!$B$4:$B$32,0),MATCH($C44,CMF_Tab2!$D$3:$AK$3,0)) -> {No,Yes} | F137: =INDEX(CMF_Tab2!$D$4:$AK$32,MATCH(F$36,CMF_Tab2!$B$4:$B$32,0),MATCH($C44,CMF_Tab2!$D$3:$AK$3,0)) -> {No,Yes} | G137: =INDEX(CMF_Tab2!$D$4:$AK$32,MATCH(G$36,CMF_Tab2!$B$4:$B$32,0),MATCH($C44,CMF_Tab2!$D$3:$AK$3,0)) -> {No,Yes} | I137: =INDEX(CMF_Tab2!$D$4:$AK$32,MATCH(I$36,CMF_Tab2!$B$4:$B$32,0),MATCH($C44,CMF_Tab2!$D$3:$AK$3,0)) -> {No,Yes}
B138: 3 | C138: =CMF_Tab2!F3 -> Num of Approaches with Exclusive Right-Turn Lanes | D138: =INDEX(CMF_Tab2!$D$4:$AK$32,MATCH(D$36,CMF_Tab2!$B$4:$B$32,0),MATCH($C45,CMF_Tab2!$D$3:$AK$3,0)) -> {0,1,2,3,4} | E138: =INDEX(CMF_Tab2!$D$4:$AK$32,MATCH(E$36,CMF_Tab2!$B$4:$B$32,0),MATCH($C45,CMF_Tab2!$D$3:$AK$3,0)) -> {0,1,2,3,4} | F138: =INDEX(CMF_Tab2!$D$4:$AK$32,MATCH(F$36,CMF_Tab2!$B$4:$B$32,0),MATCH($C45,CMF_Tab2!$D$3:$AK$3,0)) -> {0,1,2,3,4} | G138: =INDEX(CMF_Tab2!$D$4:$AK$32,MATCH(G$36,CMF_Tab2!$B$4:$B$32,0),MATCH($C45,CMF_Tab2!$D$3:$AK$3,0)) -> {0,1,2,3,4} | I138: =INDEX(CMF_Tab2!$D$4:$AK$32,MATCH(I$36,CMF_Tab2!$B$4:$B$32,0),MATCH($C45,CMF_Tab2!$D$3:$AK$3,0)) -> {0,1,2,3,4}
B139: 4 | C139: =CMF_Tab2!G3 -> Num of Approaches on Major St. with Right-Turn Channelization | D139: =INDEX(CMF_Tab2!$D$4:$AK$32,MATCH(D$36,CMF_Tab2!$B$4:$B$32,0),MATCH($C46,CMF_Tab2!$D$3:$AK$3,0)) -> {0,1,2} | E139: =INDEX(CMF_Tab2!$D$4:$AK$32,MATCH(E$36,CMF_Tab2!$B$4:$B$32,0),MATCH($C46,CMF_Tab2!$D$3:$AK$3,0)) -> {0,1,2} | F139: =INDEX(CMF_Tab2!$D$4:$AK$32,MATCH(F$36,CMF_Tab2!$B$4:$B$32,0),MATCH($C46,CMF_Tab2!$D$3:$AK$3,0)) -> {0,1,2} | G139: =INDEX(CMF_Tab2!$D$4:$AK$32,MATCH(G$36,CMF_Tab2!$B$4:$B$32,0),MATCH($C46,CMF_Tab2!$D$3:$AK$3,0)) -> {0,1,2} | I139: =INDEX(CMF_Tab2!$D$4:$AK$32,MATCH(I$36,CMF_Tab2!$B$4:$B$32,0),MATCH($C46,CMF_Tab2!$D$3:$AK$3,0)) -> {0,1,2}
B140: 5 | C140: =CMF_Tab2!H3 -> Sight Distance (ft) | D140: =INDEX(CMF_Tab2!$D$4:$AK$32,MATCH(D$36,CMF_Tab2!$B$4:$B$32,0),MATCH($C47,CMF_Tab2!$D$3:$AK$3,0)) -> -1 | E140: =INDEX(CMF_Tab2!$D$4:$AK$32,MATCH(E$36,CMF_Tab2!$B$4:$B$32,0),MATCH($C47,CMF_Tab2!$D$3:$AK$3,0)) -> -1 | F140: =INDEX(CMF_Tab2!$D$4:$AK$32,MATCH(F$36,CMF_Tab2!$B$4:$B$32,0),MATCH($C47,CMF_Tab2!$D$3:$AK$3,0)) -> -1 | G140: =INDEX(CMF_Tab2!$D$4:$AK$32,MATCH(G$36,CMF_Tab2!$B$4:$B$32,0),MATCH($C47,CMF_Tab2!$D$3:$AK$3,0)) -> -1 | I140: =INDEX(CMF_Tab2!$D$4:$AK$32,MATCH(I$36,CMF_Tab2!$B$4:$B$32,0),MATCH($C47,CMF_Tab2!$D$3:$AK$3,0)) -> -1
B141: 6 | C141: =CMF_Tab2!I3 -> RCUT Median Width (ft) | D141: =INDEX(CMF_Tab2!$D$4:$AK$32,MATCH(D$36,CMF_Tab2!$B$4:$B$32,0),MATCH($C48,CMF_Tab2!$D$3:$AK$3,0)) -> -1 | E141: =INDEX(CMF_Tab2!$D$4:$AK$32,MATCH(E$36,CMF_Tab2!$B$4:$B$32,0),MATCH($C48,CMF_Tab2!$D$3:$AK$3,0)) -> -1 | F141: =INDEX(CMF_Tab2!$D$4:$AK$32,MATCH(F$36,CMF_Tab2!$B$4:$B$32,0),MATCH($C48,CMF_Tab2!$D$3:$AK$3,0)) -> -1 | G141: =INDEX(CMF_Tab2!$D$4:$AK$32,MATCH(G$36,CMF_Tab2!$B$4:$B$32,0),MATCH($C48,CMF_Tab2!$D$3:$AK$3,0)) -> -1 | I141: =INDEX(CMF_Tab2!$D$4:$AK$32,MATCH(I$36,CMF_Tab2!$B$4:$B$32,0),MATCH($C48,CMF_Tab2!$D$3:$AK$3,0)) -> -1
B142: 7 | C142: =CMF_Tab2!J3 -> Median on Min Approach | D142: =INDEX(CMF_Tab2!$D$4:$AK$32,MATCH(D$36,CMF_Tab2!$B$4:$B$32,0),MATCH($C49,CMF_Tab2!$D$3:$AK$3,0)) -> 0 | E142: =INDEX(CMF_Tab2!$D$4:$AK$32,MATCH(E$36,CMF_Tab2!$B$4:$B$32,0),MATCH($C49,CMF_Tab2!$D$3:$AK$3,0)) -> 0 | F142: =INDEX(CMF_Tab2!$D$4:$AK$32,MATCH(F$36,CMF_Tab2!$B$4:$B$32,0),MATCH($C49,CMF_Tab2!$D$3:$AK$3,0)) -> 0 | G142: =INDEX(CMF_Tab2!$D$4:$AK$32,MATCH(G$36,CMF_Tab2!$B$4:$B$32,0),MATCH($C49,CMF_Tab2!$D$3:$AK$3,0)) -> 0 | I142: =INDEX(CMF_Tab2!$D$4:$AK$32,MATCH(I$36,CMF_Tab2!$B$4:$B$32,0),MATCH($C49,CMF_Tab2!$D$3:$AK$3,0)) -> 0
B143: 8 | C143: =CMF_Tab2!K3 -> Replace Direct Left-Turn with Right Turn/U-Turn | D143: =INDEX(CMF_Tab2!$D$4:$AK$32,MATCH(D$36,CMF_Tab2!$B$4:$B$32,0),MATCH($C50,CMF_Tab2!$D$3:$AK$3,0)) -> 0 | E143: =INDEX(CMF_Tab2!$D$4:$AK$32,MATCH(E$36,CMF_Tab2!$B$4:$B$32,0),MATCH($C50,CMF_Tab2!$D$3:$AK$3,0)) -> 0 | F143: =INDEX(CMF_Tab2!$D$4:$AK$32,MATCH(F$36,CMF_Tab2!$B$4:$B$32,0),MATCH($C50,CMF_Tab2!$D$3:$AK$3,0)) -> 0 | G143: =INDEX(CMF_Tab2!$D$4:$AK$32,MATCH(G$36,CMF_Tab2!$B$4:$B$32,0),MATCH($C50,CMF_Tab2!$D$3:$AK$3,0)) -> 0 | I143: =INDEX(CMF_Tab2!$D$4:$AK$32,MATCH(I$36,CMF_Tab2!$B$4:$B$32,0),MATCH($C50,CMF_Tab2!$D$3:$AK$3,0)) -> 0
B146: 9 | C146: =CMF_Tab2!N3 -> RCUT Offset Distance (ft) | D146: =INDEX(CMF_Tab2!$D$4:$AK$32,MATCH(D$36,CMF_Tab2!$B$4:$B$32,0),MATCH($C53,CMF_Tab2!$D$3:$AK$3,0)) -> -1 | E146: =INDEX(CMF_Tab2!$D$4:$AK$32,MATCH(E$36,CMF_Tab2!$B$4:$B$32,0),MATCH($C53,CMF_Tab2!$D$3:$AK$3,0)) -> -1 | F146: =INDEX(CMF_Tab2!$D$4:$AK$32,MATCH(F$36,CMF_Tab2!$B$4:$B$32,0),MATCH($C53,CMF_Tab2!$D$3:$AK$3,0)) -> -1 | G146: =INDEX(CMF_Tab2!$D$4:$AK$32,MATCH(G$36,CMF_Tab2!$B$4:$B$32,0),MATCH($C53,CMF_Tab2!$D$3:$AK$3,0)) -> -1 | I146: =INDEX(CMF_Tab2!$D$4:$AK$32,MATCH(I$36,CMF_Tab2!$B$4:$B$32,0),MATCH($C53,CMF_Tab2!$D$3:$AK$3,0)) -> -1
B147: 10 | C147: =CMF_Tab2!O3 -> RCUT Number of Driveways | D147: =INDEX(CMF_Tab2!$D$4:$AK$32,MATCH(D$36,CMF_Tab2!$B$4:$B$32,0),MATCH($C54,CMF_Tab2!$D$3:$AK$3,0)) -> -1 | E147: =INDEX(CMF_Tab2!$D$4:$AK$32,MATCH(E$36,CMF_Tab2!$B$4:$B$32,0),MATCH($C54,CMF_Tab2!$D$3:$AK$3,0)) -> -1 | F147: =INDEX(CMF_Tab2!$D$4:$AK$32,MATCH(F$36,CMF_Tab2!$B$4:$B$32,0),MATCH($C54,CMF_Tab2!$D$3:$AK$3,0)) -> -1 | G147: =INDEX(CMF_Tab2!$D$4:$AK$32,MATCH(G$36,CMF_Tab2!$B$4:$B$32,0),MATCH($C54,CMF_Tab2!$D$3:$AK$3,0)) -> -1 | I147: =INDEX(CMF_Tab2!$D$4:$AK$32,MATCH(I$36,CMF_Tab2!$B$4:$B$32,0),MATCH($C54,CMF_Tab2!$D$3:$AK$3,0)) -> -1
B149: 11 | C149: =CMF_Tab2!Q3 -> RCUT Acceleration Lane Length (ft) | D149: =INDEX(CMF_Tab2!$D$4:$AK$32,MATCH(D$36,CMF_Tab2!$B$4:$B$32,0),MATCH($C56,CMF_Tab2!$D$3:$AK$3,0)) -> -1 | E149: =INDEX(CMF_Tab2!$D$4:$AK$32,MATCH(E$36,CMF_Tab2!$B$4:$B$32,0),MATCH($C56,CMF_Tab2!$D$3:$AK$3,0)) -> -1 | F149: =INDEX(CMF_Tab2!$D$4:$AK$32,MATCH(F$36,CMF_Tab2!$B$4:$B$32,0),MATCH($C56,CMF_Tab2!$D$3:$AK$3,0)) -> -1 | G149: =INDEX(CMF_Tab2!$D$4:$AK$32,MATCH(G$36,CMF_Tab2!$B$4:$B$32,0),MATCH($C56,CMF_Tab2!$D$3:$AK$3,0)) -> -1 | I149: =INDEX(CMF_Tab2!$D$4:$AK$32,MATCH(I$36,CMF_Tab2!$B$4:$B$32,0),MATCH($C56,CMF_Tab2!$D$3:$AK$3,0)) -> -1
B150: 12 | C150: =CMF_Tab2!R3 -> RCUT Deceleration Lane Length (ft) | D150: =INDEX(CMF_Tab2!$D$4:$AK$32,MATCH(D$36,CMF_Tab2!$B$4:$B$32,0),MATCH($C57,CMF_Tab2!$D$3:$AK$3,0)) -> -1 | E150: =INDEX(CMF_Tab2!$D$4:$AK$32,MATCH(E$36,CMF_Tab2!$B$4:$B$32,0),MATCH($C57,CMF_Tab2!$D$3:$AK$3,0)) -> -1 | F150: =INDEX(CMF_Tab2!$D$4:$AK$32,MATCH(F$36,CMF_Tab2!$B$4:$B$32,0),MATCH($C57,CMF_Tab2!$D$3:$AK$3,0)) -> -1 | G150: =INDEX(CMF_Tab2!$D$4:$AK$32,MATCH(G$36,CMF_Tab2!$B$4:$B$32,0),MATCH($C57,CMF_Tab2!$D$3:$AK$3,0)) -> -1 | I150: =INDEX(CMF_Tab2!$D$4:$AK$32,MATCH(I$36,CMF_Tab2!$B$4:$B$32,0),MATCH($C57,CMF_Tab2!$D$3:$AK$3,0)) -> -1
B151: 13 | C151: =CMF_Tab2!S3 -> RCUT Number of U-Turns | D151: =INDEX(CMF_Tab2!$D$4:$AK$32,MATCH(D$36,CMF_Tab2!$B$4:$B$32,0),MATCH($C58,CMF_Tab2!$D$3:$AK$3,0)) -> -1 | E151: =INDEX(CMF_Tab2!$D$4:$AK$32,MATCH(E$36,CMF_Tab2!$B$4:$B$32,0),MATCH($C58,CMF_Tab2!$D$3:$AK$3,0)) -> -1 | F151: =INDEX(CMF_Tab2!$D$4:$AK$32,MATCH(F$36,CMF_Tab2!$B$4:$B$32,0),MATCH($C58,CMF_Tab2!$D$3:$AK$3,0)) -> -1 | G151: =INDEX(CMF_Tab2!$D$4:$AK$32,MATCH(G$36,CMF_Tab2!$B$4:$B$32,0),MATCH($C58,CMF_Tab2!$D$3:$AK$3,0)) -> -1 | I151: =INDEX(CMF_Tab2!$D$4:$AK$32,MATCH(I$36,CMF_Tab2!$B$4:$B$32,0),MATCH($C58,CMF_Tab2!$D$3:$AK$3,0)) -> -1
B152: 14 | C152: =CMF_Tab2!T3 -> Roundabout (RA) Inscribed Circle Diameter (ft) | D152: =INDEX(CMF_Tab2!$D$4:$AK$32,MATCH(D$36,CMF_Tab2!$B$4:$B$32,0),MATCH($C59,CMF_Tab2!$D$3:$AK$3,0)) -> -1 | E152: =INDEX(CMF_Tab2!$D$4:$AK$32,MATCH(E$36,CMF_Tab2!$B$4:$B$32,0),MATCH($C59,CMF_Tab2!$D$3:$AK$3,0)) -> -1 | F152: =INDEX(CMF_Tab2!$D$4:$AK$32,MATCH(F$36,CMF_Tab2!$B$4:$B$32,0),MATCH($C59,CMF_Tab2!$D$3:$AK$3,0)) -> -1 | G152: =INDEX(CMF_Tab2!$D$4:$AK$32,MATCH(G$36,CMF_Tab2!$B$4:$B$32,0),MATCH($C59,CMF_Tab2!$D$3:$AK$3,0)) -> -1 | I152: =INDEX(CMF_Tab2!$D$4:$AK$32,MATCH(I$36,CMF_Tab2!$B$4:$B$32,0),MATCH($C59,CMF_Tab2!$D$3:$AK$3,0)) -> -1
B153: 15 | C153: =CMF_Tab2!U3 -> RA Number of Outbound-only Leg(s) | D153: =INDEX(CMF_Tab2!$D$4:$AK$32,MATCH(D$36,CMF_Tab2!$B$4:$B$32,0),MATCH($C60,CMF_Tab2!$D$3:$AK$3,0)) -> -1 | E153: =INDEX(CMF_Tab2!$D$4:$AK$32,MATCH(E$36,CMF_Tab2!$B$4:$B$32,0),MATCH($C60,CMF_Tab2!$D$3:$AK$3,0)) -> -1 | F153: =INDEX(CMF_Tab2!$D$4:$AK$32,MATCH(F$36,CMF_Tab2!$B$4:$B$32,0),MATCH($C60,CMF_Tab2!$D$3:$AK$3,0)) -> -1 | G153: =INDEX(CMF_Tab2!$D$4:$AK$32,MATCH(G$36,CMF_Tab2!$B$4:$B$32,0),MATCH($C60,CMF_Tab2!$D$3:$AK$3,0)) -> -1 | I153: =INDEX(CMF_Tab2!$D$4:$AK$32,MATCH(I$36,CMF_Tab2!$B$4:$B$32,0),MATCH($C60,CMF_Tab2!$D$3:$AK$3,0)) -> -1
B154: 16 | C154: =CMF_Tab2!V3 -> RA Number of Legs with Right-Turn Bypass Lane | D154: =INDEX(CMF_Tab2!$D$4:$AK$32,MATCH(D$36,CMF_Tab2!$B$4:$B$32,0),MATCH($C61,CMF_Tab2!$D$3:$AK$3,0)) -> -1 | E154: =INDEX(CMF_Tab2!$D$4:$AK$32,MATCH(E$36,CMF_Tab2!$B$4:$B$32,0),MATCH($C61,CMF_Tab2!$D$3:$AK$3,0)) -> -1 | F154: =INDEX(CMF_Tab2!$D$4:$AK$32,MATCH(F$36,CMF_Tab2!$B$4:$B$32,0),MATCH($C61,CMF_Tab2!$D$3:$AK$3,0)) -> -1 | G154: =INDEX(CMF_Tab2!$D$4:$AK$32,MATCH(G$36,CMF_Tab2!$B$4:$B$32,0),MATCH($C61,CMF_Tab2!$D$3:$AK$3,0)) -> -1 | I154: =INDEX(CMF_Tab2!$D$4:$AK$32,MATCH(I$36,CMF_Tab2!$B$4:$B$32,0),MATCH($C61,CMF_Tab2!$D$3:$AK$3,0)) -> -1
B155: 17 | C155: =CMF_Tab2!W3 -> RA Total Number of Driveways/Access Points of the Roundabout (within 250 ft of yield line) | D155: =INDEX(CMF_Tab2!$D$4:$AK$32,MATCH(D$36,CMF_Tab2!$B$4:$B$32,0),MATCH($C62,CMF_Tab2!$D$3:$AK$3,0)) -> -1 | E155: =INDEX(CMF_Tab2!$D$4:$AK$32,MATCH(E$36,CMF_Tab2!$B$4:$B$32,0),MATCH($C62,CMF_Tab2!$D$3:$AK$3,0)) -> -1 | F155: =INDEX(CMF_Tab2!$D$4:$AK$32,MATCH(F$36,CMF_Tab2!$B$4:$B$32,0),MATCH($C62,CMF_Tab2!$D$3:$AK$3,0)) -> -1 | G155: =INDEX(CMF_Tab2!$D$4:$AK$32,MATCH(G$36,CMF_Tab2!$B$4:$B$32,0),MATCH($C62,CMF_Tab2!$D$3:$AK$3,0)) -> -1 | I155: =INDEX(CMF_Tab2!$D$4:$AK$32,MATCH(I$36,CMF_Tab2!$B$4:$B$32,0),MATCH($C62,CMF_Tab2!$D$3:$AK$3,0)) -> -1
B156: 18 | C156: =CMF_Tab2!X3 -> RA Entry Width (ft) | D156: =INDEX(CMF_Tab2!$D$4:$AK$32,MATCH(D$36,CMF_Tab2!$B$4:$B$32,0),MATCH($C63,CMF_Tab2!$D$3:$AK$3,0)) -> -1 | E156: =INDEX(CMF_Tab2!$D$4:$AK$32,MATCH(E$36,CMF_Tab2!$B$4:$B$32,0),MATCH($C63,CMF_Tab2!$D$3:$AK$3,0)) -> -1 | F156: =INDEX(CMF_Tab2!$D$4:$AK$32,MATCH(F$36,CMF_Tab2!$B$4:$B$32,0),MATCH($C63,CMF_Tab2!$D$3:$AK$3,0)) -> -1 | G156: =INDEX(CMF_Tab2!$D$4:$AK$32,MATCH(G$36,CMF_Tab2!$B$4:$B$32,0),MATCH($C63,CMF_Tab2!$D$3:$AK$3,0)) -> -1 | I156: =INDEX(CMF_Tab2!$D$4:$AK$32,MATCH(I$36,CMF_Tab2!$B$4:$B$32,0),MATCH($C63,CMF_Tab2!$D$3:$AK$3,0)) -> -1
B157: 19 | C157: =CMF_Tab2!Y3 -> RA Number of Circulating Lane Conflicting with the Leg | D157: =INDEX(CMF_Tab2!$D$4:$AK$32,MATCH(D$36,CMF_Tab2!$B$4:$B$32,0),MATCH($C64,CMF_Tab2!$D$3:$AK$3,0)) -> -1 | E157: =INDEX(CMF_Tab2!$D$4:$AK$32,MATCH(E$36,CMF_Tab2!$B$4:$B$32,0),MATCH($C64,CMF_Tab2!$D$3:$AK$3,0)) -> -1 | F157: =INDEX(CMF_Tab2!$D$4:$AK$32,MATCH(F$36,CMF_Tab2!$B$4:$B$32,0),MATCH($C64,CMF_Tab2!$D$3:$AK$3,0)) -> -1 | G157: =INDEX(CMF_Tab2!$D$4:$AK$32,MATCH(G$36,CMF_Tab2!$B$4:$B$32,0),MATCH($C64,CMF_Tab2!$D$3:$AK$3,0)) -> -1 | I157: =INDEX(CMF_Tab2!$D$4:$AK$32,MATCH(I$36,CMF_Tab2!$B$4:$B$32,0),MATCH($C64,CMF_Tab2!$D$3:$AK$3,0)) -> -1
C159: Traffic Control Elements
B160: 20 | D160: =INDEX(CMF_Tab2!$D$4:$AK$32,MATCH(D$36,CMF_Tab2!$B$4:$B$32,0),MATCH($C67,CMF_Tab2!$D$3:$AK$3,0)) -> {No,Yes} | E160: =INDEX(CMF_Tab2!$D$4:$AK$32,MATCH(E$36,CMF_Tab2!$B$4:$B$32,0),MATCH($C67,CMF_Tab2!$D$3:$AK$3,0)) -> {No,Yes} | F160: =INDEX(CMF_Tab2!$D$4:$AK$32,MATCH(F$36,CMF_Tab2!$B$4:$B$32,0),MATCH($C67,CMF_Tab2!$D$3:$AK$3,0)) -> {No,Yes} | G160: =INDEX(CMF_Tab2!$D$4:$AK$32,MATCH(G$36,CMF_Tab2!$B$4:$B$32,0),MATCH($C67,CMF_Tab2!$D$3:$AK$3,0)) -> {No,Yes} | I160: =INDEX(CMF_Tab2!$D$4:$AK$32,MATCH(I$36,CMF_Tab2!$B$4:$B$32,0),MATCH($C67,CMF_Tab2!$D$3:$AK$3,0)) -> {No,Yes}
B161: 21 | D161: =INDEX(CMF_Tab2!$D$4:$AK$32,MATCH(D$36,CMF_Tab2!$B$4:$B$32,0),MATCH($C68,CMF_Tab2!$D$3:$AK$3,0)) -> {Permissive,Protected-Permissive,Protected} | E161: =INDEX(CMF_Tab2!$D$4:$AK$32,MATCH(E$36,CMF_Tab2!$B$4:$B$32,0),MATCH($C68,CMF_Tab2!$D$3:$AK$3,0)) -> {Permissive,Protected-Permissive,Protected} | F161: =INDEX(CMF_Tab2!$D$4:$AK$32,MATCH(F$36,CMF_Tab2!$B$4:$B$32,0),MATCH($C68,CMF_Tab2!$D$3:$AK$3,0)) -> {Permissive,Protected-Permissive,Protected} | G161: =INDEX(CMF_Tab2!$D$4:$AK$32,MATCH(G$36,CMF_Tab2!$B$4:$B$32,0),MATCH($C68,CMF_Tab2!$D$3:$AK$3,0)) -> {Permissive,Protected-Permissive,Protected} | I161: =INDEX(CMF_Tab2!$D$4:$AK$32,MATCH(I$36,CMF_Tab2!$B$4:$B$32,0),MATCH($C68,CMF_Tab2!$D$3:$AK$3,0)) -> {Permissive,Protected-Permissive,Protected}
B162: 21 | D162: =INDEX(CMF_Tab2!$D$4:$AK$32,MATCH(D$36,CMF_Tab2!$B$4:$B$32,0),MATCH($C69,CMF_Tab2!$D$3:$AK$3,0)) ->  | E162: =INDEX(CMF_Tab2!$D$4:$AK$32,MATCH(E$36,CMF_Tab2!$B$4:$B$32,0),MATCH($C69,CMF_Tab2!$D$3:$AK$3,0)) ->  | F162: =INDEX(CMF_Tab2!$D$4:$AK$32,MATCH(F$36,CMF_Tab2!$B$4:$B$32,0),MATCH($C69,CMF_Tab2!$D$3:$AK$3,0)) ->  | G162: =INDEX(CMF_Tab2!$D$4:$AK$32,MATCH(G$36,CMF_Tab2!$B$4:$B$32,0),MATCH($C69,CMF_Tab2!$D$3:$AK$3,0)) ->  | I162: =INDEX(CMF_Tab2!$D$4:$AK$32,MATCH(I$36,CMF_Tab2!$B$4:$B$32,0),MATCH($C69,CMF_Tab2!$D$3:$AK$3,0)) -> 
B163: 22 | D163: =INDEX(CMF_Tab2!$D$4:$AK$32,MATCH(D$36,CMF_Tab2!$B$4:$B$32,0),MATCH($C70,CMF_Tab2!$D$3:$AK$3,0)) -> {0,1,2,3,4} | E163: =INDEX(CMF_Tab2!$D$4:$AK$32,MATCH(E$36,CMF_Tab2!$B$4:$B$32,0),MATCH($C70,CMF_Tab2!$D$3:$AK$3,0)) -> {0,1,2,3,4} | F163: =INDEX(CMF_Tab2!$D$4:$AK$32,MATCH(F$36,CMF_Tab2!$B$4:$B$32,0),MATCH($C70,CMF_Tab2!$D$3:$AK$3,0)) -> {0,1,2,3,4} | G163: =INDEX(CMF_Tab2!$D$4:$AK$32,MATCH(G$36,CMF_Tab2!$B$4:$B$32,0),MATCH($C70,CMF_Tab2!$D$3:$AK$3,0)) -> {0,1,2,3,4} | I163: =INDEX(CMF_Tab2!$D$4:$AK$32,MATCH(I$36,CMF_Tab2!$B$4:$B$32,0),MATCH($C70,CMF_Tab2!$D$3:$AK$3,0)) -> {0,1,2,3,4}
B164: 23 | D164: =INDEX(CMF_Tab2!$D$4:$AK$32,MATCH(D$36,CMF_Tab2!$B$4:$B$32,0),MATCH($C71,CMF_Tab2!$D$3:$AK$3,0)) -> {No,Yes} | E164: =INDEX(CMF_Tab2!$D$4:$AK$32,MATCH(E$36,CMF_Tab2!$B$4:$B$32,0),MATCH($C71,CMF_Tab2!$D$3:$AK$3,0)) -> {No,Yes} | F164: =INDEX(CMF_Tab2!$D$4:$AK$32,MATCH(F$36,CMF_Tab2!$B$4:$B$32,0),MATCH($C71,CMF_Tab2!$D$3:$AK$3,0)) -> {No,Yes} | G164: =INDEX(CMF_Tab2!$D$4:$AK$32,MATCH(G$36,CMF_Tab2!$B$4:$B$32,0),MATCH($C71,CMF_Tab2!$D$3:$AK$3,0)) -> {No,Yes} | I164: =INDEX(CMF_Tab2!$D$4:$AK$32,MATCH(I$36,CMF_Tab2!$B$4:$B$32,0),MATCH($C71,CMF_Tab2!$D$3:$AK$3,0)) -> {No,Yes}
B165: 24 | D165: =INDEX(CMF_Tab2!$D$4:$AK$32,MATCH(D$36,CMF_Tab2!$B$4:$B$32,0),MATCH($C72,CMF_Tab2!$D$3:$AK$3,0)) -> {No,Yes} | E165: =INDEX(CMF_Tab2!$D$4:$AK$32,MATCH(E$36,CMF_Tab2!$B$4:$B$32,0),MATCH($C72,CMF_Tab2!$D$3:$AK$3,0)) -> {No,Yes} | F165: =INDEX(CMF_Tab2!$D$4:$AK$32,MATCH(F$36,CMF_Tab2!$B$4:$B$32,0),MATCH($C72,CMF_Tab2!$D$3:$AK$3,0)) -> {No,Yes} | G165: =INDEX(CMF_Tab2!$D$4:$AK$32,MATCH(G$36,CMF_Tab2!$B$4:$B$32,0),MATCH($C72,CMF_Tab2!$D$3:$AK$3,0)) -> {No,Yes} | I165: =INDEX(CMF_Tab2!$D$4:$AK$32,MATCH(I$36,CMF_Tab2!$B$4:$B$32,0),MATCH($C72,CMF_Tab2!$D$3:$AK$3,0)) -> {No,Yes}
B166: 25 | D166: =INDEX(CMF_Tab2!$D$4:$AK$32,MATCH(D$36,CMF_Tab2!$B$4:$B$32,0),MATCH($C73,CMF_Tab2!$D$3:$AK$3,0)) -> -1 | E166: =INDEX(CMF_Tab2!$D$4:$AK$32,MATCH(E$36,CMF_Tab2!$B$4:$B$32,0),MATCH($C73,CMF_Tab2!$D$3:$AK$3,0)) -> -1 | F166: =INDEX(CMF_Tab2!$D$4:$AK$32,MATCH(F$36,CMF_Tab2!$B$4:$B$32,0),MATCH($C73,CMF_Tab2!$D$3:$AK$3,0)) -> -1 | G166: =INDEX(CMF_Tab2!$D$4:$AK$32,MATCH(G$36,CMF_Tab2!$B$4:$B$32,0),MATCH($C73,CMF_Tab2!$D$3:$AK$3,0)) -> -1 | I166: =INDEX(CMF_Tab2!$D$4:$AK$32,MATCH(I$36,CMF_Tab2!$B$4:$B$32,0),MATCH($C73,CMF_Tab2!$D$3:$AK$3,0)) -> -1
B167: 26 | D167: =INDEX(CMF_Tab2!$D$4:$AK$32,MATCH(D$36,CMF_Tab2!$B$4:$B$32,0),MATCH($C74,CMF_Tab2!$D$3:$AK$3,0)) -> {No,Yes} | E167: =INDEX(CMF_Tab2!$D$4:$AK$32,MATCH(E$36,CMF_Tab2!$B$4:$B$32,0),MATCH($C74,CMF_Tab2!$D$3:$AK$3,0)) -> {No,Yes} | F167: =INDEX(CMF_Tab2!$D$4:$AK$32,MATCH(F$36,CMF_Tab2!$B$4:$B$32,0),MATCH($C74,CMF_Tab2!$D$3:$AK$3,0)) -> {No,Yes} | G167: =INDEX(CMF_Tab2!$D$4:$AK$32,MATCH(G$36,CMF_Tab2!$B$4:$B$32,0),MATCH($C74,CMF_Tab2!$D$3:$AK$3,0)) -> {No,Yes} | I167: =INDEX(CMF_Tab2!$D$4:$AK$32,MATCH(I$36,CMF_Tab2!$B$4:$B$32,0),MATCH($C74,CMF_Tab2!$D$3:$AK$3,0)) -> {No,Yes}
B168: 27 | D168: =INDEX(CMF_Tab2!$D$4:$AK$32,MATCH(D$36,CMF_Tab2!$B$4:$B$32,0),MATCH($C75,CMF_Tab2!$D$3:$AK$3,0)) -> {0,1,2,3,4} | E168: =INDEX(CMF_Tab2!$D$4:$AK$32,MATCH(E$36,CMF_Tab2!$B$4:$B$32,0),MATCH($C75,CMF_Tab2!$D$3:$AK$3,0)) -> {0,1,2,3,4} | F168: =INDEX(CMF_Tab2!$D$4:$AK$32,MATCH(F$36,CMF_Tab2!$B$4:$B$32,0),MATCH($C75,CMF_Tab2!$D$3:$AK$3,0)) -> {0,1,2,3,4} | G168: =INDEX(CMF_Tab2!$D$4:$AK$32,MATCH(G$36,CMF_Tab2!$B$4:$B$32,0),MATCH($C75,CMF_Tab2!$D$3:$AK$3,0)) -> {0,1,2,3,4} | I168: =INDEX(CMF_Tab2!$D$4:$AK$32,MATCH(I$36,CMF_Tab2!$B$4:$B$32,0),MATCH($C75,CMF_Tab2!$D$3:$AK$3,0)) -> {0,1,2,3,4}
B169: 28 | D169: =INDEX(CMF_Tab2!$D$4:$AK$32,MATCH(D$36,CMF_Tab2!$B$4:$B$32,0),MATCH($C76,CMF_Tab2!$D$3:$AK$3,0)) -> -1 | E169: =INDEX(CMF_Tab2!$D$4:$AK$32,MATCH(E$36,CMF_Tab2!$B$4:$B$32,0),MATCH($C76,CMF_Tab2!$D$3:$AK$3,0)) -> -1 | F169: =INDEX(CMF_Tab2!$D$4:$AK$32,MATCH(F$36,CMF_Tab2!$B$4:$B$32,0),MATCH($C76,CMF_Tab2!$D$3:$AK$3,0)) -> -1 | G169: =INDEX(CMF_Tab2!$D$4:$AK$32,MATCH(G$36,CMF_Tab2!$B$4:$B$32,0),MATCH($C76,CMF_Tab2!$D$3:$AK$3,0)) -> -1 | I169: =INDEX(CMF_Tab2!$D$4:$AK$32,MATCH(I$36,CMF_Tab2!$B$4:$B$32,0),MATCH($C76,CMF_Tab2!$D$3:$AK$3,0)) -> -1
B170: 29 | D170: =INDEX(CMF_Tab2!$D$4:$AK$32,MATCH(D$36,CMF_Tab2!$B$4:$B$32,0),MATCH($C77,CMF_Tab2!$D$3:$AK$3,0)) -> -1 | E170: =INDEX(CMF_Tab2!$D$4:$AK$32,MATCH(E$36,CMF_Tab2!$B$4:$B$32,0),MATCH($C77,CMF_Tab2!$D$3:$AK$3,0)) -> -1 | F170: =INDEX(CMF_Tab2!$D$4:$AK$32,MATCH(F$36,CMF_Tab2!$B$4:$B$32,0),MATCH($C77,CMF_Tab2!$D$3:$AK$3,0)) -> -1 | G170: =INDEX(CMF_Tab2!$D$4:$AK$32,MATCH(G$36,CMF_Tab2!$B$4:$B$32,0),MATCH($C77,CMF_Tab2!$D$3:$AK$3,0)) -> -1 | I170: =INDEX(CMF_Tab2!$D$4:$AK$32,MATCH(I$36,CMF_Tab2!$B$4:$B$32,0),MATCH($C77,CMF_Tab2!$D$3:$AK$3,0)) -> -1
C171: Pedestrian Elements | D171: =IF(ISNUMBER(MATCH(D206,int_ped_tp2,0)),1,0) -> 1 | E171: =IF(ISNUMBER(MATCH(E206,int_ped_tp2,0)),1,0) -> 1 | F171: =IF(ISNUMBER(MATCH(F206,int_ped_tp2,0)),1,0) -> 1 | G171: =IF(ISNUMBER(MATCH(G206,int_ped_tp2,0)),1,0) -> 1 | I171: =IF(ISNUMBER(MATCH(I206,int_ped_tp2,0)),1,0) -> 1 | M171: =MATCH(I206,int_ped_tp2) -> 2
C172: =C79 -> Major Road
B173: 30 | C173: Median type
B174: 31 | C174: School zone warning
B175: 32 | C175: Location of pedestrian crossing
B176: 33 | C176: Pedestrian crossing facility type
B177: 34 | C177: Vehicle parking
B178: 35 | C178: Number of auxiliary lanes
C179: Minor Road
B180: 36 | C180: Median type
B181: 37 | C181: School zone warning
B182: 38 | C182: Location of pedestrian crossing
B183: 39 | C183: Pedestrian crossing facility type
B184: 40 | C184: Vehicle parking
B185: 41 | C185: Number of auxiliary lanes
C186: Bicycle Elements
C187: =C94 -> Major Road
B188: 42 | C188: Bicycle facilities and paved shoulder provision (entering)
B189: 43 | C189: Bicycle facilities and paved shoulder provision (exiting)
B190: 44 | C190: Bicycle path presence and pedestrian crossing facility type
B191: 45 | C191: Intersection channelization
C192: Minor Road
B193: 46 | C193: Bicycle facilities and paved shoulder provision (entering)
B194: 47 | C194: Bicycle facilities and paved shoulder provision (exiting)
B195: 48 | C195: Bicycle path presence and pedestrian crossing facility type
B196: 49 | C196: Intersection channelization
B198: =U33 -> 0.3082422168 | C198: Best Sig. <- is Alt -> | D198: =IF(ISNUMBER(MATCH(D38,AltSig,0)),1,0) -> 0 | E198: =IF(ISNUMBER(MATCH(E38,AltSig,0)),1,0) -> 0 | F198: =IF(ISNUMBER(MATCH(F38,AltSig,0)),1,0) -> 0 | G198: =IF(ISNUMBER(MATCH(G38,AltSig,0)),1,0) -> 0 | I198: =IF(ISNUMBER(MATCH(I38,AltSig,0)),1,0) -> 0 | V198: =IF(ISNUMBER(MATCH(V38,AltSig,0)),1,0) -> 0 | W198: =IF(ISNUMBER(MATCH(W38,AltSig,0)),1,0) -> 0 | X198: =IF(ISNUMBER(MATCH(X38,AltSig,0)),1,0) -> 0
C199: CMF_Alt | D199: =IF(D198=0,1,INDEX(AltCMFs,MATCH(D38,AltSig,0),2)) -> 1 | E199: =IF(E198=0,1,INDEX(AltCMFs,MATCH(E38,AltSig,0),2)) -> 1 | F199: =IF(F198=0,1,INDEX(AltCMFs,MATCH(F38,AltSig,0),2)) -> 1 | G199: =IF(G198=0,1,INDEX(AltCMFs,MATCH(G38,AltSig,0),2)) -> 1 | I199: =IF(I198=0,1,INDEX(AltCMFs,MATCH(I38,AltSig,0),2)) -> 1 | V199: =IF(V198=0,1,INDEX(AltCMFs,MATCH(V38,AltSig,0),2)) -> 1 | W199: =IF(W198=0,1,INDEX(AltCMFs,MATCH(W38,AltSig,0),2)) -> 1 | X199: =IF(X198=0,1,INDEX(AltCMFs,MATCH(X38,AltSig,0),2)) -> 1
D200: =$B$198*D199 -> 0.3082422168 | E200: =$B$198*E199 -> 0.3082422168 | F200: 0.3082422168 | G200: 0.3082422168 | I200: 0.3082422168 | V200: =$B$198*V199 -> 0.3082422168 | W200: 0.3082422168 | X200: 0.3082422168
C201: Moto Vehicle Crashes Base | D201: =IF(D198=1,D200,D204) -> 1.34710715 | E201: =IF(E198=1,E200,E204) -> 1.34710715 | F201: 1.34710715 | G201: 1.34710715 | I201: 1.34710715 | R201: =R204 -> 1.030177435 | S201: =S204 -> 1.432454821 | T201: 1.294579583 | U201: =U204 -> 1.34710715 | V201: =IF(V198=1,V200,V204) -> 1.34710715 | W201: 1.34710715 | X201: 1.34710715
D202: =IF(D198=1,1,D205) -> 0.9204660797 | E202: =IF(E198=1,1,E205) -> 0.9204660797 | F202: 0.9204660797 | G202: 0.9204660797 | I202: =IF(I198=1,1,I205) -> 0.9204660797 | R202: =R205 -> 0.9204660797 | S202: 0.9204660797 | T202: 0.1736479148 | U202: =U205 -> 0.9204660797 | V202: =IF(V198=1,1,V205) -> 0.9204660797 | W202: =IF(W198=1,1,W205) -> 0.9204660797 | X202: =X205 -> 0.9204660797
D203: =GetIntCode($G$12,$K$10,$I$10,$J$10,"Signalized",$C$30) -> 4250SGX | E203: =GetIntCode($G$12,$K$10,$I$10,$J$10,"Signalized",$C$30) -> 4250SGX | F203: =GetIntCode($G$12,$K$10,$I$10,$J$10,"Signalized",$C$30) -> 4250SGX | G203: =GetIntCode($G$12,$K$10,$I$10,$J$10,"Signalized",$C$30) -> 4250SGX | I203: =GetIntCode($G$12,$K$10,$I$10,$J$10,"Signalized",$C$30) -> 4250SGX | R203: =GetIntCode($G$12,$K$10,$I$10,$J$10,"Signalized",$C$30) -> 4250SGX | S203: 4250SGX | T203: 4250SGX | U203: 4250SGX | V203: 4250SGX | W203: 4250SGX | X203: 4250SGX
D204: =IF(OR(G14="RCUT-SIG", G14="RCUT-UNSIG"), PreRCUTCsh(D36,$H$10,$H$11,IF(ISBLANK(D58),$C$30,D58)), IF(G14="Roundabout", PreRACsh(D36,$H$10,$H$11,0,""), IF(OR(G14="DDI",G14="DLT",G14="MUT"), PreAltIntCsh(D203,$H$10,$H$11,$D$30,IF(K11="Yes",1,0),G14), PreORdIntCsh(D36,$H$10,$H$11,$D$30,IF(K11="Yes",1,0),"")))) -> 1.34710715 | E204: =IF(OR(E38="RCUT-SIG", E38="RCUT-UNSIG"), PreRCUTCsh(E36,$H$10,$H$11,1), IF(E38="Roundabout", PreRACsh(E36,$H$10,$H$11,0,""), IF(OR(E38="DDI",E38="DLT",E38="MUT"), PreAltIntCsh(E203,$H$10,$H$11,$D$30,IF(K11="Yes",1,0),E38), PreORdIntCsh(E36,$H$10,$H$11,$D$30,IF(K11="Yes",1,0),"")))) -> 1.34710715 | F204: =IF(OR(F38="RCUT-SIG", F38="RCUT-UNSIG"), PreRCUTCsh(F36,$H$10,$H$11,F40), IF(F38="Roundabout", PreRACsh(F36,$H$10,$H$11,0,""), IF(OR(F38="DDI",F38="DLT",F38="MUT"), PreAltIntCsh(F203,$H$10,$H$11,$D$30,IF(N11="Yes",1,0),F38), PreORdIntCsh(F36,$H$10,$H$11,$D$30,IF(N11="Yes",1,0),"")))) -> 1.34710715 | G204: =IF(OR(G38="RCUT-SIG", G38="RCUT-UNSIG"), PreRCUTCsh(G36,$H$10,$H$11,G$40), IF(G38="Roundabout", PreRACsh(G36,$H$10,$H$11,0,""), IF(OR(G38="DDI",G38="DLT",G38="MUT"), PreAltIntCsh(G203,$H$10,$H$11,$D$30,IF(K21="Yes",1,0),G38), PreORdIntCsh(G36,$H$10,$H$11,$D$30,IF(K21="Yes",1,0),"")))) -> 1.34710715 | I204: =IF(OR(I38="RCUT-SIG", I38="RCUT-UNSIG"), PreRCUTCsh(I36,$H$10,$H$11,1), IF(I38="Roundabout", PreRACsh(I36,$H$10,$H$11,0,""), IF(OR(I38="DDI",I38="DLT",I38="MUT"), PreAltIntCsh(I203,$H$10,$H$11,$D$30,IF(R11="Yes",1,0),I38), PreORdIntCsh(I36,$H$10,$H$11,$D$30,IF(R11="Yes",1,0),"")))) -> 1.34710715 | R204: =IF(OR(R38="RCUT-SIG", R38="RCUT-UNSIG"), PreRCUTCsh(R36,$H$10,$H$11,1), IF(R38="Roundabout", PreRACsh(R36,$H$10,$H$11,0,""), IF(OR(R38="DDI",R38="DLT",R38="MUT"), PreAltIntCsh(R203,$H$10,$H$11,$D$30,IF(AF11="Yes",1,0),R38), PreORdIntCsh(R36,$H$10,$H$11,$D$30,IF(AF11="Yes",1,0),"")))) -> 1.030177435 | S204: =IF(OR(S38="RCUT-SIG", S38="RCUT-UNSIG"), PreRCUTCsh(S36,$H$10,$H$11,1), IF(S38="Roundabout", PreRACsh(S36,$H$10,$H$11,0,""), IF(OR(S38="DDI",S38="DLT",S38="MUT"), PreAltIntCsh(S203,$H$10,$H$11,$D$30,IF(AG11="Yes",1,0),S38), PreORdIntCsh(S36,$H$10,$H$11,$D$30,IF(AG11="Yes",1,0),"")))) -> 1.432454821 | T204: =IF(OR(T38="RCUT-SIG", T38="RCUT-UNSIG"), PreRCUTCsh(T36,$H$10,$H$11,1), IF(T38="Roundabout", PreRACsh(T36,$H$10,$H$11,0,""), IF(OR(T38="DDI",T38="DLT",T38="MUT"), PreAltIntCsh(T203,$H$10,$H$11,$D$30,IF(AI11="Yes",1,0),T38), PreORdIntCsh(T36,$H$10,$H$11,$D$30,IF(AI11="Yes",1,0),"")))) -> 1.294579583 | U204: =IF(OR(U38="RCUT-SIG", U38="RCUT-UNSIG"), PreRCUTCsh(U36,$H$10,$H$11,1), IF(U38="Roundabout", PreRACsh(U36,$H$10,$H$11,0,""), IF(OR(U38="DDI",U38="DLT",U38="MUT"), PreAltIntCsh(U203,$H$10,$H$11,$D$30,IF(AJ11="Yes",1,0),U38), PreORdIntCsh(U36,$H$10,$H$11,$D$30,IF(AJ11="Yes",1,0),"")))) -> 1.34710715 | V204: =IF(OR(V38="RCUT-SIG", V38="RCUT-UNSIG"), PreRCUTCsh(V36,$H$10,$H$11,1), IF(V38="Roundabout", PreRACsh(V36,$H$10,$H$11,0,""), IF(OR(V38="DDI",V38="DLT",V38="MUT"), PreAltIntCsh(V203,$H$10,$H$11,$D$30,IF(AK11="Yes",1,0),V38), PreORdIntCsh(V36,$H$10,$H$11,$D$30,IF(AK11="Yes",1,0),"")))) -> 1.34710715 | W204: =IF(OR(W38="RCUT-SIG", W38="RCUT-UNSIG"), PreRCUTCsh(W36,$H$10,$H$11,1), IF(W38="Roundabout", PreRACsh(W36,$H$10,$H$11,0,""), IF(OR(W38="DDI",W38="DLT",W38="MUT"), PreAltIntCsh(W203,$H$10,$H$11,$D$30,IF(AL11="Yes",1,0),W38), PreORdIntCsh(W36,$H$10,$H$11,$D$30,IF(AL11="Yes",1,0),"")))) -> 1.34710715 | X204: =IF(OR(X38="RCUT-SIG", X38="RCUT-UNSIG"), PreRCUTCsh(X36,$H$10,$H$11,1), IF(X38="Roundabout", PreRACsh(X36,$H$10,$H$11,0,""), IF(OR(X38="DDI",X38="DLT",X38="MUT"), PreAltIntCsh(X203,$H$10,$H$11,$D$30,IF(AM11="Yes",1,0),X38), PreORdIntCsh(X36,$H$10,$H$11,$D$30,IF(AM11="Yes",1,0),"")))) -> 1.34710715
D205: =IF(OR(G14="RCUT-SIG", G14="RCUT-UNSIG"), 1, IF(G14="Roundabout", PreRACsh(D36,$H$10,$H$11,0,1), PreORdIntCsh(D36,$H$10,$H$11,$D$30,IF(K11="Yes",1,0),1))) -> 0.9204660797 | E205: =IF(OR(E38="RCUT-SIG", E38="RCUT-UNSIG"), 1, IF(E38="Roundabout", PreRACsh(E36,$H$10,$H$11,0,1), PreORdIntCsh(E203,$H$10,$H$11,$D$30,IF(K11="Yes",1,0),1))) -> 0.9204660797 | F205: =IF(OR(F38="RCUT-SIG", F38="RCUT-UNSIG"), 1, IF(F38="Roundabout", PreRACsh(F36,$H$10,$H$11,0,1), PreORdIntCsh(F203,$H$10,$H$11,$D$30,IF(N11="Yes",1,0),1))) -> 0.9204660797 | G205: =IF(OR(G38="RCUT-SIG", G38="RCUT-UNSIG"), 1, IF(G38="Roundabout", PreRACsh(G36,$H$10,$H$11,0,1), PreORdIntCsh(G203,$H$10,$H$11,$D$30,IF(K21="Yes",1,0),1))) -> 0.9204660797 | I205: =IF(OR(I38="RCUT-SIG", I38="RCUT-UNSIG"), 1, IF(I38="Roundabout", PreRACsh(I36,$H$10,$H$11,0,1), PreORdIntCsh(I203,$H$10,$H$11,$D$30,IF(R11="Yes",1,0),1))) -> 0.9204660797 | R205: =IF(OR(R38="RCUT-SIG", R38="RCUT-UNSIG"), 1, IF(R38="Roundabout", PreRACsh(R36,$H$10,$H$11,0,1), PreORdIntCsh(R203,$H$10,$H$11,$D$30,IF(AF11="Yes",1,0),1))) -> 0.9204660797 | S205: =IF(OR(S38="RCUT-SIG", S38="RCUT-UNSIG"), 1, IF(S38="Roundabout", PreRACsh(S36,$H$10,$H$11,0,1), PreORdIntCsh(S203,$H$10,$H$11,$D$30,IF(AG11="Yes",1,0),1))) -> 0.9204660797 | T205: =IF(OR(T38="RCUT-SIG", T38="RCUT-UNSIG"), 1, IF(T38="Roundabout", PreRACsh(T36,$H$10,$H$11,0,1), PreORdIntCsh(T203,$H$10,$H$11,$D$30,IF(AI11="Yes",1,0),1))) -> 0.1736479148 | U205: =IF(OR(U38="RCUT-SIG", U38="RCUT-UNSIG"), 1, IF(U38="Roundabout", PreRACsh(U36,$H$10,$H$11,0,1), PreORdIntCsh(U203,$H$10,$H$11,$D$30,IF(AJ11="Yes",1,0),1))) -> 0.9204660797 | V205: =IF(OR(V38="RCUT-SIG", V38="RCUT-UNSIG"), 1, IF(V38="Roundabout", PreRACsh(V36,$H$10,$H$11,0,1), PreORdIntCsh(V203,$H$10,$H$11,$D$30,IF(AK11="Yes",1,0),1))) -> 0.9204660797 | W205: =IF(OR(W38="RCUT-SIG", W38="RCUT-UNSIG"), 1, IF(W38="Roundabout", PreRACsh(W36,$H$10,$H$11,0,1), PreORdIntCsh(W203,$H$10,$H$11,$D$30,IF(AL11="Yes",1,0),1))) -> 0.9204660797 | X205: =IF(OR(X38="RCUT-SIG", X38="RCUT-UNSIG"), 1, IF(X38="Roundabout", PreRACsh(X36,$H$10,$H$11,0,1), PreORdIntCsh(X203,$H$10,$H$11,$D$30,IF(AM11="Yes",1,0),1))) -> 0.9204660797
D206: =LEFT(D36,1) & MID(D36,5,2) -> 4SG | E206: =LEFT(E36,1) & MID(E36,5,2) -> 4SG | F206: =LEFT(F36,1) & MID(F36,5,2) -> 4SG | G206: =LEFT(G36,1) & MID(G36,5,2) -> 4SG | I206: =LEFT(I36,1) & MID(I36,5,2) -> 4SG
C207: Ped Crash -Maj Leg | D207: =PrePed_Base_for_leg(D$36,$H$10,$I$10,$J$10,$L$10)*D209 -> 0 | E207: =PrePed_Base_for_leg(E$36,$H$10,$I$10,$J$10,$L$10)*E209 -> 0 | F207: =PrePed_Base_for_leg(F$36,$H$10,$I$10,$J$10,$L$10)*F209 -> 0 | G207: =PrePed_Base_for_leg(G$36,$H$10,$I$10,$J$10,$L$10)*G209 -> 0 | I207: =PrePed_Base_for_leg(I$36,$H$10,$I$10,$J$10,$L$10)*I209 -> 0
C208: -Min Leg (sev * spd * adt * pedflow) | D208: =PrePed_Base_for_leg(D$36,$H$11,$I$11,$J$11,$L$11)*D210 -> 0 | E208: =PrePed_Base_for_leg(E$36,$H$11,$I$11,$J$11,$L$11)*E210 -> 0 | F208: =PrePed_Base_for_leg(F$36,$H$11,$I$11,$J$11,$L$11)*F210 -> 0 | G208: =PrePed_Base_for_leg(G$36,$H$11,$I$11,$J$11,$L$11)*G210 -> 0 | I208: =PrePed_Base_for_leg(I$36,$H$11,$I$11,$J$11,$L$11)*I210 -> 0
C209: likelihood, maj | D209: =PRODUCT(D268:D273,D292, D293) -> 4.2 | E209: =PRODUCT(E268:E273,E292, E293) -> 16.56 | F209: =PRODUCT(F268:F273,F292, F293) -> 4.2 | G209: =PRODUCT(G268:G273,G292, G293) -> 4.2 | I209: =PRODUCT(I268:I273,I292, I293) -> 4.8
C210: likelihood, min | D210: =PRODUCT(D275:D280,D292, D293) -> 4.2 | E210: =PRODUCT(E275:E280,E292, E293) -> 16.56 | F210: =PRODUCT(F275:F280,F292, F293) -> 4.2 | G210: =PRODUCT(G275:G280,G292, G293) -> 4.2 | I210: =PRODUCT(I275:I280,I292, I293) -> 3.36
C211: Ped crash whole inter | D211: =IF(D207<0, 0, (D207*2+D208*($G$12-2))*D294) -> 0 | E211: =IF(E207<0, 0, (E207*2+E208*($G$12-2))*E294) -> 0 | F211: =IF(F207<0, 0, (F207*2+F208*($G$12-2))*F294) -> 0 | G211: =IF(G207<0, 0, (G207*2+G208*($G$12-2))*G294) -> 0 | I211: =IF(I207<0, 0, (I207*2+I208*($G$12-2))*I294) -> 0
D212: =IF(ISNA(D211),0,D211) -> 0 | E212: =IF(ISNA(E211),0,E211) -> 0 | F212: =IF(ISNA(F211),0,F211) -> 0 | G212: =IF(ISNA(G211),0,G211) -> 0 | I212: =IF(ISNA(I211),0,I211) -> 0
C214: Bik Crash -Maj Rd | D214: =PreBik_Base_for_leg(D$36,$H$10,$I$10,$J$10,$M$10)*D216 -> 0 | E214: =PreBik_Base_for_leg(E$36,$H$10,$I$10,$J$10,$M$10)*E216 -> 0 | F214: =PreBik_Base_for_leg(F$36,$H$10,$I$10,$J$10,$M$10)*F216 -> 0 | G214: =PreBik_Base_for_leg(G$36,$H$10,$I$10,$J$10,$M$10)*G216 -> 0 | I214: =PreBik_Base_for_leg(I$36,$H$10,$I$10,$J$10,$M$10)*I216 -> 0
C215: -Min Rd | D215: =PrePed_Base_for_leg(D$36,$H$11,$I$11,$J$11,$M$11)*D217 -> 0 | E215: =PrePed_Base_for_leg(E$36,$H$11,$I$11,$J$11,$M$11)*E217 -> 0 | F215: =PrePed_Base_for_leg(F$36,$H$11,$I$11,$J$11,$M$11)*F217 -> 0 | G215: =PrePed_Base_for_leg(G$36,$H$11,$I$11,$J$11,$M$11)*G217 -> 0 | I215: =PrePed_Base_for_leg(I$36,$H$11,$I$11,$J$11,$M$11)*I217 -> 0
C216: likelihood, maj | D216: =PRODUCT(D283:D286,D296:D297) -> 62.5 | E216: =PRODUCT(E283:E286,E296:E297) -> 50.4 | F216: =PRODUCT(F283:F286,F296:F297) -> 62.5 | G216: =PRODUCT(G283:G286,G296:G297) -> 62.5 | I216: =PRODUCT(I283:I286,I296:I297) -> 19.95
C217: likelihood, min | D217: =PRODUCT(D288:D291,D296:D297) -> 62.5 | E217: =PRODUCT(E288:E291,E296:E297) -> 50.4 | F217: =PRODUCT(F288:F291,F296:F297) -> 62.5 | G217: =PRODUCT(G288:G291,G296:G297) -> 62.5 | I217: =PRODUCT(I288:I291,I296:I297) -> 19.95
D218: =IF(OR(D214<0,ISNA(D214)),0,(D214+D215)*D298) -> 0 | E218: =IF(OR(E214<0,ISNA(E214)),0,(E214+E215)*E298) -> 0 | F218: =IF(OR(F214<0,ISNA(F214)),0,(F214+F215)*F298) -> 0 | G218: =IF(OR(G214<0,ISNA(G214)),0,(G214+G215)*G298) -> 0 | I218: =IF(AND(ISNUMBER(I214),I214>0), (I214+I215)*I298, 0) -> 0
D219: =IF(ISNA(D218),0,D218) -> 0 | E219: =IF(ISNA(E218),0,E218) -> 0 | F219: =IF(ISNA(F218),0,F218) -> 0 | G219: =IF(ISNA(G218),0,G218) -> 0 | I219: =IF(ISNA(I218),0,I218) -> 0
C221: Take care of non 3/4 Sig/STOP intersections | D221: =IF(D207>=0,1,INDEX(forPedRatio,MATCH(D36,forPedIntCode,0))) -> 1 | E221: =IF(E207>=0,1,INDEX(forPedRatio,MATCH(E36,forPedIntCode,0))) -> 1 | F221: =IF(F207>=0,1,INDEX(forPedRatio,MATCH(F36,forPedIntCode,0))) -> 1 | G221: =IF(G207>=0,1,INDEX(forPedRatio,MATCH(G36,forPedIntCode,0))) -> 1 | I221: =IF(I207>=0,1,INDEX(forPedRatio,MATCH(I36,forPedIntCode,0))) -> 1
C222: Final Ped | D222: =IF(D221=1,D212,D34*D221/(1-D221)*0.5) -> 0 | E222: =IF(E221=1,E212,E34*E221/(1-E221)*0.5) -> 0 | F222: =IF(F221=1,F212,F34*F221/(1-F221)*0.5) -> 0 | G222: =IF(G221=1,G212,G34*G221/(1-G221)*0.5) -> 0 | I222: =IF(I221=1,I212,I34*I221/(1-I221)*0.5) -> 0
C223: Final Bik | D223: =IF(D221=1,D219,D34*D221/(1-D221)*0.5) -> 0 | E223: =IF(E221=1,E219,E34*E221/(1-E221)*0.5) -> 0 | F223: =IF(F221=1,F219,F34*F221/(1-F221)*0.5) -> 0 | G223: =IF(G221=1,G219,G34*G221/(1-G221)*0.5) -> 0 | I223: =IF(I221=1,I219,I34*I221/(1-I221)*0.5) -> 0
C224: Final Ped+Bik | D224: =IF(D221=1,D212+D219,D34*D221/(1-D221)) -> 0 | E224: =IF(E221=1,E212+E219,E34*E221/(1-E221)) -> 0 | F224: =IF(F221=1,F212+F219,F34*F221/(1-F221)) -> 0 | G224: =IF(G221=1,G212+G219,G34*G221/(1-G221)) -> 0 | I224: =IF(I221=1,I212+I219,I34*I221/(1-I221)) -> 0
B227: Help for CMF
D228: Existing | E228: Standard | F228: Design 1 | G228: Design 2 | I228: Optimal
B230: No | C230: Geometric Design Elements
B231: 1 | C231: =CMF_Tab2!D2 -> LTL | D231: =getcmf_LTL(D$36,D43) -> 1 | E231: =getcmf_LTL(E$36,E43) -> 0.66 | F231: =getcmf_LTL(F$36,F43) -> 1 | G231: =getcmf_LTL(G$36,G43) -> 1 | I231: =getcmf_LTL(I$36,I43) -> 0.66
B232: 2 | C232: =CMF_Tab2!E2 -> OLTL | D232: =getcmf_OLTL(D$36,IF(D44="Yes",1,0)) -> 1 | E232: =getcmf_OLTL(E$36,IF(E44="Yes",1,0)) -> 1 | F232: =getcmf_OLTL(F$36,IF(F44="Yes",1,0)) -> 1 | G232: =getcmf_OLTL(G$36,IF(G44="Yes",1,0)) -> 1 | I232: =getcmf_OLTL(I$36,IF(I44="Yes",1,0)) -> 0.662
B233: 3 | C233: =CMF_Tab2!F2 -> RTL | D233: =getcmf_RTL(D$36,D45) -> 1 | E233: =getcmf_RTL(E$36,E45) -> 1 | F233: =getcmf_RTL(F$36,F45) -> 1 | G233: =getcmf_RTL(G$36,G45) -> 1 | I233: =getcmf_RTL(I$36,I45) -> 0.85
B234: 4 | C234: =CMF_Tab2!G2 -> RTC | D234: =getcmf_RTC(D$36,D46,D$202) -> 1 | E234: =getcmf_RTC(E$36,E46,E$202) -> 1 | F234: =getcmf_RTC(F$36,F46,F$202) -> 1 | G234: =getcmf_RTC(G$36,G46,G$202) -> 1 | I234: =getcmf_RTC(I$36,I46,I$202) -> 1
B235: 5 | C235: =CMF_Tab2!H2 -> SD | D235: =getcmf_SD(D$36,D47,$H$10,$J$10) -> 1 | E235: =getcmf_SD(E$36,E47,$H$10,$J$10) -> 1 | F235: =getcmf_SD(F$36,F47,$H$10,$J$10) -> 1 | G235: =getcmf_SD(G$36,G47,$H$10,$J$10) -> 1 | I235: =getcmf_SD(I$36,I47,$H$10,$J$10) -> 1
B236: 6 | C236: =CMF_Tab2!I2 -> MW | D236: =getcmf_MW(D$36,D48) -> 1 | E236: =getcmf_MW(E$36,E48) -> 1 | F236: =getcmf_MW(F$36,F48) -> 1 | G236: =getcmf_MW(G$36,G48) -> 1 | I236: =getcmf_MW(I$36,I48) -> 1
B237: 7 | C237: =CMF_Tab2!J2 -> MOMA | D237: =getcmf_MOMA(D$36,IF(D49="Yes",10)) -> 1 | E237: =getcmf_MOMA(E$36,IF(E49="Yes",10)) -> 1 | F237: =getcmf_MOMA(F$36,IF(F49="Yes",10)) -> 1 | G237: =getcmf_MOMA(G$36,IF(G49="Yes",10)) -> 1 | I237: =getcmf_MOMA(I$36,IF(I49="Yes",10)) -> 1
... 74 more rows

Sheet Intersection_Type (hidden)
A1: No | B1: LG | C1: OT | D1: NL | E1: SL | F1: CT | G1: 3T | H1: IntCode | I1: MajVol | J1: MinVol | K1: AddVol | L1: MinOne | M1: UT4RC | N1: RU4RA | O1: Pred | P1: Pred_supp | Q1: Pred_Alt | R1: SPF Function | S1: Note1 | T1: Note2 | U1: Tab2Col | V1: Left-Turn Lanes | W1: Offset Left-Turn Lanes | X1: Right-Turn Lanes | Y1: Right-Turn Channelization | Z1: Sight Distance | AA1: Median Width | AB1: Median on Min Approach | AC1: Replace Direct Left-Turn with Right Turn/U-Turn | AD1: Number of Lanes M J | AE1: Number of Lanes M I | AF1: Offset Distance | AG1: Number of Driveways | AH1: Speed Limit | AI1: Acceleration Lane Length | AJ1: Deceleration Lane Length | AK1: Number of U-Turns | AL1: Inscribed Circle Diameter | AM1: Outbound-Only Leg | AN1: Right-Turn Bypass Lane | AO1: Access Point Frequency | AP1: Entry Width | AQ1: Entering Lanes | AR1: Lighting | AS1: Left-Turn Signal Phasing | AT1: Increase Total Change Interval | AU1: Prohibit Right-Turn-on-Red | AV1: Retroreflective Sheeting to Backplates | AW1: Red-Light Cameras | AX1: Actuated Advance Warning | AY1: Painted Median on Minor Approach | AZ1: Prohibit Left-Turns | BA1: Prohibit U-Turns | BB1: Prohibit Left-Turns and U-Turns | BC1: Right-In Right-Out | BD1: DLT | BE1: MUT | BF1: DDI
A2: 1 | B2: 3 | C2: 1 | D2: X | E2: X | F2: ST | G2: X | H2: =B2&C2&D2&E2&F2&G2 -> 31XXSTX | I2: 4567 | J2: 1234 | K2: X | L2: 1 | M2: X | N2: X | O2: =PreORdIntCsh(Table1[[#This Row],[IntCode]],Table1[[#This Row],[MajVol]],Table1[[#This Row],[MinVol]],Table1[[#This Row],[AddVol]],Table1[[#This Row],[MinOne]],"") -> 0.1025327033 | P2: =PreORdIntCsh(Table1[[#This Row],[IntCode]],Table1[[#This Row],[MajVol]],Table1[[#This Row],[MinVol]],Table1[[#This Row],[AddVol]],Table1[[#This Row],[MinOne]],1) -> 0.4712136906 | Q2: =PreAltIntCsh(Table1[[#This Row],[IntCode]],Table1[[#This Row],[MajVol]],Table1[[#This Row],[MinVol]],Table1[[#This Row],[AddVol]],Table1[[#This Row],[MinOne]],"DLT") -> 0 | R2: PreOrdIntCsh, 5 inputs | T2: =Table1[[#This Row],[LG]]&Table1[[#This Row],[CT]]&IF(OR(Table1[[#This Row],[NL]]=6,Table1[[#This Row],[OT]]=1)," -6;-OW", IF(Table1[[#This Row],[SL]]=1, " -HS", "")) -> 3ST -6;-OW | U2: 3 | V2: 0 | W2: 0 | X2: 0 | Y2: 0 | Z2: 0 | AA2: 0 | AB2: 0 | AC2: 0 | AD2: 0 | AE2: 0 | AF2: 0 | AG2: 0 | AH2: 0 | AI2: 0 | AJ2: 0 | AK2: 0 | AL2: 0 | AM2: 0 | AN2: 0 | AO2: 0 | AP2: 0 | AQ2: 0 | AR2: 1 | AS2: 0 | AT2: 0 | AU2: 0 | AV2: 0 | AW2: 0 | AX2: 0 | AY2: 0 | AZ2: 0 | BA2: 0 | BB2: 0 | BC2: 0 | BD2: 0 | BE2: 0 | BF2: 0
A3: 2 | B3: 3 | C3: 1 | D3: X | E3: X | F3: SG | G3: X | H3: =B3&C3&D3&E3&F3&G3 -> 31XXSGX | I3: 4567 | J3: 1234 | K3: X | L3: 1 | M3: X | N3: X | O3: =PreORdIntCsh(Table1[[#This Row],[IntCode]],Table1[[#This Row],[MajVol]],Table1[[#This Row],[MinVol]],Table1[[#This Row],[AddVol]],Table1[[#This Row],[MinOne]],"") -> 0.5062023248 | P3: =PreORdIntCsh(Table1[[#This Row],[IntCode]],Table1[[#This Row],[MajVol]],Table1[[#This Row],[MinVol]],Table1[[#This Row],[AddVol]],Table1[[#This Row],[MinOne]],1) -> 0.1944296904 | Q3: =PreAltIntCsh(Table1[[#This Row],[IntCode]],Table1[[#This Row],[MajVol]],Table1[[#This Row],[MinVol]],Table1[[#This Row],[AddVol]],Table1[[#This Row],[MinOne]],"DLT") -> 0 | R3: PreOrdIntCsh, 5 inputs | T3: =Table1[[#This Row],[LG]]&Table1[[#This Row],[CT]]&IF(OR(Table1[[#This Row],[NL]]=6,Table1[[#This Row],[OT]]=1)," -6;-OW", IF(Table1[[#This Row],[SL]]=1, " -HS", "")) -> 3SG -6;-OW | U3: 4 | V3: 0 | W3: 0 | X3: 0 | Y3: 0 | Z3: 0 | AA3: 0 | AB3: 0 | AC3: 0 | AD3: 1 | AE3: 1 | AF3: 0 | AG3: 0 | AH3: 0 | AI3: 0 | AJ3: 0 | AK3: 0 | AL3: 0 | AM3: 0 | AN3: 0 | AO3: 0 | AP3: 0 | AQ3: 0 | AR3: 1 | AS3: 1 | AT3: 0 | AU3: 1 | AV3: 0 | AW3: 1 | AX3: 0 | AY3: 0 | AZ3: 0 | BA3: 0 | BB3: 0 | BC3: 0 | BD3: 0 | BE3: 0 | BF3: 0
A4: 3 | B4: 3 | C4: 2 | D4: 6 | E4: X | F4: ST | G4: X | H4: 326XSTX | I4: 4567 | J4: 1234 | K4: X | L4: X | M4: X | N4: X | O4: =PreORdIntCsh(Table1[[#This Row],[IntCode]],Table1[[#This Row],[MajVol]],Table1[[#This Row],[MinVol]],Table1[[#This Row],[AddVol]],Table1[[#This Row],[MinOne]],"") -> 0.2048684622 | P4: =PreORdIntCsh(Table1[[#This Row],[IntCode]],Table1[[#This Row],[MajVol]],Table1[[#This Row],[MinVol]],Table1[[#This Row],[AddVol]],Table1[[#This Row],[MinOne]],1) -> 0.6058631249 | Q4: =PreAltIntCsh(Table1[[#This Row],[IntCode]],Table1[[#This Row],[MajVol]],Table1[[#This Row],[MinVol]],Table1[[#This Row],[AddVol]],Table1[[#This Row],[MinOne]],"DLT") -> 0 | R4: PreOrdIntCsh, 5 inputs | T4: =Table1[[#This Row],[LG]]&Table1[[#This Row],[CT]]&IF(OR(Table1[[#This Row],[NL]]=6,Table1[[#This Row],[OT]]=1)," -6;-OW", IF(Table1[[#This Row],[SL]]=1, " -HS", "")) -> 3ST -6;-OW | U4: 3 | V4: 0 | W4: 0 | X4: 0 | Y4: 0 | Z4: 0 | AA4: 0 | AB4: 0 | AC4: 0 | AD4: 0 | AE4: 0 | AF4: 0 | AG4: 0 | AH4: 0 | AI4: 0 | AJ4: 0 | AK4: 0 | AL4: 0 | AM4: 0 | AN4: 0 | AO4: 0 | AP4: 0 | AQ4: 0 | AR4: 1 | AS4: 0 | AT4: 0 | AU4: 0 | AV4: 0 | AW4: 0 | AX4: 0 | AY4: 0 | AZ4: 0 | BA4: 1 | BB4: 0 | BC4: 0 | BD4: 0 | BE4: 0 | BF4: 0
A5: 4 | B5: 3 | C5: 2 | D5: 6 | E5: X | F5: SG | G5: X | H5: 326XSGX | I5: 4567 | J5: 1234 | K5: X | L5: X | M5: X | N5: X | O5: =PreORdIntCsh(Table1[[#This Row],[IntCode]],Table1[[#This Row],[MajVol]],Table1[[#This Row],[MinVol]],Table1[[#This Row],[AddVol]],Table1[[#This Row],[MinOne]],"") -> 1.468913656 | P5: =PreORdIntCsh(Table1[[#This Row],[IntCode]],Table1[[#This Row],[MajVol]],Table1[[#This Row],[MinVol]],Table1[[#This Row],[AddVol]],Table1[[#This Row],[MinOne]],1) -> 0.4050215871 | Q5: =PreAltIntCsh(Table1[[#This Row],[IntCode]],Table1[[#This Row],[MajVol]],Table1[[#This Row],[MinVol]],Table1[[#This Row],[AddVol]],Table1[[#This Row],[MinOne]],"DLT") -> 0 | R5: PreOrdIntCsh, 5 inputs | T5: =Table1[[#This Row],[LG]]&Table1[[#This Row],[CT]]&IF(OR(Table1[[#This Row],[NL]]=6,Table1[[#This Row],[OT]]=1)," -6;-OW", IF(Table1[[#This Row],[SL]]=1, " -HS", "")) -> 3SG -6;-OW | U5: 4 | V5: 0 | W5: 0 | X5: 0 | Y5: 1 | Z5: 0 | AA5: 0 | AB5: 0 | AC5: 0 | AD5: 1 | AE5: 1 | AF5: 0 | AG5: 0 | AH5: 0 | AI5: 0 | AJ5: 0 | AK5: 0 | AL5: 0 | AM5: 0 | AN5: 0 | AO5: 0 | AP5: 0 | AQ5: 0 | AR5: 1 | AS5: 1 | AT5: 0 | AU5: 1 | AV5: 0 | AW5: 1 | AX5: 0 | AY5: 0 | AZ5: 0 | BA5: 1 | BB5: 0 | BC5: 0 | BD5: 0 | BE5: 0 | BF5: 0
A6: 5 | B6: 3 | C6: 2 | D6: 5 | E6: X | F6: AS | G6: X | H6: 325XASX | I6: 4567 | J6: 1234 | K6: X | L6: X | M6: X | N6: X | O6: =PreORdIntCsh(Table1[[#This Row],[IntCode]],Table1[[#This Row],[MajVol]],Table1[[#This Row],[MinVol]],Table1[[#This Row],[AddVol]],Table1[[#This Row],[MinOne]],"") -> 0.7825148502 | P6: =PreORdIntCsh(Table1[[#This Row],[IntCode]],Table1[[#This Row],[MajVol]],Table1[[#This Row],[MinVol]],Table1[[#This Row],[AddVol]],Table1[[#This Row],[MinOne]],1) -> 0.280241734 | Q6: =PreAltIntCsh(Table1[[#This Row],[IntCode]],Table1[[#This Row],[MajVol]],Table1[[#This Row],[MinVol]],Table1[[#This Row],[AddVol]],Table1[[#This Row],[MinOne]],"DLT") -> 0 | R6: PreOrdIntCsh, 5 inputs | T6: =Table1[[#This Row],[LG]]&Table1[[#This Row],[CT]]&IF(OR(Table1[[#This Row],[NL]]=6,Table1[[#This Row],[OT]]=1)," -6;-OW", IF(Table1[[#This Row],[SL]]=1, " -HS", "")) -> 3AS | U6: 1 | V6: 0 | W6: 0 | X6: 0 | Y6: 0 | Z6: 0 | AA6: 0 | AB6: 0 | AC6: 0 | AD6: 0 | AE6: 0 | AF6: 0 | AG6: 0 | AH6: 0 | AI6: 0 | AJ6: 0 | AK6: 0 | AL6: 0 | AM6: 0 | AN6: 0 | AO6: 0 | AP6: 0 | AQ6: 0 | AR6: 1 | AS6: 0 | AT6: 0 | AU6: 0 | AV6: 0 | AW6: 0 | AX6: 0 | AY6: 0 | AZ6: 0 | BA6: 0 | BB6: 0 | BC6: 0 | BD6: 0 | BE6: 0 | BF6: 0
A7: 6 | B7: 3 | C7: 2 | D7: 5 | E7: 1 | F7: ST | G7: X | H7: 3251STX | I7: 1234 | J7: 1234 | K7: X | L7: X | M7: X | N7: X | O7: =PreORdIntCsh(Table1[[#This Row],[IntCode]],Table1[[#This Row],[MajVol]],Table1[[#This Row],[MinVol]],Table1[[#This Row],[AddVol]],Table1[[#This Row],[MinOne]],"") -> 0.5673813186 | P7: =PreORdIntCsh(Table1[[#This Row],[IntCode]],Table1[[#This Row],[MajVol]],Table1[[#This Row],[MinVol]],Table1[[#This Row],[AddVol]],Table1[[#This Row],[MinOne]],1) -> 0.9258907984 | Q7: =PreAltIntCsh(Table1[[#This Row],[IntCode]],Table1[[#This Row],[MajVol]],Table1[[#This Row],[MinVol]],Table1[[#This Row],[AddVol]],Table1[[#This Row],[MinOne]],"DLT") -> 0 | R7: PreOrdIntCsh, 5 inputs | T7: =Table1[[#This Row],[LG]]&Table1[[#This Row],[CT]]&IF(OR(Table1[[#This Row],[NL]]=6,Table1[[#This Row],[OT]]=1)," -6;-OW", IF(Table1[[#This Row],[SL]]=1, " -HS", "")) -> 3ST -HS | U7: 1 | V7: 1 | W7: 0 | X7: 1 | Y7: 0 | Z7: 1 | AA7: 0 | AB7: 1 | AC7: 1 | AD7: 0 | AE7: 0 | AF7: 0 | AG7: 0 | AH7: 0 | AI7: 0 | AJ7: 0 | AK7: 0 | AL7: 0 | AM7: 0 | AN7: 0 | AO7: 0 | AP7: 0 | AQ7: 0 | AR7: 1 | AS7: 0 | AT7: 0 | AU7: 0 | AV7: 0 | AW7: 0 | AX7: 0 | AY7: 1 | AZ7: 1 | BA7: 0 | BB7: 1 | BC7: 1 | BD7: 0 | BE7: 0 | BF7: 0
A8: 7 | B8: 3 | C8: 2 | D8: 5 | E8: 1 | F8: SG | G8: X | H8: 3251SGX | I8: 4567 | J8: 1234 | K8: X | L8: X | M8: X | N8: X | O8: =PreORdIntCsh(Table1[[#This Row],[IntCode]],Table1[[#This Row],[MajVol]],Table1[[#This Row],[MinVol]],Table1[[#This Row],[AddVol]],Table1[[#This Row],[MinOne]],"") -> 4.866468791 | P8: =PreORdIntCsh(Table1[[#This Row],[IntCode]],Table1[[#This Row],[MajVol]],Table1[[#This Row],[MinVol]],Table1[[#This Row],[AddVol]],Table1[[#This Row],[MinOne]],1) -> 0.3618583575 | Q8: =PreAltIntCsh(Table1[[#This Row],[IntCode]],Table1[[#This Row],[MajVol]],Table1[[#This Row],[MinVol]],Table1[[#This Row],[AddVol]],Table1[[#This Row],[MinOne]],"DLT") -> 0 | R8: PreOrdIntCsh, 5 inputs | T8: =Table1[[#This Row],[LG]]&Table1[[#This Row],[CT]]&IF(OR(Table1[[#This Row],[NL]]=6,Table1[[#This Row],[OT]]=1)," -6;-OW", IF(Table1[[#This Row],[SL]]=1, " -HS", "")) -> 3SG -HS | U8: 2 | V8: 1 | W8: 0 | X8: 1 | Y8: 0 | Z8: 0 | AA8: 0 | AB8: 0 | AC8: 0 | AD8: 0 | AE8: 0 | AF8: 0 | AG8: 0 | AH8: 0 | AI8: 0 | AJ8: 0 | AK8: 0 | AL8: 0 | AM8: 0 | AN8: 0 | AO8: 0 | AP8: 0 | AQ8: 0 | AR8: 1 | AS8: 0 | AT8: 1 | AU8: 0 | AV8: 1 | AW8: 0 | AX8: 0 | AY8: 0 | AZ8: 0 | BA8: 0 | BB8: 0 | BC8: 0 | BD8: 0 | BE8: 0 | BF8: 0
A9: 8 | B9: 3 | C9: 2 | D9: 5 | E9: 0 | F9: ST | G9: 0 | H9: 3250ST0 | I9: 4567 | J9: 1234 | K9: X | L9: X | M9: X | N9: X | O9: =PreORdIntCsh(Table1[[#This Row],[IntCode]],Table1[[#This Row],[MajVol]],Table1[[#This Row],[MinVol]],Table1[[#This Row],[AddVol]],Table1[[#This Row],[MinOne]],"") -> 0.497029092 | P9: =PreORdIntCsh(Table1[[#This Row],[IntCode]],Table1[[#This Row],[MajVol]],Table1[[#This Row],[MinVol]],Table1[[#This Row],[AddVol]],Table1[[#This Row],[MinOne]],1) -> 0.6777562803 | Q9: =PreAltIntCsh(Table1[[#This Row],[IntCode]],Table1[[#This Row],[MajVol]],Table1[[#This Row],[MinVol]],Table1[[#This Row],[AddVol]],Table1[[#This Row],[MinOne]],"DLT") -> 0 | R9: PreOrdIntCsh, 5 inputs | S9: Not 3-Turning | T9: =Table1[[#This Row],[LG]]&Table1[[#This Row],[CT]]&IF(OR(Table1[[#This Row],[NL]]=6,Table1[[#This Row],[OT]]=1)," -6;-OW", IF(Table1[[#This Row],[SL]]=1, " -HS", "")) -> 3ST | U9: 1 | V9: 1 | W9: 0 | X9: 0 | Y9: 0 | Z9: 0 | AA9: 0 | AB9: 1 | AC9: 0 | AD9: 0 | AE9: 0 | AF9: 0 | AG9: 0 | AH9: 0 | AI9: 0 | AJ9: 0 | AK9: 0 | AL9: 0 | AM9: 0 | AN9: 0 | AO9: 0 | AP9: 0 | AQ9: 0 | AR9: 1 | AS9: 0 | AT9: 0 | AU9: 0 | AV9: 0 | AW9: 0 | AX9: 0 | AY9: 1 | AZ9: 1 | BA9: 0 | BB9: 1 | BC9: 1 | BD9: 0 | BE9: 0 | BF9: 0
A10: 9 | B10: 3 | C10: 2 | D10: 5 | E10: 0 | F10: SG | G10: 0 | H10: 3250SG0 | I10: 4567 | J10: 1234 | K10: X | L10: X | M10: X | N10: X | O10: =PreORdIntCsh(Table1[[#This Row],[IntCode]],Table1[[#This Row],[MajVol]],Table1[[#This Row],[MinVol]],Table1[[#This Row],[AddVol]],Table1[[#This Row],[MinOne]],"") -> 0.4680418201 | P10: =PreORdIntCsh(Table1[[#This Row],[IntCode]],Table1[[#This Row],[MajVol]],Table1[[#This Row],[MinVol]],Table1[[#This Row],[AddVol]],Table1[[#This Row],[MinOne]],1) -> 0.8465558971 | Q10: =PreAltIntCsh(Table1[[#This Row],[IntCode]],Table1[[#This Row],[MajVol]],Table1[[#This Row],[MinVol]],Table1[[#This Row],[AddVol]],Table1[[#This Row],[MinOne]],"DLT") -> 0 | R10: PreOrdIntCsh, 5 inputs | S10: Not 3-Turning | T10: =Table1[[#This Row],[LG]]&Table1[[#This Row],[CT]]&IF(OR(Table1[[#This Row],[NL]]=6,Table1[[#This Row],[OT]]=1)," -6;-OW", IF(Table1[[#This Row],[SL]]=1, " -HS", "")) -> 3SG | U10: 2 | V10: 1 | W10: 0 | X10: 1 | Y10: 0 | Z10: 0 | AA10: 0 | AB10: 0 | AC10: 0 | AD10: 0 | AE10: 0 | AF10: 0 | AG10: 0 | AH10: 0 | AI10: 0 | AJ10: 0 | AK10: 0 | AL10: 0 | AM10: 0 | AN10: 0 | AO10: 0 | AP10: 0 | AQ10: 0 | AR10: 1 | AS10: 1 | AT10: 1 | AU10: 1 | AV10: 1 | AW10: 1 | AX10: 0 | AY10: 0 | AZ10: 0 | BA10: 0 | BB10: 0 | BC10: 0 | BD10: 0 | BE10: 0 | BF10: 0
A11: 10 | B11: 3 | C11: 2 | D11: 5 | E11: 0 | F11: ST | G11: 1 | H11: 3250ST1 | I11: 4567 | J11: 1234 | K11: 4567 | L11: X | M11: X | N11: X | O11: =PreORdIntCsh(Table1[[#This Row],[IntCode]],Table1[[#This Row],[MajVol]],Table1[[#This Row],[MinVol]],Table1[[#This Row],[AddVol]],Table1[[#This Row],[MinOne]],"") -> 0.581397735 | P11: =PreORdIntCsh(Table1[[#This Row],[IntCode]],Table1[[#This Row],[MajVol]],Table1[[#This Row],[MinVol]],Table1[[#This Row],[AddVol]],Table1[[#This Row],[MinOne]],1) -> 0.6027331206 | Q11: =PreAltIntCsh(Table1[[#This Row],[IntCode]],Table1[[#This Row],[MajVol]],Table1[[#This Row],[MinVol]],Table1[[#This Row],[AddVol]],Table1[[#This Row],[MinOne]],"DLT") -> 0 | R11: PreOrdIntCsh, 5 inputs | S11: Yes 3-Turning | T11: =Table1[[#This Row],[LG]]&Table1[[#This Row],[CT]]&IF(OR(Table1[[#This Row],[NL]]=6,Table1[[#This Row],[OT]]=1)," -6;-OW", IF(Table1[[#This Row],[SL]]=1, " -HS", "")) -> 3ST | U11: 1 | V11: 0 | W11: 0 | X11: 1 | Y11: 0 | Z11: 1 | AA11: 0 | AB11: 0 | AC11: 1 | AD11: 0 | AE11: 0 | AF11: 0 | AG11: 0 | AH11: 0 | AI11: 0 | AJ11: 0 | AK11: 0 | AL11: 0 | AM11: 0 | AN11: 0 | AO11: 0 | AP11: 0 | AQ11: 0 | AR11: 0 | AS11: 0 | AT11: 0 | AU11: 0 | AV11: 0 | AW11: 0 | AX11: 0 | AY11: 0 | AZ11: 0 | BA11: 0 | BB11: 0 | BC11: 0 | BD11: 0 | BE11: 0 | BF11: 0
A12: 11 | B12: 4 | C12: 1 | D12: X | E12: X | F12: ST | G12: X | H12: 41XXSTX | I12: 4567 | J12: 1234 | K12: X | L12: 0 | M12: X | N12: X | O12: =PreORdIntCsh(Table1[[#This Row],[IntCode]],Table1[[#This Row],[MajVol]],Table1[[#This Row],[MinVol]],Table1[[#This Row],[AddVol]],Table1[[#This Row],[MinOne]],"") -> 0.2237556138 | P12: =PreORdIntCsh(Table1[[#This Row],[IntCode]],Table1[[#This Row],[MajVol]],Table1[[#This Row],[MinVol]],Table1[[#This Row],[AddVol]],Table1[[#This Row],[MinOne]],1) -> 0.3944521967 | Q12: =PreAltIntCsh(Table1[[#This Row],[IntCode]],Table1[[#This Row],[MajVol]],Table1[[#This Row],[MinVol]],Table1[[#This Row],[AddVol]],Table1[[#This Row],[MinOne]],"DLT") -> 0 | R12: PreOrdIntCsh, 5 inputs | T12: =Table1[[#This Row],[LG]]&Table1[[#This Row],[CT]]&IF(OR(Table1[[#This Row],[NL]]=6,Table1[[#This Row],[OT]]=1)," -6;-OW", IF(Table1[[#This Row],[SL]]=1, " -HS", "")) -> 4ST -6;-OW | U12: 3 | V12: 0 | W12: 0 | X12: 0 | Y12: 0 | Z12: 0 | AA12: 0 | AB12: 0 | AC12: 0 | AD12: 0 | AE12: 0 | AF12: 0 | AG12: 0 | AH12: 0 | AI12: 0 | AJ12: 0 | AK12: 0 | AL12: 0 | AM12: 0 | AN12: 0 | AO12: 0 | AP12: 0 | AQ12: 0 | AR12: 1 | AS12: 0 | AT12: 0 | AU12: 0 | AV12: 0 | AW12: 0 | AX12: 0 | AY12: 0 | AZ12: 0 | BA12: 0 | BB12: 0 | BC12: 0 | BD12: 0 | BE12: 0 | BF12: 0
A13: 12 | B13: 4 | C13: 1 | D13: X | E13: X | F13: SG | G13: X | H13: 41XXSGX | I13: 4567 | J13: 1234 | K13: X | L13: 1 | M13: X | N13: X | O13: =PreORdIntCsh(Table1[[#This Row],[IntCode]],Table1[[#This Row],[MajVol]],Table1[[#This Row],[MinVol]],Table1[[#This Row],[AddVol]],Table1[[#This Row],[MinOne]],"") -> 0.8466810206 | P13: =PreORdIntCsh(Table1[[#This Row],[IntCode]],Table1[[#This Row],[MajVol]],Table1[[#This Row],[MinVol]],Table1[[#This Row],[AddVol]],Table1[[#This Row],[MinOne]],1) -> 0.2990423299 | Q13: =PreAltIntCsh(Table1[[#This Row],[IntCode]],Table1[[#This Row],[MajVol]],Table1[[#This Row],[MinVol]],Table1[[#This Row],[AddVol]],Table1[[#This Row],[MinOne]],"DLT") -> 0.7450792981 | R13: PreOrdIntCsh, 5 inputs | T13: =Table1[[#This Row],[LG]]&Table1[[#This Row],[CT]]&IF(OR(Table1[[#This Row],[NL]]=6,Table1[[#This Row],[OT]]=1)," -6;-OW", IF(Table1[[#This Row],[SL]]=1, " -HS", "")) -> 4SG -6;-OW | U13: 4 | V13: 0 | W13: 0 | X13: 0 | Y13: 0 | Z13: 0 | AA13: 0 | AB13: 0 | AC13: 0 | AD13: 1 | AE13: 1 | AF13: 0 | AG13: 0 | AH13: 0 | AI13: 0 | AJ13: 0 | AK13: 0 | AL13: 0 | AM13: 0 | AN13: 0 | AO13: 0 | AP13: 0 | AQ13: 0 | AR13: 1 | AS13: 1 | AT13: 0 | AU13: 1 | AV13: 0 | AW13: 1 | AX13: 0 | AY13: 0 | AZ13: 0 | BA13: 0 | BB13: 0 | BC13: 0 | BD13: 1 | BE13: 1 | BF13: 1
A14: 13 | B14: 4 | C14: 2 | D14: 6 | E14: X | F14: ST | G14: X | H14: 426XSTX | I14: 4567 | J14: 1234 | K14: X | L14: X | M14: X | N14: X | O14: =PreORdIntCsh(Table1[[#This Row],[IntCode]],Table1[[#This Row],[MajVol]],Table1[[#This Row],[MinVol]],Table1[[#This Row],[AddVol]],Table1[[#This Row],[MinOne]],"") -> 0.7603965784 | P14: =PreORdIntCsh(Table1[[#This Row],[IntCode]],Table1[[#This Row],[MajVol]],Table1[[#This Row],[MinVol]],Table1[[#This Row],[AddVol]],Table1[[#This Row],[MinOne]],1) -> 0.5310427137 | Q14: =PreAltIntCsh(Table1[[#This Row],[IntCode]],Table1[[#This Row],[MajVol]],Table1[[#This Row],[MinVol]],Table1[[#This Row],[AddVol]],Table1[[#This Row],[MinOne]],"DLT") -> 0 | R14: PreOrdIntCsh, 5 inputs | T14: =Table1[[#This Row],[LG]]&Table1[[#This Row],[CT]]&IF(OR(Table1[[#This Row],[NL]]=6,Table1[[#This Row],[OT]]=1)," -6;-OW", IF(Table1[[#This Row],[SL]]=1, " -HS", "")) -> 4ST -6;-OW | U14: 3 | V14: 0 | W14: 0 | X14: 0 | Y14: 0 | Z14: 0 | AA14: 0 | AB14: 0 | AC14: 0 | AD14: 0 | AE14: 0 | AF14: 0 | AG14: 0 | AH14: 0 | AI14: 0 | AJ14: 0 | AK14: 0 | AL14: 0 | AM14: 0 | AN14: 0 | AO14: 0 | AP14: 0 | AQ14: 0 | AR14: 1 | AS14: 0 | AT14: 0 | AU14: 0 | AV14: 0 | AW14: 0 | AX14: 0 | AY14: 0 | AZ14: 0 | BA14: 1 | BB14: 0 | BC14: 0 | BD14: 0 | BE14: 0 | BF14: 0
A15: 14 | B15: 4 | C15: 2 | D15: 6 | E15: X | F15: SG | G15: X | H15: 426XSGX | I15: 4567 | J15: 1234 | K15: X | L15: X | M15: X | N15: X | O15: =PreORdIntCsh(Table1[[#This Row],[IntCode]],Table1[[#This Row],[MajVol]],Table1[[#This Row],[MinVol]],Table1[[#This Row],[AddVol]],Table1[[#This Row],[MinOne]],"") -> 2.904348929 | P15: =PreORdIntCsh(Table1[[#This Row],[IntCode]],Table1[[#This Row],[MajVol]],Table1[[#This Row],[MinVol]],Table1[[#This Row],[AddVol]],Table1[[#This Row],[MinOne]],1) -> 0.4784211863 | Q15: =PreAltIntCsh(Table1[[#This Row],[IntCode]],Table1[[#This Row],[MajVol]],Table1[[#This Row],[MinVol]],Table1[[#This Row],[AddVol]],Table1[[#This Row],[MinOne]],"DLT") -> 2.555827058 | R15: PreOrdIntCsh, 5 inputs | T15: =Table1[[#This Row],[LG]]&Table1[[#This Row],[CT]]&IF(OR(Table1[[#This Row],[NL]]=6,Table1[[#This Row],[OT]]=1)," -6;-OW", IF(Table1[[#This Row],[SL]]=1, " -HS", "")) -> 4SG -6;-OW | U15: 4 | V15: 0 | W15: 0 | X15: 0 | Y15: 1 | Z15: 0 | AA15: 0 | AB15: 0 | AC15: 0 | AD15: 1 | AE15: 1 | AF15: 0 | AG15: 0 | AH15: 0 | AI15: 0 | AJ15: 0 | AK15: 0 | AL15: 0 | AM15: 0 | AN15: 0 | AO15: 0 | AP15: 0 | AQ15: 0 | AR15: 1 | AS15: 1 | AT15: 0 | AU15: 1 | AV15: 0 | AW15: 1 | AX15: 0 | AY15: 0 | AZ15: 0 | BA15: 1 | BB15: 0 | BC15: 0 | BD15: 1 | BE15: 1 | BF15: 1
A16: 15 | B16: 4 | C16: 2 | D16: 5 | E16: X | F16: AS | G16: X | H16: 425XASX | I16: 4567 | J16: 1234 | K16: X | L16: X | M16: X | N16: X | O16: =PreORdIntCsh(Table1[[#This Row],[IntCode]],Table1[[#This Row],[MajVol]],Table1[[#This Row],[MinVol]],Table1[[#This Row],[AddVol]],Table1[[#This Row],[MinOne]],"") -> 0.7395146437 | P16: =PreORdIntCsh(Table1[[#This Row],[IntCode]],Table1[[#This Row],[MajVol]],Table1[[#This Row],[MinVol]],Table1[[#This Row],[AddVol]],Table1[[#This Row],[MinOne]],1) -> 0.2758244265 | Q16: =PreAltIntCsh(Table1[[#This Row],[IntCode]],Table1[[#This Row],[MajVol]],Table1[[#This Row],[MinVol]],Table1[[#This Row],[AddVol]],Table1[[#This Row],[MinOne]],"DLT") -> 0 | R16: PreOrdIntCsh, 5 inputs | T16: =Table1[[#This Row],[LG]]&Table1[[#This Row],[CT]]&IF(OR(Table1[[#This Row],[NL]]=6,Table1[[#This Row],[OT]]=1)," -6;-OW", IF(Table1[[#This Row],[SL]]=1, " -HS", "")) -> 4AS | U16: 1 | V16: 0 | W16: 0 | X16: 0 | Y16: 0 | Z16: 0 | AA16: 0 | AB16: 0 | AC16: 0 | AD16: 0 | AE16: 0 | AF16: 0 | AG16: 0 | AH16: 0 | AI16: 0 | AJ16: 0 | AK16: 0 | AL16: 0 | AM16: 0 | AN16: 0 | AO16: 0 | AP16: 0 | AQ16: 0 | AR16: 1 | AS16: 0 | AT16: 0 | AU16: 0 | AV16: 0 | AW16: 0 | AX16: 0 | AY16: 0 | AZ16: 0 | BA16: 0 | BB16: 0 | BC16: 0 | BD16: 0 | BE16: 0 | BF16: 0
A17: 16 | B17: 4 | C17: 2 | D17: 5 | E17: 1 | F17: ST | G17: X | H17: 4251STX | I17: 4567 | J17: 1234 | K17: X | L17: X | M17: X | N17: X | O17: =PreORdIntCsh(Table1[[#This Row],[IntCode]],Table1[[#This Row],[MajVol]],Table1[[#This Row],[MinVol]],Table1[[#This Row],[AddVol]],Table1[[#This Row],[MinOne]],"") -> 2.604864297 | P17: =PreORdIntCsh(Table1[[#This Row],[IntCode]],Table1[[#This Row],[MajVol]],Table1[[#This Row],[MinVol]],Table1[[#This Row],[AddVol]],Table1[[#This Row],[MinOne]],1) -> 0.8779891206 | Q17: =PreAltIntCsh(Table1[[#This Row],[IntCode]],Table1[[#This Row],[MajVol]],Table1[[#This Row],[MinVol]],Table1[[#This Row],[AddVol]],Table1[[#This Row],[MinOne]],"DLT") -> 0 | R17: PreOrdIntCsh, 5 inputs | T17: =Table1[[#This Row],[LG]]&Table1[[#This Row],[CT]]&IF(OR(Table1[[#This Row],[NL]]=6,Table1[[#This Row],[OT]]=1)," -6;-OW", IF(Table1[[#This Row],[SL]]=1, " -HS", "")) -> 4ST -HS | U17: 1 | V17: 1 | W17: 0 | X17: 1 | Y17: 0 | Z17: 1 | AA17: 0 | AB17: 0 | AC17: 1 | AD17: 0 | AE17: 0 | AF17: 0 | AG17: 0 | AH17: 0 | AI17: 0 | AJ17: 0 | AK17: 0 | AL17: 0 | AM17: 0 | AN17: 0 | AO17: 0 | AP17: 0 | AQ17: 0 | AR17: 1 | AS17: 0 | AT17: 0 | AU17: 0 | AV17: 0 | AW17: 0 | AX17: 0 | AY17: 0 | AZ17: 1 | BA17: 0 | BB17: 1 | BC17: 0 | BD17: 0 | BE17: 0 | BF17: 0
A18: 17 | B18: 4 | C18: 2 | D18: 5 | E18: 1 | F18: SG | G18: X | H18: 4251SGX | I18: 4567 | J18: 1234 | K18: X | L18: X | M18: X | N18: X | O18: =PreORdIntCsh(Table1[[#This Row],[IntCode]],Table1[[#This Row],[MajVol]],Table1[[#This Row],[MinVol]],Table1[[#This Row],[AddVol]],Table1[[#This Row],[MinOne]],"") -> 2.212319456 | P18: =PreORdIntCsh(Table1[[#This Row],[IntCode]],Table1[[#This Row],[MajVol]],Table1[[#This Row],[MinVol]],Table1[[#This Row],[AddVol]],Table1[[#This Row],[MinOne]],1) -> 0.8245500969 | Q18: =PreAltIntCsh(Table1[[#This Row],[IntCode]],Table1[[#This Row],[MajVol]],Table1[[#This Row],[MinVol]],Table1[[#This Row],[AddVol]],Table1[[#This Row],[MinOne]],"DLT") -> 1.946841121 | R18: PreOrdIntCsh, 5 inputs | T18: =Table1[[#This Row],[LG]]&Table1[[#This Row],[CT]]&IF(OR(Table1[[#This Row],[NL]]=6,Table1[[#This Row],[OT]]=1)," -6;-OW", IF(Table1[[#This Row],[SL]]=1, " -HS", "")) -> 4SG -HS | U18: 2 | V18: 1 | W18: 1 | X18: 1 | Y18: 0 | Z18: 0 | AA18: 0 | AB18: 0 | AC18: 0 | AD18: 0 | AE18: 0 | AF18: 0 | AG18: 0 | AH18: 0 | AI18: 0 | AJ18: 0 | AK18: 0 | AL18: 0 | AM18: 0 | AN18: 0 | AO18: 0 | AP18: 0 | AQ18: 0 | AR18: 1 | AS18: 0 | AT18: 1 | AU18: 0 | AV18: 1 | AW18: 0 | AX18: 1 | AY18: 0 | AZ18: 0 | BA18: 0 | BB18: 0 | BC18: 0 | BD18: 1 | BE18: 1 | BF18: 1
A19: 18 | B19: 4 | C19: 2 | D19: 5 | E19: 0 | F19: ST | G19: X | H19: 4250STX | I19: 4567 | J19: 1234 | K19: X | L19: X | M19: X | N19: X | O19: =PreORdIntCsh(Table1[[#This Row],[IntCode]],Table1[[#This Row],[MajVol]],Table1[[#This Row],[MinVol]],Table1[[#This Row],[AddVol]],Table1[[#This Row],[MinOne]],"") -> 0.9936268029 | P19: =PreORdIntCsh(Table1[[#This Row],[IntCode]],Table1[[#This Row],[MajVol]],Table1[[#This Row],[MinVol]],Table1[[#This Row],[AddVol]],Table1[[#This Row],[MinOne]],1) -> 0.8152335279 | Q19: =PreAltIntCsh(Table1[[#This Row],[IntCode]],Table1[[#This Row],[MajVol]],Table1[[#This Row],[MinVol]],Table1[[#This Row],[AddVol]],Table1[[#This Row],[MinOne]],"DLT") -> 0 | R19: PreOrdIntCsh, 5 inputs | T19: =Table1[[#This Row],[LG]]&Table1[[#This Row],[CT]]&IF(OR(Table1[[#This Row],[NL]]=6,Table1[[#This Row],[OT]]=1)," -6;-OW", IF(Table1[[#This Row],[SL]]=1, " -HS", "")) -> 4ST | U19: 1 | V19: 1 | W19: 0 | X19: 1 | Y19: 0 | Z19: 1 | AA19: 0 | AB19: 0 | AC19: 1 | AD19: 0 | AE19: 0 | AF19: 0 | AG19: 0 | AH19: 0 | AI19: 0 | AJ19: 0 | AK19: 0 | AL19: 0 | AM19: 0 | AN19: 0 | AO19: 0 | AP19: 0 | AQ19: 0 | AR19: 1 | AS19: 0 | AT19: 0 | AU19: 0 | AV19: 0 | AW19: 0 | AX19: 0 | AY19: 0 | AZ19: 1 | BA19: 0 | BB19: 1 | BC19: 0 | BD19: 0 | BE19: 0 | BF19: 0
A20: 19 | B20: 4 | C20: 2 | D20: 5 | E20: 0 | F20: SG | G20: X | H20: 4250SGX | I20: 4567 | J20: 1234 | K20: X | L20: X | M20: X | N20: X | O20: =PreORdIntCsh(Table1[[#This Row],[IntCode]],Table1[[#This Row],[MajVol]],Table1[[#This Row],[MinVol]],Table1[[#This Row],[AddVol]],Table1[[#This Row],[MinOne]],"") -> 0.7918068721 | P20: =PreORdIntCsh(Table1[[#This Row],[IntCode]],Table1[[#This Row],[MajVol]],Table1[[#This Row],[MinVol]],Table1[[#This Row],[AddVol]],Table1[[#This Row],[MinOne]],1) -> 0.9021776134 | Q20: =PreAltIntCsh(Table1[[#This Row],[IntCode]],Table1[[#This Row],[MajVol]],Table1[[#This Row],[MinVol]],Table1[[#This Row],[AddVol]],Table1[[#This Row],[MinOne]],"DLT") -> 0.6967900475 | R20: PreOrdIntCsh, 5 inputs | T20: =Table1[[#This Row],[LG]]&Table1[[#This Row],[CT]]&IF(OR(Table1[[#This Row],[NL]]=6,Table1[[#This Row],[OT]]=1)," -6;-OW", IF(Table1[[#This Row],[SL]]=1, " -HS", "")) -> 4SG | U20: 2 | V20: 1 | W20: 1 | X20: 1 | Y20: 0 | Z20: 0 | AA20: 0 | AB20: 0 | AC20: 0 | AD20: 0 | AE20: 0 | AF20: 0 | AG20: 0 | AH20: 0 | AI20: 0 | AJ20: 0 | AK20: 0 | AL20: 0 | AM20: 0 | AN20: 0 | AO20: 0 | AP20: 0 | AQ20: 0 | AR20: 1 | AS20: 1 | AT20: 1 | AU20: 1 | AV20: 1 | AW20: 1 | AX20: 1 | AY20: 0 | AZ20: 0 | BA20: 0 | BB20: 0 | BC20: 0 | BD20: 1 | BE20: 1 | BF20: 1
A21: 20 | B21: 5 | C21: 2 | D21: 5 | E21: X | F21: SG | G21: X | H21: 525XSGX | I21: 4567 | J21: 1234 | K21: 456 | L21: X | M21: X | N21: X | O21: =PreORdIntCsh(Table1[[#This Row],[IntCode]],Table1[[#This Row],[MajVol]],Table1[[#This Row],[MinVol]],Table1[[#This Row],[AddVol]],Table1[[#This Row],[MinOne]],"") -> 0.8823208146 | P21: =PreORdIntCsh(Table1[[#This Row],[IntCode]],Table1[[#This Row],[MajVol]],Table1[[#This Row],[MinVol]],Table1[[#This Row],[AddVol]],Table1[[#This Row],[MinOne]],1) -> 0.9532438473 | Q21: =PreAltIntCsh(Table1[[#This Row],[IntCode]],Table1[[#This Row],[MajVol]],Table1[[#This Row],[MinVol]],Table1[[#This Row],[AddVol]],Table1[[#This Row],[MinOne]],"DLT") -> 0 | R21: PreOrdIntCsh, 5 inputs | S21: 5-Leg, Sig only | T21: =Table1[[#This Row],[LG]]&Table1[[#This Row],[CT]]&IF(OR(Table1[[#This Row],[NL]]=6,Table1[[#This Row],[OT]]=1)," -6;-OW", IF(Table1[[#This Row],[SL]]=1, " -HS", "")) -> 5SG | U21: X | V21: 0 | W21: 0 | X21: 0 | Y21: 0 | Z21: 0 | AA21: 0 | AB21: 0 | AC21: 0 | AD21: 0 | AE21: 0 | AF21: 0 | AG21: 0 | AH21: 0 | AI21: 0 | AJ21: 0 | AK21: 0 | AL21: 0 | AM21: 0 | AN21: 0 | AO21: 0 | AP21: 0 | AQ21: 0 | AR21: 0 | AS21: 0 | AT21: 0 | AU21: 0 | AV21: 0 | AW21: 0 | AX21: 0 | AY21: 0 | AZ21: 0 | BA21: 0 | BB21: 0 | BC21: 0 | BD21: 0 | BE21: 0 | BF21: 0
A22: 21 | B22: X | C22: X | D22: X | E22: X | F22: RS | G22: X | H22: =B22&C22&D22&E22&F22&G22 -> XXXXRSX | I22: 4567 | J22: 1234 | K22: X | L22: X | M22: 1 | N22: X | O22: =PreRCUTCsh(Table1[[#This Row],[IntCode]],Table1[[#This Row],[MajVol]],Table1[[#This Row],[MinVol]],Table1[[#This Row],[UT4RC]]) -> 0.564606278 | P22: 1 | Q22: =PreAltIntCsh(Table1[[#This Row],[IntCode]],Table1[[#This Row],[MajVol]],Table1[[#This Row],[MinVol]],Table1[[#This Row],[AddVol]],Table1[[#This Row],[MinOne]],"DLT") -> 0 | R22: PreRCUTCsh, 4 inputs | S22: RCUT, Sig | T22: =Table1[[#This Row],[LG]]&Table1[[#This Row],[CT]]&IF(OR(Table1[[#This Row],[NL]]=6,Table1[[#This Row],[OT]]=1)," -6;-OW", IF(Table1[[#This Row],[SL]]=1, " -HS", "")) -> XRS | U22: 8 | V22: 1 | W22: 0 | X22: 0 | Y22: 0 | Z22: 0 | AA22: 1 | AB22: 0 | AC22: 0 | AD22: 1 | AE22: 1 | AF22: 1 | AG22: 1 | AH22: 1 | AI22: 0 | AJ22: 1 | AK22: 0 | AL22: 0 | AM22: 0 | AN22: 0 | AO22: 0 | AP22: 0 | AQ22: 0 | AR22: 0 | AS22: 0 | AT22: 0 | AU22: 0 | AV22: 0 | AW22: 0 | AX22: 0 | AY22: 0 | AZ22: 0 | BA22: 0 | BB22: 0 | BC22: 0 | BD22: 0 | BE22: 0 | BF22: 0
A23: 22 | B23: X | C23: X | D23: X | E23: X | F23: RU | G23: X | H23: XXXXRUX | I23: 4567 | J23: 1234 | K23: X | L23: X | M23: X | N23: X | O23: =PreRCUTCsh(Table1[[#This Row],[IntCode]],Table1[[#This Row],[MajVol]],Table1[[#This Row],[MinVol]],Table1[[#This Row],[UT4RC]]) -> 1.895498354 | P23: 1 | Q23: =PreAltIntCsh(Table1[[#This Row],[IntCode]],Table1[[#This Row],[MajVol]],Table1[[#This Row],[MinVol]],Table1[[#This Row],[AddVol]],Table1[[#This Row],[MinOne]],"DLT") -> 0 | R23: PreRCUTCsh, 4 inputs | S23: RCUT, Unsig | T23: =Table1[[#This Row],[LG]]&Table1[[#This Row],[CT]]&IF(OR(Table1[[#This Row],[NL]]=6,Table1[[#This Row],[OT]]=1)," -6;-OW", IF(Table1[[#This Row],[SL]]=1, " -HS", "")) -> XRU | U23: 7 | V23: 0 | W23: 0 | X23: 0 | Y23: 0 | Z23: 0 | AA23: 1 | AB23: 0 | AC23: 0 | AD23: 0 | AE23: 0 | AF23: 1 | AG23: 1 | AH23: 0 | AI23: 1 | AJ23: 1 | AK23: 1 | AL23: 0 | AM23: 0 | AN23: 0 | AO23: 0 | AP23: 0 | AQ23: 0 | AR23: 0 | AS23: 0 | AT23: 0 | AU23: 0 | AV23: 0 | AW23: 0 | AX23: 0 | AY23: 0 | AZ23: 0 | BA23: 0 | BB23: 0 | BC23: 0 | BD23: 0 | BE23: 0 | BF23: 0
A24: 23 | B24: 3 | C24: X | D24: X | E24: X | F24: RA | G24: 1 | H24: 3XXXRA1 | I24: 4567 | J24: 1234 | K24: X | L24: X | M24: X | N24: 0 | O24: =PreRACsh(Table1[[#This Row],[IntCode]],Table1[[#This Row],[MajVol]],Table1[[#This Row],[MinVol]],Table1[[#This Row],[RU4RA]], "") -> 0.4712082825 | P24: =PreRACsh(Table1[[#This Row],[IntCode]],Table1[[#This Row],[MajVol]],Table1[[#This Row],[MinVol]],Table1[[#This Row],[RU4RA]], 1) -> 0.1544724513 | Q24: =PreAltIntCsh(Table1[[#This Row],[IntCode]],Table1[[#This Row],[MajVol]],Table1[[#This Row],[MinVol]],Table1[[#This Row],[AddVol]],Table1[[#This Row],[MinOne]],"DLT") -> 0 | R24: PreRACsh, 4 inputs | S24: 3-Leg, RA, 1 Cir Lane | T24: =Table1[[#This Row],[LG]]&Table1[[#This Row],[CT]]&IF(OR(Table1[[#This Row],[NL]]=6,Table1[[#This Row],[OT]]=1)," -6;-OW", IF(Table1[[#This Row],[SL]]=1, " -HS", "")) -> 3RA | U24: 5 | V24: 0 | W24: 0 | X24: 0 | Y24: 0 | Z24: 0 | AA24: 0 | AB24: 0 | AC24: 0 | AD24: 0 | AE24: 0 | AF24: 0 | AG24: 0 | AH24: 0 | AI24: 0 | AJ24: 0 | AK24: 0 | AL24: 1 | AM24: 1 | AN24: 1 | AO24: 1 | AP24: 0 | AQ24: 0 | AR24: 0 | AS24: 0 | AT24: 0 | AU24: 0 | AV24: 0 | AW24: 0 | AX24: 0 | AY24: 0 | AZ24: 0 | BA24: 0 | BB24: 0 | BC24: 0 | BD24: 0 | BE24: 0 | BF24: 0
A25: 24 | B25: 3 | C25: X | D25: X | E25: X | F25: RA | G25: 2 | H25: 3XXXRA2 | I25: 4567 | J25: 1234 | K25: X | L25: X | M25: X | N25: 0 | O25: =PreRACsh(Table1[[#This Row],[IntCode]],Table1[[#This Row],[MajVol]],Table1[[#This Row],[MinVol]],Table1[[#This Row],[RU4RA]], "") -> 1.362483568 | P25: =PreRACsh(Table1[[#This Row],[IntCode]],Table1[[#This Row],[MajVol]],Table1[[#This Row],[MinVol]],Table1[[#This Row],[RU4RA]], 1) -> 0.1290977152 | Q25: =PreAltIntCsh(Table1[[#This Row],[IntCode]],Table1[[#This Row],[MajVol]],Table1[[#This Row],[MinVol]],Table1[[#This Row],[AddVol]],Table1[[#This Row],[MinOne]],"DLT") -> 0 | R25: PreRACsh, 4 inputs | S25: 3-Leg, RA, 2 Cir Lane | T25: =Table1[[#This Row],[LG]]&Table1[[#This Row],[CT]]&IF(OR(Table1[[#This Row],[NL]]=6,Table1[[#This Row],[OT]]=1)," -6;-OW", IF(Table1[[#This Row],[SL]]=1, " -HS", "")) -> 3RA | U25: 6 | V25: 0 | W25: 0 | X25: 0 | Y25: 0 | Z25: 0 | AA25: 0 | AB25: 0 | AC25: 0 | AD25: 0 | AE25: 0 | AF25: 0 | AG25: 0 | AH25: 0 | AI25: 0 | AJ25: 0 | AK25: 0 | AL25: 0 | AM25: 1 | AN25: 0 | AO25: 0 | AP25: 1 | AQ25: 1 | AR25: 0 | AS25: 0 | AT25: 0 | AU25: 0 | AV25: 0 | AW25: 0 | AX25: 0 | AY25: 0 | AZ25: 0 | BA25: 0 | BB25: 0 | BC25: 0 | BD25: 0 | BE25: 0 | BF25: 0
A26: 25 | B26: 4 | C26: X | D26: X | E26: X | F26: RA | G26: 1 | H26: 4XXXRA1 | I26: 4567 | J26: 1234 | K26: X | L26: X | M26: X | N26: 0 | O26: =PreRACsh(Table1[[#This Row],[IntCode]],Table1[[#This Row],[MajVol]],Table1[[#This Row],[MinVol]],Table1[[#This Row],[RU4RA]], "") -> 0.936357729 | P26: =PreRACsh(Table1[[#This Row],[IntCode]],Table1[[#This Row],[MajVol]],Table1[[#This Row],[MinVol]],Table1[[#This Row],[RU4RA]], 1) -> 0.1606311439 | Q26: =PreAltIntCsh(Table1[[#This Row],[IntCode]],Table1[[#This Row],[MajVol]],Table1[[#This Row],[MinVol]],Table1[[#This Row],[AddVol]],Table1[[#This Row],[MinOne]],"DLT") -> 0 | R26: PreRACsh, 4 inputs | S26: 4-Leg, RA, 1 Cir Lane | T26: =Table1[[#This Row],[LG]]&Table1[[#This Row],[CT]]&IF(OR(Table1[[#This Row],[NL]]=6,Table1[[#This Row],[OT]]=1)," -6;-OW", IF(Table1[[#This Row],[SL]]=1, " -HS", "")) -> 4RA | U26: 5 | V26: 0 | W26: 0 | X26: 0 | Y26: 0 | Z26: 0 | AA26: 0 | AB26: 0 | AC26: 0 | AD26: 0 | AE26: 0 | AF26: 0 | AG26: 0 | AH26: 0 | AI26: 0 | AJ26: 0 | AK26: 0 | AL26: 1 | AM26: 1 | AN26: 1 | AO26: 1 | AP26: 0 | AQ26: 0 | AR26: 0 | AS26: 0 | AT26: 0 | AU26: 0 | AV26: 0 | AW26: 0 | AX26: 0 | AY26: 0 | AZ26: 0 | BA26: 0 | BB26: 0 | BC26: 0 | BD26: 0 | BE26: 0 | BF26: 0
A27: 26 | B27: 4 | C27: X | D27: X | E27: X | F27: RA | G27: 2 | H27: 4XXXRA2 | I27: 1234 | J27: 5678 | K27: X | L27: X | M27: X | N27: 0 | O27: =PreRACsh(Table1[[#This Row],[IntCode]],Table1[[#This Row],[MajVol]],Table1[[#This Row],[MinVol]],Table1[[#This Row],[RU4RA]], "") -> 2.260169162 | P27: =PreRACsh(Table1[[#This Row],[IntCode]],Table1[[#This Row],[MajVol]],Table1[[#This Row],[MinVol]],Table1[[#This Row],[RU4RA]], 1) -> 0.1520415961 | Q27: =PreAltIntCsh(Table1[[#This Row],[IntCode]],Table1[[#This Row],[MajVol]],Table1[[#This Row],[MinVol]],Table1[[#This Row],[AddVol]],Table1[[#This Row],[MinOne]],"DLT") -> 0 | R27: PreRACsh, 4 inputs | S27: 4-Leg, RA, 2 Cir Lane | T27: =Table1[[#This Row],[LG]]&Table1[[#This Row],[CT]]&IF(OR(Table1[[#This Row],[NL]]=6,Table1[[#This Row],[OT]]=1)," -6;-OW", IF(Table1[[#This Row],[SL]]=1, " -HS", "")) -> 4RA | U27: 6 | V27: 0 | W27: 0 | X27: 0 | Y27: 0 | Z27: 0 | AA27: 0 | AB27: 0 | AC27: 0 | AD27: 0 | AE27: 0 | AF27: 0 | AG27: 0 | AH27: 0 | AI27: 0 | AJ27: 0 | AK27: 0 | AL27: 0 | AM27: 1 | AN27: 0 | AO27: 0 | AP27: 1 | AQ27: 1 | AR27: 0 | AS27: 0 | AT27: 0 | AU27: 0 | AV27: 0 | AW27: 0 | AX27: 0 | AY27: 0 | AZ27: 0 | BA27: 0 | BB27: 0 | BC27: 0 | BD27: 0 | BE27: 0 | BF27: 0
A28: 27 | B28: 4 | C28: X | D28: X | E28: X | F28: DD | G28: X | H28: =B28&C28&D28&E28&F28&G28 -> 4XXXDDX | I28: 4567 | J28: 1234 | K28: X | L28: X | M28: X | N28: X | O28: =PreORdIntCsh(Table1[[#This Row],[IntCode]],Table1[[#This Row],[MajVol]],Table1[[#This Row],[MinVol]],Table1[[#This Row],[AddVol]],Table1[[#This Row],[MinOne]]) ->  | P28: =PreORdIntCsh(Table1[[#This Row],[IntCode]],Table1[[#This Row],[MajVol]],Table1[[#This Row],[MinVol]],Table1[[#This Row],[AddVol]],Table1[[#This Row],[MinOne]],1) -> 1 | Q28: =PreAltIntCsh(Table1[[#This Row],[IntCode]],Table1[[#This Row],[MajVol]],Table1[[#This Row],[MinVol]],Table1[[#This Row],[AddVol]],Table1[[#This Row],[MinOne]],"DLT") -> 0 | T28: =Table1[[#This Row],[LG]]&Table1[[#This Row],[CT]]&IF(OR(Table1[[#This Row],[NL]]=6,Table1[[#This Row],[OT]]=1)," -6;-OW", IF(Table1[[#This Row],[SL]]=1, " -HS", "")) -> 4DD
A29: 28 | B29: 4 | C29: X | D29: X | E29: X | F29: DL | G29: X | H29: =B29&C29&D29&E29&F29&G29 -> 4XXXDLX | I29: 4567 | J29: 1234 | K29: X | L29: X | M29: X | N29: X | O29: =PreORdIntCsh(Table1[[#This Row],[IntCode]],Table1[[#This Row],[MajVol]],Table1[[#This Row],[MinVol]],Table1[[#This Row],[AddVol]],Table1[[#This Row],[MinOne]]) ->  | P29: =PreORdIntCsh(Table1[[#This Row],[IntCode]],Table1[[#This Row],[MajVol]],Table1[[#This Row],[MinVol]],Table1[[#This Row],[AddVol]],Table1[[#This Row],[MinOne]],1) -> 1 | Q29: =PreAltIntCsh(Table1[[#This Row],[IntCode]],Table1[[#This Row],[MajVol]],Table1[[#This Row],[MinVol]],Table1[[#This Row],[AddVol]],Table1[[#This Row],[MinOne]],"DLT") -> 0 | T29: =Table1[[#This Row],[LG]]&Table1[[#This Row],[CT]]&IF(OR(Table1[[#This Row],[NL]]=6,Table1[[#This Row],[OT]]=1)," -6;-OW", IF(Table1[[#This Row],[SL]]=1, " -HS", "")) -> 4DL
A30: 29 | B30: 4 | C30: X | D30: X | E30: X | F30: MU | G30: X | H30: =B30&C30&D30&E30&F30&G30 -> 4XXXMUX | I30: 4567 | J30: 1234 | K30: X | L30: X | M30: X | N30: X | O30: =PreORdIntCsh(Table1[[#This Row],[IntCode]],Table1[[#This Row],[MajVol]],Table1[[#This Row],[MinVol]],Table1[[#This Row],[AddVol]],Table1[[#This Row],[MinOne]]) ->  | P30: =PreORdIntCsh(Table1[[#This Row],[IntCode]],Table1[[#This Row],[MajVol]],Table1[[#This Row],[MinVol]],Table1[[#This Row],[AddVol]],Table1[[#This Row],[MinOne]],1) -> 1 | Q30: =PreAltIntCsh(Table1[[#This Row],[IntCode]],Table1[[#This Row],[MajVol]],Table1[[#This Row],[MinVol]],Table1[[#This Row],[AddVol]],Table1[[#This Row],[MinOne]],"DLT") -> 0 | T30: =Table1[[#This Row],[LG]]&Table1[[#This Row],[CT]]&IF(OR(Table1[[#This Row],[NL]]=6,Table1[[#This Row],[OT]]=1)," -6;-OW", IF(Table1[[#This Row],[SL]]=1, " -HS", "")) -> 4MU

Sheet Ped_Tabs (hidden)
A1: speed | B1: MVTSF_intped | D1: pedflow | E1: PFF_intped | O1: ped_elements | P1: ped_ele_abb | S1: ="int_" & P2 -> int_mtp | T1: ="int_af_" & P2 -> int_af_mtp
A2: 20 or less | B2: 0.017 | D2: None | E2: 0 | O2: Median type | P2: mtp | S2: None or flush median | T2: 2.76
A3: 25 | B3: 0.051 | D3: 1 to 5 | E3: 0.001 | O3: School zone warning | P3: szw | S3: Curbed median >= 3ft wide | T3: 1
A4: 30 | B4: 0.105 | D4: 6 to 50 | E4: 0.002 | O4: Location of pedestrian crossing | P4: loc
A5: 35 | B5: 0.183 | D5: 51 to 100 | E5: 0.003 | O5: Pedestrian crossing facility type | P5: pcf
A6: 40 | B6: 0.29 | D6: 101 to 200 | E6: 0.004 | O6: Pedestrian crossing quality | P6: pcq
A7: 45 | B7: 0.429 | D7: 201 to 300 | E7: 0.005 | O7: Pedestrian fencing | P7: pfe
A8: 50 | B8: 0.536 | D8: 301 to 500 | E8: 0.005 | O8: Vehicle parking | P8: vpr
A9: 55 | B9: 0.59 | D9: 501 to 900 | E9: 0.007 | O9: Number of auxiliary lanes | P9: nal
A10: 60 | B10: 0.643 | D10: more than 900 | E10: 0.009
A11: 65 | B11: 0.697 | S11: ="int_" & P3 -> int_szw | T11: ="int_af_" & P3 -> int_af_szw
A12: 70 | B12: 0.751 | S12: No school zone | T12: 1
A13: 75 | B13: 0.804 | S13: School zone with signs or markings | T13: 0.95
A14: 80 | B14: 0.858 | S14: School zone with flashing beacons | T14: 0.9
A15: 85 | B15: 0.912 | S15: School zone with no signs or markings | T15: 1
A16: 90 or more | B16: 0.966
S19: ="int_" & P4 -> int_loc
N20: int_ | P20: int_factype | Q20: int_inttp | S20: Locations other than schools
N21: 3STEXLT | O21: 3-leg unsignalized with exclusive left-turn lane | P21: 0.0955 | Q21: 1.1 | S21: School locations with a crossing guard
N22: 3STNOLT | O22: 3-leg unsignalized with no exclusive left-turn lane | P22: 0.0955 | Q22: 1.1 | S22: School locations without a crossing guard
N23: 3SGEXLT | O23: 3-leg signalized with exclusive left-turn lane | P23: 0.147 | Q23: 1.1
N24: 3SGNOLT | O24: 3-leg signalized with no exclusive left-turn lane | P24: 0.147 | Q24: 1.1 | T24: =S20 -> Locations other than schools | U24: =S21 -> School locations with a crossing guard | V24: =S22 -> School locations without a crossing guard
N25: 4STEXLT | O25: 4-leg unsignalized with exclusive left-turn lane | P25: 0.0957 | Q25: 1.2 | S25: ="int_" & P5 -> int_pcf | W25: =S2 -> None or flush median | X25: =S3 -> Curbed median >= 3ft wide | AB25: None or flush median | AC25: Curbed median >= 3ft wide
N26: 4STNOLT | O26: 4-leg unsignalized with no exclusive left-turn lane | P26: 0.0957 | Q26: 1.2 | S26: No facility | T26: 6.7 | U26: 4.8 | V26: 6.7 | W26: x | X26: x | AB26: No facility | AC26: No facility
N27: 4SGEXLT | O27: 4-leg signalized with exclusive left-turn lane | P27: 0.0387 | Q27: 1.2 | S27: Marked crossing w/out refuge, unsignalized | T27: 4.8 | U27: 1.25 | V27: 4.8 | W27: x | AB27: Marked crossing w/out refuge, unsignalized | AC27: Marked crossing w/ refuge, unsignalized
N28: 4SGNOLT | O28: 4-leg signalized with no exclusive left-turn lane | P28: 0.0387 | Q28: 1.2 | S28: Marked crossing w/ refuge, unsignalized | T28: 3.8 | U28: 1 | V28: 3.8 | X28: x | AB28: Signalized w/out refuge | AC28: Unmarked crossing w/ refuge, unsignalized
S29: Unmarked crossing w/ refuge, unsignalized | T29: 5.1 | U29: 3.8 | V29: 5.1 | X29: x | AB29: PHB, marked crosswalk w/out refuge | AC29: Signalized with refuge
S30: Signalized w/out refuge | T30: 1.25 | U30: 1.2 | V30: 1.25 | W30: x | AB30: Grade separated facility, no fencing | AC30: PHB, marked crossing with refuge
N31: int_ped_tp | O31: int_af_inttp | S31: Signalized with refuge | T31: 1 | U31: 0.95 | V31: 1 | X31: x | AB31: Grade separated facility - pedestrian fencing present | AC31: Grade separated facility, no fencing
N32: 3 | O32: 1.1 | S32: PHB, marked crosswalk w/out refuge | T32: 2.15 | U32: 0 | V32: 0 | W32: x | AC32: Grade separated facility - pedestrian fencing present
N33: 4 | O33: 1.2 | S33: PHB, marked crossing with refuge | T33: 1.75 | U33: 0 | V33: 0 | X33: x
N34: 5 | O34: 1.2 | P34: [Assuming 5 is same as 4] | S34: Grade separated facility, no fencing | T34: 0.4 | U34: 0.3 | V34: 0.4 | W34: x | X34: x
N35: int_ped_tp2 | O35: int_af_factp | S35: Grade separated facility - pedestrian fencing present | T35: 0 | U35: 0 | V35: 0 | W35: x | X35: x
N36: 3ST | O36: 0.0955
N37: 3SG | O37: 0.147
N38: 4ST | O38: 0.0957
N39: 4SG | O39: 0.0387 | S39: ="int_" & P6 -> int_pcq | T39: ="int_af_" & P6 -> int_af_pcq
S40: Adequate | T40: 1
S41: Poor | T41: 1.5
S42: Not applicable (no crossing present) | T42: 1
S45: ="int_" & P7 -> int_pfe | T45: ="int_af_" & P7 -> int_af_pfe
S46: Full length of roadway segment | T46: 0
S47: At pedestrian crossing | T47: 1
S48: None | T48: 1.25
S52: ="int_" & P8 -> int_vpr | T52: ="int_af_" & P8 -> int_af_vpr
S53: None | T53: 1
S54: One side | T54: 1.2
S55: Two sides | T55: 1.33
Q59: int_nal0 | S59: ="int_" & P9 -> int_nal | T59: ="int_af_" & P9 -> int_af_nal
Q60: 0 | S60: 2 | T60: 1
Q61: 1 | S61: 3 | T61: 1.8
Q62: 2 | S62: 4 | T62: 2.8
Q63: 4 | S63: 5 | T63: 4
S64: 6 | T64: 5.2
S65: 7 | T65: 6.6
S66: 8 | T66: 8
S72: int_lit | T72: int_af_lit
S73: Present | T73: 1
S74: Not present | T74: 1.25

Sheet Bik_Tabs (hidden)
A1: speed | B1: MVTSF_intbik | D1: bikflow | E1: BFF_intbik | H1: adt | I1: bik_af_adt | O1: bik_elements | P1: bik_ele_abb | R1: ="bik_" & P2 -> bik_bs1 | S1: ="bik_af_" & P2 -> bik_af_bs1
A2: 20 or less | B2: 0.011 | D2: None | E2: 0 | H2: 1999 | I2: 0.015 | O2: Bicycle facilities and paved shoulder provision (entering) | P2: bs1 | R2: None | S2: 1.2
A3: 25 | B3: 0.031 | D3: 1 to 5 | E3: 0.001 | H3: =H2+2000 -> 3999 | I3: 0.03 | O3: Bicycle facilities and paved shoulder provision (exiting) | P3: bs2 | R3: Wide outside lane >= 14 ft | S3: 1.2
A4: 30 | B4: 0.064 | D4: 6 to 50 | E4: 0.002 | H4: =H3+2000 -> 5999 | I4: 0.042 | O4: Bicycle path presence and pedestrian crossing facility type | P4: bpp | R4: Signed or marked shared roadway (Sharrow) | S4: 1
A5: 35 | B5: 0.112 | D5: 51 to 100 | E5: 0.003 | H5: 7999 | I5: 0.052 | O5: Intersection quality | P5: biq | R5: Paved shoulder | S5: 1.2
A6: 40 | B6: 0.178 | D6: 101 to 200 | E6: 0.004 | H6: 9999 | I6: 0.062 | O6: Intersection channelization | P6: bic | R6: Dedicated bike lane on road | S6: 1
A7: 45 | B7: 0.264 | D7: 201 to 300 | E7: 0.005 | H7: 11999 | I7: 0.07 | R7: Separated bike path with or without barrier | S7: 1
A8: 50 | B8: 0.372 | D8: 301 to 500 | E8: 0.006 | H8: 13999 | I8: 0.078
A9: 55 | B9: 0.505 | D9: 501 to 900 | E9: 0.007 | H9: 15999 | I9: 0.086
A10: 60 | B10: 0.643 | D10: more than 900 | E10: 0.009 | H10: 17999 | I10: 0.093
A11: 65 | B11: 0.697 | H11: 999999999 | I11: 0.1
A12: 70 | B12: 0.751
A13: 75 | B13: 0.804 | R13: ="bik_" & P4 -> bik_bpp | S13: ="bik_af_" & P4 -> bik_af_bpp | T13: none median | U13: curbed median | AA13: None or flush median | AB13: Curbed median >= 3ft wide
A14: 80 | B14: 0.858 | R14: No bike path or crossing facility | S14: 1 | T14: x | U14: x | AA14: No bike path or crossing facility | AB14: No bike path or crossing facility
A15: 85 | B15: 0.912 | R15: bike path and refuge | S15: 0.76 | U15: x | AA15: bike path and refuge | AB15: bike path and refuge
A16: 90 or more | B16: 0.966 | R16: bike path & marked crossing, no refuge | S16: 0.72 | T16: x | AA16: bike path & marked crossing w/ refuge | AB16: bike path & marked crossing w/ refuge
R17: bike path & marked crossing w/ refuge | S17: 0.57 | U17: x | AA17: bike path, signalized w/ refuge | AB17: bike path, signalized w/ refuge
R18: bike path, signalized without refuge | S18: 0.19 | T18: x | AA18: Grade separated bike facility | AB18: Grade separated bike facility
R19: bike path, signalized w/ refuge | S19: 0.15 | U19: x
R20: Grade separated bike facility | S20: 0 | T20: x | U20: x
N31: bik_leg | O31: bik_af_sev | P31: bik_af_factp
N32: 3 | O32: 45 | P32: 0.0352
N33: 4 | O33: 50 | P33: 0.0424
N34: 5 | O34: =O33 -> 50 | P34: =P33 -> 0.0424 | Q34: [Assuming 5 is same 4 per discussion with Robert]
R39: ="bik_" & P5 -> bik_biq | S39: ="bik_af_" & P5 -> bik_af_biq
R40: Adequate | S40: 1
R41: Poor | S41: 1.2
N42: bik_tp2 | O42: bik_af_tp2 | R42: Not applicable (no crossing present) | S42: 1
N43: 3STWLT | O43: 45
N44: 3STNLT | O44: 55
N45: 3SGWLT | O45: 30 | R45: ="bik_" & P6 -> bik_bic | S45: ="bik_af_" & P6 -> bik_af_bic
N46: 3SGNLT | O46: 40 | R46: Not present | S46: 1.2
N47: 4STWLT | O47: 55 | R47: Present | S47: 1
N48: 4STNLT | O48: 80
N49: 4SGWLT | O49: 35
N50: 4SGNLT | O50: 50
R52: bik_lit | S52: bik_af_lit
R53: Present | S53: 1
R54: Not present | S54: 1.25

Sheet Ped_Bik_Ratio (hidden)
A1: forPedIntCode | B1: forPedRatio | C1: Source | D1: Note | E1: No | F1: LG | G1: OT | H1: NL | I1: SL | J1: CT | K1: 3T
A2: 525XSGX | B2: 0.04 | C2: Arbitrary | D2: 5Leg | E2: 20 | F2: 5 | G2: 2 | H2: 5 | I2: X | J2: SG | K2: X
A3: XXXXRSX | B3: 0.02 | C3: Arbitrary | D3: Rcut | E3: 21 | F3: X | G3: X | H3: X | I3: X | J3: RS | K3: X
A4: XXXXRUX | B4: 0.02 | C4: Arbitrary | D4: Rcut | E4: 22 | F4: X | G4: X | H4: X | I4: X | J4: RU | K4: X
A5: 3XXXRA1 | B5: 0.02 | C5: Roundabouts: An Informational Guide Second Edition (2010) | D5: Roundabout | E5: 23 | F5: 3 | G5: X | H5: X | I5: X | J5: RA | K5: 1
A6: 3XXXRA2 | B6: 0.02 | C6: Roundabouts: An Informational Guide Second Edition (2010) | D6: Roundabout | E6: 24 | F6: 3 | G6: X | H6: X | I6: X | J6: RA | K6: 2
A7: 4XXXRA1 | B7: 0.02 | C7: Roundabouts: An Informational Guide Second Edition (2010) | D7: Roundabout | E7: 25 | F7: 4 | G7: X | H7: X | I7: X | J7: RA | K7: 1
A8: 4XXXRA2 | B8: 0.02 | C8: Roundabouts: An Informational Guide Second Edition (2010) | D8: Roundabout | E8: 26 | F8: 4 | G8: X | H8: X | I8: X | J8: RA | K8: 2
A9: 4XXXDDX | B9: 0.01 | C9: Arbitrary | D9: DDI | E9: 27 | F9: 4 | G9: X | H9: X | I9: X | J9: DD | K9: X
A10: 4XXXDLX | B10: 0.01 | C10: Arbitrary | D10: DLT | E10: 28 | F10: 4 | G10: X | H10: X | I10: X | J10: DL | K10: X
A11: 4XXXMUX | B11: 0.01 | C11: Arbitrary | D11: MUT | E11: 29 | F11: 4 | G11: X | H11: X | I11: X | J11: MU | K11: X
A12: 325XASX | B12: 0.04 | C12: Arbitrary | D12: AS | E12: 5 | F12: 3 | G12: 2 | H12: 5 | I12: X | J12: AS | K12: X
A13: 425XASX | B13: 0.04 | C13: Arbitrary | D13: AS | E13: 15 | F13: 4 | G13: 2 | H13: 5 | I13: X | J13: AS | K13: X

Sheet Helpers (hidden)
N1: 1 | O1: 2 | P1: 3 | Q1: 4 | R1: 5 | S1: 6 | T1: 7 | U1: 8 | V1: 9 | W1: 10 | X1: 11 | Y1: 12 | Z1: 13 | AA1: 14 | AB1: 15 | AC1: 16 | AD1: 17 | AE1: 18 | AF1: 19 | AG1: 20 | AH1: 21 | AI1: 22 | AJ1: 23 | AK1: 24 | AL1: 25 | AM1: 26 | AN1: 27 | AO1: 28 | AP1: 29
A2: Leg and Control Type | K2: IntCode | L2: NoInt | N2: 31XXSTX | O2: 31XXSGX | P2: 326XSTX | Q2: 326XSGX | R2: 325XASX | S2: 3251STX | T2: 3251SGX | U2: 3250ST0 | V2: 3250SG0 | W2: 3250ST1 | X2: 41XXSTX | Y2: 41XXSGX | Z2: 426XSTX | AA2: 426XSGX | AB2: 425XASX | AC2: 4251STX | AD2: 4251SGX | AE2: 4250STX | AF2: 4250SGX | AG2: 525XSGX | AH2: XXXXRSX | AI2: XXXXRUX | AJ2: 3XXXRA1 | AK2: 3XXXRA2 | AL2: 4XXXRA1 | AM2: 4XXXRA2 | AN2: 4XXXDDX | AO2: 4XXXDLX | AP2: 4XXXMUX
A3: NumLeg | B3: 3 | C3: 4 | D3: 5 | J3: 1 | K3: 31XXSTX | L3: 1 | N3: Minor STOP | O3: Signalized | P3: Minor STOP | Q3: Signalized | R3: All-Way STOP | S3: All-Way STOP | T3: Signalized | U3: All-Way STOP | V3: Signalized | W3: Minor STOP | X3: Minor STOP | Y3: Signalized | Z3: Minor STOP | AA3: Signalized | AB3: All-Way STOP | AC3: All-Way STOP | AD3: Signalized | AE3: All-Way STOP | AF3: Signalized | AG3: Signalized | AH3: All-Way STOP | AI3: All-Way STOP | AJ3: All-Way STOP | AK3: All-Way STOP | AL3: All-Way STOP | AM3: All-Way STOP | AN3: All-Way STOP | AO3: All-Way STOP | AP3: All-Way STOP
B4: All-Way STOP | C4: All-Way STOP | D4: Signalized | J4: 2 | K4: 31XXSGX | L4: 2 | N4: Signalized | O4: Roundabout | P4: Signalized | Q4: Roundabout | R4: Minor STOP | S4: Minor STOP | T4: Roundabout | U4: Minor STOP | V4: Roundabout | X4: Signalized | Y4: Roundabout | Z4: Signalized | AA4: Roundabout | AB4: Minor STOP | AC4: Minor STOP | AD4: Roundabout | AE4: Minor STOP | AF4: Roundabout | AH4: Minor STOP | AI4: Minor STOP | AJ4: Minor STOP | AK4: Minor STOP | AL4: Minor STOP | AM4: Minor STOP | AN4: Minor STOP | AO4: Minor STOP | AP4: Minor STOP
B5: Minor STOP | C5: Minor STOP | J5: 3 | K5: 326XSTX | L5: 3 | N5: Roundabout | P5: Roundabout | R5: Signalized | S5: Signalized | U5: Signalized | X5: Roundabout | Y5: RCUT-Sig | Z5: Roundabout | AA5: RCUT-Sig | AB5: Signalized | AC5: Signalized | AD5: RCUT-Sig | AE5: Signalized | AF5: RCUT-Sig | AH5: Signalized | AI5: Signalized | AJ5: Signalized | AK5: Signalized | AL5: Signalized | AM5: Signalized | AN5: Signalized | AO5: Signalized | AP5: Signalized
B6: Signalized | C6: Signalized | J6: 4 | K6: 326XSGX | L6: 4 | R6: Roundabout | S6: Roundabout | U6: Roundabout | X6: RCUT-Sig | Y6: RCUT-Unsig | Z6: RCUT-Sig | AA6: RCUT-Unsig | AB6: Roundabout | AC6: Roundabout | AD6: RCUT-Unsig | AE6: Roundabout | AF6: RCUT-Unsig | AH6: Roundabout | AI6: Roundabout | AJ6: Roundabout | AK6: Roundabout | AL6: Roundabout | AM6: Roundabout | AN6: Roundabout | AO6: Roundabout | AP6: Roundabout
B7: Roundabout | C7: Roundabout | G7: Turning Intersection? | H7: Number of Circulating Lanes | I7: Number of U-Turns | J7: 5 | K7: 325XASX | L7: 5 | X7: RCUT-Unsig | Y7: DDI | Z7: RCUT-Unsig | AA7: DDI | AB7: RCUT-Sig | AC7: RCUT-Sig | AD7: DDI | AE7: RCUT-Sig | AF7: DDI | AH7: RCUT-Sig | AI7: RCUT-Sig | AL7: RCUT-Sig | AM7: RCUT-Sig | AN7: RCUT-Sig | AO7: RCUT-Sig | AP7: RCUT-Sig
C8: RCUT-Sig | G8: Yes | H8: 1 | I8: 1 | J8: 6 | K8: 3251STX | L8: 6 | X8: DDI | Y8: DLT | Z8: DDI | AA8: DLT | AB8: RCUT-Unsig | AC8: RCUT-Unsig | AD8: DLT | AE8: RCUT-Unsig | AF8: DLT | AH8: RCUT-Unsig | AI8: RCUT-Unsig | AL8: RCUT-Unsig | AM8: RCUT-Unsig | AN8: RCUT-Unsig | AO8: RCUT-Unsig | AP8: RCUT-Unsig
C9: RCUT-Unsig | G9: No | H9: 2 | I9: 2 | J9: 7 | K9: 3251SGX | L9: 7 | X9: DLT | Y9: MUT | Z9: DLT | AA9: MUT | AB9: DDI | AC9: DDI | AD9: MUT | AE9: DDI | AF9: MUT | AH9: DDI | AI9: DDI | AL9: DDI | AM9: DDI | AN9: DDI | AO9: DDI | AP9: DDI
C10: DDI | J10: 8 | K10: 3250ST0 | L10: 8 | X10: MUT | Z10: MUT | AB10: DLT | AC10: DLT | AE10: DLT | AH10: DLT | AI10: DLT | AL10: DLT | AM10: DLT | AN10: DLT | AO10: DLT | AP10: DLT
C11: DLT | J11: 9 | K11: 3250SG0 | L11: 9 | AB11: MUT | AC11: MUT | AE11: MUT | AH11: MUT | AI11: MUT | AL11: MUT | AM11: MUT | AN11: MUT | AO11: MUT | AP11: MUT
C12: MUT | J12: 10 | K12: 3250ST1 | L12: 10
J13: 11 | K13: 41XXSTX | L13: 11
J14: 12 | K14: 41XXSGX | L14: 12
C15: AltSig | J15: 13 | K15: 426XSTX | L15: 13
C16: RCUT-Sig | J16: 14 | K16: 426XSGX | L16: 14
C17: RCUT-Unsig | H17: PrType | J17: 15 | K17: 425XASX | L17: 15
C18: DDI | H18: 3R | J18: 16 | K18: 4251STX | L18: 16
C19: DLT | H19: 4R | J19: 17 | K19: 4251SGX | L19: 17
C20: MUT | J20: 18 | K20: 4250STX | L20: 18
J21: 19 | K21: 4250SGX | L21: 19
J22: 20 | K22: 525XSGX | L22: 20
J23: 21 | K23: XXXXRSX | L23: 21
J24: 22 | K24: XXXXRUX | L24: 22
C25: AltInt | D25: CMF | J25: 23 | K25: 3XXXRA1 | L25: 23
C26: RCUT-Sig | D26: 0.85 | J26: 24 | K26: 3XXXRA2 | L26: 24
C27: RCUT-Unsig | D27: 0.65 | J27: 25 | K27: 4XXXRA1 | L27: 25
C28: DDI | D28: 0.67 | J28: 26 | K28: 4XXXRA2 | L28: 26
C29: DLT | D29: 0.88 | J29: 27 | K29: 4XXXDDX | L29: 27
C30: MUT | D30: 0.85 | J30: 28 | K30: 4XXXDLX | L30: 28
J31: 29 | K31: 4XXXMUX | L31: 29
L32: 30
G33: Opt2Plot | L33: 31
G34: =Int_Temp!D37 -> Existing | L34: 32
G35: Standard | L35: 33
G36: =Int_Temp!F37 -> Design 1 | L36: 34
G37: =Int_Temp!G37 -> Design 2 | L37: 35
G38: Optimal | L38: 36
L39: 37
L40: 38
L41: 39
L42: 40
L43: 41
L44: 42
L45: 43
L46: 44
L47: 45
L48: 46
L49: 47
L50: 48
L51: 49
L52: 50

Sheet CMF_Tab2 (hidden)
A1: Num | B1: IntCode | C1: Note | D1: =Table1[[#Headers],[Left-Turn Lanes]] -> Left-Turn Lanes | E1: =Table1[[#Headers],[Offset Left-Turn Lanes]] -> Offset Left-Turn Lanes | F1: =Table1[[#Headers],[Right-Turn Lanes]] -> Right-Turn Lanes | G1: =Table1[[#Headers],[Right-Turn Channelization]] -> Right-Turn Channelization | H1: =Table1[[#Headers],[Sight Distance]] -> Sight Distance | I1: =Table1[[#Headers],[Median Width]] -> Median Width | J1: =Table1[[#Headers],[Median on Min Approach]] -> Median on Min Approach | K1: =Table1[[#Headers],[Replace Direct Left-Turn with Right Turn/U-Turn]] -> Replace Direct Left-Turn with Right Turn/U-Turn | L1: =Table1[[#Headers],[Number of Lanes M J]] -> Number of Lanes M J | M1: =Table1[[#Headers],[Number of Lanes M I]] -> Number of Lanes M I | N1: =Table1[[#Headers],[Offset Distance]] -> Offset Distance | O1: =Table1[[#Headers],[Number of Driveways]] -> Number of Driveways | P1: =Table1[[#Headers],[Speed Limit]] -> Speed Limit | Q1: =Table1[[#Headers],[Acceleration Lane Length]] -> Acceleration Lane Length | R1: =Table1[[#Headers],[Deceleration Lane Length]] -> Deceleration Lane Length | S1: =Table1[[#Headers],[Number of U-Turns]] -> Number of U-Turns | T1: =Table1[[#Headers],[Inscribed Circle Diameter]] -> Inscribed Circle Diameter | U1: =Table1[[#Headers],[Outbound-Only Leg]] -> Outbound-Only Leg | V1: =Table1[[#Headers],[Right-Turn Bypass Lane]] -> Right-Turn Bypass Lane | W1: =Table1[[#Headers],[Access Point Frequency]] -> Access Point Frequency | X1: =Table1[[#Headers],[Entry Width]] -> Entry Width | Y1: =Table1[[#Headers],[Entering Lanes]] -> Entering Lanes | Z1: =Table1[[#Headers],[Lighting]] -> Lighting | AA1: =Table1[[#Headers],[Left-Turn Signal Phasing]] -> Left-Turn Signal Phasing | AB1: =Table1[[#Headers],[Increase Total Change Interval]] -> Increase Total Change Interval | AC1: =Table1[[#Headers],[Prohibit Right-Turn-on-Red]] -> Prohibit Right-Turn-on-Red | AD1: =Table1[[#Headers],[Retroreflective Sheeting to Backplates]] -> Retroreflective Sheeting to Backplates | AE1: =Table1[[#Headers],[Red-Light Cameras]] -> Red-Light Cameras | AF1: =Table1[[#Headers],[Actuated Advance Warning]] -> Actuated Advance Warning | AG1: =Table1[[#Headers],[Painted Median on Minor Approach]] -> Painted Median on Minor Approach | AH1: =Table1[[#Headers],[Prohibit Left-Turns]] -> Prohibit Left-Turns | AI1: =Table1[[#Headers],[Prohibit U-Turns]] -> Prohibit U-Turns | AJ1: =Table1[[#Headers],[Prohibit Left-Turns and U-Turns]] -> Prohibit Left-Turns and U-Turns | AK1: =Table1[[#Headers],[Right-In Right-Out]] -> Right-In Right-Out | AL1: Num | AM1: IntCode | AN1: Note
A2: No1. Boundaries | D2: =Acroymn(D1) -> LTL | E2: =Acroymn(E1) -> OLTL | F2: =Acroymn(F1) -> RTL | G2: RTC | H2: SD | I2: MW | J2: MOMA | K2: RDLTWRTT | L2: NOLMJ | M2: NOLMI | N2: OD | O2: NOD | P2: SL | Q2: ALL | R2: DLL | S2: NOUT | T2: ICD | U2: OOL | V2: RTBL | W2: APF | X2: EW | Y2: EL | Z2: L | AA2: LTSP | AB2: ITCI | AC2: PRTOR | AD2: RSTB | AE2: RLC | AF2: AAW | AG2: PMOMA | AH2: PLT | AI2: PUT | AJ2: PLTAUT | AK2: RIRO
D3: Num of Approaches with Exclusive Left-Turn Lanes | E3: Offset Left-Turn Lanes | F3: Num of Approaches with Exclusive Right-Turn Lanes | G3: Num of Approaches on Major St. with Right-Turn Channelization | H3: Sight Distance (ft) | I3: RCUT Median Width (ft) | J3: Median on Min Approach | K3: Replace Direct Left-Turn with Right Turn/U-Turn | L3: Major Street Lane Number | M3: Minor Street Lane Number | N3: RCUT Offset Distance (ft) | O3: RCUT Number of Driveways | P3: Major Road Speed Limit (mph) | Q3: RCUT Acceleration Lane Length (ft) | R3: RCUT Deceleration Lane Length (ft) | S3: RCUT Number of U-Turns | T3: Roundabout (RA) Inscribed Circle Diameter (ft) | U3: RA Number of Outbound-only Leg(s) | V3: RA Number of Legs with Right-Turn Bypass Lane | W3: RA Total Number of Driveways/Access Points of the Roundabout (within 250 ft of yield line) | X3: RA Entry Width (ft) | Y3: RA Number of Circulating Lane Conflicting with the Leg | Z3: Lighting | AA3: Left-Turn Signal Phasing | AB3: Increase total change interval (greater than ITE recommended practice) | AC3: Number of Approaches for which RTOR is Prohibited | AD3: Retroreflective Sheeting to Backplates | AE3: Red-Light Cameras | AF3: Actuated Advance Warning | AG3: Painted Median on Minor Approach | AH3: Prohibit Left-Turns | AI3: Number of Approaches with U-Turn Prohibition | AJ3: Prohibit Left-Turns and U-Turns | AK3: Right-In Right-Out
A4: 1 | B4: =Intersection_Type!H2 -> 31XXSTX | C4: 3ST -6;-OW | D4: 0 | E4: 0 | F4: 0 | G4: 0 | H4: [1,1320] | I4: -1 | J4: 0 | K4: 0 | L4: -1 | M4: -1 | N4: -1 | O4: -1 | P4: -1 | Q4: -1 | R4: -1 | S4: -1 | T4: -1 | U4: -1 | V4: -1 | W4: -1 | X4: -1 | Y4: -1 | Z4: {No,Yes} | AA4: -1 | AB4: -1 | AC4: -1 | AD4: -1 | AE4: -1 | AF4: -1 | AG4: -1 | AH4: 0 | AI4: 0 | AJ4: -1 | AK4: 0 | AL4: 1 | AM4: 31XXSTX | AN4: 3ST -6;-OW
A5: 2 | B5: =Intersection_Type!H3 -> 31XXSGX | C5: 3SG -6;-OW | D5: 0 | E5: 0 | F5: 0 | G5: 0 | H5: -1 | I5: -1 | J5: 0 | K5: 0 | L5: -1 | M5: -1 | N5: -1 | O5: -1 | P5: -1 | Q5: -1 | R5: -1 | S5: -1 | T5: -1 | U5: -1 | V5: -1 | W5: -1 | X5: -1 | Y5: -1 | Z5: {No,Yes} | AA5: {Permissive,Protected-Permissive,Protected} | AB5: -1 | AC5: {0,1,2,3} | AD5: {No,Yes} | AE5: -1 | AF5: {No,Yes} | AG5: -1 | AH5: 0 | AI5: 0 | AJ5: -1 | AK5: 0 | AL5: 2 | AM5: 31XXSGX | AN5: 3SG -6;-OW
A6: 3 | B6: =Intersection_Type!H4 -> 326XSTX | C6: 3ST -6;-OW | D6: {0,1,2,3} | E6: 0 | F6: {0,1,2} | G6: {0,1,2} | H6: [1,1320] | I6: -1 | J6: {No,Yes} | K6: 0 | L6: -1 | M6: -1 | N6: -1 | O6: -1 | P6: -1 | Q6: -1 | R6: -1 | S6: -1 | T6: -1 | U6: -1 | V6: -1 | W6: -1 | X6: -1 | Y6: -1 | Z6: {No,Yes} | AA6: -1 | AB6: -1 | AC6: -1 | AD6: -1 | AE6: -1 | AF6: -1 | AG6: -1 | AH6: 0 | AI6: {0,1,2,3} | AJ6: -1 | AK6: {No,Yes} | AL6: 3 | AM6: 326XSTX | AN6: 3ST -6;-OW
A7: 4 | B7: =Intersection_Type!H5 -> 326XSGX | C7: 3SG -6;-OW | D7: {0,1,2,3} | E7: {No,Yes} | F7: {0,1,2} | G7: {0,1,2} | H7: -1 | I7: -1 | J7: 0 | K7: 0 | L7: -1 | M7: -1 | N7: -1 | O7: -1 | P7: -1 | Q7: -1 | R7: -1 | S7: -1 | T7: -1 | U7: -1 | V7: -1 | W7: -1 | X7: -1 | Y7: -1 | Z7: {No,Yes} | AA7: {Permissive,Protected-Permissive,Protected} | AB7: -1 | AC7: {0,1,2,3} | AD7: {No,Yes} | AE7: -1 | AF7: {No,Yes} | AG7: -1 | AH7: {No,Yes} | AI7: {0,1,2,3} | AJ7: -1 | AK7: 0 | AL7: 4 | AM7: 326XSGX | AN7: 3SG -6;-OW
A8: 5 | B8: =Intersection_Type!H6 -> 325XASX | C8: 3AS | D8: 0 | E8: 0 | F8: 0 | G8: 0 | H8: 0 | I8: -1 | J8: 0 | K8: 0 | L8: -1 | M8: -1 | N8: -1 | O8: -1 | P8: -1 | Q8: -1 | R8: -1 | S8: -1 | T8: -1 | U8: -1 | V8: -1 | W8: -1 | X8: -1 | Y8: -1 | Z8: {No,Yes} | AA8: -1 | AB8: -1 | AC8: -1 | AD8: -1 | AE8: -1 | AF8: -1 | AG8: -1 | AH8: 0 | AI8: 0 | AJ8: -1 | AK8: 0 | AL8: 5 | AM8: 325XASX | AN8: 3AS
A9: 6 | B9: =Intersection_Type!H7 -> 3251STX | C9: 3ST -HS | D9: {0,1,2,3} | E9: 0 | F9: {0,1,2} | G9: {0,1,2} | H9: [1,1320] | I9: -1 | J9: {No,Yes} | K9: 0 | L9: -1 | M9: -1 | N9: -1 | O9: -1 | P9: -1 | Q9: -1 | R9: -1 | S9: -1 | T9: -1 | U9: -1 | V9: -1 | W9: -1 | X9: -1 | Y9: -1 | Z9: {No,Yes} | AA9: -1 | AB9: -1 | AC9: -1 | AD9: -1 | AE9: -1 | AF9: -1 | AG9: -1 | AH9: 0 | AI9: {0,1,2,3} | AJ9: -1 | AK9: {No,Yes} | AL9: 6 | AM9: 3251STX | AN9: 3ST -HS
A10: 7 | B10: =Intersection_Type!H8 -> 3251SGX | C10: 3SG -HS | D10: {0,1,2,3} | E10: {No,Yes} | F10: {0,1,2} | G10: {0,1,2} | H10: -1 | I10: -1 | J10: 0 | K10: 0 | L10: -1 | M10: -1 | N10: -1 | O10: -1 | P10: -1 | Q10: -1 | R10: -1 | S10: -1 | T10: -1 | U10: -1 | V10: -1 | W10: -1 | X10: -1 | Y10: -1 | Z10: {No,Yes} | AA10: {Permissive,Protected-Permissive,Protected} | AB10: -1 | AC10: {0,1,2,3} | AD10: {No,Yes} | AE10: -1 | AF10: {No,Yes} | AG10: -1 | AH10: {No,Yes} | AI10: {0,1,2,3} | AJ10: -1 | AK10: 0 | AL10: 7 | AM10: 3251SGX | AN10: 3SG -HS
A11: 8 | B11: =Intersection_Type!H9 -> 3250ST0 | C11: 3ST | D11: {0,1,2,3} | E11: 0 | F11: {0,1,2} | G11: {0,1,2} | H11: [1,1320] | I11: -1 | J11: {No,Yes} | K11: 0 | L11: -1 | M11: -1 | N11: -1 | O11: -1 | P11: -1 | Q11: -1 | R11: -1 | S11: -1 | T11: -1 | U11: -1 | V11: -1 | W11: -1 | X11: -1 | Y11: -1 | Z11: {No,Yes} | AA11: -1 | AB11: -1 | AC11: -1 | AD11: -1 | AE11: -1 | AF11: -1 | AG11: -1 | AH11: 0 | AI11: {0,1,2,3} | AJ11: -1 | AK11: {No,Yes} | AL11: 8 | AM11: 3250ST0 | AN11: 3ST
A12: 9 | B12: =Intersection_Type!H10 -> 3250SG0 | C12: 3SG | D12: {0,1,2,3} | E12: {No,Yes} | F12: {0,1,2} | G12: {0,1,2} | H12: -1 | I12: -1 | J12: 0 | K12: 0 | L12: -1 | M12: -1 | N12: -1 | O12: -1 | P12: -1 | Q12: -1 | R12: -1 | S12: -1 | T12: -1 | U12: -1 | V12: -1 | W12: -1 | X12: -1 | Y12: -1 | Z12: {No,Yes} | AA12: {Permissive,Protected-Permissive,Protected} | AB12: -1 | AC12: {0,1,2,3} | AD12: {No,Yes} | AE12: -1 | AF12: -1 | AG12: -1 | AH12: {No,Yes} | AI12: {0,1,2,3} | AJ12: -1 | AK12: 0 | AL12: 9 | AM12: 3250SG0 | AN12: 3SG
A13: 10 | B13: =Intersection_Type!H11 -> 3250ST1 | C13: 3ST | D13: -1 | E13: -1 | F13: -1 | G13: -1 | H13: -1 | I13: -1 | J13: -1 | K13: -1 | L13: -1 | M13: -1 | N13: -1 | O13: -1 | P13: -1 | Q13: -1 | R13: -1 | S13: -1 | T13: -1 | U13: -1 | V13: -1 | W13: -1 | X13: -1 | Y13: -1 | Z13: -1 | AA13: -1 | AB13: -1 | AC13: -1 | AD13: -1 | AE13: -1 | AF13: -1 | AG13: -1 | AH13: -1 | AI13: -1 | AJ13: -1 | AK13: -1 | AL13: 10 | AM13: 3250ST1 | AN13: 3ST
A14: 11 | B14: =Intersection_Type!H12 -> 41XXSTX | C14: 4ST -6;-OW | D14: 0 | E14: 0 | F14: 0 | G14: 0 | H14: [1,1320] | I14: -1 | J14: 0 | K14: 0 | L14: -1 | M14: -1 | N14: -1 | O14: -1 | P14: -1 | Q14: -1 | R14: -1 | S14: -1 | T14: -1 | U14: -1 | V14: -1 | W14: -1 | X14: -1 | Y14: -1 | Z14: {No,Yes} | AA14: -1 | AB14: -1 | AC14: -1 | AD14: -1 | AE14: -1 | AF14: -1 | AG14: -1 | AH14: 0 | AI14: 0 | AJ14: -1 | AK14: -1 | AL14: 11 | AM14: 41XXSTX | AN14: 4ST -6;-OW
A15: 12 | B15: =Intersection_Type!H13 -> 41XXSGX | C15: 4SG -6;-OW | D15: 0 | E15: 0 | F15: 0 | G15: 0 | H15: -1 | I15: -1 | J15: 0 | K15: 0 | L15: -1 | M15: -1 | N15: -1 | O15: -1 | P15: -1 | Q15: -1 | R15: -1 | S15: -1 | T15: -1 | U15: -1 | V15: -1 | W15: -1 | X15: -1 | Y15: -1 | Z15: {No,Yes} | AA15: {Permissive,Protected-Permissive,Protected} | AB15: -1 | AC15: {0,1,2,3,4} | AD15: {No,Yes} | AE15: -1 | AF15: {No,Yes} | AG15: -1 | AH15: 0 | AI15: {0,1,2,3,4} | AJ15: -1 | AK15: -1 | AL15: 12 | AM15: 41XXSGX | AN15: 4SG -6;-OW
A16: 13 | B16: =Intersection_Type!H14 -> 426XSTX | C16: 4ST -6;-OW | D16: {0,1,2,3,4} | E16: 0 | F16: {0,1,2} | G16: {0,1,2} | H16: [1,1320] | I16: -1 | J16: 0 | K16: 0 | L16: -1 | M16: -1 | N16: -1 | O16: -1 | P16: -1 | Q16: -1 | R16: -1 | S16: -1 | T16: -1 | U16: -1 | V16: -1 | W16: -1 | X16: -1 | Y16: -1 | Z16: {No,Yes} | AA16: -1 | AB16: -1 | AC16: -1 | AD16: -1 | AE16: -1 | AF16: -1 | AG16: -1 | AH16: 0 | AI16: {0,1,2,3,4} | AJ16: -1 | AK16: -1 | AL16: 13 | AM16: 426XSTX | AN16: 4ST -6;-OW
A17: 14 | B17: =Intersection_Type!H15 -> 426XSGX | C17: 4SG -6;-OW | D17: {0,1,2,3,4} | E17: {No,Yes} | F17: {0,1,2,3,4} | G17: {0,1,2} | H17: -1 | I17: -1 | J17: 0 | K17: 0 | L17: -1 | M17: -1 | N17: -1 | O17: -1 | P17: -1 | Q17: -1 | R17: -1 | S17: -1 | T17: -1 | U17: -1 | V17: -1 | W17: -1 | X17: -1 | Y17: -1 | Z17: {No,Yes} | AA17: {Permissive,Protected-Permissive,Protected} | AB17: -1 | AC17: {0,1,2,3,4} | AD17: {No,Yes} | AE17: -1 | AF17: {No,Yes} | AG17: -1 | AH17: {No,Yes} | AI17: {0,1,2,3,4} | AJ17: -1 | AK17: -1 | AL17: 14 | AM17: 426XSGX | AN17: 4SG -6;-OW
A18: 15 | B18: =Intersection_Type!H16 -> 425XASX | C18: 4AS | D18: 0 | E18: 0 | F18: 0 | G18: 0 | H18: 0 | I18: -1 | J18: 0 | K18: 0 | L18: -1 | M18: -1 | N18: -1 | O18: -1 | P18: -1 | Q18: -1 | R18: -1 | S18: -1 | T18: -1 | U18: -1 | V18: -1 | W18: -1 | X18: -1 | Y18: -1 | Z18: {No,Yes} | AA18: -1 | AB18: -1 | AC18: -1 | AD18: -1 | AE18: -1 | AF18: -1 | AG18: -1 | AH18: 0 | AI18: 0 | AJ18: -1 | AK18: -1 | AL18: 15 | AM18: 425XASX | AN18: 4AS
A19: 16 | B19: =Intersection_Type!H17 -> 4251STX | C19: 4ST -HS | D19: {0,1,2,3,4} | E19: 0 | F19: {0,1,2} | G19: {0,1,2} | H19: [1,1320] | I19: -1 | J19: 0 | K19: 0 | L19: -1 | M19: -1 | N19: -1 | O19: -1 | P19: -1 | Q19: -1 | R19: -1 | S19: -1 | T19: -1 | U19: -1 | V19: -1 | W19: -1 | X19: -1 | Y19: -1 | Z19: {No,Yes} | AA19: -1 | AB19: -1 | AC19: -1 | AD19: -1 | AE19: -1 | AF19: -1 | AG19: -1 | AH19: 0 | AI19: {0,1,2,3,4} | AJ19: -1 | AK19: -1 | AL19: 16 | AM19: 4251STX | AN19: 4ST -HS
A20: 17 | B20: =Intersection_Type!H18 -> 4251SGX | C20: 4SG -HS | D20: {0,1,2,3,4} | E20: {No,Yes} | F20: {0,1,2,3,4} | G20: {0,1,2} | H20: -1 | I20: -1 | J20: 0 | K20: 0 | L20: -1 | M20: -1 | N20: -1 | O20: -1 | P20: -1 | Q20: -1 | R20: -1 | S20: -1 | T20: -1 | U20: -1 | V20: -1 | W20: -1 | X20: -1 | Y20: -1 | Z20: {No,Yes} | AA20: {Permissive,Protected-Permissive,Protected} | AB20: -1 | AC20: {0,1,2,3,4} | AD20: {No,Yes} | AE20: -1 | AF20: {No,Yes} | AG20: -1 | AH20: {No,Yes} | AI20: {0,1,2,3,4} | AJ20: -1 | AK20: -1 | AL20: 17 | AM20: 4251SGX | AN20: 4SG -HS
A21: 18 | B21: =Intersection_Type!H19 -> 4250STX | C21: 4ST | D21: {0,1,2,3,4} | E21: 0 | F21: {0,1,2} | G21: {0,1,2} | H21: [1,1320] | I21: -1 | J21: 0 | K21: 0 | L21: -1 | M21: -1 | N21: -1 | O21: -1 | P21: -1 | Q21: -1 | R21: -1 | S21: -1 | T21: -1 | U21: -1 | V21: -1 | W21: -1 | X21: -1 | Y21: -1 | Z21: {No,Yes} | AA21: -1 | AB21: -1 | AC21: -1 | AD21: -1 | AE21: -1 | AF21: -1 | AG21: -1 | AH21: 0 | AI21: {0,1,2,3,4} | AJ21: -1 | AK21: -1 | AL21: 18 | AM21: 4250STX | AN21: 4ST
A22: 19 | B22: =Intersection_Type!H20 -> 4250SGX | C22: 4SG | D22: {0,1,2,3,4} | E22: {No,Yes} | F22: {0,1,2,3,4} | G22: {0,1,2} | H22: -1 | I22: -1 | J22: 0 | K22: 0 | L22: -1 | M22: -1 | N22: -1 | O22: -1 | P22: -1 | Q22: -1 | R22: -1 | S22: -1 | T22: -1 | U22: -1 | V22: -1 | W22: -1 | X22: -1 | Y22: -1 | Z22: {No,Yes} | AA22: {Permissive,Protected-Permissive,Protected} | AB22: -1 | AC22: {0,1,2,3,4} | AD22: {No,Yes} | AE22: -1 | AF22: {No,Yes} | AG22: -1 | AH22: {No,Yes} | AI22: {0,1,2,3,4} | AJ22: -1 | AK22: -1 | AL22: 19 | AM22: 4250SGX | AN22: 4SG
A23: 20 | B23: =Intersection_Type!H21 -> 525XSGX | C23: 5SG | D23: 0 | E23: 0 | F23: 0 | G23: 0 | H23: 0 | I23: -1 | J23: 0 | K23: 0 | L23: -1 | M23: -1 | N23: -1 | O23: -1 | P23: -1 | Q23: -1 | R23: -1 | S23: -1 | T23: -1 | U23: -1 | V23: -1 | W23: -1 | X23: -1 | Y23: -1 | Z23: {No,Yes} | AA23: {Permissive,Protected-Permissive,Protected} | AB23: -1 | AC23: {0,1,2,3,4} | AD23: {No,Yes} | AE23: -1 | AF23: {No,Yes} | AG23: -1 | AH23: 0 | AI23: 0 | AJ23: -1 | AK23: -1 | AL23: 20 | AM23: 525XSGX | AN23: 5SG
A24: 21 | B24: =Intersection_Type!H22 -> XXXXRSX | C24: XRS | D24: -1 | E24: -1 | F24: 0 | G24: -1 | H24: -1 | I24: [0,600] | J24: 0 | K24: 0 | L24: [2,3] | M24: [1,2,3] | N24: [0, 1000] | O24: [0,20] | P24: {15,20,25,30,35,40,45,50,55,60,65,70,75} | Q24: 0 | R24: [0, 9999] | S24: 0 | T24: -1 | U24: -1 | V24: -1 | W24: -1 | X24: -1 | Y24: -1 | Z24: 0 | AA24: -1 | AB24: -1 | AC24: -1 | AD24: {No,Yes} | AE24: -1 | AF24: -1 | AG24: -1 | AH24: 0 | AI24: 0 | AJ24: -1 | AK24: -1 | AL24: 21 | AM24: XXXXRSX | AN24: XRS
A25: 22 | B25: =Intersection_Type!H23 -> XXXXRUX | C25: XRU | D25: -1 | E25: -1 | F25: 0 | G25: -1 | H25: -1 | I25: [0,600] | J25: 0 | K25: 0 | N25: [0, 1000] | O25: [0,20] | P25: 0 | Q25: [0, 99999] | R25: [0, 9999] | S25: {1,2} | T25: -1 | U25: -1 | V25: -1 | W25: -1 | X25: -1 | Y25: -1 | Z25: 0 | AA25: -1 | AB25: -1 | AC25: -1 | AD25: -1 | AE25: -1 | AF25: -1 | AG25: -1 | AH25: -1 | AI25: -1 | AJ25: -1 | AK25: -1 | AL25: 22 | AM25: XXXXRUX | AN25: XRU
A26: 23 | B26: =Intersection_Type!H24 -> 3XXXRA1 | C26: 3RA | D26: -1 | E26: -1 | F26: -1 | G26: -1 | H26: -1 | I26: -1 | J26: 0 | K26: 0 | N26: -1 | O26: -1 | P26: -1 | Q26: -1 | R26: -1 | S26: -1 | T26: -1 | U26: {0,1,2} | V26: {0,1,2,3} | W26: [0, 100] | X26: -1 | Y26: -1 | Z26: 0 | AA26: -1 | AB26: -1 | AC26: -1 | AD26: -1 | AE26: -1 | AF26: -1 | AG26: -1 | AH26: -1 | AI26: -1 | AJ26: -1 | AK26: -1 | AL26: 23 | AM26: 3XXXRA1 | AN26: 3RA
A27: 24 | B27: =Intersection_Type!H25 -> 3XXXRA2 | C27: 3RA | D27: -1 | E27: -1 | F27: -1 | G27: -1 | H27: -1 | I27: -1 | J27: 0 | K27: 0 | N27: -1 | O27: -1 | P27: -1 | Q27: -1 | R27: -1 | S27: -1 | T27: -1 | U27: {0,1,2} | V27: 0 | W27: 0 | X27: -1 | Y27: -1 | Z27: 0 | AA27: -1 | AB27: -1 | AC27: -1 | AD27: -1 | AE27: -1 | AF27: -1 | AG27: -1 | AH27: -1 | AI27: -1 | AJ27: -1 | AK27: -1 | AL27: 24 | AM27: 3XXXRA2 | AN27: 3RA
A28: 25 | B28: =Intersection_Type!H26 -> 4XXXRA1 | C28: 4RA | D28: -1 | E28: -1 | F28: -1 | G28: -1 | H28: -1 | I28: -1 | J28: 0 | K28: 0 | N28: -1 | O28: -1 | P28: -1 | Q28: -1 | R28: -1 | S28: -1 | T28: -1 | U28: {0,1,2,3} | V28: {0,1,2,3,4} | W28: [0, 100] | X28: -1 | Y28: -1 | Z28: 0 | AA28: -1 | AB28: -1 | AC28: -1 | AD28: -1 | AE28: -1 | AF28: -1 | AG28: -1 | AH28: -1 | AI28: -1 | AJ28: -1 | AK28: -1 | AL28: 25 | AM28: 4XXXRA1 | AN28: 4RA
A29: 26 | B29: =Intersection_Type!H27 -> 4XXXRA2 | C29: 4RA | D29: -1 | E29: -1 | F29: -1 | G29: -1 | H29: -1 | I29: -1 | J29: 0 | K29: 0 | N29: -1 | O29: -1 | P29: -1 | Q29: -1 | R29: -1 | S29: -1 | T29: -1 | U29: {0,1,2,3} | V29: 0 | W29: 0 | X29: -1 | Y29: -1 | Z29: 0 | AA29: -1 | AB29: -1 | AC29: -1 | AD29: -1 | AE29: -1 | AF29: -1 | AG29: -1 | AH29: -1 | AI29: -1 | AJ29: -1 | AK29: -1 | AL29: 26 | AM29: 4XXXRA2 | AN29: 4RA
A30: 27 | B30: 4XXXDDX | D30: 0 | E30: 0 | F30: 0 | G30: 0 | H30: 0 | I30: -1 | J30: 0 | K30: 0 | N30: -1 | O30: -1 | P30: -1 | Q30: -1 | R30: -1 | S30: -1 | T30: -1 | U30: -1 | V30: -1 | W30: -1 | X30: -1 | Y30: -1 | Z30: 0 | AA30: -1 | AB30: -1 | AC30: -1 | AD30: -1 | AE30: -1 | AF30: -1 | AG30: -1 | AH30: -1 | AI30: -1 | AJ30: -1 | AK30: -1 | AL30: 27 | AM30: 4XXXDDX
A31: 28 | B31: 4XXXDLX | D31: 0 | E31: 0 | F31: 0 | G31: 0 | H31: 0 | I31: -1 | J31: 0 | K31: 0 | N31: -1 | O31: -1 | P31: -1 | Q31: -1 | R31: -1 | S31: -1 | T31: -1 | U31: -1 | V31: -1 | W31: -1 | X31: -1 | Y31: -1 | Z31: 0 | AA31: -1 | AB31: -1 | AC31: -1 | AD31: -1 | AE31: -1 | AF31: -1 | AG31: -1 | AH31: -1 | AI31: -1 | AJ31: -1 | AK31: -1 | AL31: 28 | AM31: 4XXXDLX
A32: 29 | B32: 4XXXMUX | D32: 0 | E32: 0 | F32: 0 | G32: 0 | H32: 0 | I32: -1 | J32: 0 | K32: 0 | N32: -1 | O32: -1 | P32: -1 | Q32: -1 | R32: -1 | S32: -1 | T32: -1 | U32: -1 | V32: -1 | W32: -1 | X32: -1 | Y32: -1 | Z32: 0 | AA32: -1 | AB32: -1 | AC32: -1 | AD32: -1 | AE32: -1 | AF32: -1 | AG32: -1 | AH32: -1 | AI32: -1 | AJ32: -1 | AK32: -1 | AL32: 29 | AM32: 4XXXMUX
A33: ST=STOP; SG=Signal; 6 = 6 Lanes or more; OW = one-way street; HS = High speed; XRS = restricted U-Turn Signalized; XRU = restrcited U-Turn Unsig.; 3RA = 3-leg roundabout | V33: P2 | AN33: P3

Sheet CMF_Std (hidden)
A1: =CMF_Tab2!A1 -> Num | B1: =CMF_Tab2!B1 -> IntCode | C1: =CMF_Tab2!C1 -> Note | D1: =CMF_Tab2!D1 -> Left-Turn Lanes | E1: =CMF_Tab2!E1 -> Offset Left-Turn Lanes | F1: =CMF_Tab2!F1 -> Right-Turn Lanes | G1: =CMF_Tab2!G1 -> Right-Turn Channelization | H1: =CMF_Tab2!H1 -> Sight Distance | I1: =CMF_Tab2!I1 -> Median Width | J1: =CMF_Tab2!J1 -> Median on Min Approach | K1: =CMF_Tab2!K1 -> Replace Direct Left-Turn with Right Turn/U-Turn | L1: =CMF_Tab2!L1 -> Number of Lanes M J | M1: =CMF_Tab2!M1 -> Number of Lanes M I | N1: =CMF_Tab2!N1 -> Offset Distance | O1: =CMF_Tab2!O1 -> Number of Driveways | P1: =CMF_Tab2!P1 -> Speed Limit | Q1: =CMF_Tab2!Q1 -> Acceleration Lane Length | R1: =CMF_Tab2!R1 -> Deceleration Lane Length | S1: =CMF_Tab2!S1 -> Number of U-Turns | T1: =CMF_Tab2!T1 -> Inscribed Circle Diameter | U1: =CMF_Tab2!U1 -> Outbound-Only Leg | V1: =CMF_Tab2!V1 -> Right-Turn Bypass Lane | W1: =CMF_Tab2!W1 -> Access Point Frequency | X1: =CMF_Tab2!X1 -> Entry Width | Y1: =CMF_Tab2!Y1 -> Entering Lanes | Z1: =CMF_Tab2!Z1 -> Lighting | AA1: =CMF_Tab2!AA1 -> Left-Turn Signal Phasing | AB1: =CMF_Tab2!AB1 -> Increase Total Change Interval | AC1: =CMF_Tab2!AC1 -> Prohibit Right-Turn-on-Red | AD1: =CMF_Tab2!AD1 -> Retroreflective Sheeting to Backplates | AE1: =CMF_Tab2!AE1 -> Red-Light Cameras | AF1: =CMF_Tab2!AF1 -> Actuated Advance Warning | AG1: =CMF_Tab2!AG1 -> Painted Median on Minor Approach | AH1: =CMF_Tab2!AH1 -> Prohibit Left-Turns | AI1: =CMF_Tab2!AI1 -> Prohibit U-Turns | AJ1: =CMF_Tab2!AJ1 -> Prohibit Left-Turns and U-Turns | AK1: =CMF_Tab2!AK1 -> Right-In Right-Out | AL1: Num | AM1: IntCode | AN1: Note
A2: No2. Standard | D2: =CMF_Tab2!D2 -> LTL | E2: =CMF_Tab2!E2 -> OLTL | F2: =CMF_Tab2!F2 -> RTL | G2: =CMF_Tab2!G2 -> RTC | H2: =CMF_Tab2!H2 -> SD | I2: =CMF_Tab2!I2 -> MW | J2: =CMF_Tab2!J2 -> MOMA | K2: =CMF_Tab2!K2 -> RDLTWRTT | L2: =CMF_Tab2!L2 -> NOLMJ | M2: =CMF_Tab2!M2 -> NOLMI | N2: =CMF_Tab2!N2 -> OD | O2: =CMF_Tab2!O2 -> NOD | P2: =CMF_Tab2!P2 -> SL | Q2: =CMF_Tab2!Q2 -> ALL | R2: =CMF_Tab2!R2 -> DLL | S2: =CMF_Tab2!S2 -> NOUT | T2: =CMF_Tab2!T2 -> ICD | U2: =CMF_Tab2!U2 -> OOL | V2: =CMF_Tab2!V2 -> RTBL | W2: =CMF_Tab2!W2 -> APF | X2: =CMF_Tab2!X2 -> EW | Y2: =CMF_Tab2!Y2 -> EL | Z2: =CMF_Tab2!Z2 -> L | AA2: =CMF_Tab2!AA2 -> LTSP | AB2: =CMF_Tab2!AB2 -> ITCI | AC2: =CMF_Tab2!AC2 -> PRTOR | AD2: =CMF_Tab2!AD2 -> RSTB | AE2: =CMF_Tab2!AE2 -> RLC | AF2: =CMF_Tab2!AF2 -> AAW | AG2: =CMF_Tab2!AG2 -> PMOMA | AH2: =CMF_Tab2!AH2 -> PLT | AI2: =CMF_Tab2!AI2 -> PUT | AJ2: =CMF_Tab2!AJ2 -> PLTAUT | AK2: =CMF_Tab2!AK2 -> RIRO
D3: =CMF_Tab2!D3 -> Num of Approaches with Exclusive Left-Turn Lanes | E3: =CMF_Tab2!E3 -> Offset Left-Turn Lanes | F3: =CMF_Tab2!F3 -> Num of Approaches with Exclusive Right-Turn Lanes | G3: =CMF_Tab2!G3 -> Num of Approaches on Major St. with Right-Turn Channelization | H3: =CMF_Tab2!H3 -> Sight Distance (ft) | I3: =CMF_Tab2!I3 -> RCUT Median Width (ft) | J3: =CMF_Tab2!J3 -> Median on Min Approach | K3: =CMF_Tab2!K3 -> Replace Direct Left-Turn with Right Turn/U-Turn | L3: =CMF_Tab2!L3 -> Major Street Lane Number | M3: =CMF_Tab2!M3 -> Minor Street Lane Number | N3: =CMF_Tab2!N3 -> RCUT Offset Distance (ft) | O3: =CMF_Tab2!O3 -> RCUT Number of Driveways | P3: =CMF_Tab2!P3 -> Major Road Speed Limit (mph) | Q3: =CMF_Tab2!Q3 -> RCUT Acceleration Lane Length (ft) | R3: =CMF_Tab2!R3 -> RCUT Deceleration Lane Length (ft) | S3: =CMF_Tab2!S3 -> RCUT Number of U-Turns | T3: =CMF_Tab2!T3 -> Roundabout (RA) Inscribed Circle Diameter (ft) | U3: =CMF_Tab2!U3 -> RA Number of Outbound-only Leg(s) | V3: =CMF_Tab2!V3 -> RA Number of Legs with Right-Turn Bypass Lane | W3: =CMF_Tab2!W3 -> RA Total Number of Driveways/Access Points of the Roundabout (within 250 ft of yield line) | X3: =CMF_Tab2!X3 -> RA Entry Width (ft) | Y3: =CMF_Tab2!Y3 -> RA Number of Circulating Lane Conflicting with the Leg | Z3: =CMF_Tab2!Z3 -> Lighting | AA3: =CMF_Tab2!AA3 -> Left-Turn Signal Phasing | AB3: =CMF_Tab2!AB3 -> Increase total change interval (greater than ITE recommended practice) | AC3: =CMF_Tab2!AC3 -> Number of Approaches for which RTOR is Prohibited | AD3: =CMF_Tab2!AD3 -> Retroreflective Sheeting to Backplates | AE3: =CMF_Tab2!AE3 -> Red-Light Cameras | AF3: =CMF_Tab2!AF3 -> Actuated Advance Warning | AG3: =CMF_Tab2!AG3 -> Painted Median on Minor Approach | AH3: =CMF_Tab2!AH3 -> Prohibit Left-Turns | AI3: =CMF_Tab2!AI3 -> Number of Approaches with U-Turn Prohibition | AJ3: =CMF_Tab2!AJ3 -> Prohibit Left-Turns and U-Turns | AK3: =CMF_Tab2!AK3 -> Right-In Right-Out
A4: =CMF_Tab2!A4 -> 1 | B4: =CMF_Tab2!B4 -> 31XXSTX | C4: =CMF_Tab2!C4 -> 3ST -6;-OW | D4: =CMF_Tab2!D4 -> 0 | F4: =CMF_Tab2!F4 -> 0 | G4: =CMF_Tab2!G4 -> 0 | H4: 1320 | I4: =CMF_Tab2!I4 -> -1 | J4: =CMF_Tab2!J4 -> 0 | K4: =CMF_Tab2!K4 -> 0 | L4: =CMF_Tab2!L4 -> -1 | M4: =CMF_Tab2!M4 -> -1 | N4: =CMF_Tab2!N4 -> -1 | O4: =CMF_Tab2!O4 -> -1 | P4: =CMF_Tab2!P4 -> -1 | Q4: =CMF_Tab2!Q4 -> -1 | R4: =CMF_Tab2!R4 -> -1 | S4: =CMF_Tab2!S4 -> -1 | T4: =CMF_Tab2!T4 -> -1 | U4: =CMF_Tab2!U4 -> -1 | V4: =CMF_Tab2!V4 -> -1 | W4: =CMF_Tab2!W4 -> -1 | X4: =CMF_Tab2!X4 -> -1 | Y4: =CMF_Tab2!Y4 -> -1 | Z4: No | AA4: =CMF_Tab2!AA4 -> -1 | AB4: =CMF_Tab2!AB4 -> -1 | AC4: =CMF_Tab2!AC4 -> -1 | AD4: =CMF_Tab2!AD4 -> -1 | AE4: =CMF_Tab2!AE4 -> -1 | AF4: =CMF_Tab2!AF4 -> -1 | AG4: =CMF_Tab2!AG4 -> -1 | AH4: =CMF_Tab2!AH4 -> 0 | AI4: =CMF_Tab2!AI4 -> 0 | AJ4: =CMF_Tab2!AJ4 -> -1 | AK4: =CMF_Tab2!AK4 -> 0 | AL4: 1 | AM4: 31XXSTX | AN4: 3ST -6;-OW
A5: =CMF_Tab2!A5 -> 2 | B5: =CMF_Tab2!B5 -> 31XXSGX | C5: =CMF_Tab2!C5 -> 3SG -6;-OW | D5: 1 | F5: =CMF_Tab2!F5 -> 0 | G5: =CMF_Tab2!G5 -> 0 | H5: =CMF_Tab2!H5 -> -1 | I5: =CMF_Tab2!I5 -> -1 | J5: =CMF_Tab2!J5 -> 0 | K5: =CMF_Tab2!K5 -> 0 | L5: =CMF_Tab2!L5 -> -1 | M5: =CMF_Tab2!M5 -> -1 | N5: =CMF_Tab2!N5 -> -1 | O5: =CMF_Tab2!O5 -> -1 | P5: =CMF_Tab2!P5 -> -1 | Q5: =CMF_Tab2!Q5 -> -1 | R5: =CMF_Tab2!R5 -> -1 | S5: =CMF_Tab2!S5 -> -1 | T5: =CMF_Tab2!T5 -> -1 | U5: =CMF_Tab2!U5 -> -1 | V5: =CMF_Tab2!V5 -> -1 | W5: =CMF_Tab2!W5 -> -1 | X5: =CMF_Tab2!X5 -> -1 | Y5: =CMF_Tab2!Y5 -> -1 | Z5: Yes | AA5: Protected-Permissive | AB5: No | AC5: 0 | AD5: Yes | AE5: No | AF5: No | AG5: =CMF_Tab2!AG5 -> -1 | AH5: =CMF_Tab2!AH5 -> 0 | AI5: =CMF_Tab2!AI5 -> 0 | AJ5: =CMF_Tab2!AJ5 -> -1 | AK5: =CMF_Tab2!AK5 -> 0 | AL5: 2 | AM5: 31XXSGX | AN5: 3SG -6;-OW
A6: =CMF_Tab2!A6 -> 3 | B6: =CMF_Tab2!B6 -> 326XSTX | C6: =CMF_Tab2!C6 -> 3ST -6;-OW | D6: 1 | F6: 0 | G6: 0 | H6: 1320 | I6: =CMF_Tab2!I6 -> -1 | J6: No | K6: =CMF_Tab2!K6 -> 0 | L6: =CMF_Tab2!L6 -> -1 | M6: =CMF_Tab2!M6 -> -1 | N6: =CMF_Tab2!N6 -> -1 | O6: =CMF_Tab2!O6 -> -1 | P6: =CMF_Tab2!P6 -> -1 | Q6: =CMF_Tab2!Q6 -> -1 | R6: =CMF_Tab2!R6 -> -1 | S6: =CMF_Tab2!S6 -> -1 | T6: =CMF_Tab2!T6 -> -1 | U6: =CMF_Tab2!U6 -> -1 | V6: =CMF_Tab2!V6 -> -1 | W6: =CMF_Tab2!W6 -> -1 | X6: =CMF_Tab2!X6 -> -1 | Y6: =CMF_Tab2!Y6 -> -1 | Z6: No | AA6: =CMF_Tab2!AA6 -> -1 | AB6: =CMF_Tab2!AB6 -> -1 | AC6: =CMF_Tab2!AC6 -> -1 | AD6: =CMF_Tab2!AD6 -> -1 | AE6: =CMF_Tab2!AE6 -> -1 | AF6: =CMF_Tab2!AF6 -> -1 | AG6: =CMF_Tab2!AG6 -> -1 | AH6: =CMF_Tab2!AH6 -> 0 | AI6: 0 | AJ6: =CMF_Tab2!AJ6 -> -1 | AK6: No | AL6: 3 | AM6: 326XSTX | AN6: 3ST -6;-OW
A7: =CMF_Tab2!A7 -> 4 | B7: =CMF_Tab2!B7 -> 326XSGX | C7: =CMF_Tab2!C7 -> 3SG -6;-OW | D7: 3 | E7: No | F7: 0 | G7: 0 | H7: =CMF_Tab2!H7 -> -1 | I7: =CMF_Tab2!I7 -> -1 | J7: =CMF_Tab2!J7 -> 0 | K7: =CMF_Tab2!K7 -> 0 | L7: =CMF_Tab2!L7 -> -1 | M7: =CMF_Tab2!M7 -> -1 | N7: =CMF_Tab2!N7 -> -1 | O7: =CMF_Tab2!O7 -> -1 | P7: =CMF_Tab2!P7 -> -1 | Q7: =CMF_Tab2!Q7 -> -1 | R7: =CMF_Tab2!R7 -> -1 | S7: =CMF_Tab2!S7 -> -1 | T7: =CMF_Tab2!T7 -> -1 | U7: =CMF_Tab2!U7 -> -1 | V7: =CMF_Tab2!V7 -> -1 | W7: =CMF_Tab2!W7 -> -1 | X7: =CMF_Tab2!X7 -> -1 | Y7: =CMF_Tab2!Y7 -> -1 | Z7: Yes | AA7: Protected-Permissive | AB7: No | AC7: 0 | AD7: Yes | AE7: No | AF7: No | AG7: =CMF_Tab2!AG7 -> -1 | AH7: No | AI7: 0 | AJ7: =CMF_Tab2!AJ7 -> -1 | AK7: =CMF_Tab2!AK7 -> 0 | AL7: 4 | AM7: 326XSGX | AN7: 3SG -6;-OW
A8: =CMF_Tab2!A8 -> 5 | B8: =CMF_Tab2!B8 -> 325XASX | C8: =CMF_Tab2!C8 -> 3AS | D8: =CMF_Tab2!D8 -> 0 | F8: =CMF_Tab2!F8 -> 0 | G8: =CMF_Tab2!G8 -> 0 | H8: =CMF_Tab2!H8 -> 0 | I8: =CMF_Tab2!I8 -> -1 | J8: =CMF_Tab2!J8 -> 0 | K8: =CMF_Tab2!K8 -> 0 | L8: =CMF_Tab2!L8 -> -1 | M8: =CMF_Tab2!M8 -> -1 | N8: =CMF_Tab2!N8 -> -1 | O8: =CMF_Tab2!O8 -> -1 | P8: =CMF_Tab2!P8 -> -1 | Q8: =CMF_Tab2!Q8 -> -1 | R8: =CMF_Tab2!R8 -> -1 | S8: =CMF_Tab2!S8 -> -1 | T8: =CMF_Tab2!T8 -> -1 | U8: =CMF_Tab2!U8 -> -1 | V8: =CMF_Tab2!V8 -> -1 | W8: =CMF_Tab2!W8 -> -1 | X8: =CMF_Tab2!X8 -> -1 | Y8: =CMF_Tab2!Y8 -> -1 | Z8: No | AA8: =CMF_Tab2!AA8 -> -1 | AB8: =CMF_Tab2!AB8 -> -1 | AC8: =CMF_Tab2!AC8 -> -1 | AD8: =CMF_Tab2!AD8 -> -1 | AE8: =CMF_Tab2!AE8 -> -1 | AF8: =CMF_Tab2!AF8 -> -1 | AG8: =CMF_Tab2!AG8 -> -1 | AH8: =CMF_Tab2!AH8 -> 0 | AI8: =CMF_Tab2!AI8 -> 0 | AJ8: =CMF_Tab2!AJ8 -> -1 | AK8: =CMF_Tab2!AK8 -> 0 | AL8: 5 | AM8: 325XASX | AN8: 3AS
A9: =CMF_Tab2!A9 -> 6 | B9: =CMF_Tab2!B9 -> 3251STX | C9: =CMF_Tab2!C9 -> 3ST -HS | D9: 1 | F9: 0 | G9: 0 | H9: 1320 | I9: =CMF_Tab2!I9 -> -1 | J9: No | K9: =CMF_Tab2!K9 -> 0 | L9: =CMF_Tab2!L9 -> -1 | M9: =CMF_Tab2!M9 -> -1 | N9: =CMF_Tab2!N9 -> -1 | O9: =CMF_Tab2!O9 -> -1 | P9: =CMF_Tab2!P9 -> -1 | Q9: =CMF_Tab2!Q9 -> -1 | R9: =CMF_Tab2!R9 -> -1 | S9: =CMF_Tab2!S9 -> -1 | T9: =CMF_Tab2!T9 -> -1 | U9: =CMF_Tab2!U9 -> -1 | V9: =CMF_Tab2!V9 -> -1 | W9: =CMF_Tab2!W9 -> -1 | X9: =CMF_Tab2!X9 -> -1 | Y9: =CMF_Tab2!Y9 -> -1 | Z9: No | AA9: =CMF_Tab2!AA9 -> -1 | AB9: =CMF_Tab2!AB9 -> -1 | AC9: =CMF_Tab2!AC9 -> -1 | AD9: =CMF_Tab2!AD9 -> -1 | AE9: =CMF_Tab2!AE9 -> -1 | AF9: =CMF_Tab2!AF9 -> -1 | AG9: =CMF_Tab2!AG9 -> -1 | AH9: =CMF_Tab2!AH9 -> 0 | AI9: 0 | AJ9: =CMF_Tab2!AJ9 -> -1 | AK9: No | AL9: 6 | AM9: 3251STX | AN9: 3ST -HS
A10: =CMF_Tab2!A10 -> 7 | B10: =CMF_Tab2!B10 -> 3251SGX | C10: =CMF_Tab2!C10 -> 3SG -HS | D10: 3 | E10: No | F10: 0 | G10: 0 | H10: =CMF_Tab2!H10 -> -1 | I10: =CMF_Tab2!I10 -> -1 | J10: =CMF_Tab2!J10 -> 0 | K10: =CMF_Tab2!K10 -> 0 | L10: =CMF_Tab2!L10 -> -1 | M10: =CMF_Tab2!M10 -> -1 | N10: =CMF_Tab2!N10 -> -1 | O10: =CMF_Tab2!O10 -> -1 | P10: =CMF_Tab2!P10 -> -1 | Q10: =CMF_Tab2!Q10 -> -1 | R10: =CMF_Tab2!R10 -> -1 | S10: =CMF_Tab2!S10 -> -1 | T10: =CMF_Tab2!T10 -> -1 | U10: =CMF_Tab2!U10 -> -1 | V10: =CMF_Tab2!V10 -> -1 | W10: =CMF_Tab2!W10 -> -1 | X10: =CMF_Tab2!X10 -> -1 | Y10: =CMF_Tab2!Y10 -> -1 | Z10: Yes | AA10: Protected-Permissive | AB10: No | AC10: 0 | AD10: Yes | AE10: =CMF_Tab2!AE10 -> -1 | AF10: Yes | AG10: =CMF_Tab2!AG10 -> -1 | AH10: No | AI10: 0 | AJ10: =CMF_Tab2!AJ10 -> -1 | AK10: =CMF_Tab2!AK10 -> 0 | AL10: 7 | AM10: 3251SGX | AN10: 3SG -HS
A11: =CMF_Tab2!A11 -> 8 | B11: =CMF_Tab2!B11 -> 3250ST0 | C11: =CMF_Tab2!C11 -> 3ST | D11: 1 | E11: =CMF_Tab2!E11 -> 0 | F11: 0 | G11: 0 | H11: 1320 | I11: =CMF_Tab2!I11 -> -1 | J11: No | K11: =CMF_Tab2!K11 -> 0 | L11: =CMF_Tab2!L11 -> -1 | M11: =CMF_Tab2!M11 -> -1 | N11: =CMF_Tab2!N11 -> -1 | O11: =CMF_Tab2!O11 -> -1 | P11: =CMF_Tab2!P11 -> -1 | Q11: =CMF_Tab2!Q11 -> -1 | R11: =CMF_Tab2!R11 -> -1 | S11: =CMF_Tab2!S11 -> -1 | T11: =CMF_Tab2!T11 -> -1 | U11: =CMF_Tab2!U11 -> -1 | V11: =CMF_Tab2!V11 -> -1 | W11: =CMF_Tab2!W11 -> -1 | X11: =CMF_Tab2!X11 -> -1 | Y11: =CMF_Tab2!Y11 -> -1 | Z11: No | AA11: =CMF_Tab2!AA11 -> -1 | AB11: =CMF_Tab2!AB11 -> -1 | AC11: =CMF_Tab2!AC11 -> -1 | AD11: =CMF_Tab2!AD11 -> -1 | AE11: =CMF_Tab2!AE11 -> -1 | AF11: =CMF_Tab2!AF11 -> -1 | AG11: =CMF_Tab2!AG11 -> -1 | AH11: =CMF_Tab2!AH11 -> 0 | AI11: 0 | AJ11: =CMF_Tab2!AJ11 -> -1 | AK11: No | AL11: 8 | AM11: 3250ST0 | AN11: 3ST
A12: =CMF_Tab2!A12 -> 9 | B12: =CMF_Tab2!B12 -> 3250SG0 | C12: =CMF_Tab2!C12 -> 3SG | D12: 3 | E12: No | F12: 0 | G12: 0 | H12: =CMF_Tab2!H12 -> -1 | I12: =CMF_Tab2!I12 -> -1 | J12: =CMF_Tab2!J12 -> 0 | K12: =CMF_Tab2!K12 -> 0 | L12: =CMF_Tab2!L12 -> -1 | M12: =CMF_Tab2!M12 -> -1 | N12: =CMF_Tab2!N12 -> -1 | O12: =CMF_Tab2!O12 -> -1 | P12: =CMF_Tab2!P12 -> -1 | Q12: =CMF_Tab2!Q12 -> -1 | R12: =CMF_Tab2!R12 -> -1 | S12: =CMF_Tab2!S12 -> -1 | T12: =CMF_Tab2!T12 -> -1 | U12: =CMF_Tab2!U12 -> -1 | V12: =CMF_Tab2!V12 -> -1 | W12: =CMF_Tab2!W12 -> -1 | X12: =CMF_Tab2!X12 -> -1 | Y12: =CMF_Tab2!Y12 -> -1 | Z12: Yes | AA12: Protected-Permissive | AB12: No | AC12: 0 | AD12: Yes | AE12: No | AF12: No | AG12: =CMF_Tab2!AG12 -> -1 | AH12: No | AI12: 0 | AJ12: =CMF_Tab2!AJ12 -> -1 | AK12: =CMF_Tab2!AK12 -> 0 | AL12: 9 | AM12: 3250SG0 | AN12: 3SG
A13: =CMF_Tab2!A13 -> 10 | B13: =CMF_Tab2!B13 -> 3250ST1 | C13: =CMF_Tab2!C13 -> 3ST | D13: =CMF_Tab2!D13 -> -1 | E13: =CMF_Tab2!E13 -> -1 | F13: =CMF_Tab2!F13 -> -1 | G13: =CMF_Tab2!G13 -> -1 | H13: =CMF_Tab2!H13 -> -1 | I13: =CMF_Tab2!I13 -> -1 | J13: =CMF_Tab2!J13 -> -1 | K13: =CMF_Tab2!K13 -> -1 | L13: =CMF_Tab2!L13 -> -1 | M13: =CMF_Tab2!M13 -> -1 | N13: =CMF_Tab2!N13 -> -1 | O13: =CMF_Tab2!O13 -> -1 | P13: =CMF_Tab2!P13 -> -1 | Q13: =CMF_Tab2!Q13 -> -1 | R13: =CMF_Tab2!R13 -> -1 | S13: =CMF_Tab2!S13 -> -1 | T13: =CMF_Tab2!T13 -> -1 | U13: =CMF_Tab2!U13 -> -1 | V13: =CMF_Tab2!V13 -> -1 | W13: =CMF_Tab2!W13 -> -1 | X13: =CMF_Tab2!X13 -> -1 | Y13: =CMF_Tab2!Y13 -> -1 | Z13: =CMF_Tab2!Z13 -> -1 | AA13: =CMF_Tab2!AA13 -> -1 | AB13: =CMF_Tab2!AB13 -> -1 | AC13: =CMF_Tab2!AC13 -> -1 | AD13: =CMF_Tab2!AD13 -> -1 | AE13: =CMF_Tab2!AE13 -> -1 | AF13: =CMF_Tab2!AF13 -> -1 | AG13: =CMF_Tab2!AG13 -> -1 | AH13: =CMF_Tab2!AH13 -> -1 | AI13: =CMF_Tab2!AI13 -> -1 | AJ13: =CMF_Tab2!AJ13 -> -1 | AK13: =CMF_Tab2!AK13 -> -1 | AL13: 10 | AM13: 3250ST1 | AN13: 3ST
A14: =CMF_Tab2!A14 -> 11 | B14: =CMF_Tab2!B14 -> 41XXSTX | C14: =CMF_Tab2!C14 -> 4ST -6;-OW | D14: =CMF_Tab2!D14 -> 0 | E14: =CMF_Tab2!E14 -> 0 | F14: =CMF_Tab2!F14 -> 0 | G14: =CMF_Tab2!G14 -> 0 | H14: 1320 | I14: =CMF_Tab2!I14 -> -1 | J14: =CMF_Tab2!J14 -> 0 | K14: =CMF_Tab2!K14 -> 0 | L14: =CMF_Tab2!L14 -> -1 | M14: =CMF_Tab2!M14 -> -1 | N14: =CMF_Tab2!N14 -> -1 | O14: =CMF_Tab2!O14 -> -1 | P14: =CMF_Tab2!P14 -> -1 | Q14: =CMF_Tab2!Q14 -> -1 | R14: =CMF_Tab2!R14 -> -1 | S14: =CMF_Tab2!S14 -> -1 | T14: =CMF_Tab2!T14 -> -1 | U14: =CMF_Tab2!U14 -> -1 | V14: =CMF_Tab2!V14 -> -1 | W14: =CMF_Tab2!W14 -> -1 | X14: =CMF_Tab2!X14 -> -1 | Y14: =CMF_Tab2!Y14 -> -1 | Z14: No | AA14: =CMF_Tab2!AA14 -> -1 | AB14: =CMF_Tab2!AB14 -> -1 | AC14: =CMF_Tab2!AC14 -> -1 | AD14: =CMF_Tab2!AD14 -> -1 | AE14: =CMF_Tab2!AE14 -> -1 | AF14: =CMF_Tab2!AF14 -> -1 | AG14: =CMF_Tab2!AG14 -> -1 | AH14: =CMF_Tab2!AH14 -> 0 | AI14: =CMF_Tab2!AI14 -> 0 | AJ14: =CMF_Tab2!AJ14 -> -1 | AK14: =CMF_Tab2!AK14 -> -1 | AL14: 11 | AM14: 41XXSTX | AN14: 4ST -6;-OW
A15: =CMF_Tab2!A15 -> 12 | B15: =CMF_Tab2!B15 -> 41XXSGX | C15: =CMF_Tab2!C15 -> 4SG -6;-OW | D15: 2 | E15: =CMF_Tab2!E15 -> 0 | F15: =CMF_Tab2!F15 -> 0 | G15: =CMF_Tab2!G15 -> 0 | H15: =CMF_Tab2!H15 -> -1 | I15: =CMF_Tab2!I15 -> -1 | J15: =CMF_Tab2!J15 -> 0 | K15: =CMF_Tab2!K15 -> 0 | L15: =CMF_Tab2!L15 -> -1 | M15: =CMF_Tab2!M15 -> -1 | N15: =CMF_Tab2!N15 -> -1 | O15: =CMF_Tab2!O15 -> -1 | P15: =CMF_Tab2!P15 -> -1 | Q15: =CMF_Tab2!Q15 -> -1 | R15: =CMF_Tab2!R15 -> -1 | S15: =CMF_Tab2!S15 -> -1 | T15: =CMF_Tab2!T15 -> -1 | U15: =CMF_Tab2!U15 -> -1 | V15: =CMF_Tab2!V15 -> -1 | W15: =CMF_Tab2!W15 -> -1 | X15: =CMF_Tab2!X15 -> -1 | Y15: =CMF_Tab2!Y15 -> -1 | Z15: Yes | AA15: Protected-Permissive | AB15: No | AC15: 0 | AD15: Yes | AE15: No | AF15: Yes | AG15: =CMF_Tab2!AG15 -> -1 | AH15: =CMF_Tab2!AH15 -> 0 | AI15: 0 | AJ15: =CMF_Tab2!AJ15 -> -1 | AK15: =CMF_Tab2!AK15 -> -1 | AL15: 12 | AM15: 41XXSGX | AN15: 4SG -6;-OW
A16: =CMF_Tab2!A16 -> 13 | B16: =CMF_Tab2!B16 -> 426XSTX | C16: =CMF_Tab2!C16 -> 4ST -6;-OW | D16: 2 | E16: =CMF_Tab2!E16 -> 0 | F16: 0 | G16: 0 | H16: 1320 | I16: =CMF_Tab2!I16 -> -1 | J16: =CMF_Tab2!J16 -> 0 | K16: =CMF_Tab2!K16 -> 0 | L16: =CMF_Tab2!L16 -> -1 | M16: =CMF_Tab2!M16 -> -1 | N16: =CMF_Tab2!N16 -> -1 | O16: =CMF_Tab2!O16 -> -1 | P16: =CMF_Tab2!P16 -> -1 | Q16: =CMF_Tab2!Q16 -> -1 | R16: =CMF_Tab2!R16 -> -1 | S16: =CMF_Tab2!S16 -> -1 | T16: =CMF_Tab2!T16 -> -1 | U16: =CMF_Tab2!U16 -> -1 | V16: =CMF_Tab2!V16 -> -1 | W16: =CMF_Tab2!W16 -> -1 | X16: =CMF_Tab2!X16 -> -1 | Y16: =CMF_Tab2!Y16 -> -1 | Z16: No | AA16: =CMF_Tab2!AA16 -> -1 | AB16: =CMF_Tab2!AB16 -> -1 | AC16: =CMF_Tab2!AC16 -> -1 | AD16: =CMF_Tab2!AD16 -> -1 | AE16: =CMF_Tab2!AE16 -> -1 | AF16: =CMF_Tab2!AF16 -> -1 | AG16: =CMF_Tab2!AG16 -> -1 | AH16: =CMF_Tab2!AH16 -> 0 | AI16: 0 | AJ16: =CMF_Tab2!AJ16 -> -1 | AK16: =CMF_Tab2!AK16 -> -1 | AL16: 13 | AM16: 426XSTX | AN16: 4ST -6;-OW
A17: =CMF_Tab2!A17 -> 14 | B17: =CMF_Tab2!B17 -> 426XSGX | C17: =CMF_Tab2!C17 -> 4SG -6;-OW | D17: 4 | E17: No | F17: 0 | G17: 0 | H17: =CMF_Tab2!H17 -> -1 | I17: =CMF_Tab2!I17 -> -1 | J17: =CMF_Tab2!J17 -> 0 | K17: =CMF_Tab2!K17 -> 0 | L17: =CMF_Tab2!L17 -> -1 | M17: =CMF_Tab2!M17 -> -1 | N17: =CMF_Tab2!N17 -> -1 | O17: =CMF_Tab2!O17 -> -1 | P17: =CMF_Tab2!P17 -> -1 | Q17: =CMF_Tab2!Q17 -> -1 | R17: =CMF_Tab2!R17 -> -1 | S17: =CMF_Tab2!S17 -> -1 | T17: =CMF_Tab2!T17 -> -1 | U17: =CMF_Tab2!U17 -> -1 | V17: =CMF_Tab2!V17 -> -1 | W17: =CMF_Tab2!W17 -> -1 | X17: =CMF_Tab2!X17 -> -1 | Y17: =CMF_Tab2!Y17 -> -1 | Z17: Yes | AA17: Protected-Permissive | AB17: No | AC17: 0 | AD17: Yes | AE17: No | AF17: Yes | AG17: =CMF_Tab2!AG17 -> -1 | AH17: No | AI17: 0 | AJ17: =CMF_Tab2!AJ17 -> -1 | AK17: =CMF_Tab2!AK17 -> -1 | AL17: 14 | AM17: 426XSGX | AN17: 4SG -6;-OW
A18: =CMF_Tab2!A18 -> 15 | B18: =CMF_Tab2!B18 -> 425XASX | C18: =CMF_Tab2!C18 -> 4AS | D18: 0 | E18: =CMF_Tab2!E18 -> 0 | F18: =CMF_Tab2!F18 -> 0 | G18: =CMF_Tab2!G18 -> 0 | H18: =CMF_Tab2!H18 -> 0 | I18: =CMF_Tab2!I18 -> -1 | J18: =CMF_Tab2!J18 -> 0 | K18: =CMF_Tab2!K18 -> 0 | L18: =CMF_Tab2!L18 -> -1 | M18: =CMF_Tab2!M18 -> -1 | N18: =CMF_Tab2!N18 -> -1 | O18: =CMF_Tab2!O18 -> -1 | P18: =CMF_Tab2!P18 -> -1 | Q18: =CMF_Tab2!Q18 -> -1 | R18: =CMF_Tab2!R18 -> -1 | S18: =CMF_Tab2!S18 -> -1 | T18: =CMF_Tab2!T18 -> -1 | U18: =CMF_Tab2!U18 -> -1 | V18: =CMF_Tab2!V18 -> -1 | W18: =CMF_Tab2!W18 -> -1 | X18: =CMF_Tab2!X18 -> -1 | Y18: =CMF_Tab2!Y18 -> -1 | Z18: No | AA18: =CMF_Tab2!AA18 -> -1 | AB18: =CMF_Tab2!AB18 -> -1 | AC18: =CMF_Tab2!AC18 -> -1 | AD18: =CMF_Tab2!AD18 -> -1 | AE18: =CMF_Tab2!AE18 -> -1 | AF18: =CMF_Tab2!AF18 -> -1 | AG18: =CMF_Tab2!AG18 -> -1 | AH18: =CMF_Tab2!AH18 -> 0 | AI18: =CMF_Tab2!AI18 -> 0 | AJ18: =CMF_Tab2!AJ18 -> -1 | AK18: =CMF_Tab2!AK18 -> -1 | AL18: 15 | AM18: 425XASX | AN18: 4AS
A19: =CMF_Tab2!A19 -> 16 | B19: =CMF_Tab2!B19 -> 4251STX | C19: =CMF_Tab2!C19 -> 4ST -HS | D19: 2 | E19: =CMF_Tab2!E19 -> 0 | F19: 0 | G19: 0 | H19: 1320 | I19: =CMF_Tab2!I19 -> -1 | J19: =CMF_Tab2!J19 -> 0 | K19: =CMF_Tab2!K19 -> 0 | L19: =CMF_Tab2!L19 -> -1 | M19: =CMF_Tab2!M19 -> -1 | N19: =CMF_Tab2!N19 -> -1 | O19: =CMF_Tab2!O19 -> -1 | P19: =CMF_Tab2!P19 -> -1 | Q19: =CMF_Tab2!Q19 -> -1 | R19: =CMF_Tab2!R19 -> -1 | S19: =CMF_Tab2!S19 -> -1 | T19: =CMF_Tab2!T19 -> -1 | U19: =CMF_Tab2!U19 -> -1 | V19: =CMF_Tab2!V19 -> -1 | W19: =CMF_Tab2!W19 -> -1 | X19: =CMF_Tab2!X19 -> -1 | Y19: =CMF_Tab2!Y19 -> -1 | Z19: No | AA19: =CMF_Tab2!AA19 -> -1 | AB19: =CMF_Tab2!AB19 -> -1 | AC19: =CMF_Tab2!AC19 -> -1 | AD19: =CMF_Tab2!AD19 -> -1 | AE19: =CMF_Tab2!AE19 -> -1 | AF19: =CMF_Tab2!AF19 -> -1 | AG19: =CMF_Tab2!AG19 -> -1 | AH19: =CMF_Tab2!AH19 -> 0 | AI19: 0 | AJ19: =CMF_Tab2!AJ19 -> -1 | AK19: =CMF_Tab2!AK19 -> -1 | AL19: 16 | AM19: 4251STX | AN19: 4ST -HS
A20: =CMF_Tab2!A20 -> 17 | B20: =CMF_Tab2!B20 -> 4251SGX | C20: =CMF_Tab2!C20 -> 4SG -HS | D20: 4 | E20: No | F20: 0 | G20: 0 | H20: =CMF_Tab2!H20 -> -1 | I20: =CMF_Tab2!I20 -> -1 | J20: =CMF_Tab2!J20 -> 0 | K20: =CMF_Tab2!K20 -> 0 | L20: =CMF_Tab2!L20 -> -1 | M20: =CMF_Tab2!M20 -> -1 | N20: =CMF_Tab2!N20 -> -1 | O20: =CMF_Tab2!O20 -> -1 | P20: =CMF_Tab2!P20 -> -1 | Q20: =CMF_Tab2!Q20 -> -1 | R20: =CMF_Tab2!R20 -> -1 | S20: =CMF_Tab2!S20 -> -1 | T20: =CMF_Tab2!T20 -> -1 | U20: =CMF_Tab2!U20 -> -1 | V20: =CMF_Tab2!V20 -> -1 | W20: =CMF_Tab2!W20 -> -1 | X20: =CMF_Tab2!X20 -> -1 | Y20: =CMF_Tab2!Y20 -> -1 | Z20: Yes | AA20: Protected-Permissive | AB20: No | AC20: 0 | AD20: Yes | AE20: =CMF_Tab2!AE20 -> -1 | AF20: Yes | AG20: =CMF_Tab2!AG20 -> -1 | AH20: No | AI20: 0 | AJ20: =CMF_Tab2!AJ20 -> -1 | AK20: =CMF_Tab2!AK20 -> -1 | AL20: 17 | AM20: 4251SGX | AN20: 4SG -HS
A21: =CMF_Tab2!A21 -> 18 | B21: =CMF_Tab2!B21 -> 4250STX | C21: =CMF_Tab2!C21 -> 4ST | D21: 2 | E21: =CMF_Tab2!E21 -> 0 | F21: 0 | G21: 0 | H21: 1320 | I21: =CMF_Tab2!I21 -> -1 | J21: =CMF_Tab2!J21 -> 0 | K21: =CMF_Tab2!K21 -> 0 | L21: =CMF_Tab2!L21 -> -1 | M21: =CMF_Tab2!M21 -> -1 | N21: =CMF_Tab2!N21 -> -1 | O21: =CMF_Tab2!O21 -> -1 | P21: =CMF_Tab2!P21 -> -1 | Q21: =CMF_Tab2!Q21 -> -1 | R21: =CMF_Tab2!R21 -> -1 | S21: =CMF_Tab2!S21 -> -1 | T21: =CMF_Tab2!T21 -> -1 | U21: =CMF_Tab2!U21 -> -1 | V21: =CMF_Tab2!V21 -> -1 | W21: =CMF_Tab2!W21 -> -1 | X21: =CMF_Tab2!X21 -> -1 | Y21: =CMF_Tab2!Y21 -> -1 | Z21: No | AA21: =CMF_Tab2!AA21 -> -1 | AB21: =CMF_Tab2!AB21 -> -1 | AC21: =CMF_Tab2!AC21 -> -1 | AD21: =CMF_Tab2!AD21 -> -1 | AE21: =CMF_Tab2!AE21 -> -1 | AF21: =CMF_Tab2!AF21 -> -1 | AG21: =CMF_Tab2!AG21 -> -1 | AH21: =CMF_Tab2!AH21 -> 0 | AI21: 0 | AJ21: =CMF_Tab2!AJ21 -> -1 | AK21: =CMF_Tab2!AK21 -> -1 | AL21: 18 | AM21: 4250STX | AN21: 4ST
A22: =CMF_Tab2!A22 -> 19 | B22: =CMF_Tab2!B22 -> 4250SGX | C22: =CMF_Tab2!C22 -> 4SG | D22: 4 | E22: No | F22: 0 | G22: 0 | H22: =CMF_Tab2!H22 -> -1 | I22: =CMF_Tab2!I22 -> -1 | J22: =CMF_Tab2!J22 -> 0 | K22: =CMF_Tab2!K22 -> 0 | L22: =CMF_Tab2!L22 -> -1 | M22: =CMF_Tab2!M22 -> -1 | N22: =CMF_Tab2!N22 -> -1 | O22: =CMF_Tab2!O22 -> -1 | P22: =CMF_Tab2!P22 -> -1 | Q22: =CMF_Tab2!Q22 -> -1 | R22: =CMF_Tab2!R22 -> -1 | S22: =CMF_Tab2!S22 -> -1 | T22: =CMF_Tab2!T22 -> -1 | U22: =CMF_Tab2!U22 -> -1 | V22: =CMF_Tab2!V22 -> -1 | W22: =CMF_Tab2!W22 -> -1 | X22: =CMF_Tab2!X22 -> -1 | Y22: =CMF_Tab2!Y22 -> -1 | Z22: Yes | AA22: Protected-Permissive | AB22: No | AC22: 0 | AD22: Yes | AE22: No | AF22: No | AG22: =CMF_Tab2!AG22 -> -1 | AH22: No | AI22: 0 | AJ22: =CMF_Tab2!AJ22 -> -1 | AK22: =CMF_Tab2!AK22 -> -1 | AL22: 19 | AM22: 4250SGX | AN22: 4SG
A23: =CMF_Tab2!A23 -> 20 | B23: =CMF_Tab2!B23 -> 525XSGX | C23: =CMF_Tab2!C23 -> 5SG | D23: 4 | E23: =CMF_Tab2!E23 -> 0 | F23: =CMF_Tab2!F23 -> 0 | G23: =CMF_Tab2!G23 -> 0 | H23: =CMF_Tab2!H23 -> 0 | I23: =CMF_Tab2!I23 -> -1 | J23: =CMF_Tab2!J23 -> 0 | K23: =CMF_Tab2!K23 -> 0 | L23: =CMF_Tab2!L23 -> -1 | M23: =CMF_Tab2!M23 -> -1 | N23: =CMF_Tab2!N23 -> -1 | O23: =CMF_Tab2!O23 -> -1 | P23: =CMF_Tab2!P23 -> -1 | Q23: =CMF_Tab2!Q23 -> -1 | R23: =CMF_Tab2!R23 -> -1 | S23: =CMF_Tab2!S23 -> -1 | T23: =CMF_Tab2!T23 -> -1 | U23: =CMF_Tab2!U23 -> -1 | V23: =CMF_Tab2!V23 -> -1 | W23: =CMF_Tab2!W23 -> -1 | X23: =CMF_Tab2!X23 -> -1 | Y23: =CMF_Tab2!Y23 -> -1 | Z23: Yes | AA23: Protected-Permissive | AB23: No | AC23: 0 | AD23: Yes | AE23: =CMF_Tab2!AE23 -> -1 | AF23: Yes | AG23: =CMF_Tab2!AG23 -> -1 | AH23: =CMF_Tab2!AH23 -> 0 | AI23: =CMF_Tab2!AI23 -> 0 | AJ23: =CMF_Tab2!AJ23 -> -1 | AK23: =CMF_Tab2!AK23 -> -1 | AL23: 20 | AM23: 525XSGX | AN23: 5SG
A24: =CMF_Tab2!A24 -> 21 | B24: =CMF_Tab2!B24 -> XXXXRSX | C24: =CMF_Tab2!C24 -> XRS | D24: -1 | E24: =CMF_Tab2!E24 -> -1 | F24: =CMF_Tab2!E24 -> -1 | G24: =CMF_Tab2!G24 -> -1 | H24: =CMF_Tab2!H24 -> -1 | I24: 100 | J24: =CMF_Tab2!J24 -> 0 | K24: =CMF_Tab2!K24 -> 0 | L24: =CMF_Tab2!L24 -> [2,3] | M24: =CMF_Tab2!M24 -> [1,2,3] | N24: 600 | O24: 0 | P24: 0 | Q24: =CMF_Tab2!Q24 -> 0 | R24: 1000 | S24: =CMF_Tab2!S24 -> 0 | T24: =CMF_Tab2!T24 -> -1 | U24: =CMF_Tab2!U24 -> -1 | V24: =CMF_Tab2!V24 -> -1 | W24: =CMF_Tab2!W24 -> -1 | X24: =CMF_Tab2!X24 -> -1 | Y24: =CMF_Tab2!Y24 -> -1 | Z24: =CMF_Tab2!Z24 -> 0 | AA24: =CMF_Tab2!AA24 -> -1 | AB24: =CMF_Tab2!AB24 -> -1 | AC24: =CMF_Tab2!AC24 -> -1 | AD24: Yes | AE24: =CMF_Tab2!AE24 -> -1 | AF24: =CMF_Tab2!AF24 -> -1 | AG24: =CMF_Tab2!AG24 -> -1 | AH24: =CMF_Tab2!AH24 -> 0 | AI24: =CMF_Tab2!AI24 -> 0 | AJ24: =CMF_Tab2!AJ24 -> -1 | AK24: =CMF_Tab2!AK24 -> -1 | AL24: 21 | AM24: XXXXRSX | AN24: XRS
A25: =CMF_Tab2!A25 -> 22 | B25: =CMF_Tab2!B25 -> XXXXRUX | C25: =CMF_Tab2!C25 -> XRU | D25: =CMF_Tab2!D25 -> -1 | E25: =CMF_Tab2!E25 -> -1 | F25: =CMF_Tab2!E25 -> -1 | G25: =CMF_Tab2!G25 -> -1 | H25: =CMF_Tab2!H25 -> -1 | I25: 100 | J25: =CMF_Tab2!J25 -> 0 | K25: =CMF_Tab2!K25 -> 0 | L25: =CMF_Tab2!L25 -> 0 | M25: =CMF_Tab2!M25 -> 0 | N25: 600 | O25: 0 | P25: =CMF_Tab2!P25 -> 0 | Q25: 1000 | R25: 1000 | S25: 1 | T25: =CMF_Tab2!T25 -> -1 | U25: =CMF_Tab2!U25 -> -1 | V25: =CMF_Tab2!V25 -> -1 | W25: =CMF_Tab2!W25 -> -1 | X25: =CMF_Tab2!X25 -> -1 | Y25: =CMF_Tab2!Y25 -> -1 | Z25: =CMF_Tab2!Z25 -> 0 | AA25: =CMF_Tab2!AA25 -> -1 | AB25: =CMF_Tab2!AB25 -> -1 | AC25: =CMF_Tab2!AC25 -> -1 | AD25: =CMF_Tab2!AD25 -> -1 | AE25: =CMF_Tab2!AE25 -> -1 | AF25: =CMF_Tab2!AF25 -> -1 | AG25: =CMF_Tab2!AG25 -> -1 | AH25: =CMF_Tab2!AH25 -> -1 | AI25: =CMF_Tab2!AI25 -> -1 | AJ25: =CMF_Tab2!AJ25 -> -1 | AK25: =CMF_Tab2!AK25 -> -1 | AL25: 22 | AM25: XXXXRUX | AN25: XRU
A26: =CMF_Tab2!A26 -> 23 | B26: =CMF_Tab2!B26 -> 3XXXRA1 | C26: =CMF_Tab2!C26 -> 3RA | D26: =CMF_Tab2!D26 -> -1 | E26: =CMF_Tab2!E26 -> -1 | F26: =CMF_Tab2!F26 -> -1 | G26: =CMF_Tab2!G26 -> -1 | H26: =CMF_Tab2!H26 -> -1 | I26: =CMF_Tab2!I26 -> -1 | J26: =CMF_Tab2!J26 -> 0 | K26: =CMF_Tab2!K26 -> 0 | L26: =CMF_Tab2!L26 -> 0 | M26: =CMF_Tab2!M26 -> 0 | N26: =CMF_Tab2!N26 -> -1 | O26: =CMF_Tab2!O26 -> -1 | P26: =CMF_Tab2!P26 -> -1 | Q26: =CMF_Tab2!Q26 -> -1 | R26: =CMF_Tab2!R26 -> -1 | S26: =CMF_Tab2!S26 -> -1 | T26: -1 | U26: 0 | V26: 2 | W26: 0 | X26: =CMF_Tab2!X26 -> -1 | Y26: =CMF_Tab2!Y26 -> -1 | Z26: =CMF_Tab2!Z26 -> 0 | AA26: =CMF_Tab2!AA26 -> -1 | AB26: =CMF_Tab2!AB26 -> -1 | AC26: =CMF_Tab2!AC26 -> -1 | AD26: =CMF_Tab2!AD26 -> -1 | AE26: =CMF_Tab2!AE26 -> -1 | AF26: =CMF_Tab2!AF26 -> -1 | AG26: =CMF_Tab2!AG26 -> -1 | AH26: =CMF_Tab2!AH26 -> -1 | AI26: =CMF_Tab2!AI26 -> -1 | AJ26: =CMF_Tab2!AJ26 -> -1 | AK26: =CMF_Tab2!AK26 -> -1 | AL26: 23 | AM26: 3XXXRA1 | AN26: 3RA
A27: =CMF_Tab2!A27 -> 24 | B27: =CMF_Tab2!B27 -> 3XXXRA2 | C27: =CMF_Tab2!C27 -> 3RA | D27: =CMF_Tab2!D27 -> -1 | E27: =CMF_Tab2!E27 -> -1 | F27: =CMF_Tab2!F27 -> -1 | G27: =CMF_Tab2!G27 -> -1 | H27: =CMF_Tab2!H27 -> -1 | I27: =CMF_Tab2!I27 -> -1 | J27: =CMF_Tab2!J27 -> 0 | K27: =CMF_Tab2!K27 -> 0 | L27: =CMF_Tab2!L27 -> 0 | M27: =CMF_Tab2!M27 -> 0 | N27: =CMF_Tab2!N27 -> -1 | O27: =CMF_Tab2!O27 -> -1 | P27: =CMF_Tab2!P27 -> -1 | Q27: =CMF_Tab2!Q27 -> -1 | R27: =CMF_Tab2!R27 -> -1 | S27: =CMF_Tab2!S27 -> -1 | T27: =CMF_Tab2!T27 -> -1 | U27: 0 | V27: =CMF_Tab2!V27 -> 0 | W27: -1 | X27: -1 | Y27: -1 | Z27: =CMF_Tab2!Z27 -> 0 | AA27: =CMF_Tab2!AA27 -> -1 | AB27: =CMF_Tab2!AB27 -> -1 | AC27: =CMF_Tab2!AC27 -> -1 | AD27: =CMF_Tab2!AD27 -> -1 | AE27: =CMF_Tab2!AE27 -> -1 | AF27: =CMF_Tab2!AF27 -> -1 | AG27: =CMF_Tab2!AG27 -> -1 | AH27: =CMF_Tab2!AH27 -> -1 | AI27: =CMF_Tab2!AI27 -> -1 | AJ27: =CMF_Tab2!AJ27 -> -1 | AK27: =CMF_Tab2!AK27 -> -1 | AL27: 24 | AM27: 3XXXRA2 | AN27: 3RA
A28: =CMF_Tab2!A28 -> 25 | B28: =CMF_Tab2!B28 -> 4XXXRA1 | C28: =CMF_Tab2!C28 -> 4RA | D28: =CMF_Tab2!D28 -> -1 | E28: =CMF_Tab2!E28 -> -1 | F28: =CMF_Tab2!F28 -> -1 | G28: =CMF_Tab2!G28 -> -1 | H28: =CMF_Tab2!H28 -> -1 | I28: =CMF_Tab2!I28 -> -1 | J28: =CMF_Tab2!J28 -> 0 | K28: =CMF_Tab2!K28 -> 0 | L28: =CMF_Tab2!L28 -> 0 | M28: =CMF_Tab2!M28 -> 0 | N28: =CMF_Tab2!N28 -> -1 | O28: =CMF_Tab2!O28 -> -1 | P28: =CMF_Tab2!P28 -> -1 | Q28: =CMF_Tab2!Q28 -> -1 | R28: =CMF_Tab2!R28 -> -1 | S28: =CMF_Tab2!S28 -> -1 | T28: -1 | U28: 0 | V28: 2 | W28: 0 | X28: =CMF_Tab2!X28 -> -1 | Y28: -1 | Z28: =CMF_Tab2!Z28 -> 0 | AA28: =CMF_Tab2!AA28 -> -1 | AB28: =CMF_Tab2!AB28 -> -1 | AC28: =CMF_Tab2!AC28 -> -1 | AD28: =CMF_Tab2!AD28 -> -1 | AE28: =CMF_Tab2!AE28 -> -1 | AF28: =CMF_Tab2!AF28 -> -1 | AG28: =CMF_Tab2!AG28 -> -1 | AH28: =CMF_Tab2!AH28 -> -1 | AI28: =CMF_Tab2!AI28 -> -1 | AJ28: =CMF_Tab2!AJ28 -> -1 | AK28: =CMF_Tab2!AK28 -> -1 | AL28: 25 | AM28: 4XXXRA1 | AN28: 4RA
A29: =CMF_Tab2!A29 -> 26 | B29: =CMF_Tab2!B29 -> 4XXXRA2 | C29: =CMF_Tab2!C29 -> 4RA | D29: =CMF_Tab2!D29 -> -1 | E29: =CMF_Tab2!E29 -> -1 | F29: =CMF_Tab2!F29 -> -1 | G29: =CMF_Tab2!G29 -> -1 | H29: =CMF_Tab2!H29 -> -1 | I29: =CMF_Tab2!I29 -> -1 | J29: =CMF_Tab2!J29 -> 0 | K29: =CMF_Tab2!K29 -> 0 | L29: =CMF_Tab2!L29 -> 0 | M29: =CMF_Tab2!M29 -> 0 | N29: =CMF_Tab2!N29 -> -1 | O29: =CMF_Tab2!O29 -> -1 | P29: =CMF_Tab2!P29 -> -1 | Q29: =CMF_Tab2!Q29 -> -1 | R29: =CMF_Tab2!R29 -> -1 | S29: =CMF_Tab2!S29 -> -1 | T29: =CMF_Tab2!T29 -> -1 | U29: 0 | V29: =CMF_Tab2!V29 -> 0 | W29: -1 | X29: -1 | Y29: -1 | Z29: =CMF_Tab2!Z29 -> 0 | AA29: =CMF_Tab2!AA29 -> -1 | AB29: =CMF_Tab2!AB29 -> -1 | AC29: =CMF_Tab2!AC29 -> -1 | AD29: =CMF_Tab2!AD29 -> -1 | AE29: =CMF_Tab2!AE29 -> -1 | AF29: =CMF_Tab2!AF29 -> -1 | AG29: =CMF_Tab2!AG29 -> -1 | AH29: =CMF_Tab2!AH29 -> -1 | AI29: =CMF_Tab2!AI29 -> -1 | AJ29: =CMF_Tab2!AJ29 -> -1 | AK29: =CMF_Tab2!AK29 -> -1 | AL29: 26 | AM29: 4XXXRA2 | AN29: 4RA
A30: =CMF_Tab2!A30 -> 27 | B30: =CMF_Tab2!B30 -> 4XXXDDX | C30: =CMF_Tab2!C30 -> 0 | D30: =CMF_Tab2!D30 -> 0 | E30: =CMF_Tab2!E30 -> 0 | F30: =CMF_Tab2!F30 -> 0 | G30: =CMF_Tab2!G30 -> 0 | H30: =CMF_Tab2!H30 -> 0 | I30: =CMF_Tab2!I30 -> -1 | J30: =CMF_Tab2!J30 -> 0 | K30: =CMF_Tab2!K30 -> 0 | L30: =CMF_Tab2!L30 -> 0 | M30: =CMF_Tab2!M30 -> 0 | N30: =CMF_Tab2!N30 -> -1 | O30: =CMF_Tab2!O30 -> -1 | P30: =CMF_Tab2!P30 -> -1 | Q30: =CMF_Tab2!Q30 -> -1 | R30: =CMF_Tab2!R30 -> -1 | S30: =CMF_Tab2!S30 -> -1 | T30: =CMF_Tab2!T30 -> -1 | U30: =CMF_Tab2!U30 -> -1 | V30: =CMF_Tab2!V30 -> -1 | W30: =CMF_Tab2!W30 -> -1 | X30: =CMF_Tab2!X30 -> -1 | Y30: =CMF_Tab2!Y30 -> -1 | Z30: =CMF_Tab2!Z30 -> 0 | AA30: =CMF_Tab2!AA30 -> -1 | AB30: =CMF_Tab2!AB30 -> -1 | AC30: =CMF_Tab2!AC30 -> -1 | AD30: =CMF_Tab2!AD30 -> -1 | AE30: =CMF_Tab2!AE30 -> -1 | AF30: =CMF_Tab2!AF30 -> -1 | AG30: =CMF_Tab2!AG30 -> -1 | AH30: =CMF_Tab2!AH30 -> -1 | AI30: =CMF_Tab2!AI30 -> -1 | AJ30: =CMF_Tab2!AJ30 -> -1 | AK30: =CMF_Tab2!AK30 -> -1 | AL30: 27 | AM30: 4XXXDDX
A31: =CMF_Tab2!A31 -> 28 | B31: =CMF_Tab2!B31 -> 4XXXDLX | C31: =CMF_Tab2!C31 -> 0 | D31: =CMF_Tab2!D31 -> 0 | E31: =CMF_Tab2!E31 -> 0 | F31: =CMF_Tab2!F31 -> 0 | G31: =CMF_Tab2!G31 -> 0 | H31: =CMF_Tab2!H31 -> 0 | I31: =CMF_Tab2!I31 -> -1 | J31: =CMF_Tab2!J31 -> 0 | K31: =CMF_Tab2!K31 -> 0 | L31: =CMF_Tab2!L31 -> 0 | M31: =CMF_Tab2!M31 -> 0 | N31: =CMF_Tab2!N31 -> -1 | O31: =CMF_Tab2!O31 -> -1 | P31: =CMF_Tab2!P31 -> -1 | Q31: =CMF_Tab2!Q31 -> -1 | R31: =CMF_Tab2!R31 -> -1 | S31: =CMF_Tab2!S31 -> -1 | T31: =CMF_Tab2!T31 -> -1 | U31: =CMF_Tab2!U31 -> -1 | V31: =CMF_Tab2!V31 -> -1 | W31: =CMF_Tab2!W31 -> -1 | X31: =CMF_Tab2!X31 -> -1 | Y31: =CMF_Tab2!Y31 -> -1 | Z31: =CMF_Tab2!Z31 -> 0 | AA31: =CMF_Tab2!AA31 -> -1 | AB31: =CMF_Tab2!AB31 -> -1 | AC31: =CMF_Tab2!AC31 -> -1 | AD31: =CMF_Tab2!AD31 -> -1 | AE31: =CMF_Tab2!AE31 -> -1 | AF31: =CMF_Tab2!AF31 -> -1 | AG31: =CMF_Tab2!AG31 -> -1 | AH31: =CMF_Tab2!AH31 -> -1 | AI31: =CMF_Tab2!AI31 -> -1 | AJ31: =CMF_Tab2!AJ31 -> -1 | AK31: =CMF_Tab2!AK31 -> -1 | AL31: 28 | AM31: 4XXXDLX
A32: =CMF_Tab2!A32 -> 29 | B32: =CMF_Tab2!B32 -> 4XXXMUX | C32: =CMF_Tab2!C32 -> 0 | D32: =CMF_Tab2!D32 -> 0 | E32: =CMF_Tab2!E32 -> 0 | F32: =CMF_Tab2!F32 -> 0 | G32: =CMF_Tab2!G32 -> 0 | H32: =CMF_Tab2!H32 -> 0 | I32: =CMF_Tab2!I32 -> -1 | J32: =CMF_Tab2!J32 -> 0 | K32: =CMF_Tab2!K32 -> 0 | L32: =CMF_Tab2!L32 -> 0 | M32: =CMF_Tab2!M32 -> 0 | N32: =CMF_Tab2!N32 -> -1 | O32: =CMF_Tab2!O32 -> -1 | P32: =CMF_Tab2!P32 -> -1 | Q32: =CMF_Tab2!Q32 -> -1 | R32: =CMF_Tab2!R32 -> -1 | S32: =CMF_Tab2!S32 -> -1 | T32: =CMF_Tab2!T32 -> -1 | U32: =CMF_Tab2!U32 -> -1 | V32: =CMF_Tab2!V32 -> -1 | W32: =CMF_Tab2!W32 -> -1 | X32: =CMF_Tab2!X32 -> -1 | Y32: =CMF_Tab2!Y32 -> -1 | Z32: =CMF_Tab2!Z32 -> 0 | AA32: =CMF_Tab2!AA32 -> -1 | AB32: =CMF_Tab2!AB32 -> -1 | AC32: =CMF_Tab2!AC32 -> -1 | AD32: =CMF_Tab2!AD32 -> -1 | AE32: =CMF_Tab2!AE32 -> -1 | AF32: =CMF_Tab2!AF32 -> -1 | AG32: =CMF_Tab2!AG32 -> -1 | AH32: =CMF_Tab2!AH32 -> -1 | AI32: =CMF_Tab2!AI32 -> -1 | AJ32: =CMF_Tab2!AJ32 -> -1 | AK32: =CMF_Tab2!AK32 -> -1 | AL32: 29 | AM32: 4XXXMUX
A33: ST=STOP; SG=Signal; 6 = 6 Lanes or more; OW = one-way street; HS = High speed; XRS = restricted U-Turn Signalized; XRU = restrcited U-Turn Unsig.; 3RA = 3-leg roundabout | V33: P4 | AN33: P5

Sheet CMF_Optimal (hidden)
A1: =CMF_Tab2!A1 -> Num | B1: =CMF_Tab2!B1 -> IntCode | C1: =CMF_Tab2!C1 -> Note | D1: =CMF_Tab2!D1 -> Left-Turn Lanes | E1: =CMF_Tab2!E1 -> Offset Left-Turn Lanes | F1: =CMF_Tab2!F1 -> Right-Turn Lanes | G1: =CMF_Tab2!G1 -> Right-Turn Channelization | H1: =CMF_Tab2!H1 -> Sight Distance | I1: =CMF_Tab2!I1 -> Median Width | J1: =CMF_Tab2!J1 -> Median on Min Approach | K1: =CMF_Tab2!K1 -> Replace Direct Left-Turn with Right Turn/U-Turn | L1: =CMF_Tab2!L1 -> Number of Lanes M J | M1: =CMF_Tab2!M1 -> Number of Lanes M I | N1: =CMF_Tab2!N1 -> Offset Distance | O1: =CMF_Tab2!O1 -> Number of Driveways | P1: =CMF_Tab2!P1 -> Speed Limit | Q1: =CMF_Tab2!Q1 -> Acceleration Lane Length | R1: =CMF_Tab2!R1 -> Deceleration Lane Length | S1: =CMF_Tab2!S1 -> Number of U-Turns | T1: =CMF_Tab2!T1 -> Inscribed Circle Diameter | U1: =CMF_Tab2!U1 -> Outbound-Only Leg | V1: =CMF_Tab2!V1 -> Right-Turn Bypass Lane | W1: =CMF_Tab2!W1 -> Access Point Frequency | X1: =CMF_Tab2!X1 -> Entry Width | Y1: =CMF_Tab2!Y1 -> Entering Lanes | Z1: =CMF_Tab2!Z1 -> Lighting | AA1: =CMF_Tab2!AA1 -> Left-Turn Signal Phasing | AB1: =CMF_Tab2!AB1 -> Increase Total Change Interval | AC1: =CMF_Tab2!AC1 -> Prohibit Right-Turn-on-Red | AD1: =CMF_Tab2!AD1 -> Retroreflective Sheeting to Backplates | AE1: =CMF_Tab2!AE1 -> Red-Light Cameras | AF1: =CMF_Tab2!AF1 -> Actuated Advance Warning | AG1: =CMF_Tab2!AG1 -> Painted Median on Minor Approach | AH1: =CMF_Tab2!AH1 -> Prohibit Left-Turns | AI1: =CMF_Tab2!AI1 -> Prohibit U-Turns | AJ1: =CMF_Tab2!AJ1 -> Prohibit Left-Turns and U-Turns | AK1: =CMF_Tab2!AK1 -> Right-In Right-Out | AL1: Num | AM1: IntCode | AN1: Note
A2: No3. Optimal | D2: =CMF_Tab2!D2 -> LTL | E2: =CMF_Tab2!E2 -> OLTL | F2: =CMF_Tab2!F2 -> RTL | G2: =CMF_Tab2!G2 -> RTC | H2: =CMF_Tab2!H2 -> SD | I2: =CMF_Tab2!I2 -> MW | J2: =CMF_Tab2!J2 -> MOMA | K2: =CMF_Tab2!K2 -> RDLTWRTT | L2: =CMF_Tab2!L2 -> NOLMJ | M2: =CMF_Tab2!M2 -> NOLMI | N2: =CMF_Tab2!N2 -> OD | O2: =CMF_Tab2!O2 -> NOD | P2: =CMF_Tab2!P2 -> SL | Q2: =CMF_Tab2!Q2 -> ALL | R2: =CMF_Tab2!R2 -> DLL | S2: =CMF_Tab2!S2 -> NOUT | T2: =CMF_Tab2!T2 -> ICD | U2: =CMF_Tab2!U2 -> OOL | V2: =CMF_Tab2!V2 -> RTBL | W2: =CMF_Tab2!W2 -> APF | X2: =CMF_Tab2!X2 -> EW | Y2: =CMF_Tab2!Y2 -> EL | Z2: =CMF_Tab2!Z2 -> L | AA2: =CMF_Tab2!AA2 -> LTSP | AB2: =CMF_Tab2!AB2 -> ITCI | AC2: =CMF_Tab2!AC2 -> PRTOR | AD2: =CMF_Tab2!AD2 -> RSTB | AE2: =CMF_Tab2!AE2 -> RLC | AF2: =CMF_Tab2!AF2 -> AAW | AG2: =CMF_Tab2!AG2 -> PMOMA | AH2: =CMF_Tab2!AH2 -> PLT | AI2: =CMF_Tab2!AI2 -> PUT | AJ2: =CMF_Tab2!AJ2 -> PLTAUT | AK2: =CMF_Tab2!AK2 -> RIRO
D3: =CMF_Tab2!D3 -> Num of Approaches with Exclusive Left-Turn Lanes | E3: =CMF_Tab2!E3 -> Offset Left-Turn Lanes | F3: =CMF_Tab2!F3 -> Num of Approaches with Exclusive Right-Turn Lanes | G3: =CMF_Tab2!G3 -> Num of Approaches on Major St. with Right-Turn Channelization | H3: =CMF_Tab2!H3 -> Sight Distance (ft) | I3: =CMF_Tab2!I3 -> RCUT Median Width (ft) | J3: =CMF_Tab2!J3 -> Median on Min Approach | K3: =CMF_Tab2!K3 -> Replace Direct Left-Turn with Right Turn/U-Turn | L3: =CMF_Tab2!L3 -> Major Street Lane Number | M3: =CMF_Tab2!M3 -> Minor Street Lane Number | N3: =CMF_Tab2!N3 -> RCUT Offset Distance (ft) | O3: =CMF_Tab2!O3 -> RCUT Number of Driveways | P3: =CMF_Tab2!P3 -> Major Road Speed Limit (mph) | Q3: =CMF_Tab2!Q3 -> RCUT Acceleration Lane Length (ft) | R3: =CMF_Tab2!R3 -> RCUT Deceleration Lane Length (ft) | S3: =CMF_Tab2!S3 -> RCUT Number of U-Turns | T3: =CMF_Tab2!T3 -> Roundabout (RA) Inscribed Circle Diameter (ft) | U3: =CMF_Tab2!U3 -> RA Number of Outbound-only Leg(s) | V3: =CMF_Tab2!V3 -> RA Number of Legs with Right-Turn Bypass Lane | W3: =CMF_Tab2!W3 -> RA Total Number of Driveways/Access Points of the Roundabout (within 250 ft of yield line) | X3: =CMF_Tab2!X3 -> RA Entry Width (ft) | Y3: =CMF_Tab2!Y3 -> RA Number of Circulating Lane Conflicting with the Leg | Z3: =CMF_Tab2!Z3 -> Lighting | AA3: =CMF_Tab2!AA3 -> Left-Turn Signal Phasing | AB3: =CMF_Tab2!AB3 -> Increase total change interval (greater than ITE recommended practice) | AC3: =CMF_Tab2!AC3 -> Number of Approaches for which RTOR is Prohibited | AD3: =CMF_Tab2!AD3 -> Retroreflective Sheeting to Backplates | AE3: =CMF_Tab2!AE3 -> Red-Light Cameras | AF3: =CMF_Tab2!AF3 -> Actuated Advance Warning | AG3: =CMF_Tab2!AG3 -> Painted Median on Minor Approach | AH3: =CMF_Tab2!AH3 -> Prohibit Left-Turns | AI3: =CMF_Tab2!AI3 -> Number of Approaches with U-Turn Prohibition | AJ3: =CMF_Tab2!AJ3 -> Prohibit Left-Turns and U-Turns | AK3: =CMF_Tab2!AK3 -> Right-In Right-Out
A4: =CMF_Tab2!A4 -> 1 | B4: =CMF_Tab2!B4 -> 31XXSTX | C4: =CMF_Tab2!C4 -> 3ST -6;-OW | D4: =CMF_Tab2!D4 -> 0 | E4: =CMF_Tab2!E4 -> 0 | F4: =CMF_Tab2!F4 -> 0 | G4: =CMF_Tab2!G4 -> 0 | H4: 1320 | I4: =CMF_Tab2!I4 -> -1 | J4: =CMF_Tab2!J4 -> 0 | K4: =CMF_Tab2!K4 -> 0 | L4: =CMF_Tab2!L4 -> -1 | M4: =CMF_Tab2!M4 -> -1 | N4: =CMF_Tab2!N4 -> -1 | O4: =CMF_Tab2!O4 -> -1 | P4: =CMF_Tab2!P4 -> -1 | Q4: =CMF_Tab2!Q4 -> -1 | R4: =CMF_Tab2!R4 -> -1 | S4: =CMF_Tab2!S4 -> -1 | T4: =CMF_Tab2!T4 -> -1 | U4: =CMF_Tab2!U4 -> -1 | V4: =CMF_Tab2!V4 -> -1 | W4: =CMF_Tab2!W4 -> -1 | X4: =CMF_Tab2!X4 -> -1 | Y4: =CMF_Tab2!Y4 -> -1 | Z4: Yes | AA4: =CMF_Tab2!AA4 -> -1 | AB4: =CMF_Tab2!AB4 -> -1 | AC4: =CMF_Tab2!AC4 -> -1 | AD4: =CMF_Tab2!AD4 -> -1 | AE4: =CMF_Tab2!AE4 -> -1 | AF4: =CMF_Tab2!AF4 -> -1 | AG4: =CMF_Tab2!AG4 -> -1 | AH4: =CMF_Tab2!AH4 -> 0 | AI4: =CMF_Tab2!AI4 -> 0 | AJ4: =CMF_Tab2!AJ4 -> -1 | AK4: =CMF_Tab2!AK4 -> 0 | AL4: 1 | AM4: 31XXSTX | AN4: 3ST -6;-OW
A5: =CMF_Tab2!A5 -> 2 | B5: =CMF_Tab2!B5 -> 31XXSGX | C5: =CMF_Tab2!C5 -> 3SG -6;-OW | D5: =CMF_Tab2!D5 -> 0 | E5: =CMF_Tab2!E5 -> 0 | F5: =CMF_Tab2!F5 -> 0 | G5: =CMF_Tab2!G5 -> 0 | H5: =CMF_Tab2!H5 -> -1 | I5: =CMF_Tab2!I5 -> -1 | J5: =CMF_Tab2!J5 -> 0 | K5: =CMF_Tab2!K5 -> 0 | L5: =CMF_Tab2!L5 -> -1 | M5: =CMF_Tab2!M5 -> -1 | N5: =CMF_Tab2!N5 -> -1 | O5: =CMF_Tab2!O5 -> -1 | P5: =CMF_Tab2!P5 -> -1 | Q5: =CMF_Tab2!Q5 -> -1 | R5: =CMF_Tab2!R5 -> -1 | S5: =CMF_Tab2!S5 -> -1 | T5: =CMF_Tab2!T5 -> -1 | U5: =CMF_Tab2!U5 -> -1 | V5: =CMF_Tab2!V5 -> -1 | W5: =CMF_Tab2!W5 -> -1 | X5: =CMF_Tab2!X5 -> -1 | Y5: =CMF_Tab2!Y5 -> -1 | Z5: Yes | AA5: Protected | AB5: Yes | AC5: 3 | AD5: Yes | AE5: =CMF_Tab2!AE5 -> -1 | AF5: Yes | AG5: =CMF_Tab2!AG5 -> -1 | AH5: =CMF_Tab2!AH5 -> 0 | AI5: =CMF_Tab2!AI5 -> 0 | AJ5: =CMF_Tab2!AJ5 -> -1 | AK5: =CMF_Tab2!AK5 -> 0 | AL5: 2 | AM5: 31XXSGX | AN5: 3SG -6;-OW
A6: =CMF_Tab2!A6 -> 3 | B6: =CMF_Tab2!B6 -> 326XSTX | C6: =CMF_Tab2!C6 -> 3ST -6;-OW | D6: 2 | E6: =CMF_Tab2!E6 -> 0 | F6: 2 | G6: 0 | H6: 1320 | I6: =CMF_Tab2!I6 -> -1 | J6: No | K6: =CMF_Tab2!K6 -> 0 | L6: =CMF_Tab2!L6 -> -1 | M6: =CMF_Tab2!M6 -> -1 | N6: =CMF_Tab2!N6 -> -1 | O6: =CMF_Tab2!O6 -> -1 | P6: =CMF_Tab2!P6 -> -1 | Q6: =CMF_Tab2!Q6 -> -1 | R6: =CMF_Tab2!R6 -> -1 | S6: =CMF_Tab2!S6 -> -1 | T6: =CMF_Tab2!T6 -> -1 | U6: =CMF_Tab2!U6 -> -1 | V6: =CMF_Tab2!V6 -> -1 | W6: =CMF_Tab2!W6 -> -1 | X6: =CMF_Tab2!X6 -> -1 | Y6: =CMF_Tab2!Y6 -> -1 | Z6: Yes | AA6: =CMF_Tab2!AA6 -> -1 | AB6: =CMF_Tab2!AB6 -> -1 | AC6: =CMF_Tab2!AC6 -> -1 | AD6: =CMF_Tab2!AD6 -> -1 | AE6: =CMF_Tab2!AE6 -> -1 | AF6: =CMF_Tab2!AF6 -> -1 | AG6: =CMF_Tab2!AG6 -> -1 | AH6: =CMF_Tab2!AH6 -> 0 | AI6: 0 | AJ6: =CMF_Tab2!AJ6 -> -1 | AK6: Yes | AL6: 3 | AM6: 326XSTX | AN6: 3ST -6;-OW
A7: =CMF_Tab2!A7 -> 4 | B7: =CMF_Tab2!B7 -> 326XSGX | C7: =CMF_Tab2!C7 -> 3SG -6;-OW | D7: 2 | E7: Yes | F7: 2 | G7: 0 | H7: =CMF_Tab2!H7 -> -1 | I7: =CMF_Tab2!I7 -> -1 | J7: =CMF_Tab2!J7 -> 0 | K7: =CMF_Tab2!K7 -> 0 | L7: =CMF_Tab2!L7 -> -1 | M7: =CMF_Tab2!M7 -> -1 | N7: =CMF_Tab2!N7 -> -1 | O7: =CMF_Tab2!O7 -> -1 | P7: =CMF_Tab2!P7 -> -1 | Q7: =CMF_Tab2!Q7 -> -1 | R7: =CMF_Tab2!R7 -> -1 | S7: =CMF_Tab2!S7 -> -1 | T7: =CMF_Tab2!T7 -> -1 | U7: =CMF_Tab2!U7 -> -1 | V7: =CMF_Tab2!V7 -> -1 | W7: =CMF_Tab2!W7 -> -1 | X7: =CMF_Tab2!X7 -> -1 | Y7: =CMF_Tab2!Y7 -> -1 | Z7: Yes | AA7: Protected | AB7: Yes | AC7: 3 | AD7: Yes | AE7: =CMF_Tab2!AE7 -> -1 | AF7: Yes | AG7: =CMF_Tab2!AG7 -> -1 | AH7: No | AI7: 0 | AJ7: =CMF_Tab2!AJ7 -> -1 | AK7: =CMF_Tab2!AK7 -> 0 | AL7: 4 | AM7: 326XSGX | AN7: 3SG -6;-OW
A8: =CMF_Tab2!A8 -> 5 | B8: =CMF_Tab2!B8 -> 325XASX | C8: =CMF_Tab2!C8 -> 3AS | D8: =CMF_Tab2!D8 -> 0 | E8: =CMF_Tab2!E8 -> 0 | F8: =CMF_Tab2!F8 -> 0 | G8: =CMF_Tab2!G8 -> 0 | H8: 1320 | I8: =CMF_Tab2!I8 -> -1 | J8: =CMF_Tab2!J8 -> 0 | K8: =CMF_Tab2!K8 -> 0 | L8: =CMF_Tab2!L8 -> -1 | M8: =CMF_Tab2!M8 -> -1 | N8: =CMF_Tab2!N8 -> -1 | O8: =CMF_Tab2!O8 -> -1 | P8: =CMF_Tab2!P8 -> -1 | Q8: =CMF_Tab2!Q8 -> -1 | R8: =CMF_Tab2!R8 -> -1 | S8: =CMF_Tab2!S8 -> -1 | T8: =CMF_Tab2!T8 -> -1 | U8: =CMF_Tab2!U8 -> -1 | V8: =CMF_Tab2!V8 -> -1 | W8: =CMF_Tab2!W8 -> -1 | X8: =CMF_Tab2!X8 -> -1 | Y8: =CMF_Tab2!Y8 -> -1 | Z8: Yes | AA8: =CMF_Tab2!AA8 -> -1 | AB8: =CMF_Tab2!AB8 -> -1 | AC8: =CMF_Tab2!AC8 -> -1 | AD8: =CMF_Tab2!AD8 -> -1 | AE8: =CMF_Tab2!AE8 -> -1 | AF8: =CMF_Tab2!AF8 -> -1 | AG8: =CMF_Tab2!AG8 -> -1 | AH8: =CMF_Tab2!AH8 -> 0 | AI8: =CMF_Tab2!AI8 -> 0 | AJ8: =CMF_Tab2!AJ8 -> -1 | AK8: =CMF_Tab2!AK8 -> 0 | AL8: 5 | AM8: 325XASX | AN8: 3AS
A9: =CMF_Tab2!A9 -> 6 | B9: =CMF_Tab2!B9 -> 3251STX | C9: =CMF_Tab2!C9 -> 3ST -HS | D9: 2 | E9: =CMF_Tab2!E9 -> 0 | F9: 2 | G9: 0 | H9: 0 | I9: =CMF_Tab2!I9 -> -1 | J9: No | K9: =CMF_Tab2!K9 -> 0 | L9: =CMF_Tab2!L9 -> -1 | M9: =CMF_Tab2!M9 -> -1 | N9: =CMF_Tab2!N9 -> -1 | O9: =CMF_Tab2!O9 -> -1 | P9: =CMF_Tab2!P9 -> -1 | Q9: =CMF_Tab2!Q9 -> -1 | R9: =CMF_Tab2!R9 -> -1 | S9: =CMF_Tab2!S9 -> -1 | T9: =CMF_Tab2!T9 -> -1 | U9: =CMF_Tab2!U9 -> -1 | V9: =CMF_Tab2!V9 -> -1 | W9: =CMF_Tab2!W9 -> -1 | X9: =CMF_Tab2!X9 -> -1 | Y9: =CMF_Tab2!Y9 -> -1 | Z9: Yes | AA9: =CMF_Tab2!AA9 -> -1 | AB9: =CMF_Tab2!AB9 -> -1 | AC9: =CMF_Tab2!AC9 -> -1 | AD9: =CMF_Tab2!AD9 -> -1 | AE9: =CMF_Tab2!AE9 -> -1 | AF9: =CMF_Tab2!AF9 -> -1 | AG9: Yes | AH9: =CMF_Tab2!AH9 -> 0 | AI9: 0 | AJ9: =CMF_Tab2!AJ9 -> -1 | AK9: Yes | AL9: 6 | AM9: 3251STX | AN9: 3ST -HS
A10: =CMF_Tab2!A10 -> 7 | B10: =CMF_Tab2!B10 -> 3251SGX | C10: =CMF_Tab2!C10 -> 3SG -HS | D10: 3 | E10: Yes | F10: 2 | G10: 0 | H10: =CMF_Tab2!H10 -> -1 | I10: =CMF_Tab2!I10 -> -1 | J10: =CMF_Tab2!J10 -> 0 | K10: =CMF_Tab2!K10 -> 0 | L10: =CMF_Tab2!L10 -> -1 | M10: =CMF_Tab2!M10 -> -1 | N10: =CMF_Tab2!N10 -> -1 | O10: =CMF_Tab2!O10 -> -1 | P10: =CMF_Tab2!P10 -> -1 | Q10: =CMF_Tab2!Q10 -> -1 | R10: =CMF_Tab2!R10 -> -1 | S10: =CMF_Tab2!S10 -> -1 | T10: =CMF_Tab2!T10 -> -1 | U10: =CMF_Tab2!U10 -> -1 | V10: =CMF_Tab2!V10 -> -1 | W10: =CMF_Tab2!W10 -> -1 | X10: =CMF_Tab2!X10 -> -1 | Y10: =CMF_Tab2!Y10 -> -1 | Z10: Yes | AA10: =CMF_Tab2!AA10 -> {Permissive,Protected-Permissive,Protected} | AB10: Yes | AC10: 3 | AD10: Yes | AE10: =CMF_Tab2!AE10 -> -1 | AF10: Yes | AG10: =CMF_Tab2!AG10 -> -1 | AH10: No | AI10: 0 | AJ10: =CMF_Tab2!AJ10 -> -1 | AK10: =CMF_Tab2!AK10 -> 0 | AL10: 7 | AM10: 3251SGX | AN10: 3SG -HS
A11: =CMF_Tab2!A11 -> 8 | B11: =CMF_Tab2!B11 -> 3250ST0 | C11: =CMF_Tab2!C11 -> 3ST | D11: 2 | E11: =CMF_Tab2!E11 -> 0 | F11: 2 | G11: 0 | H11: 1320 | I11: =CMF_Tab2!I11 -> -1 | J11: No | K11: =CMF_Tab2!K11 -> 0 | L11: =CMF_Tab2!L11 -> -1 | M11: =CMF_Tab2!M11 -> -1 | N11: =CMF_Tab2!N11 -> -1 | O11: =CMF_Tab2!O11 -> -1 | P11: =CMF_Tab2!P11 -> -1 | Q11: =CMF_Tab2!Q11 -> -1 | R11: =CMF_Tab2!R11 -> -1 | S11: =CMF_Tab2!S11 -> -1 | T11: =CMF_Tab2!T11 -> -1 | U11: =CMF_Tab2!U11 -> -1 | V11: =CMF_Tab2!V11 -> -1 | W11: =CMF_Tab2!W11 -> -1 | X11: =CMF_Tab2!X11 -> -1 | Y11: =CMF_Tab2!Y11 -> -1 | Z11: Yes | AA11: =CMF_Tab2!AA11 -> -1 | AB11: =CMF_Tab2!AB11 -> -1 | AC11: =CMF_Tab2!AC11 -> -1 | AD11: =CMF_Tab2!AD11 -> -1 | AE11: =CMF_Tab2!AE11 -> -1 | AF11: =CMF_Tab2!AF11 -> -1 | AG11: Yes | AH11: =CMF_Tab2!AH11 -> 0 | AI11: 0 | AJ11: =CMF_Tab2!AJ11 -> -1 | AK11: Yes | AL11: 8 | AM11: 3250ST0 | AN11: 3ST
A12: =CMF_Tab2!A12 -> 9 | B12: =CMF_Tab2!B12 -> 3250SG0 | C12: =CMF_Tab2!C12 -> 3SG | D12: 3 | E12: Yes | F12: 2 | G12: 0 | H12: =CMF_Tab2!H12 -> -1 | I12: =CMF_Tab2!I12 -> -1 | J12: =CMF_Tab2!J12 -> 0 | K12: =CMF_Tab2!K12 -> 0 | L12: =CMF_Tab2!L12 -> -1 | M12: =CMF_Tab2!M12 -> -1 | N12: =CMF_Tab2!N12 -> -1 | O12: =CMF_Tab2!O12 -> -1 | P12: =CMF_Tab2!P12 -> -1 | Q12: =CMF_Tab2!Q12 -> -1 | R12: =CMF_Tab2!R12 -> -1 | S12: =CMF_Tab2!S12 -> -1 | T12: =CMF_Tab2!T12 -> -1 | U12: =CMF_Tab2!U12 -> -1 | V12: =CMF_Tab2!V12 -> -1 | W12: =CMF_Tab2!W12 -> -1 | X12: =CMF_Tab2!X12 -> -1 | Y12: =CMF_Tab2!Y12 -> -1 | Z12: Yes | AA12: Protected | AB12: Yes | AC12: 3 | AD12: Yes | AE12: =CMF_Tab2!AE12 -> -1 | AF12: =CMF_Tab2!AF12 -> -1 | AG12: =CMF_Tab2!AG12 -> -1 | AH12: No | AI12: 0 | AJ12: =CMF_Tab2!AJ12 -> -1 | AK12: =CMF_Tab2!AK12 -> 0 | AL12: 9 | AM12: 3250SG0 | AN12: 3SG
A13: =CMF_Tab2!A13 -> 10 | B13: =CMF_Tab2!B13 -> 3250ST1 | C13: =CMF_Tab2!C13 -> 3ST | D13: =CMF_Tab2!D13 -> -1 | E13: =CMF_Tab2!E13 -> -1 | F13: =CMF_Tab2!F13 -> -1 | G13: =CMF_Tab2!G13 -> -1 | H13: =CMF_Tab2!H13 -> -1 | I13: =CMF_Tab2!I13 -> -1 | J13: =CMF_Tab2!J13 -> -1 | K13: =CMF_Tab2!K13 -> -1 | L13: =CMF_Tab2!L13 -> -1 | M13: =CMF_Tab2!M13 -> -1 | N13: =CMF_Tab2!N13 -> -1 | O13: =CMF_Tab2!O13 -> -1 | P13: =CMF_Tab2!P13 -> -1 | Q13: =CMF_Tab2!Q13 -> -1 | R13: =CMF_Tab2!R13 -> -1 | S13: =CMF_Tab2!S13 -> -1 | T13: =CMF_Tab2!T13 -> -1 | U13: =CMF_Tab2!U13 -> -1 | V13: =CMF_Tab2!V13 -> -1 | W13: =CMF_Tab2!W13 -> -1 | X13: =CMF_Tab2!X13 -> -1 | Y13: =CMF_Tab2!Y13 -> -1 | Z13: =CMF_Tab2!Z13 -> -1 | AA13: =CMF_Tab2!AA13 -> -1 | AB13: =CMF_Tab2!AB13 -> -1 | AC13: =CMF_Tab2!AC13 -> -1 | AD13: =CMF_Tab2!AD13 -> -1 | AE13: =CMF_Tab2!AE13 -> -1 | AF13: =CMF_Tab2!AF13 -> -1 | AG13: =CMF_Tab2!AG13 -> -1 | AH13: =CMF_Tab2!AH13 -> -1 | AI13: =CMF_Tab2!AI13 -> -1 | AJ13: =CMF_Tab2!AJ13 -> -1 | AK13: =CMF_Tab2!AK13 -> -1 | AL13: 10 | AM13: 3250ST1 | AN13: 3ST
A14: =CMF_Tab2!A14 -> 11 | B14: =CMF_Tab2!B14 -> 41XXSTX | C14: =CMF_Tab2!C14 -> 4ST -6;-OW | D14: =CMF_Tab2!D14 -> 0 | E14: =CMF_Tab2!E14 -> 0 | F14: =CMF_Tab2!F14 -> 0 | G14: =CMF_Tab2!G14 -> 0 | H14: 1320 | I14: =CMF_Tab2!I14 -> -1 | J14: =CMF_Tab2!J14 -> 0 | K14: =CMF_Tab2!K14 -> 0 | L14: =CMF_Tab2!L14 -> -1 | M14: =CMF_Tab2!M14 -> -1 | N14: =CMF_Tab2!N14 -> -1 | O14: =CMF_Tab2!O14 -> -1 | P14: =CMF_Tab2!P14 -> -1 | Q14: =CMF_Tab2!Q14 -> -1 | R14: =CMF_Tab2!R14 -> -1 | S14: =CMF_Tab2!S14 -> -1 | T14: =CMF_Tab2!T14 -> -1 | U14: =CMF_Tab2!U14 -> -1 | V14: =CMF_Tab2!V14 -> -1 | W14: =CMF_Tab2!W14 -> -1 | X14: =CMF_Tab2!X14 -> -1 | Y14: =CMF_Tab2!Y14 -> -1 | Z14: Yes | AA14: =CMF_Tab2!AA14 -> -1 | AB14: =CMF_Tab2!AB14 -> -1 | AC14: =CMF_Tab2!AC14 -> -1 | AD14: =CMF_Tab2!AD14 -> -1 | AE14: =CMF_Tab2!AE14 -> -1 | AF14: =CMF_Tab2!AF14 -> -1 | AG14: =CMF_Tab2!AG14 -> -1 | AH14: =CMF_Tab2!AH14 -> 0 | AI14: =CMF_Tab2!AI14 -> 0 | AJ14: =CMF_Tab2!AJ14 -> -1 | AK14: =CMF_Tab2!AK14 -> -1 | AL14: 11 | AM14: 41XXSTX | AN14: 4ST -6;-OW
A15: =CMF_Tab2!A15 -> 12 | B15: =CMF_Tab2!B15 -> 41XXSGX | C15: =CMF_Tab2!C15 -> 4SG -6;-OW | D15: =CMF_Tab2!D15 -> 0 | E15: =CMF_Tab2!E15 -> 0 | F15: =CMF_Tab2!F15 -> 0 | G15: =CMF_Tab2!G15 -> 0 | H15: =CMF_Tab2!H15 -> -1 | I15: =CMF_Tab2!I15 -> -1 | J15: =CMF_Tab2!J15 -> 0 | K15: =CMF_Tab2!K15 -> 0 | L15: =CMF_Tab2!L15 -> -1 | M15: =CMF_Tab2!M15 -> -1 | N15: =CMF_Tab2!N15 -> -1 | O15: =CMF_Tab2!O15 -> -1 | P15: =CMF_Tab2!P15 -> -1 | Q15: =CMF_Tab2!Q15 -> -1 | R15: =CMF_Tab2!R15 -> -1 | S15: =CMF_Tab2!S15 -> -1 | T15: =CMF_Tab2!T15 -> -1 | U15: =CMF_Tab2!U15 -> -1 | V15: =CMF_Tab2!V15 -> -1 | W15: =CMF_Tab2!W15 -> -1 | X15: =CMF_Tab2!X15 -> -1 | Y15: =CMF_Tab2!Y15 -> -1 | Z15: Yes | AA15: Protected | AB15: Yes | AC15: 4 | AD15: Yes | AE15: =CMF_Tab2!AE15 -> -1 | AF15: Yes | AG15: =CMF_Tab2!AG15 -> -1 | AH15: =CMF_Tab2!AH15 -> 0 | AI15: 0 | AJ15: =CMF_Tab2!AJ15 -> -1 | AK15: =CMF_Tab2!AK15 -> -1 | AL15: 12 | AM15: 41XXSGX | AN15: 4SG -6;-OW
A16: =CMF_Tab2!A16 -> 13 | B16: =CMF_Tab2!B16 -> 426XSTX | C16: =CMF_Tab2!C16 -> 4ST -6;-OW | D16: 2 | E16: =CMF_Tab2!E16 -> 0 | F16: 2 | G16: 0 | H16: 1320 | I16: =CMF_Tab2!I16 -> -1 | J16: =CMF_Tab2!J16 -> 0 | K16: =CMF_Tab2!K16 -> 0 | L16: =CMF_Tab2!L16 -> -1 | M16: =CMF_Tab2!M16 -> -1 | N16: =CMF_Tab2!N16 -> -1 | O16: =CMF_Tab2!O16 -> -1 | P16: =CMF_Tab2!P16 -> -1 | Q16: =CMF_Tab2!Q16 -> -1 | R16: =CMF_Tab2!R16 -> -1 | S16: =CMF_Tab2!S16 -> -1 | T16: =CMF_Tab2!T16 -> -1 | U16: =CMF_Tab2!U16 -> -1 | V16: =CMF_Tab2!V16 -> -1 | W16: =CMF_Tab2!W16 -> -1 | X16: =CMF_Tab2!X16 -> -1 | Y16: =CMF_Tab2!Y16 -> -1 | Z16: Yes | AA16: =CMF_Tab2!AA16 -> -1 | AB16: =CMF_Tab2!AB16 -> -1 | AC16: =CMF_Tab2!AC16 -> -1 | AD16: =CMF_Tab2!AD16 -> -1 | AE16: =CMF_Tab2!AE16 -> -1 | AF16: =CMF_Tab2!AF16 -> -1 | AG16: =CMF_Tab2!AG16 -> -1 | AH16: =CMF_Tab2!AH16 -> 0 | AI16: 0 | AJ16: =CMF_Tab2!AJ16 -> -1 | AK16: =CMF_Tab2!AK16 -> -1 | AL16: 13 | AM16: 426XSTX | AN16: 4ST -6;-OW
A17: =CMF_Tab2!A17 -> 14 | B17: =CMF_Tab2!B17 -> 426XSGX | C17: =CMF_Tab2!C17 -> 4SG -6;-OW | D17: 4 | E17: Yes | F17: 4 | G17: 0 | H17: =CMF_Tab2!H17 -> -1 | I17: =CMF_Tab2!I17 -> -1 | J17: =CMF_Tab2!J17 -> 0 | K17: =CMF_Tab2!K17 -> 0 | L17: =CMF_Tab2!L17 -> -1 | M17: =CMF_Tab2!M17 -> -1 | N17: =CMF_Tab2!N17 -> -1 | O17: =CMF_Tab2!O17 -> -1 | P17: =CMF_Tab2!P17 -> -1 | Q17: =CMF_Tab2!Q17 -> -1 | R17: =CMF_Tab2!R17 -> -1 | S17: =CMF_Tab2!S17 -> -1 | T17: =CMF_Tab2!T17 -> -1 | U17: =CMF_Tab2!U17 -> -1 | V17: =CMF_Tab2!V17 -> -1 | W17: =CMF_Tab2!W17 -> -1 | X17: =CMF_Tab2!X17 -> -1 | Y17: =CMF_Tab2!Y17 -> -1 | Z17: Yes | AA17: Protected | AB17: Yes | AC17: 4 | AD17: Yes | AE17: =CMF_Tab2!AE17 -> -1 | AF17: Yes | AG17: =CMF_Tab2!AG17 -> -1 | AH17: No | AI17: 0 | AJ17: =CMF_Tab2!AJ17 -> -1 | AK17: =CMF_Tab2!AK17 -> -1 | AL17: 14 | AM17: 426XSGX | AN17: 4SG -6;-OW
A18: =CMF_Tab2!A18 -> 15 | B18: =CMF_Tab2!B18 -> 425XASX | C18: =CMF_Tab2!C18 -> 4AS | D18: =CMF_Tab2!D18 -> 0 | E18: =CMF_Tab2!E18 -> 0 | F18: =CMF_Tab2!F18 -> 0 | G18: =CMF_Tab2!G18 -> 0 | H18: =CMF_Tab2!H18 -> 0 | I18: =CMF_Tab2!I18 -> -1 | J18: =CMF_Tab2!J18 -> 0 | K18: =CMF_Tab2!K18 -> 0 | L18: =CMF_Tab2!L18 -> -1 | M18: =CMF_Tab2!M18 -> -1 | N18: =CMF_Tab2!N18 -> -1 | O18: =CMF_Tab2!O18 -> -1 | P18: =CMF_Tab2!P18 -> -1 | Q18: =CMF_Tab2!Q18 -> -1 | R18: =CMF_Tab2!R18 -> -1 | S18: =CMF_Tab2!S18 -> -1 | T18: =CMF_Tab2!T18 -> -1 | U18: =CMF_Tab2!U18 -> -1 | V18: =CMF_Tab2!V18 -> -1 | W18: =CMF_Tab2!W18 -> -1 | X18: =CMF_Tab2!X18 -> -1 | Y18: =CMF_Tab2!Y18 -> -1 | Z18: Yes | AA18: =CMF_Tab2!AA18 -> -1 | AB18: =CMF_Tab2!AB18 -> -1 | AC18: =CMF_Tab2!AC18 -> -1 | AD18: =CMF_Tab2!AD18 -> -1 | AE18: =CMF_Tab2!AE18 -> -1 | AF18: =CMF_Tab2!AF18 -> -1 | AG18: =CMF_Tab2!AG18 -> -1 | AH18: =CMF_Tab2!AH18 -> 0 | AI18: =CMF_Tab2!AI18 -> 0 | AJ18: =CMF_Tab2!AJ18 -> -1 | AK18: =CMF_Tab2!AK18 -> -1 | AL18: 15 | AM18: 425XASX | AN18: 4AS
A19: =CMF_Tab2!A19 -> 16 | B19: =CMF_Tab2!B19 -> 4251STX | C19: =CMF_Tab2!C19 -> 4ST -HS | D19: 2 | E19: =CMF_Tab2!E19 -> 0 | F19: 2 | G19: 0 | H19: 1320 | I19: =CMF_Tab2!I19 -> -1 | J19: =CMF_Tab2!J19 -> 0 | K19: =CMF_Tab2!K19 -> 0 | L19: =CMF_Tab2!L19 -> -1 | M19: =CMF_Tab2!M19 -> -1 | N19: =CMF_Tab2!N19 -> -1 | O19: =CMF_Tab2!O19 -> -1 | P19: =CMF_Tab2!P19 -> -1 | Q19: =CMF_Tab2!Q19 -> -1 | R19: =CMF_Tab2!R19 -> -1 | S19: =CMF_Tab2!S19 -> -1 | T19: =CMF_Tab2!T19 -> -1 | U19: =CMF_Tab2!U19 -> -1 | V19: =CMF_Tab2!V19 -> -1 | W19: =CMF_Tab2!W19 -> -1 | X19: =CMF_Tab2!X19 -> -1 | Y19: =CMF_Tab2!Y19 -> -1 | Z19: Yes | AA19: =CMF_Tab2!AA19 -> -1 | AB19: =CMF_Tab2!AB19 -> -1 | AC19: =CMF_Tab2!AC19 -> -1 | AD19: =CMF_Tab2!AD19 -> -1 | AE19: =CMF_Tab2!AE19 -> -1 | AF19: =CMF_Tab2!AF19 -> -1 | AG19: =CMF_Tab2!AG19 -> -1 | AH19: =CMF_Tab2!AH19 -> 0 | AI19: 0 | AJ19: =CMF_Tab2!AJ19 -> -1 | AK19: =CMF_Tab2!AK19 -> -1 | AL19: 16 | AM19: 4251STX | AN19: 4ST -HS
A20: =CMF_Tab2!A20 -> 17 | B20: =CMF_Tab2!B20 -> 4251SGX | C20: =CMF_Tab2!C20 -> 4SG -HS | D20: 4 | E20: Yes | F20: 4 | G20: 0 | H20: =CMF_Tab2!H20 -> -1 | I20: =CMF_Tab2!I20 -> -1 | J20: =CMF_Tab2!J20 -> 0 | K20: =CMF_Tab2!K20 -> 0 | L20: =CMF_Tab2!L20 -> -1 | M20: =CMF_Tab2!M20 -> -1 | N20: =CMF_Tab2!N20 -> -1 | O20: =CMF_Tab2!O20 -> -1 | P20: =CMF_Tab2!P20 -> -1 | Q20: =CMF_Tab2!Q20 -> -1 | R20: =CMF_Tab2!R20 -> -1 | S20: =CMF_Tab2!S20 -> -1 | T20: =CMF_Tab2!T20 -> -1 | U20: =CMF_Tab2!U20 -> -1 | V20: =CMF_Tab2!V20 -> -1 | W20: =CMF_Tab2!W20 -> -1 | X20: =CMF_Tab2!X20 -> -1 | Y20: =CMF_Tab2!Y20 -> -1 | Z20: Yes | AA20: =CMF_Tab2!AA20 -> {Permissive,Protected-Permissive,Protected} | AB20: Yes | AC20: 4 | AD20: Yes | AE20: =CMF_Tab2!AE20 -> -1 | AF20: Yes | AG20: =CMF_Tab2!AG20 -> -1 | AH20: No | AI20: 0 | AJ20: =CMF_Tab2!AJ20 -> -1 | AK20: =CMF_Tab2!AK20 -> -1 | AL20: 17 | AM20: 4251SGX | AN20: 4SG -HS
A21: =CMF_Tab2!A21 -> 18 | B21: =CMF_Tab2!B21 -> 4250STX | C21: =CMF_Tab2!C21 -> 4ST | D21: 2 | E21: =CMF_Tab2!E21 -> 0 | F21: 2 | G21: 0 | H21: 1320 | I21: =CMF_Tab2!I21 -> -1 | J21: =CMF_Tab2!J21 -> 0 | K21: =CMF_Tab2!K21 -> 0 | L21: =CMF_Tab2!L21 -> -1 | M21: =CMF_Tab2!M21 -> -1 | N21: =CMF_Tab2!N21 -> -1 | O21: =CMF_Tab2!O21 -> -1 | P21: =CMF_Tab2!P21 -> -1 | Q21: =CMF_Tab2!Q21 -> -1 | R21: =CMF_Tab2!R21 -> -1 | S21: =CMF_Tab2!S21 -> -1 | T21: =CMF_Tab2!T21 -> -1 | U21: =CMF_Tab2!U21 -> -1 | V21: =CMF_Tab2!V21 -> -1 | W21: =CMF_Tab2!W21 -> -1 | X21: =CMF_Tab2!X21 -> -1 | Y21: =CMF_Tab2!Y21 -> -1 | Z21: Yes | AA21: =CMF_Tab2!AA21 -> -1 | AB21: =CMF_Tab2!AB21 -> -1 | AC21: =CMF_Tab2!AC21 -> -1 | AD21: =CMF_Tab2!AD21 -> -1 | AE21: =CMF_Tab2!AE21 -> -1 | AF21: =CMF_Tab2!AF21 -> -1 | AG21: =CMF_Tab2!AG21 -> -1 | AH21: =CMF_Tab2!AH21 -> 0 | AI21: 0 | AJ21: =CMF_Tab2!AJ21 -> -1 | AK21: =CMF_Tab2!AK21 -> -1 | AL21: 18 | AM21: 4250STX | AN21: 4ST
A22: =CMF_Tab2!A22 -> 19 | B22: =CMF_Tab2!B22 -> 4250SGX | C22: =CMF_Tab2!C22 -> 4SG | D22: 4 | E22: Yes | F22: 4 | G22: 0 | H22: =CMF_Tab2!H22 -> -1 | I22: =CMF_Tab2!I22 -> -1 | J22: =CMF_Tab2!J22 -> 0 | K22: =CMF_Tab2!K22 -> 0 | L22: =CMF_Tab2!L22 -> -1 | M22: =CMF_Tab2!M22 -> -1 | N22: =CMF_Tab2!N22 -> -1 | O22: =CMF_Tab2!O22 -> -1 | P22: =CMF_Tab2!P22 -> -1 | Q22: =CMF_Tab2!Q22 -> -1 | R22: =CMF_Tab2!R22 -> -1 | S22: =CMF_Tab2!S22 -> -1 | T22: =CMF_Tab2!T22 -> -1 | U22: =CMF_Tab2!U22 -> -1 | V22: =CMF_Tab2!V22 -> -1 | W22: =CMF_Tab2!W22 -> -1 | X22: =CMF_Tab2!X22 -> -1 | Y22: =CMF_Tab2!Y22 -> -1 | Z22: Yes | AA22: Protected | AB22: Yes | AC22: 4 | AD22: Yes | AE22: =CMF_Tab2!AE22 -> -1 | AF22: Yes | AG22: =CMF_Tab2!AG22 -> -1 | AH22: No | AI22: 0 | AJ22: =CMF_Tab2!AJ22 -> -1 | AK22: =CMF_Tab2!AK22 -> -1 | AL22: 19 | AM22: 4250SGX | AN22: 4SG
A23: =CMF_Tab2!A23 -> 20 | B23: =CMF_Tab2!B23 -> 525XSGX | C23: =CMF_Tab2!C23 -> 5SG | D23: =CMF_Tab2!D23 -> 0 | E23: =CMF_Tab2!E23 -> 0 | F23: =CMF_Tab2!F23 -> 0 | G23: =CMF_Tab2!G23 -> 0 | H23: =CMF_Tab2!H23 -> 0 | I23: =CMF_Tab2!I23 -> -1 | J23: =CMF_Tab2!J23 -> 0 | K23: =CMF_Tab2!K23 -> 0 | L23: =CMF_Tab2!L23 -> -1 | M23: =CMF_Tab2!M23 -> -1 | N23: =CMF_Tab2!N23 -> -1 | O23: =CMF_Tab2!O23 -> -1 | P23: =CMF_Tab2!P23 -> -1 | Q23: =CMF_Tab2!Q23 -> -1 | R23: =CMF_Tab2!R23 -> -1 | S23: =CMF_Tab2!S23 -> -1 | T23: =CMF_Tab2!T23 -> -1 | U23: =CMF_Tab2!U23 -> -1 | V23: =CMF_Tab2!V23 -> -1 | W23: =CMF_Tab2!W23 -> -1 | X23: =CMF_Tab2!X23 -> -1 | Y23: =CMF_Tab2!Y23 -> -1 | Z23: Yes | AA23: Protected | AB23: Yes | AC23: 4 | AD23: Yes | AE23: =CMF_Tab2!AE23 -> -1 | AF23: Yes | AG23: =CMF_Tab2!AG23 -> -1 | AH23: =CMF_Tab2!AH23 -> 0 | AI23: =CMF_Tab2!AI23 -> 0 | AJ23: =CMF_Tab2!AJ23 -> -1 | AK23: =CMF_Tab2!AK23 -> -1 | AL23: 20 | AM23: 525XSGX | AN23: 5SG
A24: =CMF_Tab2!A24 -> 21 | B24: =CMF_Tab2!B24 -> XXXXRSX | C24: =CMF_Tab2!C24 -> XRS | D24: 4 | E24: =CMF_Tab2!E24 -> -1 | F24: =CMF_Tab2!F24 -> 0 | G24: =CMF_Tab2!G24 -> -1 | H24: =CMF_Tab2!H24 -> -1 | I24: 100 | J24: =CMF_Tab2!J24 -> 0 | K24: =CMF_Tab2!K24 -> 0 | L24: =CMF_Tab2!L24 -> [2,3] | M24: =CMF_Tab2!M24 -> [1,2,3] | N24: 600 | O24: 0 | P24: 0 | Q24: =CMF_Tab2!Q24 -> 0 | R24: 1000 | S24: =CMF_Tab2!S24 -> 0 | T24: =CMF_Tab2!T24 -> -1 | U24: =CMF_Tab2!U24 -> -1 | V24: =CMF_Tab2!V24 -> -1 | W24: =CMF_Tab2!W24 -> -1 | X24: =CMF_Tab2!X24 -> -1 | Y24: =CMF_Tab2!Y24 -> -1 | Z24: =CMF_Tab2!Z24 -> 0 | AA24: =CMF_Tab2!AA24 -> -1 | AB24: =CMF_Tab2!AB24 -> -1 | AC24: =CMF_Tab2!AC24 -> -1 | AD24: Yes | AE24: =CMF_Tab2!AE24 -> -1 | AF24: =CMF_Tab2!AF24 -> -1 | AG24: =CMF_Tab2!AG24 -> -1 | AH24: =CMF_Tab2!AH24 -> 0 | AI24: =CMF_Tab2!AI24 -> 0 | AJ24: =CMF_Tab2!AJ24 -> -1 | AK24: =CMF_Tab2!AK24 -> -1 | AL24: 21 | AM24: XXXXRSX | AN24: XRS
A25: =CMF_Tab2!A25 -> 22 | B25: =CMF_Tab2!B25 -> XXXXRUX | C25: =CMF_Tab2!C25 -> XRU | D25: =CMF_Tab2!D25 -> -1 | E25: =CMF_Tab2!E25 -> -1 | F25: =CMF_Tab2!F25 -> 0 | G25: =CMF_Tab2!G25 -> -1 | H25: =CMF_Tab2!H25 -> -1 | I25: 100 | J25: =CMF_Tab2!J25 -> 0 | K25: =CMF_Tab2!K25 -> 0 | L25: =CMF_Tab2!L25 -> 0 | M25: =CMF_Tab2!M25 -> 0 | N25: 600 | O25: 0 | P25: =CMF_Tab2!P25 -> 0 | Q25: 1000 | R25: 1000 | S25: 1 | T25: =CMF_Tab2!T25 -> -1 | U25: =CMF_Tab2!U25 -> -1 | V25: =CMF_Tab2!V25 -> -1 | W25: =CMF_Tab2!W25 -> -1 | X25: =CMF_Tab2!X25 -> -1 | Y25: =CMF_Tab2!Y25 -> -1 | Z25: =CMF_Tab2!Z25 -> 0 | AA25: =CMF_Tab2!AA25 -> -1 | AB25: =CMF_Tab2!AB25 -> -1 | AC25: =CMF_Tab2!AC25 -> -1 | AD25: =CMF_Tab2!AD25 -> -1 | AE25: =CMF_Tab2!AE25 -> -1 | AF25: =CMF_Tab2!AF25 -> -1 | AG25: =CMF_Tab2!AG25 -> -1 | AH25: =CMF_Tab2!AH25 -> -1 | AI25: =CMF_Tab2!AI25 -> -1 | AJ25: =CMF_Tab2!AJ25 -> -1 | AK25: =CMF_Tab2!AK25 -> -1 | AL25: 22 | AM25: XXXXRUX | AN25: XRU
A26: =CMF_Tab2!A26 -> 23 | B26: =CMF_Tab2!B26 -> 3XXXRA1 | C26: =CMF_Tab2!C26 -> 3RA | D26: =CMF_Tab2!D26 -> -1 | E26: =CMF_Tab2!E26 -> -1 | F26: =CMF_Tab2!F26 -> -1 | G26: =CMF_Tab2!G26 -> -1 | H26: =CMF_Tab2!H26 -> -1 | I26: =CMF_Tab2!I26 -> -1 | J26: =CMF_Tab2!J26 -> 0 | K26: =CMF_Tab2!K26 -> 0 | L26: =CMF_Tab2!L26 -> 0 | M26: =CMF_Tab2!M26 -> 0 | N26: =CMF_Tab2!N26 -> -1 | O26: =CMF_Tab2!O26 -> -1 | P26: =CMF_Tab2!P26 -> -1 | Q26: =CMF_Tab2!Q26 -> -1 | R26: =CMF_Tab2!R26 -> -1 | S26: =CMF_Tab2!S26 -> -1 | T26: -1 | U26: 0 | V26: 4 | W26: 0 | X26: =CMF_Tab2!X26 -> -1 | Y26: =CMF_Tab2!Y26 -> -1 | Z26: =CMF_Tab2!Z26 -> 0 | AA26: =CMF_Tab2!AA26 -> -1 | AB26: =CMF_Tab2!AB26 -> -1 | AC26: =CMF_Tab2!AC26 -> -1 | AD26: =CMF_Tab2!AD26 -> -1 | AE26: =CMF_Tab2!AE26 -> -1 | AF26: =CMF_Tab2!AF26 -> -1 | AG26: =CMF_Tab2!AG26 -> -1 | AH26: =CMF_Tab2!AH26 -> -1 | AI26: =CMF_Tab2!AI26 -> -1 | AJ26: =CMF_Tab2!AJ26 -> -1 | AK26: =CMF_Tab2!AK26 -> -1 | AL26: 23 | AM26: 3XXXRA1 | AN26: 3RA
A27: =CMF_Tab2!A27 -> 24 | B27: =CMF_Tab2!B27 -> 3XXXRA2 | C27: =CMF_Tab2!C27 -> 3RA | D27: =CMF_Tab2!D27 -> -1 | E27: =CMF_Tab2!E27 -> -1 | F27: =CMF_Tab2!F27 -> -1 | G27: =CMF_Tab2!G27 -> -1 | H27: =CMF_Tab2!H27 -> -1 | I27: =CMF_Tab2!I27 -> -1 | J27: =CMF_Tab2!J27 -> 0 | K27: =CMF_Tab2!K27 -> 0 | L27: =CMF_Tab2!L27 -> 0 | M27: =CMF_Tab2!M27 -> 0 | N27: =CMF_Tab2!N27 -> -1 | O27: =CMF_Tab2!O27 -> -1 | P27: =CMF_Tab2!P27 -> -1 | Q27: =CMF_Tab2!Q27 -> -1 | R27: =CMF_Tab2!R27 -> -1 | S27: =CMF_Tab2!S27 -> -1 | T27: =CMF_Tab2!T27 -> -1 | U27: 0 | V27: =CMF_Tab2!V27 -> 0 | W27: -1 | X27: -1 | Y27: -1 | Z27: =CMF_Tab2!Z27 -> 0 | AA27: =CMF_Tab2!AA27 -> -1 | AB27: =CMF_Tab2!AB27 -> -1 | AC27: =CMF_Tab2!AC27 -> -1 | AD27: =CMF_Tab2!AD27 -> -1 | AE27: =CMF_Tab2!AE27 -> -1 | AF27: =CMF_Tab2!AF27 -> -1 | AG27: =CMF_Tab2!AG27 -> -1 | AH27: =CMF_Tab2!AH27 -> -1 | AI27: =CMF_Tab2!AI27 -> -1 | AJ27: =CMF_Tab2!AJ27 -> -1 | AK27: =CMF_Tab2!AK27 -> -1 | AL27: 24 | AM27: 3XXXRA2 | AN27: 3RA
A28: =CMF_Tab2!A28 -> 25 | B28: =CMF_Tab2!B28 -> 4XXXRA1 | C28: =CMF_Tab2!C28 -> 4RA | D28: =CMF_Tab2!D28 -> -1 | E28: =CMF_Tab2!E28 -> -1 | F28: =CMF_Tab2!F28 -> -1 | G28: =CMF_Tab2!G28 -> -1 | H28: =CMF_Tab2!H28 -> -1 | I28: =CMF_Tab2!I28 -> -1 | J28: =CMF_Tab2!J28 -> 0 | K28: =CMF_Tab2!K28 -> 0 | L28: =CMF_Tab2!L28 -> 0 | M28: =CMF_Tab2!M28 -> 0 | N28: =CMF_Tab2!N28 -> -1 | O28: =CMF_Tab2!O28 -> -1 | P28: =CMF_Tab2!P28 -> -1 | Q28: =CMF_Tab2!Q28 -> -1 | R28: =CMF_Tab2!R28 -> -1 | S28: =CMF_Tab2!S28 -> -1 | T28: -1 | U28: 0 | V28: 4 | W28: 0 | X28: =CMF_Tab2!X28 -> -1 | Y28: -1 | Z28: =CMF_Tab2!Z28 -> 0 | AA28: =CMF_Tab2!AA28 -> -1 | AB28: =CMF_Tab2!AB28 -> -1 | AC28: =CMF_Tab2!AC28 -> -1 | AD28: =CMF_Tab2!AD28 -> -1 | AE28: =CMF_Tab2!AE28 -> -1 | AF28: =CMF_Tab2!AF28 -> -1 | AG28: =CMF_Tab2!AG28 -> -1 | AH28: =CMF_Tab2!AH28 -> -1 | AI28: =CMF_Tab2!AI28 -> -1 | AJ28: =CMF_Tab2!AJ28 -> -1 | AK28: =CMF_Tab2!AK28 -> -1 | AL28: 25 | AM28: 4XXXRA1 | AN28: 4RA
A29: =CMF_Tab2!A29 -> 26 | B29: =CMF_Tab2!B29 -> 4XXXRA2 | C29: =CMF_Tab2!C29 -> 4RA | D29: =CMF_Tab2!D29 -> -1 | E29: =CMF_Tab2!E29 -> -1 | F29: =CMF_Tab2!F29 -> -1 | G29: =CMF_Tab2!G29 -> -1 | H29: =CMF_Tab2!H29 -> -1 | I29: =CMF_Tab2!I29 -> -1 | J29: =CMF_Tab2!J29 -> 0 | K29: =CMF_Tab2!K29 -> 0 | L29: =CMF_Tab2!L29 -> 0 | M29: =CMF_Tab2!M29 -> 0 | N29: =CMF_Tab2!N29 -> -1 | O29: =CMF_Tab2!O29 -> -1 | P29: =CMF_Tab2!P29 -> -1 | Q29: =CMF_Tab2!Q29 -> -1 | R29: =CMF_Tab2!R29 -> -1 | S29: =CMF_Tab2!S29 -> -1 | T29: =CMF_Tab2!T29 -> -1 | U29: 0 | V29: =CMF_Tab2!V29 -> 0 | W29: -1 | X29: -1 | Y29: 1 | Z29: =CMF_Tab2!Z29 -> 0 | AA29: =CMF_Tab2!AA29 -> -1 | AB29: =CMF_Tab2!AB29 -> -1 | AC29: =CMF_Tab2!AC29 -> -1 | AD29: =CMF_Tab2!AD29 -> -1 | AE29: =CMF_Tab2!AE29 -> -1 | AF29: =CMF_Tab2!AF29 -> -1 | AG29: =CMF_Tab2!AG29 -> -1 | AH29: =CMF_Tab2!AH29 -> -1 | AI29: =CMF_Tab2!AI29 -> -1 | AJ29: =CMF_Tab2!AJ29 -> -1 | AK29: =CMF_Tab2!AK29 -> -1 | AL29: 26 | AM29: 4XXXRA2 | AN29: 4RA
A30: =CMF_Tab2!A30 -> 27 | B30: =CMF_Tab2!B30 -> 4XXXDDX | C30: =CMF_Tab2!C30 -> 0 | D30: =CMF_Tab2!D30 -> 0 | E30: =CMF_Tab2!E30 -> 0 | F30: =CMF_Tab2!F30 -> 0 | G30: =CMF_Tab2!G30 -> 0 | H30: =CMF_Tab2!H30 -> 0 | I30: =CMF_Tab2!I30 -> -1 | J30: =CMF_Tab2!J30 -> 0 | K30: =CMF_Tab2!K30 -> 0 | L30: =CMF_Tab2!L30 -> 0 | M30: =CMF_Tab2!M30 -> 0 | N30: =CMF_Tab2!N30 -> -1 | O30: =CMF_Tab2!O30 -> -1 | P30: =CMF_Tab2!P30 -> -1 | Q30: =CMF_Tab2!Q30 -> -1 | R30: =CMF_Tab2!R30 -> -1 | S30: =CMF_Tab2!S30 -> -1 | T30: =CMF_Tab2!T30 -> -1 | U30: =CMF_Tab2!U30 -> -1 | V30: =CMF_Tab2!V30 -> -1 | W30: =CMF_Tab2!W30 -> -1 | X30: =CMF_Tab2!X30 -> -1 | Y30: =CMF_Tab2!Y30 -> -1 | Z30: =CMF_Tab2!Z30 -> 0 | AA30: =CMF_Tab2!AA30 -> -1 | AB30: =CMF_Tab2!AB30 -> -1 | AC30: =CMF_Tab2!AC30 -> -1 | AD30: =CMF_Tab2!AD30 -> -1 | AE30: =CMF_Tab2!AE30 -> -1 | AF30: =CMF_Tab2!AF30 -> -1 | AG30: =CMF_Tab2!AG30 -> -1 | AH30: =CMF_Tab2!AH30 -> -1 | AI30: =CMF_Tab2!AI30 -> -1 | AJ30: =CMF_Tab2!AJ30 -> -1 | AK30: =CMF_Tab2!AK30 -> -1 | AL30: 27 | AM30: 4XXXDDX
A31: =CMF_Tab2!A31 -> 28 | B31: =CMF_Tab2!B31 -> 4XXXDLX | C31: =CMF_Tab2!C31 -> 0 | D31: =CMF_Tab2!D31 -> 0 | E31: =CMF_Tab2!E31 -> 0 | F31: =CMF_Tab2!F31 -> 0 | G31: =CMF_Tab2!G31 -> 0 | H31: =CMF_Tab2!H31 -> 0 | I31: =CMF_Tab2!I31 -> -1 | J31: =CMF_Tab2!J31 -> 0 | K31: =CMF_Tab2!K31 -> 0 | L31: =CMF_Tab2!L31 -> 0 | M31: =CMF_Tab2!M31 -> 0 | N31: =CMF_Tab2!N31 -> -1 | O31: =CMF_Tab2!O31 -> -1 | P31: =CMF_Tab2!P31 -> -1 | Q31: =CMF_Tab2!Q31 -> -1 | R31: =CMF_Tab2!R31 -> -1 | S31: =CMF_Tab2!S31 -> -1 | T31: =CMF_Tab2!T31 -> -1 | U31: =CMF_Tab2!U31 -> -1 | V31: =CMF_Tab2!V31 -> -1 | W31: =CMF_Tab2!W31 -> -1 | X31: =CMF_Tab2!X31 -> -1 | Y31: =CMF_Tab2!Y31 -> -1 | Z31: =CMF_Tab2!Z31 -> 0 | AA31: =CMF_Tab2!AA31 -> -1 | AB31: =CMF_Tab2!AB31 -> -1 | AC31: =CMF_Tab2!AC31 -> -1 | AD31: =CMF_Tab2!AD31 -> -1 | AE31: =CMF_Tab2!AE31 -> -1 | AF31: =CMF_Tab2!AF31 -> -1 | AG31: =CMF_Tab2!AG31 -> -1 | AH31: =CMF_Tab2!AH31 -> -1 | AI31: =CMF_Tab2!AI31 -> -1 | AJ31: =CMF_Tab2!AJ31 -> -1 | AK31: =CMF_Tab2!AK31 -> -1 | AL31: 28 | AM31: 4XXXDLX
